Workbook

Sheet Planning
A1: LVL HdV | C1: Date de Départ | D1: Pas (jour) | E1: Période Sélectionnée | F1: Créer Planning | H1: Réinitialiser | I1: Période | K1: NB | L1: Besoins d'Or (sans remparts) | N1: Besoins d'Elixir | P1: Besoins d'Elixir Noir | S1: Légende
A2: =Paramètres!$BE$2 -> 10 | C2: 2015-06-04 | D2: 0.25 | I2: =period_selected -> 00:00:00 | K2: 0 | L2: 0 | N2: 0 | P2: 0 | T2: Planifié | X2: % Réalisé
A3: Planning | I3: =$I2+$D$2 -> 06:00:00 | K3: 0 | L3: 0 | N3: 0 | P3: 0 | T3: Réel | X3: % Réalisé (au-delà du planifié)
I4: =$I3+$D$2 -> 12:00:00 | K4: 0 | L4: 0 | N4: 0 | P4: 0 | T4: Réel (au-delà du planifié)
I5: =$I4+$D$2 -> 18:00:00 | K5: 0 | L5: 0 | N5: 0 | P5: 0 | T5: Ouvriers disponibles | X5: Erreur - Pas suffisament d'Ouvriers
I7: =SUM(I8:I88)+SUM(I89:I129) -> 0 | J7: 0 | K7: 0 | L7: 0 | M7: 0 | N7: 0 | O7: 0 | P7: 0 | Q7: 0 | R7: 0 | S7: 0 | T7: 0 | U7: 0 | V7: 0 | W7: 0 | X7: 0 | Y7: 0 | Z7: 0 | AA7: 0 | AB7: 0 | AC7: 0 | AD7: 0 | AE7: 0 | AF7: 0 | AG7: 0 | AH7: 0 | AI7: 0 | AJ7: 0 | AK7: 0 | AL7: 0 | AM7: 0 | AN7: 0 | AO7: =SUM(AO8:AO88)+SUM(AO89:AO129) -> 0 | AP7: 0 | AQ7: 0 | AR7: 0 | AS7: 0 | AT7: 0 | AU7: 0 | AV7: 0 | AW7: 0 | AX7: 0 | AY7: 0 | AZ7: 0 | BA7: 0 | BB7: 0 | BC7: 0 | BD7: 0 | BE7: 0 | BF7: 0 | BG7: 0 | BH7: 0 | BI7: 0 | BJ7: 0 | BK7: 0 | BL7: 0 | BM7: 0 | BN7: 0 | BO7: 0 | BP7: 0
A8: Bâtiments de Ressources | I8: =IF(ISERROR(Plan),0,Plan) -> 0 | J8: 0 | K8: 0 | L8: 0 | M8: 0 | N8: 0 | O8: 0 | P8: 0 | Q8: 0 | R8: 0 | S8: =IF(ISERROR(Plan),0,Plan) -> 0 | T8: 0 | U8: 0 | V8: 0 | W8: 0 | X8: 0 | Y8: 0 | Z8: 0 | AA8: 0 | AB8: 0 | AC8: =IF(ISERROR(Plan),0,Plan) -> 0 | AD8: 0 | AE8: 0 | AF8: 0 | AG8: 0 | AH8: 0 | AI8: 0 | AJ8: 0 | AK8: 0 | AL8: 0 | AM8: =IF(ISERROR(Plan),0,Plan) -> 0 | AN8: 0 | AO8: 0 | AP8: 0 | AQ8: 0 | AR8: 0 | AS8: 0 | AT8: 0 | AU8: 0 | AV8: 0 | AW8: =IF(ISERROR(Plan),0,Plan) -> 0 | AX8: 0 | AY8: 0 | AZ8: 0 | BA8: 0 | BB8: 0 | BC8: 0 | BD8: 0 | BE8: 0 | BF8: 0 | BG8: =IF(ISERROR(Plan),0,Plan) -> 0 | BH8: 0 | BI8: 0 | BJ8: 0 | BK8: 0 | BL8: 0 | BM8: 0 | BN8: 0 | BO8: 0 | BP8: 0
A9: Mine d'Or | C9: =IF($B9<>"",VLOOKUP($B9,COSTS_Gold_Mine[#All],2),"") ->  | D9: =IF($B9<>"",VLOOKUP($B9,COSTS_Gold_Mine[#All],3)/24,"") ->  | G9: =IF($D9<>"",$D9,"") ->  | I9: 0 | J9: 0 | K9: 0 | L9: 0 | M9: 0 | N9: 0 | O9: 0 | P9: 0 | Q9: 0 | R9: 0 | S9: 0 | T9: 0 | U9: 0 | V9: 0 | W9: 0 | X9: 0 | Y9: 0 | Z9: 0 | AA9: 0 | AB9: 0 | AC9: 0 | AD9: 0 | AE9: 0 | AF9: 0 | AG9: 0 | AH9: 0 | AI9: 0 | AJ9: 0 | AK9: 0 | AL9: 0 | AM9: 0 | AN9: 0 | AO9: 0 | AP9: 0 | AQ9: 0 | AR9: 0 | AS9: 0 | AT9: 0 | AU9: 0 | AV9: 0 | AW9: 0 | AX9: 0 | AY9: 0 | AZ9: 0 | BA9: 0 | BB9: 0 | BC9: 0 | BD9: 0 | BE9: 0 | BF9: 0 | BG9: 0 | BH9: 0 | BI9: 0 | BJ9: 0 | BK9: 0 | BL9: 0 | BM9: 0 | BN9: 0 | BO9: 0 | BP9: 0
A10: Extracteur d'Élixir | C10: =IF($B10<>"",VLOOKUP($B10,COSTS_Elixir_Collector[#All],2),"") ->  | D10: =IF($B10<>"",VLOOKUP($B10,COSTS_Elixir_Collector[#All],3)/24,"") ->  | I10: =IF(ISERROR(Plan),0,Plan) -> 0 | J10: 0 | K10: 0 | L10: 0 | M10: 0 | N10: 0 | O10: 0 | P10: 0 | Q10: 0 | R10: 0 | S10: =IF(ISERROR(Plan),0,Plan) -> 0 | T10: 0 | U10: 0 | V10: 0 | W10: 0 | X10: 0 | Y10: 0 | Z10: 0 | AA10: 0 | AB10: 0 | AC10: =IF(ISERROR(Plan),0,Plan) -> 0 | AD10: 0 | AE10: 0 | AF10: 0 | AG10: 0 | AH10: 0 | AI10: 0 | AJ10: 0 | AK10: 0 | AL10: 0 | AM10: =IF(ISERROR(Plan),0,Plan) -> 0 | AN10: 0 | AO10: 0 | AP10: 0 | AQ10: 0 | AR10: 0 | AS10: 0 | AT10: 0 | AU10: 0 | AV10: 0 | AW10: =IF(ISERROR(Plan),0,Plan) -> 0 | AX10: 0 | AY10: 0 | AZ10: 0 | BA10: 0 | BB10: 0 | BC10: 0 | BD10: 0 | BE10: 0 | BF10: 0 | BG10: =IF(ISERROR(Plan),0,Plan) -> 0 | BH10: 0 | BI10: 0 | BJ10: 0 | BK10: 0 | BL10: 0 | BM10: 0 | BN10: 0 | BO10: 0 | BP10: 0
A11: Foreuse d'Élixir Noir | C11: =IF($B11<>"",VLOOKUP($B11,COSTS_Dark_Elixir_Drill[#All],2),"") ->  | D11: =IF($B11<>"",VLOOKUP($B11,COSTS_Dark_Elixir_Drill[#All],3)/24,"") ->  | I11: =IF(ISERROR(Plan),0,Plan) -> 0 | J11: 0 | K11: 0 | L11: 0 | M11: 0 | N11: 0 | O11: 0 | P11: 0 | Q11: 0 | R11: 0 | S11: =IF(ISERROR(Plan),0,Plan) -> 0 | T11: 0 | U11: 0 | V11: 0 | W11: 0 | X11: 0 | Y11: 0 | Z11: 0 | AA11: 0 | AB11: 0 | AC11: =IF(ISERROR(Plan),0,Plan) -> 0 | AD11: 0 | AE11: 0 | AF11: 0 | AG11: 0 | AH11: 0 | AI11: 0 | AJ11: 0 | AK11: 0 | AL11: 0 | AM11: =IF(ISERROR(Plan),0,Plan) -> 0 | AN11: 0 | AO11: 0 | AP11: 0 | AQ11: 0 | AR11: 0 | AS11: 0 | AT11: 0 | AU11: 0 | AV11: 0 | AW11: =IF(ISERROR(Plan),0,Plan) -> 0 | AX11: 0 | AY11: 0 | AZ11: 0 | BA11: 0 | BB11: 0 | BC11: 0 | BD11: 0 | BE11: 0 | BF11: 0 | BG11: =IF(ISERROR(Plan),0,Plan) -> 0 | BH11: 0 | BI11: 0 | BJ11: 0 | BK11: 0 | BL11: 0 | BM11: 0 | BN11: 0 | BO11: 0 | BP11: 0
A12: Réserve d'Or | C12: =IF($B12<>"",VLOOKUP($B12,COSTS_Gold_Storage[#All],2),"") ->  | D12: =IF($B12<>"",VLOOKUP($B12,COSTS_Gold_Storage[#All],3)/24,"") ->  | I12: =IF(ISERROR(Plan),0,Plan) -> 0 | J12: 0 | K12: 0 | L12: 0 | M12: 0 | N12: 0 | O12: 0 | P12: 0 | Q12: 0 | R12: 0 | S12: =IF(ISERROR(Plan),0,Plan) -> 0 | T12: 0 | U12: 0 | V12: 0 | W12: 0 | X12: 0 | Y12: 0 | Z12: 0 | AA12: 0 | AB12: 0 | AC12: =IF(ISERROR(Plan),0,Plan) -> 0 | AD12: 0 | AE12: 0 | AF12: 0 | AG12: 0 | AH12: 0 | AI12: 0 | AJ12: 0 | AK12: 0 | AL12: 0 | AM12: =IF(ISERROR(Plan),0,Plan) -> 0 | AN12: 0 | AO12: 0 | AP12: 0 | AQ12: 0 | AR12: 0 | AS12: 0 | AT12: 0 | AU12: 0 | AV12: 0 | AW12: =IF(ISERROR(Plan),0,Plan) -> 0 | AX12: 0 | AY12: 0 | AZ12: 0 | BA12: 0 | BB12: 0 | BC12: 0 | BD12: 0 | BE12: 0 | BF12: 0 | BG12: =IF(ISERROR(Plan),0,Plan) -> 0 | BH12: 0 | BI12: 0 | BJ12: 0 | BK12: 0 | BL12: 0 | BM12: 0 | BN12: 0 | BO12: 0 | BP12: 0
A13: Réservoir d'Élixir | C13: =IF($B13<>"",VLOOKUP($B13,COSTS_Elixir_Storage[#All],2),"") ->  | D13: =IF($B13<>"",VLOOKUP($B13,COSTS_Elixir_Storage[#All],3)/24,"") ->  | I13: =IF(ISERROR(Plan),0,Plan) -> 0 | J13: 0 | K13: 0 | L13: 0 | M13: 0 | N13: 0 | O13: 0 | P13: 0 | Q13: 0 | R13: 0 | S13: =IF(ISERROR(Plan),0,Plan) -> 0 | T13: 0 | U13: 0 | V13: 0 | W13: 0 | X13: 0 | Y13: 0 | Z13: 0 | AA13: 0 | AB13: 0 | AC13: =IF(ISERROR(Plan),0,Plan) -> 0 | AD13: 0 | AE13: 0 | AF13: 0 | AG13: 0 | AH13: 0 | AI13: 0 | AJ13: 0 | AK13: 0 | AL13: 0 | AM13: =IF(ISERROR(Plan),0,Plan) -> 0 | AN13: 0 | AO13: 0 | AP13: 0 | AQ13: 0 | AR13: 0 | AS13: 0 | AT13: 0 | AU13: 0 | AV13: 0 | AW13: =IF(ISERROR(Plan),0,Plan) -> 0 | AX13: 0 | AY13: 0 | AZ13: 0 | BA13: 0 | BB13: 0 | BC13: 0 | BD13: 0 | BE13: 0 | BF13: 0 | BG13: =IF(ISERROR(Plan),0,Plan) -> 0 | BH13: 0 | BI13: 0 | BJ13: 0 | BK13: 0 | BL13: 0 | BM13: 0 | BN13: 0 | BO13: 0 | BP13: 0
A14: Réservoir d'Élixir Noir | C14: =IF($B14<>"",VLOOKUP($B14,COSTS_Dark_Elixir_Storage[#All],2),"") ->  | D14: =IF($B14<>"",VLOOKUP($B14,COSTS_Dark_Elixir_Storage[#All],3)/24,"") ->  | I14: =IF(ISERROR(Plan),0,Plan) -> 0 | J14: 0 | K14: 0 | L14: 0 | M14: 0 | N14: 0 | O14: 0 | P14: 0 | Q14: 0 | R14: 0 | S14: =IF(ISERROR(Plan),0,Plan) -> 0 | T14: 0 | U14: 0 | V14: 0 | W14: 0 | X14: 0 | Y14: 0 | Z14: 0 | AA14: 0 | AB14: 0 | AC14: =IF(ISERROR(Plan),0,Plan) -> 0 | AD14: 0 | AE14: 0 | AF14: 0 | AG14: 0 | AH14: 0 | AI14: 0 | AJ14: 0 | AK14: 0 | AL14: 0 | AM14: =IF(ISERROR(Plan),0,Plan) -> 0 | AN14: 0 | AO14: 0 | AP14: 0 | AQ14: 0 | AR14: 0 | AS14: 0 | AT14: 0 | AU14: 0 | AV14: 0 | AW14: =IF(ISERROR(Plan),0,Plan) -> 0 | AX14: 0 | AY14: 0 | AZ14: 0 | BA14: 0 | BB14: 0 | BC14: 0 | BD14: 0 | BE14: 0 | BF14: 0 | BG14: =IF(ISERROR(Plan),0,Plan) -> 0 | BH14: 0 | BI14: 0 | BJ14: 0 | BK14: 0 | BL14: 0 | BM14: 0 | BN14: 0 | BO14: 0 | BP14: 0
A15: Bâtiments d'Armée | I15: =IF(ISERROR(Plan),0,Plan) -> 0 | J15: 0 | K15: 0 | L15: 0 | M15: 0 | N15: 0 | O15: 0 | P15: 0 | Q15: 0 | R15: 0 | S15: =IF(ISERROR(Plan),0,Plan) -> 0 | T15: 0 | U15: 0 | V15: 0 | W15: 0 | X15: 0 | Y15: 0 | Z15: 0 | AA15: 0 | AB15: 0 | AC15: =IF(ISERROR(Plan),0,Plan) -> 0 | AD15: 0 | AE15: 0 | AF15: 0 | AG15: 0 | AH15: 0 | AI15: 0 | AJ15: 0 | AK15: 0 | AL15: 0 | AM15: =IF(ISERROR(Plan),0,Plan) -> 0 | AN15: 0 | AO15: 0 | AP15: 0 | AQ15: 0 | AR15: 0 | AS15: 0 | AT15: 0 | AU15: 0 | AV15: 0 | AW15: =IF(ISERROR(Plan),0,Plan) -> 0 | AX15: 0 | AY15: 0 | AZ15: 0 | BA15: 0 | BB15: 0 | BC15: 0 | BD15: 0 | BE15: 0 | BF15: 0 | BG15: =IF(ISERROR(Plan),0,Plan) -> 0 | BH15: 0 | BI15: 0 | BJ15: 0 | BK15: 0 | BL15: 0 | BM15: 0 | BN15: 0 | BO15: 0 | BP15: 0
A16: Caserne | C16: =IF($B16<>"",VLOOKUP($B16,COSTS_Barrack[#All],2),"") ->  | D16: =IF($B16<>"",VLOOKUP($B16,COSTS_Barrack[#All],3)/24,"") ->  | G16: =IF($D16<>"",$D16,"") ->  | I16: 0 | J16: 0 | K16: 0 | L16: 0 | M16: 0 | N16: 0 | O16: 0 | P16: 0 | Q16: 0 | R16: 0 | S16: 0 | T16: 0 | U16: 0 | V16: 0 | W16: 0 | X16: 0 | Y16: 0 | Z16: 0 | AA16: 0 | AB16: 0 | AC16: 0 | AD16: 0 | AE16: 0 | AF16: 0 | AG16: 0 | AH16: 0 | AI16: 0 | AJ16: 0 | AK16: 0 | AL16: 0 | AM16: 0 | AN16: 0 | AO16: 0 | AP16: 0 | AQ16: 0 | AR16: 0 | AS16: 0 | AT16: 0 | AU16: 0 | AV16: 0 | AW16: 0 | AX16: 0 | AY16: 0 | AZ16: 0 | BA16: 0 | BB16: 0 | BC16: 0 | BD16: 0 | BE16: 0 | BF16: 0 | BG16: 0 | BH16: 0 | BI16: 0 | BJ16: 0 | BK16: 0 | BL16: 0 | BM16: 0 | BN16: 0 | BO16: 0 | BP16: 0
A17: Caserne Noire | C17: =IF($B17<>"",VLOOKUP($B17,COSTS_Dark_Barrack[#All],2),"") ->  | D17: =IF($B17<>"",VLOOKUP($B17,COSTS_Dark_Barrack[#All],3)/24,"") ->  | I17: =IF(ISERROR(Plan),0,Plan) -> 0 | J17: 0 | K17: 0 | L17: 0 | M17: 0 | N17: 0 | O17: 0 | P17: 0 | Q17: 0 | R17: 0 | S17: =IF(ISERROR(Plan),0,Plan) -> 0 | T17: 0 | U17: 0 | V17: 0 | W17: 0 | X17: 0 | Y17: 0 | Z17: 0 | AA17: 0 | AB17: 0 | AC17: =IF(ISERROR(Plan),0,Plan) -> 0 | AD17: 0 | AE17: 0 | AF17: 0 | AG17: 0 | AH17: 0 | AI17: 0 | AJ17: 0 | AK17: 0 | AL17: 0 | AM17: =IF(ISERROR(Plan),0,Plan) -> 0 | AN17: 0 | AO17: 0 | AP17: 0 | AQ17: 0 | AR17: 0 | AS17: 0 | AT17: 0 | AU17: 0 | AV17: 0 | AW17: =IF(ISERROR(Plan),0,Plan) -> 0 | AX17: 0 | AY17: 0 | AZ17: 0 | BA17: 0 | BB17: 0 | BC17: 0 | BD17: 0 | BE17: 0 | BF17: 0 | BG17: =IF(ISERROR(Plan),0,Plan) -> 0 | BH17: 0 | BI17: 0 | BJ17: 0 | BK17: 0 | BL17: 0 | BM17: 0 | BN17: 0 | BO17: 0 | BP17: 0
A18: Camp Militaire | C18: =IF($B18<>"",VLOOKUP($B18,COSTS_Army_Camp[#All],2),"") ->  | D18: =IF($B18<>"",VLOOKUP($B18,COSTS_Army_Camp[#All],3)/24,"") ->  | G18: =IF($D18<>"",$D18,"") ->  | I18: 0 | J18: 0 | K18: 0 | L18: 0 | M18: 0 | N18: 0 | O18: 0 | P18: 0 | Q18: 0 | R18: 0 | S18: 0 | T18: 0 | U18: 0 | V18: 0 | W18: 0 | X18: 0 | Y18: 0 | Z18: 0 | AA18: 0 | AB18: 0 | AC18: 0 | AD18: 0 | AE18: 0 | AF18: 0 | AG18: 0 | AH18: 0 | AI18: 0 | AJ18: 0 | AK18: 0 | AL18: 0 | AM18: 0 | AN18: 0 | AO18: 0 | AP18: 0 | AQ18: 0 | AR18: 0 | AS18: 0 | AT18: 0 | AU18: 0 | AV18: 0 | AW18: 0 | AX18: 0 | AY18: 0 | AZ18: 0 | BA18: 0 | BB18: 0 | BC18: 0 | BD18: 0 | BE18: 0 | BF18: 0 | BG18: 0 | BH18: 0 | BI18: 0 | BJ18: 0 | BK18: 0 | BL18: 0 | BM18: 0 | BN18: 0 | BO18: 0 | BP18: 0
A19: Laboratoire | C19: =IF($B19<>"",VLOOKUP($B19,COSTS_Laboratory[#All],2),"") ->  | D19: =IF($B19<>"",VLOOKUP($B19,COSTS_Laboratory[#All],3)/24,"") ->  | G19: =IF($D19<>"",$D19,"") ->  | I19: =IF(ISERROR(Plan),0,Plan) -> 0 | J19: 0 | K19: 0 | L19: 0 | M19: 0 | N19: 0 | O19: 0 | P19: 0 | Q19: 0 | R19: 0 | S19: =IF(ISERROR(Plan),0,Plan) -> 0 | T19: 0 | U19: 0 | V19: 0 | W19: 0 | X19: 0 | Y19: 0 | Z19: 0 | AA19: 0 | AB19: 0 | AC19: =IF(ISERROR(Plan),0,Plan) -> 0 | AD19: 0 | AE19: 0 | AF19: 0 | AG19: 0 | AH19: 0 | AI19: 0 | AJ19: 0 | AK19: 0 | AL19: 0 | AM19: =IF(ISERROR(Plan),0,Plan) -> 0 | AN19: 0 | AO19: 0 | AP19: 0 | AQ19: 0 | AR19: 0 | AS19: 0 | AT19: 0 | AU19: 0 | AV19: 0 | AW19: =IF(ISERROR(Plan),0,Plan) -> 0 | AX19: 0 | AY19: 0 | AZ19: 0 | BA19: 0 | BB19: 0 | BC19: 0 | BD19: 0 | BE19: 0 | BF19: 0 | BG19: =IF(ISERROR(Plan),0,Plan) -> 0 | BH19: 0 | BI19: 0 | BJ19: 0 | BK19: 0 | BL19: 0 | BM19: 0 | BN19: 0 | BO19: 0 | BP19: 0
A20: Usine de Sorts | C20: =IF($B20<>"",VLOOKUP($B20,COSTS_Spell_Factory[#All],2),"") ->  | D20: =IF($B20<>"",VLOOKUP($B20,COSTS_Spell_Factory[#All],3)/24,"") ->  | G20: =IF($D20<>"",$D20,"") ->  | I20: =IF(ISERROR(Plan),0,Plan) -> 0 | J20: 0 | K20: 0 | L20: 0 | M20: 0 | N20: 0 | O20: 0 | P20: 0 | Q20: 0 | R20: 0 | S20: =IF(ISERROR(Plan),0,Plan) -> 0 | T20: 0 | U20: 0 | V20: 0 | W20: 0 | X20: 0 | Y20: 0 | Z20: 0 | AA20: 0 | AB20: 0 | AC20: =IF(ISERROR(Plan),0,Plan) -> 0 | AD20: 0 | AE20: 0 | AF20: 0 | AG20: 0 | AH20: 0 | AI20: 0 | AJ20: 0 | AK20: 0 | AL20: 0 | AM20: =IF(ISERROR(Plan),0,Plan) -> 0 | AN20: 0 | AO20: 0 | AP20: 0 | AQ20: 0 | AR20: 0 | AS20: 0 | AT20: 0 | AU20: 0 | AV20: 0 | AW20: =IF(ISERROR(Plan),0,Plan) -> 0 | AX20: 0 | AY20: 0 | AZ20: 0 | BA20: 0 | BB20: 0 | BC20: 0 | BD20: 0 | BE20: 0 | BF20: 0 | BG20: =IF(ISERROR(Plan),0,Plan) -> 0 | BH20: 0 | BI20: 0 | BJ20: 0 | BK20: 0 | BL20: 0 | BM20: 0 | BN20: 0 | BO20: 0 | BP20: 0
A21: Bâtiments Défensifs | I21: 0 | J21: 0 | K21: 0 | L21: 0 | M21: 0 | N21: 0 | O21: 0 | P21: 0 | Q21: 0 | R21: 0 | S21: 0 | T21: 0 | U21: 0 | V21: 0 | W21: 0 | X21: 0 | Y21: 0 | Z21: 0 | AA21: 0 | AB21: 0 | AC21: 0 | AD21: 0 | AE21: 0 | AF21: 0 | AG21: 0 | AH21: 0 | AI21: 0 | AJ21: 0 | AK21: 0 | AL21: 0 | AM21: 0 | AN21: 0 | AO21: 0 | AP21: 0 | AQ21: 0 | AR21: 0 | AS21: 0 | AT21: 0 | AU21: 0 | AV21: 0 | AW21: 0 | AX21: 0 | AY21: 0 | AZ21: 0 | BA21: 0 | BB21: 0 | BC21: 0 | BD21: 0 | BE21: 0 | BF21: 0 | BG21: 0 | BH21: 0 | BI21: 0 | BJ21: 0 | BK21: 0 | BL21: 0 | BM21: 0 | BN21: 0 | BO21: 0 | BP21: 0
A22: Rempart | C22: =IF($B22<>"",VLOOKUP($B22,COSTS_Wall[#All],2),"") ->  | D22: =IF($B22<>"",VLOOKUP($B22,COSTS_Wall[#All],3)/24,"") ->  | G22: =IF($D22<>"",$D22,"") ->  | I22: 0 | J22: 0 | K22: 0 | L22: 0 | M22: 0 | N22: 0 | O22: 0 | P22: 0 | Q22: 0 | R22: 0 | S22: 0 | T22: 0 | U22: 0 | V22: 0 | W22: 0 | X22: 0 | Y22: 0 | Z22: 0 | AA22: 0 | AB22: 0 | AC22: 0 | AD22: 0 | AE22: 0 | AF22: 0 | AG22: 0 | AH22: 0 | AI22: 0 | AJ22: 0 | AK22: 0 | AL22: 0 | AM22: 0 | AN22: 0 | AO22: 0 | AP22: 0 | AQ22: 0 | AR22: 0 | AS22: 0 | AT22: 0 | AU22: 0 | AV22: 0 | AW22: 0 | AX22: 0 | AY22: 0 | AZ22: 0 | BA22: 0 | BB22: 0 | BC22: 0 | BD22: 0 | BE22: 0 | BF22: 0 | BG22: 0 | BH22: 0 | BI22: 0 | BJ22: 0 | BK22: 0 | BL22: 0 | BM22: 0 | BN22: 0 | BO22: 0 | BP22: 0
A23: Canon | C23: =IF($B23<>"",VLOOKUP($B23,COSTS_Cannon[#All],2),"") ->  | D23: =IF($B23<>"",VLOOKUP($B23,COSTS_Cannon[#All],3)/24,"") ->  | I23: =IF(ISERROR(Plan),0,Plan) -> 0 | J23: 0 | K23: 0 | L23: 0 | M23: 0 | N23: 0 | O23: 0 | P23: 0 | Q23: 0 | R23: 0 | S23: =IF(ISERROR(Plan),0,Plan) -> 0 | T23: 0 | U23: 0 | V23: 0 | W23: 0 | X23: 0 | Y23: 0 | Z23: 0 | AA23: 0 | AB23: 0 | AC23: =IF(ISERROR(Plan),0,Plan) -> 0 | AD23: 0 | AE23: 0 | AF23: 0 | AG23: 0 | AH23: 0 | AI23: 0 | AJ23: 0 | AK23: 0 | AL23: 0 | AM23: =IF(ISERROR(Plan),0,Plan) -> 0 | AN23: 0 | AO23: 0 | AP23: 0 | AQ23: 0 | AR23: 0 | AS23: 0 | AT23: 0 | AU23: 0 | AV23: 0 | AW23: =IF(ISERROR(Plan),0,Plan) -> 0 | AX23: 0 | AY23: 0 | AZ23: 0 | BA23: 0 | BB23: 0 | BC23: 0 | BD23: 0 | BE23: 0 | BF23: 0 | BG23: =IF(ISERROR(Plan),0,Plan) -> 0 | BH23: 0 | BI23: 0 | BJ23: 0 | BK23: 0 | BL23: 0 | BM23: 0 | BN23: 0 | BO23: 0 | BP23: 0
A24: Tour d'Archers | C24: =IF($B24<>"",VLOOKUP($B24,COSTS_Archer_Tower[#All],2),"") ->  | D24: =IF($B24<>"",VLOOKUP($B24,COSTS_Archer_Tower[#All],3)/24,"") ->  | I24: =IF(ISERROR(Plan),0,Plan) -> 0 | J24: 0 | K24: 0 | L24: 0 | M24: 0 | N24: 0 | O24: 0 | P24: 0 | Q24: 0 | R24: 0 | S24: =IF(ISERROR(Plan),0,Plan) -> 0 | T24: 0 | U24: 0 | V24: 0 | W24: 0 | X24: 0 | Y24: 0 | Z24: 0 | AA24: 0 | AB24: 0 | AC24: =IF(ISERROR(Plan),0,Plan) -> 0 | AD24: 0 | AE24: 0 | AF24: 0 | AG24: 0 | AH24: 0 | AI24: 0 | AJ24: 0 | AK24: 0 | AL24: 0 | AM24: =IF(ISERROR(Plan),0,Plan) -> 0 | AN24: 0 | AO24: 0 | AP24: 0 | AQ24: 0 | AR24: 0 | AS24: 0 | AT24: 0 | AU24: 0 | AV24: 0 | AW24: =IF(ISERROR(Plan),0,Plan) -> 0 | AX24: 0 | AY24: 0 | AZ24: 0 | BA24: 0 | BB24: 0 | BC24: 0 | BD24: 0 | BE24: 0 | BF24: 0 | BG24: =IF(ISERROR(Plan),0,Plan) -> 0 | BH24: 0 | BI24: 0 | BJ24: 0 | BK24: 0 | BL24: 0 | BM24: 0 | BN24: 0 | BO24: 0 | BP24: 0
A25: Mortier | C25: =IF($B25<>"",VLOOKUP($B25,COSTS_Mortar[#All],2),"") ->  | D25: =IF($B25<>"",VLOOKUP($B25,COSTS_Mortar[#All],3)/24,"") ->  | I25: =IF(ISERROR(Plan),0,Plan) -> 0 | J25: 0 | K25: 0 | L25: 0 | M25: 0 | N25: 0 | O25: 0 | P25: 0 | Q25: 0 | R25: 0 | S25: =IF(ISERROR(Plan),0,Plan) -> 0 | T25: 0 | U25: 0 | V25: 0 | W25: 0 | X25: 0 | Y25: 0 | Z25: 0 | AA25: 0 | AB25: 0 | AC25: =IF(ISERROR(Plan),0,Plan) -> 0 | AD25: 0 | AE25: 0 | AF25: 0 | AG25: 0 | AH25: 0 | AI25: 0 | AJ25: 0 | AK25: 0 | AL25: 0 | AM25: =IF(ISERROR(Plan),0,Plan) -> 0 | AN25: 0 | AO25: 0 | AP25: 0 | AQ25: 0 | AR25: 0 | AS25: 0 | AT25: 0 | AU25: 0 | AV25: 0 | AW25: =IF(ISERROR(Plan),0,Plan) -> 0 | AX25: 0 | AY25: 0 | AZ25: 0 | BA25: 0 | BB25: 0 | BC25: 0 | BD25: 0 | BE25: 0 | BF25: 0 | BG25: =IF(ISERROR(Plan),0,Plan) -> 0 | BH25: 0 | BI25: 0 | BJ25: 0 | BK25: 0 | BL25: 0 | BM25: 0 | BN25: 0 | BO25: 0 | BP25: 0
A26: Défense Antiaérienne | C26: =IF($B26<>"",VLOOKUP($B26,COSTS_Air_Defense[#All],2),"") ->  | D26: =IF($B26<>"",VLOOKUP($B26,COSTS_Air_Defense[#All],3)/24,"") ->  | I26: =IF(ISERROR(Plan),0,Plan) -> 0 | J26: 0 | K26: 0 | L26: 0 | M26: 0 | N26: 0 | O26: 0 | P26: 0 | Q26: 0 | R26: 0 | S26: =IF(ISERROR(Plan),0,Plan) -> 0 | T26: 0 | U26: 0 | V26: 0 | W26: 0 | X26: 0 | Y26: 0 | Z26: 0 | AA26: 0 | AB26: 0 | AC26: =IF(ISERROR(Plan),0,Plan) -> 0 | AD26: 0 | AE26: 0 | AF26: 0 | AG26: 0 | AH26: 0 | AI26: 0 | AJ26: 0 | AK26: 0 | AL26: 0 | AM26: =IF(ISERROR(Plan),0,Plan) -> 0 | AN26: 0 | AO26: 0 | AP26: 0 | AQ26: 0 | AR26: 0 | AS26: 0 | AT26: 0 | AU26: 0 | AV26: 0 | AW26: =IF(ISERROR(Plan),0,Plan) -> 0 | AX26: 0 | AY26: 0 | AZ26: 0 | BA26: 0 | BB26: 0 | BC26: 0 | BD26: 0 | BE26: 0 | BF26: 0 | BG26: =IF(ISERROR(Plan),0,Plan) -> 0 | BH26: 0 | BI26: 0 | BJ26: 0 | BK26: 0 | BL26: 0 | BM26: 0 | BN26: 0 | BO26: 0 | BP26: 0
A27: Tour de Sorciers | C27: =IF($B27<>"",VLOOKUP($B27,COSTS_Wizard_Tower[#All],2),"") ->  | D27: =IF($B27<>"",VLOOKUP($B27,COSTS_Wizard_Tower[#All],3)/24,"") ->  | I27: =IF(ISERROR(Plan),0,Plan) -> 0 | J27: 0 | K27: 0 | L27: 0 | M27: 0 | N27: 0 | O27: 0 | P27: 0 | Q27: 0 | R27: 0 | S27: =IF(ISERROR(Plan),0,Plan) -> 0 | T27: 0 | U27: 0 | V27: 0 | W27: 0 | X27: 0 | Y27: 0 | Z27: 0 | AA27: 0 | AB27: 0 | AC27: =IF(ISERROR(Plan),0,Plan) -> 0 | AD27: 0 | AE27: 0 | AF27: 0 | AG27: 0 | AH27: 0 | AI27: 0 | AJ27: 0 | AK27: 0 | AL27: 0 | AM27: =IF(ISERROR(Plan),0,Plan) -> 0 | AN27: 0 | AO27: 0 | AP27: 0 | AQ27: 0 | AR27: 0 | AS27: 0 | AT27: 0 | AU27: 0 | AV27: 0 | AW27: =IF(ISERROR(Plan),0,Plan) -> 0 | AX27: 0 | AY27: 0 | AZ27: 0 | BA27: 0 | BB27: 0 | BC27: 0 | BD27: 0 | BE27: 0 | BF27: 0 | BG27: =IF(ISERROR(Plan),0,Plan) -> 0 | BH27: 0 | BI27: 0 | BJ27: 0 | BK27: 0 | BL27: 0 | BM27: 0 | BN27: 0 | BO27: 0 | BP27: 0
A28: Tesla Camouflée | C28: =IF($B28<>"",VLOOKUP($B28,COSTS_Hidden_Tesla[#All],2),"") ->  | D28: =IF($B28<>"",VLOOKUP($B28,COSTS_Hidden_Tesla[#All],3)/24,"") ->  | I28: =IF(ISERROR(Plan),0,Plan) -> 0 | J28: 0 | K28: 0 | L28: 0 | M28: 0 | N28: 0 | O28: 0 | P28: 0 | Q28: 0 | R28: 0 | S28: =IF(ISERROR(Plan),0,Plan) -> 0 | T28: 0 | U28: 0 | V28: 0 | W28: 0 | X28: 0 | Y28: 0 | Z28: 0 | AA28: 0 | AB28: 0 | AC28: =IF(ISERROR(Plan),0,Plan) -> 0 | AD28: 0 | AE28: 0 | AF28: 0 | AG28: 0 | AH28: 0 | AI28: 0 | AJ28: 0 | AK28: 0 | AL28: 0 | AM28: =IF(ISERROR(Plan),0,Plan) -> 0 | AN28: 0 | AO28: 0 | AP28: 0 | AQ28: 0 | AR28: 0 | AS28: 0 | AT28: 0 | AU28: 0 | AV28: 0 | AW28: =IF(ISERROR(Plan),0,Plan) -> 0 | AX28: 0 | AY28: 0 | AZ28: 0 | BA28: 0 | BB28: 0 | BC28: 0 | BD28: 0 | BE28: 0 | BF28: 0 | BG28: =IF(ISERROR(Plan),0,Plan) -> 0 | BH28: 0 | BI28: 0 | BJ28: 0 | BK28: 0 | BL28: 0 | BM28: 0 | BN28: 0 | BO28: 0 | BP28: 0
A29: Arc-X | C29: =IF($B29<>"",VLOOKUP($B29,COSTS_XBow[#All],2),"") ->  | D29: =IF($B29<>"",VLOOKUP($B29,COSTS_XBow[#All],3)/24,"") ->  | G29: =IF($D29<>"",$D29,"") ->  | I29: =IF(ISERROR(Plan),0,Plan) -> 0 | J29: 0 | K29: 0 | L29: 0 | M29: 0 | N29: 0 | O29: 0 | P29: 0 | Q29: 0 | R29: 0 | S29: =IF(ISERROR(Plan),0,Plan) -> 0 | T29: 0 | U29: 0 | V29: 0 | W29: 0 | X29: 0 | Y29: 0 | Z29: 0 | AA29: 0 | AB29: 0 | AC29: =IF(ISERROR(Plan),0,Plan) -> 0 | AD29: 0 | AE29: 0 | AF29: 0 | AG29: 0 | AH29: 0 | AI29: 0 | AJ29: 0 | AK29: 0 | AL29: 0 | AM29: =IF(ISERROR(Plan),0,Plan) -> 0 | AN29: 0 | AO29: 0 | AP29: 0 | AQ29: 0 | AR29: 0 | AS29: 0 | AT29: 0 | AU29: 0 | AV29: 0 | AW29: =IF(ISERROR(Plan),0,Plan) -> 0 | AX29: 0 | AY29: 0 | AZ29: 0 | BA29: 0 | BB29: 0 | BC29: 0 | BD29: 0 | BE29: 0 | BF29: 0 | BG29: =IF(ISERROR(Plan),0,Plan) -> 0 | BH29: 0 | BI29: 0 | BJ29: 0 | BK29: 0 | BL29: 0 | BM29: 0 | BN29: 0 | BO29: 0 | BP29: 0
A30: Tour de l'Enfer | C30: =IF($B30<>"",VLOOKUP($B30,COSTS_Inferno_Tower[#All],2),"") ->  | D30: =IF($B30<>"",VLOOKUP($B30,COSTS_Inferno_Tower[#All],3)/24,"") ->  | I30: 0 | J30: 0 | K30: 0 | L30: 0 | M30: 0 | N30: 0 | O30: 0 | P30: 0 | Q30: 0 | R30: 0 | S30: 0 | T30: 0 | U30: 0 | V30: 0 | W30: 0 | X30: 0 | Y30: 0 | Z30: 0 | AA30: 0 | AB30: 0 | AC30: 0 | AD30: 0 | AE30: 0 | AF30: 0 | AG30: 0 | AH30: 0 | AI30: 0 | AJ30: 0 | AK30: 0 | AL30: 0 | AM30: 0 | AN30: 0 | AO30: 0 | AP30: 0 | AQ30: 0 | AR30: 0 | AS30: 0 | AT30: 0 | AU30: 0 | AV30: 0 | AW30: 0 | AX30: 0 | AY30: 0 | AZ30: 0 | BA30: 0 | BB30: 0 | BC30: 0 | BD30: 0 | BE30: 0 | BF30: 0 | BG30: 0 | BH30: 0 | BI30: 0 | BJ30: 0 | BK30: 0 | BL30: 0 | BM30: 0 | BN30: 0 | BO30: 0 | BP30: 0
A31: Bâtiments Autres | I31: =IF(ISERROR(Plan),0,Plan) -> 0 | J31: 0 | K31: 0 | L31: 0 | M31: 0 | N31: 0 | O31: 0 | P31: 0 | Q31: 0 | R31: 0 | S31: =IF(ISERROR(Plan),0,Plan) -> 0 | T31: 0 | U31: 0 | V31: 0 | W31: 0 | X31: 0 | Y31: 0 | Z31: 0 | AA31: 0 | AB31: 0 | AC31: =IF(ISERROR(Plan),0,Plan) -> 0 | AD31: 0 | AE31: 0 | AF31: 0 | AG31: 0 | AH31: 0 | AI31: 0 | AJ31: 0 | AK31: 0 | AL31: 0 | AM31: =IF(ISERROR(Plan),0,Plan) -> 0 | AN31: 0 | AO31: 0 | AP31: 0 | AQ31: 0 | AR31: 0 | AS31: 0 | AT31: 0 | AU31: 0 | AV31: 0 | AW31: =IF(ISERROR(Plan),0,Plan) -> 0 | AX31: 0 | AY31: 0 | AZ31: 0 | BA31: 0 | BB31: 0 | BC31: 0 | BD31: 0 | BE31: 0 | BF31: 0 | BG31: =IF(ISERROR(Plan),0,Plan) -> 0 | BH31: 0 | BI31: 0 | BJ31: 0 | BK31: 0 | BL31: 0 | BM31: 0 | BN31: 0 | BO31: 0 | BP31: 0
A32: Château de Clan | C32: =IF($B32<>"",VLOOKUP($B32,COSTS_Clan_Castle[#All],2),"") ->  | D32: =IF($B32<>"",VLOOKUP($B32,COSTS_Clan_Castle[#All],3)/24,"") ->  | G32: =IF($D32<>"",$D32,"") ->  | I32: 0 | J32: 0 | K32: 0 | L32: 0 | M32: 0 | N32: 0 | O32: 0 | P32: 0 | Q32: 0 | R32: 0 | S32: 0 | T32: 0 | U32: 0 | V32: 0 | W32: 0 | X32: 0 | Y32: 0 | Z32: 0 | AA32: 0 | AB32: 0 | AC32: 0 | AD32: 0 | AE32: 0 | AF32: 0 | AG32: 0 | AH32: 0 | AI32: 0 | AJ32: 0 | AK32: 0 | AL32: 0 | AM32: 0 | AN32: 0 | AO32: 0 | AP32: 0 | AQ32: 0 | AR32: 0 | AS32: 0 | AT32: 0 | AU32: 0 | AV32: 0 | AW32: 0 | AX32: 0 | AY32: 0 | AZ32: 0 | BA32: 0 | BB32: 0 | BC32: 0 | BD32: 0 | BE32: 0 | BF32: 0 | BG32: 0 | BH32: 0 | BI32: 0 | BJ32: 0 | BK32: 0 | BL32: 0 | BM32: 0 | BN32: 0 | BO32: 0 | BP32: 0
A33: Hôtel de Ville | C33: =IF($B33<>"",VLOOKUP($B33,COSTS_Town_Home[#All],2),"") ->  | D33: =IF($B33<>"",VLOOKUP($B33,COSTS_Town_Home[#All],3)/24,"") ->  | G33: =IF($D33<>"",$D33,"") ->  | I33: 0 | J33: 0 | K33: 0 | L33: 0 | M33: 0 | N33: 0 | O33: 0 | P33: 0 | Q33: 0 | R33: 0 | S33: 0 | T33: 0 | U33: 0 | V33: 0 | W33: 0 | X33: 0 | Y33: 0 | Z33: 0 | AA33: 0 | AB33: 0 | AC33: 0 | AD33: 0 | AE33: 0 | AF33: 0 | AG33: 0 | AH33: 0 | AI33: 0 | AJ33: 0 | AK33: 0 | AL33: 0 | AM33: 0 | AN33: 0 | AO33: 0 | AP33: 0 | AQ33: 0 | AR33: 0 | AS33: 0 | AT33: 0 | AU33: 0 | AV33: 0 | AW33: 0 | AX33: 0 | AY33: 0 | AZ33: 0 | BA33: 0 | BB33: 0 | BC33: 0 | BD33: 0 | BE33: 0 | BF33: 0 | BG33: 0 | BH33: 0 | BI33: 0 | BJ33: 0 | BK33: 0 | BL33: 0 | BM33: 0 | BN33: 0 | BO33: 0 | BP33: 0
A34: Améliorations de Sorts | I34: 0 | J34: 0 | K34: 0 | L34: 0 | M34: 0 | N34: 0 | O34: 0 | P34: 0 | Q34: 0 | R34: 0 | S34: 0 | T34: 0 | U34: 0 | V34: 0 | W34: 0 | X34: 0 | Y34: 0 | Z34: 0 | AA34: 0 | AB34: 0 | AC34: 0 | AD34: 0 | AE34: 0 | AF34: 0 | AG34: 0 | AH34: 0 | AI34: 0 | AJ34: 0 | AK34: 0 | AL34: 0 | AM34: 0 | AN34: 0 | AO34: 0 | AP34: 0 | AQ34: 0 | AR34: 0 | AS34: 0 | AT34: 0 | AU34: 0 | AV34: 0 | AW34: 0 | AX34: 0 | AY34: 0 | AZ34: 0 | BA34: 0 | BB34: 0 | BC34: 0 | BD34: 0 | BE34: 0 | BF34: 0 | BG34: 0 | BH34: 0 | BI34: 0 | BJ34: 0 | BK34: 0 | BL34: 0 | BM34: 0 | BN34: 0 | BO34: 0 | BP34: 0
A35: Sort de Foudre | C35: =IF($B35<>"",VLOOKUP($B35,COSTS_Spell_Lightning[#All],2),"") ->  | D35: =IF($B35<>"",VLOOKUP($B35,COSTS_Spell_Lightning[#All],3)/24,"") ->  | G35: =IF($D35<>"",$D35,"") ->  | I35: 0 | J35: 0 | K35: 0 | L35: 0 | M35: 0 | N35: 0 | O35: 0 | P35: 0 | Q35: 0 | R35: 0 | S35: 0 | T35: 0 | U35: 0 | V35: 0 | W35: 0 | X35: 0 | Y35: 0 | Z35: 0 | AA35: 0 | AB35: 0 | AC35: 0 | AD35: 0 | AE35: 0 | AF35: 0 | AG35: 0 | AH35: 0 | AI35: 0 | AJ35: 0 | AK35: 0 | AL35: 0 | AM35: 0 | AN35: 0 | AO35: 0 | AP35: 0 | AQ35: 0 | AR35: 0 | AS35: 0 | AT35: 0 | AU35: 0 | AV35: 0 | AW35: 0 | AX35: 0 | AY35: 0 | AZ35: 0 | BA35: 0 | BB35: 0 | BC35: 0 | BD35: 0 | BE35: 0 | BF35: 0 | BG35: 0 | BH35: 0 | BI35: 0 | BJ35: 0 | BK35: 0 | BL35: 0 | BM35: 0 | BN35: 0 | BO35: 0 | BP35: 0
A36: Sort de Guérison | C36: =IF($B36<>"",VLOOKUP($B36,COSTS_Spell_Healing[#All],2),"") ->  | D36: =IF($B36<>"",VLOOKUP($B36,COSTS_Spell_Healing[#All],3)/24,"") ->  | I36: =IF(ISERROR(Plan),0,Plan) -> 0 | J36: 0 | K36: 0 | L36: 0 | M36: 0 | N36: 0 | O36: 0 | P36: 0 | Q36: 0 | R36: 0 | S36: =IF(ISERROR(Plan),0,Plan) -> 0 | T36: 0 | U36: 0 | V36: 0 | W36: 0 | X36: 0 | Y36: 0 | Z36: 0 | AA36: 0 | AB36: 0 | AC36: =IF(ISERROR(Plan),0,Plan) -> 0 | AD36: 0 | AE36: 0 | AF36: 0 | AG36: 0 | AH36: 0 | AI36: 0 | AJ36: 0 | AK36: 0 | AL36: 0 | AM36: =IF(ISERROR(Plan),0,Plan) -> 0 | AN36: 0 | AO36: 0 | AP36: 0 | AQ36: 0 | AR36: 0 | AS36: 0 | AT36: 0 | AU36: 0 | AV36: 0 | AW36: =IF(ISERROR(Plan),0,Plan) -> 0 | AX36: 0 | AY36: 0 | AZ36: 0 | BA36: 0 | BB36: 0 | BC36: 0 | BD36: 0 | BE36: 0 | BF36: 0 | BG36: =IF(ISERROR(Plan),0,Plan) -> 0 | BH36: 0 | BI36: 0 | BJ36: 0 | BK36: 0 | BL36: 0 | BM36: 0 | BN36: 0 | BO36: 0 | BP36: 0
A37: Sort de Rage | C37: =IF($B37<>"",VLOOKUP($B37,COSTS_Spell_Rage[#All],2),"") ->  | D37: =IF($B37<>"",VLOOKUP($B37,COSTS_Spell_Rage[#All],3)/24,"") ->  | G37: =IF($D37<>"",$D37,"") ->  | I37: 0 | J37: 0 | K37: 0 | L37: 0 | M37: 0 | N37: 0 | O37: 0 | P37: 0 | Q37: 0 | R37: 0 | S37: 0 | T37: 0 | U37: 0 | V37: 0 | W37: 0 | X37: 0 | Y37: 0 | Z37: 0 | AA37: 0 | AB37: 0 | AC37: 0 | AD37: 0 | AE37: 0 | AF37: 0 | AG37: 0 | AH37: 0 | AI37: 0 | AJ37: 0 | AK37: 0 | AL37: 0 | AM37: 0 | AN37: 0 | AO37: 0 | AP37: 0 | AQ37: 0 | AR37: 0 | AS37: 0 | AT37: 0 | AU37: 0 | AV37: 0 | AW37: 0 | AX37: 0 | AY37: 0 | AZ37: 0 | BA37: 0 | BB37: 0 | BC37: 0 | BD37: 0 | BE37: 0 | BF37: 0 | BG37: 0 | BH37: 0 | BI37: 0 | BJ37: 0 | BK37: 0 | BL37: 0 | BM37: 0 | BN37: 0 | BO37: 0 | BP37: 0
A38: Sort de Saut | C38: =IF($B38<>"",VLOOKUP($B38,COSTS_Spell_Jump[#All],2),"") ->  | D38: =IF($B38<>"",VLOOKUP($B38,COSTS_Spell_Jump[#All],3)/24,"") ->  | I38: =IF(ISERROR(Plan),0,Plan) -> 0 | J38: 0 | K38: 0 | L38: 0 | M38: 0 | N38: 0 | O38: 0 | P38: 0 | Q38: 0 | R38: 0 | S38: =IF(ISERROR(Plan),0,Plan) -> 0 | T38: 0 | U38: 0 | V38: 0 | W38: 0 | X38: 0 | Y38: 0 | Z38: 0 | AA38: 0 | AB38: 0 | AC38: =IF(ISERROR(Plan),0,Plan) -> 0 | AD38: 0 | AE38: 0 | AF38: 0 | AG38: 0 | AH38: 0 | AI38: 0 | AJ38: 0 | AK38: 0 | AL38: 0 | AM38: =IF(ISERROR(Plan),0,Plan) -> 0 | AN38: 0 | AO38: 0 | AP38: 0 | AQ38: 0 | AR38: 0 | AS38: 0 | AT38: 0 | AU38: 0 | AV38: 0 | AW38: =IF(ISERROR(Plan),0,Plan) -> 0 | AX38: 0 | AY38: 0 | AZ38: 0 | BA38: 0 | BB38: 0 | BC38: 0 | BD38: 0 | BE38: 0 | BF38: 0 | BG38: =IF(ISERROR(Plan),0,Plan) -> 0 | BH38: 0 | BI38: 0 | BJ38: 0 | BK38: 0 | BL38: 0 | BM38: 0 | BN38: 0 | BO38: 0 | BP38: 0
A39: Sort de Gel | C39: =IF($B39<>"",VLOOKUP($B39,COSTS_Spell_Freeze[#All],2),"") ->  | D39: =IF($B39<>"",VLOOKUP($B39,COSTS_Spell_Freeze[#All],3)/24,"") ->  | I39: 0 | J39: 0 | K39: 0 | L39: 0 | M39: 0 | N39: 0 | O39: 0 | P39: 0 | Q39: 0 | R39: 0 | S39: 0 | T39: 0 | U39: 0 | V39: 0 | W39: 0 | X39: 0 | Y39: 0 | Z39: 0 | AA39: 0 | AB39: 0 | AC39: 0 | AD39: 0 | AE39: 0 | AF39: 0 | AG39: 0 | AH39: 0 | AI39: 0 | AJ39: 0 | AK39: 0 | AL39: 0 | AM39: 0 | AN39: 0 | AO39: 0 | AP39: 0 | AQ39: 0 | AR39: 0 | AS39: 0 | AT39: 0 | AU39: 0 | AV39: 0 | AW39: 0 | AX39: 0 | AY39: 0 | AZ39: 0 | BA39: 0 | BB39: 0 | BC39: 0 | BD39: 0 | BE39: 0 | BF39: 0 | BG39: 0 | BH39: 0 | BI39: 0 | BJ39: 0 | BK39: 0 | BL39: 0 | BM39: 0 | BN39: 0 | BO39: 0 | BP39: 0
A40: Améliorations de Troupes | I40: 0 | J40: 0 | K40: 0 | L40: 0 | M40: 0 | N40: 0 | O40: 0 | P40: 0 | Q40: 0 | R40: 0 | S40: 0 | T40: 0 | U40: 0 | V40: 0 | W40: 0 | X40: 0 | Y40: 0 | Z40: 0 | AA40: 0 | AB40: 0 | AC40: 0 | AD40: 0 | AE40: 0 | AF40: 0 | AG40: 0 | AH40: 0 | AI40: 0 | AJ40: 0 | AK40: 0 | AL40: 0 | AM40: 0 | AN40: 0 | AO40: 0 | AP40: 0 | AQ40: 0 | AR40: 0 | AS40: 0 | AT40: 0 | AU40: 0 | AV40: 0 | AW40: 0 | AX40: 0 | AY40: 0 | AZ40: 0 | BA40: 0 | BB40: 0 | BC40: 0 | BD40: 0 | BE40: 0 | BF40: 0 | BG40: 0 | BH40: 0 | BI40: 0 | BJ40: 0 | BK40: 0 | BL40: 0 | BM40: 0 | BN40: 0 | BO40: 0 | BP40: 0
A41: Barbare | C41: =IF($B41<>"",VLOOKUP($B41,COSTS_Barbarian[#All],2),"") ->  | D41: =IF($B41<>"",VLOOKUP($B41,COSTS_Barbarian[#All],3)/24,"") ->  | I41: 0 | J41: 0 | K41: 0 | L41: 0 | M41: 0 | N41: 0 | O41: 0 | P41: 0 | Q41: 0 | R41: 0 | S41: 0 | T41: 0 | U41: 0 | V41: 0 | W41: 0 | X41: 0 | Y41: 0 | Z41: 0 | AA41: 0 | AB41: 0 | AC41: 0 | AD41: 0 | AE41: 0 | AF41: 0 | AG41: 0 | AH41: 0 | AI41: 0 | AJ41: 0 | AK41: 0 | AL41: 0 | AM41: 0 | AN41: 0 | AO41: 0 | AP41: 0 | AQ41: 0 | AR41: 0 | AS41: 0 | AT41: 0 | AU41: 0 | AV41: 0 | AW41: 0 | AX41: 0 | AY41: 0 | AZ41: 0 | BA41: 0 | BB41: 0 | BC41: 0 | BD41: 0 | BE41: 0 | BF41: 0 | BG41: 0 | BH41: 0 | BI41: 0 | BJ41: 0 | BK41: 0 | BL41: 0 | BM41: 0 | BN41: 0 | BO41: 0 | BP41: 0
A42: Archer | C42: =IF($B42<>"",VLOOKUP($B42,COSTS_Archer[#All],2),"") ->  | D42: =IF($B42<>"",VLOOKUP($B42,COSTS_Archer[#All],3)/24,"") ->  | I42: =IF(ISERROR(Plan),0,Plan) -> 0 | J42: 0 | K42: 0 | L42: 0 | M42: 0 | N42: 0 | O42: 0 | P42: 0 | Q42: 0 | R42: 0 | S42: =IF(ISERROR(Plan),0,Plan) -> 0 | T42: 0 | U42: 0 | V42: 0 | W42: 0 | X42: 0 | Y42: 0 | Z42: 0 | AA42: 0 | AB42: 0 | AC42: =IF(ISERROR(Plan),0,Plan) -> 0 | AD42: 0 | AE42: 0 | AF42: 0 | AG42: 0 | AH42: 0 | AI42: 0 | AJ42: 0 | AK42: 0 | AL42: 0 | AM42: =IF(ISERROR(Plan),0,Plan) -> 0 | AN42: 0 | AO42: 0 | AP42: 0 | AQ42: 0 | AR42: 0 | AS42: 0 | AT42: 0 | AU42: 0 | AV42: 0 | AW42: =IF(ISERROR(Plan),0,Plan) -> 0 | AX42: 0 | AY42: 0 | AZ42: 0 | BA42: 0 | BB42: 0 | BC42: 0 | BD42: 0 | BE42: 0 | BF42: 0 | BG42: =IF(ISERROR(Plan),0,Plan) -> 0 | BH42: 0 | BI42: 0 | BJ42: 0 | BK42: 0 | BL42: 0 | BM42: 0 | BN42: 0 | BO42: 0 | BP42: 0
A43: Gobelin | C43: =IF($B43<>"",VLOOKUP($B43,COSTS_Goblin[#All],2),"") ->  | D43: =IF($B43<>"",VLOOKUP($B43,COSTS_Goblin[#All],3)/24,"") ->  | I43: =IF(ISERROR(Plan),0,Plan) -> 0 | J43: 0 | K43: 0 | L43: 0 | M43: 0 | N43: 0 | O43: 0 | P43: 0 | Q43: 0 | R43: 0 | S43: =IF(ISERROR(Plan),0,Plan) -> 0 | T43: 0 | U43: 0 | V43: 0 | W43: 0 | X43: 0 | Y43: 0 | Z43: 0 | AA43: 0 | AB43: 0 | AC43: =IF(ISERROR(Plan),0,Plan) -> 0 | AD43: 0 | AE43: 0 | AF43: 0 | AG43: 0 | AH43: 0 | AI43: 0 | AJ43: 0 | AK43: 0 | AL43: 0 | AM43: =IF(ISERROR(Plan),0,Plan) -> 0 | AN43: 0 | AO43: 0 | AP43: 0 | AQ43: 0 | AR43: 0 | AS43: 0 | AT43: 0 | AU43: 0 | AV43: 0 | AW43: =IF(ISERROR(Plan),0,Plan) -> 0 | AX43: 0 | AY43: 0 | AZ43: 0 | BA43: 0 | BB43: 0 | BC43: 0 | BD43: 0 | BE43: 0 | BF43: 0 | BG43: =IF(ISERROR(Plan),0,Plan) -> 0 | BH43: 0 | BI43: 0 | BJ43: 0 | BK43: 0 | BL43: 0 | BM43: 0 | BN43: 0 | BO43: 0 | BP43: 0
A44: Géant | C44: =IF($B44<>"",VLOOKUP($B44,COSTS_Giant[#All],2),"") ->  | D44: =IF($B44<>"",VLOOKUP($B44,COSTS_Giant[#All],3)/24,"") ->  | I44: 0 | J44: 0 | K44: 0 | L44: 0 | M44: 0 | N44: 0 | O44: 0 | P44: 0 | Q44: 0 | R44: 0 | S44: 0 | T44: 0 | U44: 0 | V44: 0 | W44: 0 | X44: 0 | Y44: 0 | Z44: 0 | AA44: 0 | AB44: 0 | AC44: 0 | AD44: 0 | AE44: 0 | AF44: 0 | AG44: 0 | AH44: 0 | AI44: 0 | AJ44: 0 | AK44: 0 | AL44: 0 | AM44: 0 | AN44: 0 | AO44: 0 | AP44: 0 | AQ44: 0 | AR44: 0 | AS44: 0 | AT44: 0 | AU44: 0 | AV44: 0 | AW44: 0 | AX44: 0 | AY44: 0 | AZ44: 0 | BA44: 0 | BB44: 0 | BC44: 0 | BD44: 0 | BE44: 0 | BF44: 0 | BG44: 0 | BH44: 0 | BI44: 0 | BJ44: 0 | BK44: 0 | BL44: 0 | BM44: 0 | BN44: 0 | BO44: 0 | BP44: 0
A45: Sapeur | C45: =IF($B45<>"",VLOOKUP($B45,COSTS_Wall_Breaker[#All],2),"") ->  | D45: =IF($B45<>"",VLOOKUP($B45,COSTS_Wall_Breaker[#All],3)/24,"") ->  | I45: =IF(ISERROR(Plan),0,Plan) -> 0 | J45: 0 | K45: 0 | L45: 0 | M45: 0 | N45: 0 | O45: 0 | P45: 0 | Q45: 0 | R45: 0 | S45: =IF(ISERROR(Plan),0,Plan) -> 0 | T45: 0 | U45: 0 | V45: 0 | W45: 0 | X45: 0 | Y45: 0 | Z45: 0 | AA45: 0 | AB45: 0 | AC45: =IF(ISERROR(Plan),0,Plan) -> 0 | AD45: 0 | AE45: 0 | AF45: 0 | AG45: 0 | AH45: 0 | AI45: 0 | AJ45: 0 | AK45: 0 | AL45: 0 | AM45: =IF(ISERROR(Plan),0,Plan) -> 0 | AN45: 0 | AO45: 0 | AP45: 0 | AQ45: 0 | AR45: 0 | AS45: 0 | AT45: 0 | AU45: 0 | AV45: 0 | AW45: =IF(ISERROR(Plan),0,Plan) -> 0 | AX45: 0 | AY45: 0 | AZ45: 0 | BA45: 0 | BB45: 0 | BC45: 0 | BD45: 0 | BE45: 0 | BF45: 0 | BG45: =IF(ISERROR(Plan),0,Plan) -> 0 | BH45: 0 | BI45: 0 | BJ45: 0 | BK45: 0 | BL45: 0 | BM45: 0 | BN45: 0 | BO45: 0 | BP45: 0
A46: Ballon | C46: =IF($B46<>"",VLOOKUP($B46,COSTS_Balloon[#All],2),"") ->  | D46: =IF($B46<>"",VLOOKUP($B46,COSTS_Balloon[#All],3)/24,"") ->  | I46: 0 | J46: 0 | K46: 0 | L46: 0 | M46: 0 | N46: 0 | O46: 0 | P46: 0 | Q46: 0 | R46: 0 | S46: 0 | T46: 0 | U46: 0 | V46: 0 | W46: 0 | X46: 0 | Y46: 0 | Z46: 0 | AA46: 0 | AB46: 0 | AC46: 0 | AD46: 0 | AE46: 0 | AF46: 0 | AG46: 0 | AH46: 0 | AI46: 0 | AJ46: 0 | AK46: 0 | AL46: 0 | AM46: 0 | AN46: 0 | AO46: 0 | AP46: 0 | AQ46: 0 | AR46: 0 | AS46: 0 | AT46: 0 | AU46: 0 | AV46: 0 | AW46: 0 | AX46: 0 | AY46: 0 | AZ46: 0 | BA46: 0 | BB46: 0 | BC46: 0 | BD46: 0 | BE46: 0 | BF46: 0 | BG46: 0 | BH46: 0 | BI46: 0 | BJ46: 0 | BK46: 0 | BL46: 0 | BM46: 0 | BN46: 0 | BO46: 0 | BP46: 0
A47: Sorcier | C47: =IF($B47<>"",VLOOKUP($B47,COSTS_Wizard[#All],2),"") ->  | D47: =IF($B47<>"",VLOOKUP($B47,COSTS_Wizard[#All],3)/24,"") ->  | I47: =IF(ISERROR(Plan),0,Plan) -> 0 | J47: 0 | K47: 0 | L47: 0 | M47: 0 | N47: 0 | O47: 0 | P47: 0 | Q47: 0 | R47: 0 | S47: =IF(ISERROR(Plan),0,Plan) -> 0 | T47: 0 | U47: 0 | V47: 0 | W47: 0 | X47: 0 | Y47: 0 | Z47: 0 | AA47: 0 | AB47: 0 | AC47: =IF(ISERROR(Plan),0,Plan) -> 0 | AD47: 0 | AE47: 0 | AF47: 0 | AG47: 0 | AH47: 0 | AI47: 0 | AJ47: 0 | AK47: 0 | AL47: 0 | AM47: =IF(ISERROR(Plan),0,Plan) -> 0 | AN47: 0 | AO47: 0 | AP47: 0 | AQ47: 0 | AR47: 0 | AS47: 0 | AT47: 0 | AU47: 0 | AV47: 0 | AW47: =IF(ISERROR(Plan),0,Plan) -> 0 | AX47: 0 | AY47: 0 | AZ47: 0 | BA47: 0 | BB47: 0 | BC47: 0 | BD47: 0 | BE47: 0 | BF47: 0 | BG47: =IF(ISERROR(Plan),0,Plan) -> 0 | BH47: 0 | BI47: 0 | BJ47: 0 | BK47: 0 | BL47: 0 | BM47: 0 | BN47: 0 | BO47: 0 | BP47: 0
A48: Guérisseuse | C48: =IF($B48<>"",VLOOKUP($B48,COSTS_Healer[#All],2),"") ->  | D48: =IF($B48<>"",VLOOKUP($B48,COSTS_Healer[#All],3)/24,"") ->  | I48: =IF(ISERROR(Plan),0,Plan) -> 0 | J48: 0 | K48: 0 | L48: 0 | M48: 0 | N48: 0 | O48: 0 | P48: 0 | Q48: 0 | R48: 0 | S48: =IF(ISERROR(Plan),0,Plan) -> 0 | T48: 0 | U48: 0 | V48: 0 | W48: 0 | X48: 0 | Y48: 0 | Z48: 0 | AA48: 0 | AB48: 0 | AC48: =IF(ISERROR(Plan),0,Plan) -> 0 | AD48: 0 | AE48: 0 | AF48: 0 | AG48: 0 | AH48: 0 | AI48: 0 | AJ48: 0 | AK48: 0 | AL48: 0 | AM48: =IF(ISERROR(Plan),0,Plan) -> 0 | AN48: 0 | AO48: 0 | AP48: 0 | AQ48: 0 | AR48: 0 | AS48: 0 | AT48: 0 | AU48: 0 | AV48: 0 | AW48: =IF(ISERROR(Plan),0,Plan) -> 0 | AX48: 0 | AY48: 0 | AZ48: 0 | BA48: 0 | BB48: 0 | BC48: 0 | BD48: 0 | BE48: 0 | BF48: 0 | BG48: =IF(ISERROR(Plan),0,Plan) -> 0 | BH48: 0 | BI48: 0 | BJ48: 0 | BK48: 0 | BL48: 0 | BM48: 0 | BN48: 0 | BO48: 0 | BP48: 0
A49: Dragon | C49: =IF($B49<>"",VLOOKUP($B49,COSTS_Dragon[#All],2),"") ->  | D49: =IF($B49<>"",VLOOKUP($B49,COSTS_Dragon[#All],3)/24,"") ->  | I49: 0 | J49: 0 | K49: 0 | L49: 0 | M49: 0 | N49: 0 | O49: 0 | P49: 0 | Q49: 0 | R49: 0 | S49: 0 | T49: 0 | U49: 0 | V49: 0 | W49: 0 | X49: 0 | Y49: 0 | Z49: 0 | AA49: 0 | AB49: 0 | AC49: 0 | AD49: 0 | AE49: 0 | AF49: 0 | AG49: 0 | AH49: 0 | AI49: 0 | AJ49: 0 | AK49: 0 | AL49: 0 | AM49: 0 | AN49: 0 | AO49: 0 | AP49: 0 | AQ49: 0 | AR49: 0 | AS49: 0 | AT49: 0 | AU49: 0 | AV49: 0 | AW49: 0 | AX49: 0 | AY49: 0 | AZ49: 0 | BA49: 0 | BB49: 0 | BC49: 0 | BD49: 0 | BE49: 0 | BF49: 0 | BG49: 0 | BH49: 0 | BI49: 0 | BJ49: 0 | BK49: 0 | BL49: 0 | BM49: 0 | BN49: 0 | BO49: 0 | BP49: 0
A50: P.E.K.K.A | C50: =IF($B50<>"",VLOOKUP($B50,COSTS_PEKKA[#All],2),"") ->  | D50: =IF($B50<>"",VLOOKUP($B50,COSTS_PEKKA[#All],3)/24,"") ->  | I50: 0 | J50: 0 | K50: 0 | L50: 0 | M50: 0 | N50: 0 | O50: 0 | P50: 0 | Q50: 0 | R50: 0 | S50: 0 | T50: 0 | U50: 0 | V50: 0 | W50: 0 | X50: 0 | Y50: 0 | Z50: 0 | AA50: 0 | AB50: 0 | AC50: 0 | AD50: 0 | AE50: 0 | AF50: 0 | AG50: 0 | AH50: 0 | AI50: 0 | AJ50: 0 | AK50: 0 | AL50: 0 | AM50: 0 | AN50: 0 | AO50: 0 | AP50: 0 | AQ50: 0 | AR50: 0 | AS50: 0 | AT50: 0 | AU50: 0 | AV50: 0 | AW50: 0 | AX50: 0 | AY50: 0 | AZ50: 0 | BA50: 0 | BB50: 0 | BC50: 0 | BD50: 0 | BE50: 0 | BF50: 0 | BG50: 0 | BH50: 0 | BI50: 0 | BJ50: 0 | BK50: 0 | BL50: 0 | BM50: 0 | BN50: 0 | BO50: 0 | BP50: 0
A51: Améliorations de Troupes Noires | I51: =IF(ISERROR(Plan),0,Plan) -> 0 | J51: 0 | K51: 0 | L51: 0 | M51: 0 | N51: 0 | O51: 0 | P51: 0 | Q51: 0 | R51: 0 | S51: =IF(ISERROR(Plan),0,Plan) -> 0 | T51: 0 | U51: 0 | V51: 0 | W51: 0 | X51: 0 | Y51: 0 | Z51: 0 | AA51: 0 | AB51: 0 | AC51: =IF(ISERROR(Plan),0,Plan) -> 0 | AD51: 0 | AE51: 0 | AF51: 0 | AG51: 0 | AH51: 0 | AI51: 0 | AJ51: 0 | AK51: 0 | AL51: 0 | AM51: =IF(ISERROR(Plan),0,Plan) -> 0 | AN51: 0 | AO51: 0 | AP51: 0 | AQ51: 0 | AR51: 0 | AS51: 0 | AT51: 0 | AU51: 0 | AV51: 0 | AW51: =IF(ISERROR(Plan),0,Plan) -> 0 | AX51: 0 | AY51: 0 | AZ51: 0 | BA51: 0 | BB51: 0 | BC51: 0 | BD51: 0 | BE51: 0 | BF51: 0 | BG51: =IF(ISERROR(Plan),0,Plan) -> 0 | BH51: 0 | BI51: 0 | BJ51: 0 | BK51: 0 | BL51: 0 | BM51: 0 | BN51: 0 | BO51: 0 | BP51: 0
A52: Serviteur | C52: =IF($B52<>"",VLOOKUP($B52,COSTS_Minion[#All],2),"") ->  | D52: =IF($B52<>"",VLOOKUP($B52,COSTS_Minion[#All],3)/24,"") ->  | I52: 0 | J52: 0 | K52: 0 | L52: 0 | M52: 0 | N52: 0 | O52: 0 | P52: 0 | Q52: 0 | R52: 0 | S52: 0 | T52: 0 | U52: 0 | V52: 0 | W52: 0 | X52: 0 | Y52: 0 | Z52: 0 | AA52: 0 | AB52: 0 | AC52: 0 | AD52: 0 | AE52: 0 | AF52: 0 | AG52: 0 | AH52: 0 | AI52: 0 | AJ52: 0 | AK52: 0 | AL52: 0 | AM52: 0 | AN52: 0 | AO52: 0 | AP52: 0 | AQ52: 0 | AR52: 0 | AS52: 0 | AT52: 0 | AU52: 0 | AV52: 0 | AW52: 0 | AX52: 0 | AY52: 0 | AZ52: 0 | BA52: 0 | BB52: 0 | BC52: 0 | BD52: 0 | BE52: 0 | BF52: 0 | BG52: 0 | BH52: 0 | BI52: 0 | BJ52: 0 | BK52: 0 | BL52: 0 | BM52: 0 | BN52: 0 | BO52: 0 | BP52: 0
A53: Chevaucheur de Cochon | C53: =IF($B53<>"",VLOOKUP($B53,COSTS_Hog_Rider[#All],2),"") ->  | D53: =IF($B53<>"",VLOOKUP($B53,COSTS_Hog_Rider[#All],3)/24,"") ->  | I53: =IF(ISERROR(Plan),0,Plan) -> 0 | J53: 0 | K53: 0 | L53: 0 | M53: 0 | N53: 0 | O53: 0 | P53: 0 | Q53: 0 | R53: 0 | S53: =IF(ISERROR(Plan),0,Plan) -> 0 | T53: 0 | U53: 0 | V53: 0 | W53: 0 | X53: 0 | Y53: 0 | Z53: 0 | AA53: 0 | AB53: 0 | AC53: =IF(ISERROR(Plan),0,Plan) -> 0 | AD53: 0 | AE53: 0 | AF53: 0 | AG53: 0 | AH53: 0 | AI53: 0 | AJ53: 0 | AK53: 0 | AL53: 0 | AM53: =IF(ISERROR(Plan),0,Plan) -> 0 | AN53: 0 | AO53: 0 | AP53: 0 | AQ53: 0 | AR53: 0 | AS53: 0 | AT53: 0 | AU53: 0 | AV53: 0 | AW53: =IF(ISERROR(Plan),0,Plan) -> 0 | AX53: 0 | AY53: 0 | AZ53: 0 | BA53: 0 | BB53: 0 | BC53: 0 | BD53: 0 | BE53: 0 | BF53: 0 | BG53: =IF(ISERROR(Plan),0,Plan) -> 0 | BH53: 0 | BI53: 0 | BJ53: 0 | BK53: 0 | BL53: 0 | BM53: 0 | BN53: 0 | BO53: 0 | BP53: 0
A54: Valkyrie | C54: =IF($B54<>"",VLOOKUP($B54,COSTS_Valkyrie[#All],2),"") ->  | D54: =IF($B54<>"",VLOOKUP($B54,COSTS_Valkyrie[#All],3)/24,"") ->  | I54: 0 | J54: 0 | K54: 0 | L54: 0 | M54: 0 | N54: 0 | O54: 0 | P54: 0 | Q54: 0 | R54: 0 | S54: 0 | T54: 0 | U54: 0 | V54: 0 | W54: 0 | X54: 0 | Y54: 0 | Z54: 0 | AA54: 0 | AB54: 0 | AC54: 0 | AD54: 0 | AE54: 0 | AF54: 0 | AG54: 0 | AH54: 0 | AI54: 0 | AJ54: 0 | AK54: 0 | AL54: 0 | AM54: 0 | AN54: 0 | AO54: 0 | AP54: 0 | AQ54: 0 | AR54: 0 | AS54: 0 | AT54: 0 | AU54: 0 | AV54: 0 | AW54: 0 | AX54: 0 | AY54: 0 | AZ54: 0 | BA54: 0 | BB54: 0 | BC54: 0 | BD54: 0 | BE54: 0 | BF54: 0 | BG54: 0 | BH54: 0 | BI54: 0 | BJ54: 0 | BK54: 0 | BL54: 0 | BM54: 0 | BN54: 0 | BO54: 0 | BP54: 0
A55: Golem | C55: =IF($B55<>"",VLOOKUP($B55,COSTS_Golem[#All],2),"") ->  | D55: =IF($B55<>"",VLOOKUP($B55,COSTS_Golem[#All],3)/24,"") ->  | G55: =IF($D55<>"",$D55,"") ->  | I55: 0 | J55: 0 | K55: 0 | L55: 0 | M55: 0 | N55: 0 | O55: 0 | P55: 0 | Q55: 0 | R55: 0 | S55: 0 | T55: 0 | U55: 0 | V55: 0 | W55: 0 | X55: 0 | Y55: 0 | Z55: 0 | AA55: 0 | AB55: 0 | AC55: 0 | AD55: 0 | AE55: 0 | AF55: 0 | AG55: 0 | AH55: 0 | AI55: 0 | AJ55: 0 | AK55: 0 | AL55: 0 | AM55: 0 | AN55: 0 | AO55: 0 | AP55: 0 | AQ55: 0 | AR55: 0 | AS55: 0 | AT55: 0 | AU55: 0 | AV55: 0 | AW55: 0 | AX55: 0 | AY55: 0 | AZ55: 0 | BA55: 0 | BB55: 0 | BC55: 0 | BD55: 0 | BE55: 0 | BF55: 0 | BG55: 0 | BH55: 0 | BI55: 0 | BJ55: 0 | BK55: 0 | BL55: 0 | BM55: 0 | BN55: 0 | BO55: 0 | BP55: 0
A56: Sorcière | C56: =IF($B56<>"",VLOOKUP($B56,COSTS_Witch[#All],2),"") ->  | D56: =IF($B56<>"",VLOOKUP($B56,COSTS_Golem[#All],3)/24,"") ->  | G56: =IF($D56<>"",$D56,"") -> 
A57: Héros | I57: =IF(ISERROR(Plan),0,Plan) -> 0 | J57: =IF(ISERROR(Plan),0,Plan) -> 0 | K57: 0 | L57: 0 | M57: 0 | N57: 0 | O57: 0 | P57: 0 | Q57: 0 | R57: 0 | S57: 0 | T57: 0 | U57: 0 | V57: 0 | W57: 0 | X57: 0 | Y57: 0 | Z57: =IF(ISERROR(Plan),0,Plan) -> 0 | AA57: 0 | AB57: 0 | AC57: 0 | AD57: 0 | AE57: 0 | AF57: 0 | AG57: 0 | AH57: 0 | AI57: 0 | AJ57: 0 | AK57: 0 | AL57: 0 | AM57: 0 | AN57: 0 | AO57: 0 | AP57: 0 | AQ57: 0 | AR57: 0 | AS57: 0 | AT57: 0 | AU57: 0 | AV57: 0 | AW57: 0 | AX57: 0 | AY57: 0 | AZ57: 0 | BA57: 0 | BB57: 0 | BC57: 0 | BD57: 0 | BE57: 0 | BF57: 0 | BG57: 0 | BH57: 0 | BI57: 0 | BJ57: 0 | BK57: 0 | BL57: 0 | BM57: 0 | BN57: 0 | BO57: 0 | BP57: 0
A58: Roi des Barbares | C58: =IF($B58<>"",VLOOKUP($B58,COSTS_Barbarian_King[#All],2),"") ->  | D58: =IF($B58<>"",VLOOKUP($B58,COSTS_Barbarian_King[#All],3)/24,"") ->  | I58: 0 | J58: =IF(ISERROR(Plan),0,Plan) -> 0 | K58: 0 | L58: 0 | M58: 0 | N58: 0 | O58: 0 | P58: 0 | Q58: 0 | R58: 0 | S58: 0 | T58: 0 | U58: 0 | V58: 0 | W58: 0 | X58: 0 | Y58: 0 | Z58: 0 | AA58: 0 | AB58: 0 | AC58: 0 | AD58: 0 | AE58: 0 | AF58: 0 | AG58: 0 | AH58: 0 | AI58: 0 | AJ58: 0 | AK58: 0 | AL58: 0 | AM58: 0 | AN58: 0 | AO58: 0 | AP58: 0 | AQ58: 0 | AR58: 0 | AS58: 0 | AT58: 0 | AU58: 0 | AV58: 0 | AW58: 0 | AX58: 0 | AY58: 0 | AZ58: 0 | BA58: 0 | BB58: 0 | BC58: 0 | BD58: 0 | BE58: 0 | BF58: 0 | BG58: 0 | BH58: 0 | BI58: 0 | BJ58: 0 | BK58: 0 | BL58: 0 | BM58: 0 | BN58: 0 | BO58: 0 | BP58: 0
A59: Reine des Archers | C59: =IF($B59<>"",VLOOKUP($B59,COSTS_Archer_Queen[#All],2),"") ->  | D59: =IF($B59<>"",VLOOKUP($B59,COSTS_Archer_Queen[#All],3)/24,"") ->  | I59: 0 | J59: 0 | K59: =IF(ISERROR(Plan),0,Plan) -> 0 | L59: 0 | M59: 0 | N59: 0 | O59: 0 | P59: 0 | Q59: 0 | R59: 0 | S59: 0 | T59: 0 | U59: 0 | V59: 0 | W59: 0 | X59: 0 | Y59: 0 | Z59: 0 | AA59: 0 | AB59: 0 | AC59: 0 | AD59: 0 | AE59: 0 | AF59: 0 | AG59: 0 | AH59: 0 | AI59: 0 | AJ59: 0 | AK59: 0 | AL59: 0 | AM59: 0 | AN59: 0 | AO59: 0 | AP59: 0 | AQ59: 0 | AR59: 0 | AS59: 0 | AT59: 0 | AU59: 0 | AV59: 0 | AW59: 0 | AX59: 0 | AY59: 0 | AZ59: 0 | BA59: 0 | BB59: 0 | BC59: 0 | BD59: 0 | BE59: 0 | BF59: 0 | BG59: 0 | BH59: 0 | BI59: 0 | BJ59: 0 | BK59: 0 | BL59: 0 | BM59: 0 | BN59: 0 | BO59: 0 | BP59: 0

Sheet À Faire - Récapitulatif
A1: LVL HdV | B1: Affichage Temps | D1: Or Total : | G1: Élixir Total : | I1: Élixir Noir Total : | L1: Temps Total : | N1: ='Paramètres - Admin'!$D$7 & IF($B$2='Paramètres - Admin'!$B$2,TEXT((E13+K12+Q16+W9)*60*60,"# 0")&" " & 'Paramètres - Admin'!$B$2,IF($B$2='Paramètres - Admin'!$B$3,TEXT((E13+K12+Q16+W9)*60,"# 0")&" " & 'Paramètres - Admin'!$B$3,IF($B$2='Paramètres - Admin'!$B$4,TEXT((E13+K12+Q16+W9),"# 0,00")&" " & 'Paramètres - Admin'!$B$4,IF($B$2='Paramètres - Admin'!$B$5,TEXT((E13+K12+Q16+W9)/24,"# 0,00")&" " & 'Paramètres - Admin'!$B$5,IF($B$2='Paramètres - Admin'!$B$6,TEXT(((E13+K12+Q16+W9)/24)/30,"# 0,00")&" " & 'Paramètres - Admin'!$B$6,IF((E13+K12+Q16+W9)/24>=1,INT((E13+K12+Q16+W9)/24)&" " & 'Paramètres - Admin'!$D$4 & " " & HOUR((E13+K12+Q16+W9)/24-INT((E13+K12+Q16+W9)/24))&" " & 'Paramètres - Admin'!$D$3 & " " & MINUTE((E13+K12+Q16+W9)/24-INT((E13+K12+Q16+W9)/24))&" " & 'Paramètres - Admin'!$D$2,HOUR((E13+K12+Q16+W9)/24-INT((E13+K12+Q16+W9)/24))&" " & 'Paramètres - Admin'!$D$3 & " " & MINUTE((E13+K12+Q16+W9)/24-INT((E13+K12+Q16+W9)/24))&" " & 'Paramètres - Admin'!$D$2)))))) -> Bâtiments : 684 jours 4 hrs 53 mins | S1: => Temps par Ouvrier : | V1: Améliorations de Troupes/Sorts :
A2: =Paramètres!$BE$2 -> 10 | B2: j/h/m | D2: =TEXT(D8+D11+P17+V9+AB13,"# ##0") -> 2 979 352 457 | G2: =TEXT(D7+D9+D10+D12+J12+D25+J30,"# ##0") -> 317 074 850 | I2: =TEXT(P26+V22,"# ##0") -> 8 950 000 | L2: =IF($B$2='Paramètres - Admin'!$B$2,TEXT((E13+K12+Q17+W9+AC13+E25+K30+Q26+W22)*60*60,"# 0")&" " & 'Paramètres - Admin'!$B$2,IF($B$2='Paramètres - Admin'!$B$3,TEXT((E13+K12+Q17+W9+AC13+E25+K30+Q26+W22)*60,"# 0")&" " & 'Paramètres - Admin'!$B$3,IF($B$2='Paramètres - Admin'!$B$4,TEXT((E13+K12+Q17+W9+AC13+E25+K30+Q26+W22),"# 0,00")&" " & 'Paramètres - Admin'!$B$4,IF($B$2='Paramètres - Admin'!$B$5,TEXT((E13+K12+Q17+W9+AC13+E25+K30+Q26+W22)/24,"# 0,00")&" " & 'Paramètres - Admin'!$B$5,IF($B$2='Paramètres - Admin'!$B$6,TEXT(((E13+K12+Q17+W9+AC13+E25+K30+Q26+W22)/24)/30,"# 0,00")&" " & 'Paramètres - Admin'!$B$6,IF((E13+K12+Q17+W9+AC13+E25+K30+Q26+W22)/24>=1,INT((E13+K12+Q17+W9+AC13+E25+K30+Q26+W22)/24)&" " & 'Paramètres - Admin'!$D$4 & " " & HOUR((E13+K12+Q17+W9+AC13+E25+K30+Q26+W22)/24-INT((E13+K12+Q17+W9+AC13+E25+K30+Q26+W22)/24))&" " & 'Paramètres - Admin'!$D$3 & " " & MINUTE((E13+K12+Q17+W9+AC13+E25+K30+Q26+W22)/24-INT((E13+K12+Q17+W9+AC13+E25+K30+Q26+W22)/24))&" " & 'Paramètres - Admin'!$D$2,HOUR((E13+K12+Q17+W9+AC13+E25+K30+Q26+W22)/24-INT((E13+K12+Q17+W9+AC13+E25+K30+Q26+W22)/24))&" " & 'Paramètres - Admin'!$D$3 & " " & MINUTE((E13+K12+Q17+W9+AC13+E25+K30+Q26+W22)/24-INT((E13+K12+Q17+W9+AC13+E25+K30+Q26+W22)/24))&" " & 'Paramètres - Admin'!$D$2)))))) -> 3174 jours 4 hrs 59 mins | N2: ='Paramètres - Admin'!$D$6 & IF($B$2='Paramètres - Admin'!$B$2,TEXT(W22*60*60,"# 0")&" " & 'Paramètres - Admin'!$B$2,IF($B$2='Paramètres - Admin'!$B$3,TEXT(W22*60,"# 0")&" " & 'Paramètres - Admin'!$B$3,IF($B$2='Paramètres - Admin'!$B$4,TEXT(W22,"# 0,00")&" " & 'Paramètres - Admin'!$B$4,IF($B$2='Paramètres - Admin'!$B$5,TEXT(W22/24,"# 0,00")&" " & 'Paramètres - Admin'!$B$5,IF($B$2='Paramètres - Admin'!$B$6,TEXT((W22/24)/30,"# 0,00")&" " & 'Paramètres - Admin'!$B$6,IF(W22/24>=1,INT(W22/24)&" " & 'Paramètres - Admin'!$D$4 & " " & HOUR(W22/24-INT(W22/24))&" " & 'Paramètres - Admin'!$D$3 & " " & MINUTE(W22/24-INT(W22/24))&" " & 'Paramètres - Admin'!$D$2,HOUR(W22/24-INT(W22/24))&" " & 'Paramètres - Admin'!$D$3 & " " & MINUTE(W22/24-INT(W22/24))&" " & 'Paramètres - Admin'!$D$2)))))) -> Héros : 617 jours 12 hrs 0 mins | S2: =IF($B$2='Paramètres - Admin'!$B$2,TEXT((E13+K12+Q16+W9+W22)/Paramètres!$BF$2*60*60,"# 0")&" " & 'Paramètres - Admin'!$B$2,IF($B$2='Paramètres - Admin'!$B$3,TEXT((E13+K12+Q16+W9+W22)/Paramètres!$BF$2*60,"# 0")&" " & 'Paramètres - Admin'!$B$3,IF($B$2='Paramètres - Admin'!$B$4,TEXT((E13+K12+Q16+W9+W22)/Paramètres!$BF$2,"# 0,00")&" " & 'Paramètres - Admin'!$B$4,IF($B$2='Paramètres - Admin'!$B$5,TEXT((E13+K12+Q16+W9+W22)/Paramètres!$BF$2/24,"# 0,00")&" " & 'Paramètres - Admin'!$B$5,IF($B$2='Paramètres - Admin'!$B$6,TEXT(((E13+K12+Q16+W9+W22)/Paramètres!$BF$2/24)/30,"# 0,00")&" " & 'Paramètres - Admin'!$B$6,IF((E13+K12+Q16+W9+W22)/Paramètres!$BF$2/24>=1,INT((E13+K12+Q16+W9+W22)/Paramètres!$BF$2/24)&" " & 'Paramètres - Admin'!$D$4 & " " & HOUR((E13+K12+Q16+W9+W22)/Paramètres!$BF$2/24-INT((E13+K12+Q16+W9+W22)/Paramètres!$BF$2/24))&" " & 'Paramètres - Admin'!$D$3 & " " & MINUTE((E13+K12+Q16+W9+W22)/Paramètres!$BF$2/24-INT((E13+K12+Q16+W9+W22)/Paramètres!$BF$2/24))&" " & 'Paramètres - Admin'!$D$2,HOUR((E13+K12+Q16+W9+W22)/Paramètres!$BF$2/24-INT((E13+K12+Q16+W9+W22)/Paramètres!$BF$2/24))&" " & 'Paramètres - Admin'!$D$3 & " " & MINUTE((E13+K12+Q16+W9+W22)/Paramètres!$BF$2/24-INT((E13+K12+Q16+W9+W22)/Paramètres!$BF$2/24))&" " & 'Paramètres - Admin'!$D$2)))))) -> 325 jours 10 hrs 13 mins | V2: =IF($B$2='Paramètres - Admin'!$B$2,TEXT((E25+K30+Q26)*60*60,"# 0")&" " & 'Paramètres - Admin'!$B$2,IF($B$2='Paramètres - Admin'!$B$3,TEXT((E25+K30+Q26)*60,"# 0")&" " & 'Paramètres - Admin'!$B$3,IF($B$2='Paramètres - Admin'!$B$4,TEXT((E25+K30+Q26),"# 0,00")&" " & 'Paramètres - Admin'!$B$4,IF($B$2='Paramètres - Admin'!$B$5,TEXT((E25+K30+Q26)/24,"# 0,00")&" " & 'Paramètres - Admin'!$B$5,IF($B$2='Paramètres - Admin'!$B$6,TEXT(((E25+K30+Q26)/24)/30,"# 0,00")&" " & 'Paramètres - Admin'!$B$6,IF((E25+K30+Q26)/24>=1,INT((E25+K30+Q26)/24)&" " & 'Paramètres - Admin'!$D$4 & " " & HOUR((E25+K30+Q26)/24-INT((E25+K30+Q26)/24))&" " & 'Paramètres - Admin'!$D$3 & " " & MINUTE((E25+K30+Q26)/24-INT((E25+K30+Q26)/24))&" " & 'Paramètres - Admin'!$D$2,HOUR((E25+K30+Q26)/24-INT((E25+K30+Q26)/24))&" " & 'Paramètres - Admin'!$D$3 & " " & MINUTE((E25+K30+Q26)/24-INT((E25+K30+Q26)/24))&" " & 'Paramètres - Admin'!$D$2)))))) -> 508 jours 20 hrs 0 mins
A3: Tableaux récapitulatifs | AE3: Or | AF3: =SUM(AB13+V9+P17+D11+D8) -> 2979352457
AE4: Elixir | AF4: =SUM(D7+D9+D10+D12+J12+D25+J30) -> 317074850
A5: Bâtiments de Ressources | G5: Bâtiments d'Armée | M5: Bâtiments Défensifs | S5: Bâtiments Autres | Y5: Pièges | AE5: Elixir noir | AF5: =SUM(P26+V22) -> 8950000
A6: Bâtiment | B6: À Faire | C6: Up. | D6: Coût Total | E6: Temps Total | F6: Temps Total | G6: Bâtiment | H6: À Faire | I6: Up. | J6: Coût Total | K6: Temps Total | L6: Temps Total | M6: Bâtiment | N6: À Faire | O6: Up. | P6: Coût Total | Q6: Temps Total | R6: Temps Total | S6: Bâtiment | T6: À Faire | U6: Up. | V6: Coût Total | W6: Temps Total | X6: Temps Total | Y6: Bâtiment | Z6: À Faire | AA6: Up. | AB6: Coût Total | AC6: Temps Total | AD6: Temps Total
A7: Mine d'Or | B7: ='À Faire - Détails'!J6 -> 7 | C7: ='À Faire - Détails'!K6 -> 84 | D7: ='À Faire - Détails'!J20 -> 4889850 | E7: ='À Faire - Détails'!K20 -> 2669.45 | F7: =IF($B$2='Paramètres - Admin'!$B$2,TEXT(E7*60*60,"# 0")&" " & 'Paramètres - Admin'!$B$2,IF($B$2='Paramètres - Admin'!$B$3,TEXT(E7*60,"# 0")&" " & 'Paramètres - Admin'!$B$3,IF($B$2='Paramètres - Admin'!$B$4,TEXT(E7,"# 0,00")&" " & 'Paramètres - Admin'!$B$4,IF($B$2='Paramètres - Admin'!$B$5,TEXT(E7/24,"# 0,00")&" " & 'Paramètres - Admin'!$B$5,IF($B$2='Paramètres - Admin'!$B$6,TEXT((E7/24)/30,"# 0,00")&" " & 'Paramètres - Admin'!$B$6,IF(E7/24>=1,INT(E7/24)&" " & 'Paramètres - Admin'!$D$4 & " " & HOUR(E7/24-INT(E7/24))&" " & 'Paramètres - Admin'!$D$3 & " " & MINUTE(E7/24-INT(E7/24))&" " & 'Paramètres - Admin'!$D$2,HOUR(E7/24-INT(E7/24))&" " & 'Paramètres - Admin'!$D$3 & " " & MINUTE(E7/24-INT(E7/24))&" " & 'Paramètres - Admin'!$D$2)))))) -> 111 jours 5 hrs 27 mins | G7: Caserne | H7: ='À Faire - Détails'!J61 -> 4 | I7: ='À Faire - Détails'!K61 -> 40 | J7: ='À Faire - Détails'!J73 -> 18154800 | K7: ='À Faire - Détails'!K73 -> 1377.08 | L7: =IF($B$2='Paramètres - Admin'!$B$2,TEXT(K7*60*60,"# 0")&" " & 'Paramètres - Admin'!$B$2,IF($B$2='Paramètres - Admin'!$B$3,TEXT(K7*60,"# 0")&" " & 'Paramètres - Admin'!$B$3,IF($B$2='Paramètres - Admin'!$B$4,TEXT(K7,"# 0,00")&" " & 'Paramètres - Admin'!$B$4,IF($B$2='Paramètres - Admin'!$B$5,TEXT(K7/24,"# 0,00")&" " & 'Paramètres - Admin'!$B$5,IF($B$2='Paramètres - Admin'!$B$6,TEXT((K7/24)/30,"# 0,00")&" " & 'Paramètres - Admin'!$B$6,IF(K7/24>=1,INT(K7/24)&" " & 'Paramètres - Admin'!$D$4 & " " & HOUR(K7/24-INT(K7/24))&" " & 'Paramètres - Admin'!$D$3 & " " & MINUTE(K7/24-INT(K7/24))&" " & 'Paramètres - Admin'!$D$2,HOUR(K7/24-INT(K7/24))&" " & 'Paramètres - Admin'!$D$3 & " " & MINUTE(K7/24-INT(K7/24))&" " & 'Paramètres - Admin'!$D$2)))))) -> 57 jours 9 hrs 4 mins | M7: Rempart | N7: ='À Faire - Détails'!J100 -> 250 | O7: ='À Faire - Détails'!K100 -> 2750 | P7: ='À Faire - Détails'!J113 -> 2205300000 | Q7: ='À Faire - Détails'!K113 -> 0 | R7: =IF($B$2='Paramètres - Admin'!$B$2,TEXT(Q7*60*60,"# 0")&" " & 'Paramètres - Admin'!$B$2,IF($B$2='Paramètres - Admin'!$B$3,TEXT(Q7*60,"# 0")&" " & 'Paramètres - Admin'!$B$3,IF($B$2='Paramètres - Admin'!$B$4,TEXT(Q7,"# 0,00")&" " & 'Paramètres - Admin'!$B$4,IF($B$2='Paramètres - Admin'!$B$5,TEXT(Q7/24,"# 0,00")&" " & 'Paramètres - Admin'!$B$5,IF($B$2='Paramètres - Admin'!$B$6,TEXT((Q7/24)/30,"# 0,00")&" " & 'Paramètres - Admin'!$B$6,IF(Q7/24>=1,INT(Q7/24)&" " & 'Paramètres - Admin'!$D$4 & " " & HOUR(Q7/24-INT(Q7/24))&" " & 'Paramètres - Admin'!$D$3 & " " & MINUTE(Q7/24-INT(Q7/24))&" " & 'Paramètres - Admin'!$D$2,HOUR(Q7/24-INT(Q7/24))&" " & 'Paramètres - Admin'!$D$3 & " " & MINUTE(Q7/24-INT(Q7/24))&" " & 'Paramètres - Admin'!$D$2)))))) -> 0 hrs 0 mins | S7: Château de Clan | T7: ='À Faire - Détails'!J164 -> 1 | U7: ='À Faire - Détails'!K164 -> 6 | V7: ='À Faire - Détails'!J172 -> 14740000 | W7: ='À Faire - Détails'!K172 -> 582 | X7: =IF($B$2='Paramètres - Admin'!$B$2,TEXT(W7*60*60,"# 0")&" " & 'Paramètres - Admin'!$B$2,IF($B$2='Paramètres - Admin'!$B$3,TEXT(W7*60,"# 0")&" " & 'Paramètres - Admin'!$B$3,IF($B$2='Paramètres - Admin'!$B$4,TEXT(W7,"# 0,00")&" " & 'Paramètres - Admin'!$B$4,IF($B$2='Paramètres - Admin'!$B$5,TEXT(W7/24,"# 0,00")&" " & 'Paramètres - Admin'!$B$5,IF($B$2='Paramètres - Admin'!$B$6,TEXT((W7/24)/30,"# 0,00")&" " & 'Paramètres - Admin'!$B$6,IF(W7/24>=1,INT(W7/24)&" " & 'Paramètres - Admin'!$D$4 & " " & HOUR(W7/24-INT(W7/24))&" " & 'Paramètres - Admin'!$D$3 & " " & MINUTE(W7/24-INT(W7/24))&" " & 'Paramètres - Admin'!$D$2,HOUR(W7/24-INT(W7/24))&" " & 'Paramètres - Admin'!$D$3 & " " & MINUTE(W7/24-INT(W7/24))&" " & 'Paramètres - Admin'!$D$2)))))) -> 24 jours 6 hrs 0 mins | Y7: Bombe | Z7: ='À Faire - Détails'!AF100 -> 6 | AA7: ='À Faire - Détails'!AG100 -> 36 | AB7: ='À Faire - Détails'!AF108 -> 15668406 | AC7: ='À Faire - Détails'!AG108 -> 493.5 | AD7: =IF($B$2='Paramètres - Admin'!$B$2,TEXT(AC7*60*60,"# 0")&" " & 'Paramètres - Admin'!$B$2,IF($B$2='Paramètres - Admin'!$B$3,TEXT(AC7*60,"# 0")&" " & 'Paramètres - Admin'!$B$3,IF($B$2='Paramètres - Admin'!$B$4,TEXT(AC7,"# 0,00")&" " & 'Paramètres - Admin'!$B$4,IF($B$2='Paramètres - Admin'!$B$5,TEXT(AC7/24,"# 0,00")&" " & 'Paramètres - Admin'!$B$5,IF($B$2='Paramètres - Admin'!$B$6,TEXT((AC7/24)/30,"# 0,00")&" " & 'Paramètres - Admin'!$B$6,IF(AC7/24>=1,INT(AC7/24)&" " & 'Paramètres - Admin'!$D$4 & " " & HOUR(AC7/24-INT(AC7/24))&" " & 'Paramètres - Admin'!$D$3 & " " & MINUTE(AC7/24-INT(AC7/24))&" " & 'Paramètres - Admin'!$D$2,HOUR(AC7/24-INT(AC7/24))&" " & 'Paramètres - Admin'!$D$3 & " " & MINUTE(AC7/24-INT(AC7/24))&" " & 'Paramètres - Admin'!$D$2)))))) -> 20 jours 13 hrs 30 mins
A8: Extracteur d'Élixir | B8: ='À Faire - Détails'!U6 -> 7 | C8: ='À Faire - Détails'!V6 -> 84 | D8: ='À Faire - Détails'!U20 -> 4889850 | E8: ='À Faire - Détails'!V20 -> 2669.45 | F8: =IF($B$2='Paramètres - Admin'!$B$2,TEXT(E8*60*60,"# 0")&" " & 'Paramètres - Admin'!$B$2,IF($B$2='Paramètres - Admin'!$B$3,TEXT(E8*60,"# 0")&" " & 'Paramètres - Admin'!$B$3,IF($B$2='Paramètres - Admin'!$B$4,TEXT(E8,"# 0,00")&" " & 'Paramètres - Admin'!$B$4,IF($B$2='Paramètres - Admin'!$B$5,TEXT(E8/24,"# 0,00")&" " & 'Paramètres - Admin'!$B$5,IF($B$2='Paramètres - Admin'!$B$6,TEXT((E8/24)/30,"# 0,00")&" " & 'Paramètres - Admin'!$B$6,IF(E8/24>=1,INT(E8/24)&" " & 'Paramètres - Admin'!$D$4 & " " & HOUR(E8/24-INT(E8/24))&" " & 'Paramètres - Admin'!$D$3 & " " & MINUTE(E8/24-INT(E8/24))&" " & 'Paramètres - Admin'!$D$2,HOUR(E8/24-INT(E8/24))&" " & 'Paramètres - Admin'!$D$3 & " " & MINUTE(E8/24-INT(E8/24))&" " & 'Paramètres - Admin'!$D$2)))))) -> 111 jours 5 hrs 27 mins | G8: Caserne Noire | H8: ='À Faire - Détails'!J75 -> 2 | I8: ='À Faire - Détails'!K75 -> 10 | J8: ='À Faire - Détails'!J82 -> 17500000 | K8: ='À Faire - Détails'!K82 -> 1392 | L8: =IF($B$2='Paramètres - Admin'!$B$2,TEXT(K8*60*60,"# 0")&" " & 'Paramètres - Admin'!$B$2,IF($B$2='Paramètres - Admin'!$B$3,TEXT(K8*60,"# 0")&" " & 'Paramètres - Admin'!$B$3,IF($B$2='Paramètres - Admin'!$B$4,TEXT(K8,"# 0,00")&" " & 'Paramètres - Admin'!$B$4,IF($B$2='Paramètres - Admin'!$B$5,TEXT(K8/24,"# 0,00")&" " & 'Paramètres - Admin'!$B$5,IF($B$2='Paramètres - Admin'!$B$6,TEXT((K8/24)/30,"# 0,00")&" " & 'Paramètres - Admin'!$B$6,IF(K8/24>=1,INT(K8/24)&" " & 'Paramètres - Admin'!$D$4 & " " & HOUR(K8/24-INT(K8/24))&" " & 'Paramètres - Admin'!$D$3 & " " & MINUTE(K8/24-INT(K8/24))&" " & 'Paramètres - Admin'!$D$2,HOUR(K8/24-INT(K8/24))&" " & 'Paramètres - Admin'!$D$3 & " " & MINUTE(K8/24-INT(K8/24))&" " & 'Paramètres - Admin'!$D$2)))))) -> 58 jours 0 hrs 0 mins | M8: Canon | N8: ='À Faire - Détails'!J115 -> 6 | O8: ='À Faire - Détails'!K115 -> 72 | P8: ='À Faire - Détails'!J130 -> 121627500 | Q8: ='À Faire - Détails'!K130 -> 4158.1 | R8: =IF($B$2='Paramètres - Admin'!$B$2,TEXT(Q8*60*60,"# 0")&" " & 'Paramètres - Admin'!$B$2,IF($B$2='Paramètres - Admin'!$B$3,TEXT(Q8*60,"# 0")&" " & 'Paramètres - Admin'!$B$3,IF($B$2='Paramètres - Admin'!$B$4,TEXT(Q8,"# 0,00")&" " & 'Paramètres - Admin'!$B$4,IF($B$2='Paramètres - Admin'!$B$5,TEXT(Q8/24,"# 0,00")&" " & 'Paramètres - Admin'!$B$5,IF($B$2='Paramètres - Admin'!$B$6,TEXT((Q8/24)/30,"# 0,00")&" " & 'Paramètres - Admin'!$B$6,IF(Q8/24>=1,INT(Q8/24)&" " & 'Paramètres - Admin'!$D$4 & " " & HOUR(Q8/24-INT(Q8/24))&" " & 'Paramètres - Admin'!$D$3 & " " & MINUTE(Q8/24-INT(Q8/24))&" " & 'Paramètres - Admin'!$D$2,HOUR(Q8/24-INT(Q8/24))&" " & 'Paramètres - Admin'!$D$3 & " " & MINUTE(Q8/24-INT(Q8/24))&" " & 'Paramètres - Admin'!$D$2)))))) -> 173 jours 6 hrs 6 mins | S8: Hôtel de Ville | T8: ='À Faire - Détails'!U164 -> 1 | U8: ='À Faire - Détails'!V164 -> 10 | V8: ='À Faire - Détails'!U176 -> 11130000 | W8: ='À Faire - Détails'!V176 -> 1083.083333 | X8: =IF($B$2='Paramètres - Admin'!$B$2,TEXT(W8*60*60,"# 0")&" " & 'Paramètres - Admin'!$B$2,IF($B$2='Paramètres - Admin'!$B$3,TEXT(W8*60,"# 0")&" " & 'Paramètres - Admin'!$B$3,IF($B$2='Paramètres - Admin'!$B$4,TEXT(W8,"# 0,00")&" " & 'Paramètres - Admin'!$B$4,IF($B$2='Paramètres - Admin'!$B$5,TEXT(W8/24,"# 0,00")&" " & 'Paramètres - Admin'!$B$5,IF($B$2='Paramètres - Admin'!$B$6,TEXT((W8/24)/30,"# 0,00")&" " & 'Paramètres - Admin'!$B$6,IF(W8/24>=1,INT(W8/24)&" " & 'Paramètres - Admin'!$D$4 & " " & HOUR(W8/24-INT(W8/24))&" " & 'Paramètres - Admin'!$D$3 & " " & MINUTE(W8/24-INT(W8/24))&" " & 'Paramètres - Admin'!$D$2,HOUR(W8/24-INT(W8/24))&" " & 'Paramètres - Admin'!$D$3 & " " & MINUTE(W8/24-INT(W8/24))&" " & 'Paramètres - Admin'!$D$2)))))) -> 45 jours 3 hrs 5 mins | Y8: Mine chercheuse | Z8: ='À Faire - Détails'!AF100 -> 6 | AA8: ='À Faire - Détails'!AG110 -> 15 | AB8: ='À Faire - Détails'!AF115 -> 30075000 | AC8: ='À Faire - Détails'!AG115 -> 480 | AD8: =IF($B$2='Paramètres - Admin'!$B$2,TEXT(AC8*60*60,"# 0")&" " & 'Paramètres - Admin'!$B$2,IF($B$2='Paramètres - Admin'!$B$3,TEXT(AC8*60,"# 0")&" " & 'Paramètres - Admin'!$B$3,IF($B$2='Paramètres - Admin'!$B$4,TEXT(AC8,"# 0,00")&" " & 'Paramètres - Admin'!$B$4,IF($B$2='Paramètres - Admin'!$B$5,TEXT(AC8/24,"# 0,00")&" " & 'Paramètres - Admin'!$B$5,IF($B$2='Paramètres - Admin'!$B$6,TEXT((AC8/24)/30,"# 0,00")&" " & 'Paramètres - Admin'!$B$6,IF(AC8/24>=1,INT(AC8/24)&" " & 'Paramètres - Admin'!$D$4 & " " & HOUR(AC8/24-INT(AC8/24))&" " & 'Paramètres - Admin'!$D$3 & " " & MINUTE(AC8/24-INT(AC8/24))&" " & 'Paramètres - Admin'!$D$2,HOUR(AC8/24-INT(AC8/24))&" " & 'Paramètres - Admin'!$D$3 & " " & MINUTE(AC8/24-INT(AC8/24))&" " & 'Paramètres - Admin'!$D$2)))))) -> 20 jours 0 hrs 0 mins
A9: Foreuse d'Élixir Noir | B9: ='À Faire - Détails'!J22 -> 3 | C9: ='À Faire - Détails'!K22 -> 18 | D9: ='À Faire - Détails'!J30 -> 49500000 | E9: ='À Faire - Détails'!K30 -> 1728 | F9: =IF($B$2='Paramètres - Admin'!$B$2,TEXT(E9*60*60,"# 0")&" " & 'Paramètres - Admin'!$B$2,IF($B$2='Paramètres - Admin'!$B$3,TEXT(E9*60,"# 0")&" " & 'Paramètres - Admin'!$B$3,IF($B$2='Paramètres - Admin'!$B$4,TEXT(E9,"# 0,00")&" " & 'Paramètres - Admin'!$B$4,IF($B$2='Paramètres - Admin'!$B$5,TEXT(E9/24,"# 0,00")&" " & 'Paramètres - Admin'!$B$5,IF($B$2='Paramètres - Admin'!$B$6,TEXT((E9/24)/30,"# 0,00")&" " & 'Paramètres - Admin'!$B$6,IF(E9/24>=1,INT(E9/24)&" " & 'Paramètres - Admin'!$D$4 & " " & HOUR(E9/24-INT(E9/24))&" " & 'Paramètres - Admin'!$D$3 & " " & MINUTE(E9/24-INT(E9/24))&" " & 'Paramètres - Admin'!$D$2,HOUR(E9/24-INT(E9/24))&" " & 'Paramètres - Admin'!$D$3 & " " & MINUTE(E9/24-INT(E9/24))&" " & 'Paramètres - Admin'!$D$2)))))) -> 72 jours 0 hrs 0 mins | G9: Camp Militaire | H9: ='À Faire - Détails'!J84 -> 4 | I9: ='À Faire - Détails'!K84 -> 32 | J9: ='À Faire - Détails'!J94 -> 40451000 | K9: ='À Faire - Détails'!K94 -> 1872.333333 | L9: =IF($B$2='Paramètres - Admin'!$B$2,TEXT(K9*60*60,"# 0")&" " & 'Paramètres - Admin'!$B$2,IF($B$2='Paramètres - Admin'!$B$3,TEXT(K9*60,"# 0")&" " & 'Paramètres - Admin'!$B$3,IF($B$2='Paramètres - Admin'!$B$4,TEXT(K9,"# 0,00")&" " & 'Paramètres - Admin'!$B$4,IF($B$2='Paramètres - Admin'!$B$5,TEXT(K9/24,"# 0,00")&" " & 'Paramètres - Admin'!$B$5,IF($B$2='Paramètres - Admin'!$B$6,TEXT((K9/24)/30,"# 0,00")&" " & 'Paramètres - Admin'!$B$6,IF(K9/24>=1,INT(K9/24)&" " & 'Paramètres - Admin'!$D$4 & " " & HOUR(K9/24-INT(K9/24))&" " & 'Paramètres - Admin'!$D$3 & " " & MINUTE(K9/24-INT(K9/24))&" " & 'Paramètres - Admin'!$D$2,HOUR(K9/24-INT(K9/24))&" " & 'Paramètres - Admin'!$D$3 & " " & MINUTE(K9/24-INT(K9/24))&" " & 'Paramètres - Admin'!$D$2)))))) -> 78 jours 0 hrs 20 mins | M9: Tour d'Archers | N9: ='À Faire - Détails'!J132 -> 7 | O9: ='À Faire - Détails'!K132 -> 84 | P9: ='À Faire - Détails'!J147 -> 167076000 | Q9: ='À Faire - Détails'!K147 -> 6170.5 | R9: =IF($B$2='Paramètres - Admin'!$B$2,TEXT(Q9*60*60,"# 0")&" " & 'Paramètres - Admin'!$B$2,IF($B$2='Paramètres - Admin'!$B$3,TEXT(Q9*60,"# 0")&" " & 'Paramètres - Admin'!$B$3,IF($B$2='Paramètres - Admin'!$B$4,TEXT(Q9,"# 0,00")&" " & 'Paramètres - Admin'!$B$4,IF($B$2='Paramètres - Admin'!$B$5,TEXT(Q9/24,"# 0,00")&" " & 'Paramètres - Admin'!$B$5,IF($B$2='Paramètres - Admin'!$B$6,TEXT((Q9/24)/30,"# 0,00")&" " & 'Paramètres - Admin'!$B$6,IF(Q9/24>=1,INT(Q9/24)&" " & 'Paramètres - Admin'!$D$4 & " " & HOUR(Q9/24-INT(Q9/24))&" " & 'Paramètres - Admin'!$D$3 & " " & MINUTE(Q9/24-INT(Q9/24))&" " & 'Paramètres - Admin'!$D$2,HOUR(Q9/24-INT(Q9/24))&" " & 'Paramètres - Admin'!$D$3 & " " & MINUTE(Q9/24-INT(Q9/24))&" " & 'Paramètres - Admin'!$D$2)))))) -> 257 jours 2 hrs 30 mins | S9: Total | T9: =SUM(T7:T8) -> 2 | U9: =SUM(U7:U8) -> 16 | V9: =SUM(V7:V8) -> 25870000 | W9: =SUM(W7:W8) -> 1665.083333 | X9: =IF($B$2='Paramètres - Admin'!$B$2,TEXT(W9*60*60,"# 0")&" " & 'Paramètres - Admin'!$B$2,IF($B$2='Paramètres - Admin'!$B$3,TEXT(W9*60,"# 0")&" " & 'Paramètres - Admin'!$B$3,IF($B$2='Paramètres - Admin'!$B$4,TEXT(W9,"# 0,00")&" " & 'Paramètres - Admin'!$B$4,IF($B$2='Paramètres - Admin'!$B$5,TEXT(W9/24,"# 0,00")&" " & 'Paramètres - Admin'!$B$5,IF($B$2='Paramètres - Admin'!$B$6,TEXT((W9/24)/30,"# 0,00")&" " & 'Paramètres - Admin'!$B$6,IF(W9/24>=1,INT(W9/24)&" " & 'Paramètres - Admin'!$D$4 & " " & HOUR(W9/24-INT(W9/24))&" " & 'Paramètres - Admin'!$D$3 & " " & MINUTE(W9/24-INT(W9/24))&" " & 'Paramètres - Admin'!$D$2,HOUR(W9/24-INT(W9/24))&" " & 'Paramètres - Admin'!$D$3 & " " & MINUTE(W9/24-INT(W9/24))&" " & 'Paramètres - Admin'!$D$2)))))) -> 69 jours 9 hrs 5 mins | Y9: Bombe géante | Z9: ='À Faire - Détails'!AF117 -> 5 | AA9: ='À Faire - Détails'!AG117 -> 15 | AB9: ='À Faire - Détails'!AF123 -> 16687500 | AC9: ='À Faire - Détails'!AG123 -> 510 | AD9: =IF($B$2='Paramètres - Admin'!$B$2,TEXT(AC9*60*60,"# 0")&" " & 'Paramètres - Admin'!$B$2,IF($B$2='Paramètres - Admin'!$B$3,TEXT(AC9*60,"# 0")&" " & 'Paramètres - Admin'!$B$3,IF($B$2='Paramètres - Admin'!$B$4,TEXT(AC9,"# 0,00")&" " & 'Paramètres - Admin'!$B$4,IF($B$2='Paramètres - Admin'!$B$5,TEXT(AC9/24,"# 0,00")&" " & 'Paramètres - Admin'!$B$5,IF($B$2='Paramètres - Admin'!$B$6,TEXT((AC9/24)/30,"# 0,00")&" " & 'Paramètres - Admin'!$B$6,IF(AC9/24>=1,INT(AC9/24)&" " & 'Paramètres - Admin'!$D$4 & " " & HOUR(AC9/24-INT(AC9/24))&" " & 'Paramètres - Admin'!$D$3 & " " & MINUTE(AC9/24-INT(AC9/24))&" " & 'Paramètres - Admin'!$D$2,HOUR(AC9/24-INT(AC9/24))&" " & 'Paramètres - Admin'!$D$3 & " " & MINUTE(AC9/24-INT(AC9/24))&" " & 'Paramètres - Admin'!$D$2)))))) -> 21 jours 6 hrs 0 mins
A10: Réserve d'Or | B10: ='À Faire - Détails'!J32 -> 4 | C10: ='À Faire - Détails'!K32 -> 44 | D10: ='À Faire - Détails'!J45 -> 3794200 | E10: ='À Faire - Détails'!K45 -> 435 | F10: =IF($B$2='Paramètres - Admin'!$B$2,TEXT(E10*60*60,"# 0")&" " & 'Paramètres - Admin'!$B$2,IF($B$2='Paramètres - Admin'!$B$3,TEXT(E10*60,"# 0")&" " & 'Paramètres - Admin'!$B$3,IF($B$2='Paramètres - Admin'!$B$4,TEXT(E10,"# 0,00")&" " & 'Paramètres - Admin'!$B$4,IF($B$2='Paramètres - Admin'!$B$5,TEXT(E10/24,"# 0,00")&" " & 'Paramètres - Admin'!$B$5,IF($B$2='Paramètres - Admin'!$B$6,TEXT((E10/24)/30,"# 0,00")&" " & 'Paramètres - Admin'!$B$6,IF(E10/24>=1,INT(E10/24)&" " & 'Paramètres - Admin'!$D$4 & " " & HOUR(E10/24-INT(E10/24))&" " & 'Paramètres - Admin'!$D$3 & " " & MINUTE(E10/24-INT(E10/24))&" " & 'Paramètres - Admin'!$D$2,HOUR(E10/24-INT(E10/24))&" " & 'Paramètres - Admin'!$D$3 & " " & MINUTE(E10/24-INT(E10/24))&" " & 'Paramètres - Admin'!$D$2)))))) -> 18 jours 3 hrs 0 mins | G10: Laboratoire | H10: ='À Faire - Détails'!U61 -> 1 | I10: ='À Faire - Détails'!V61 -> 8 | J10: ='À Faire - Détails'!U71 -> 8435000 | K10: ='À Faire - Détails'!V71 -> 449.5 | L10: =IF($B$2='Paramètres - Admin'!$B$2,TEXT(K10*60*60,"# 0")&" " & 'Paramètres - Admin'!$B$2,IF($B$2='Paramètres - Admin'!$B$3,TEXT(K10*60,"# 0")&" " & 'Paramètres - Admin'!$B$3,IF($B$2='Paramètres - Admin'!$B$4,TEXT(K10,"# 0,00")&" " & 'Paramètres - Admin'!$B$4,IF($B$2='Paramètres - Admin'!$B$5,TEXT(K10/24,"# 0,00")&" " & 'Paramètres - Admin'!$B$5,IF($B$2='Paramètres - Admin'!$B$6,TEXT((K10/24)/30,"# 0,00")&" " & 'Paramètres - Admin'!$B$6,IF(K10/24>=1,INT(K10/24)&" " & 'Paramètres - Admin'!$D$4 & " " & HOUR(K10/24-INT(K10/24))&" " & 'Paramètres - Admin'!$D$3 & " " & MINUTE(K10/24-INT(K10/24))&" " & 'Paramètres - Admin'!$D$2,HOUR(K10/24-INT(K10/24))&" " & 'Paramètres - Admin'!$D$3 & " " & MINUTE(K10/24-INT(K10/24))&" " & 'Paramètres - Admin'!$D$2)))))) -> 18 jours 17 hrs 30 mins | M10: Mortier | N10: ='À Faire - Détails'!J149 -> 4 | O10: ='À Faire - Détails'!K149 -> 32 | P10: ='À Faire - Détails'!J159 -> 50240000 | Q10: ='À Faire - Détails'!K159 -> 2864 | R10: =IF($B$2='Paramètres - Admin'!$B$2,TEXT(Q10*60*60,"# 0")&" " & 'Paramètres - Admin'!$B$2,IF($B$2='Paramètres - Admin'!$B$3,TEXT(Q10*60,"# 0")&" " & 'Paramètres - Admin'!$B$3,IF($B$2='Paramètres - Admin'!$B$4,TEXT(Q10,"# 0,00")&" " & 'Paramètres - Admin'!$B$4,IF($B$2='Paramètres - Admin'!$B$5,TEXT(Q10/24,"# 0,00")&" " & 'Paramètres - Admin'!$B$5,IF($B$2='Paramètres - Admin'!$B$6,TEXT((Q10/24)/30,"# 0,00")&" " & 'Paramètres - Admin'!$B$6,IF(Q10/24>=1,INT(Q10/24)&" " & 'Paramètres - Admin'!$D$4 & " " & HOUR(Q10/24-INT(Q10/24))&" " & 'Paramètres - Admin'!$D$3 & " " & MINUTE(Q10/24-INT(Q10/24))&" " & 'Paramètres - Admin'!$D$2,HOUR(Q10/24-INT(Q10/24))&" " & 'Paramètres - Admin'!$D$3 & " " & MINUTE(Q10/24-INT(Q10/24))&" " & 'Paramètres - Admin'!$D$2)))))) -> 119 jours 8 hrs 0 mins | Y10: Bombe aérienne | Z10: ='À Faire - Détails'!AF125 -> 5 | AA10: ='À Faire - Détails'!AG125 -> 20 | AB10: ='À Faire - Détails'!AF131 -> 8620000 | AC10: ='À Faire - Détails'!AG131 -> 200 | AD10: =IF($B$2='Paramètres - Admin'!$B$2,TEXT(AC10*60*60,"# 0")&" " & 'Paramètres - Admin'!$B$2,IF($B$2='Paramètres - Admin'!$B$3,TEXT(AC10*60,"# 0")&" " & 'Paramètres - Admin'!$B$3,IF($B$2='Paramètres - Admin'!$B$4,TEXT(AC10,"# 0,00")&" " & 'Paramètres - Admin'!$B$4,IF($B$2='Paramètres - Admin'!$B$5,TEXT(AC10/24,"# 0,00")&" " & 'Paramètres - Admin'!$B$5,IF($B$2='Paramètres - Admin'!$B$6,TEXT((AC10/24)/30,"# 0,00")&" " & 'Paramètres - Admin'!$B$6,IF(AC10/24>=1,INT(AC10/24)&" " & 'Paramètres - Admin'!$D$4 & " " & HOUR(AC10/24-INT(AC10/24))&" " & 'Paramètres - Admin'!$D$3 & " " & MINUTE(AC10/24-INT(AC10/24))&" " & 'Paramètres - Admin'!$D$2,HOUR(AC10/24-INT(AC10/24))&" " & 'Paramètres - Admin'!$D$3 & " " & MINUTE(AC10/24-INT(AC10/24))&" " & 'Paramètres - Admin'!$D$2)))))) -> 8 jours 8 hrs 0 mins
A11: Réservoir d'Élixir | B11: ='À Faire - Détails'!U22 -> 4 | C11: ='À Faire - Détails'!V22 -> 44 | D11: ='À Faire - Détails'!U35 -> 3794200 | E11: ='À Faire - Détails'!V35 -> 435 | F11: =IF($B$2='Paramètres - Admin'!$B$2,TEXT(E11*60*60,"# 0")&" " & 'Paramètres - Admin'!$B$2,IF($B$2='Paramètres - Admin'!$B$3,TEXT(E11*60,"# 0")&" " & 'Paramètres - Admin'!$B$3,IF($B$2='Paramètres - Admin'!$B$4,TEXT(E11,"# 0,00")&" " & 'Paramètres - Admin'!$B$4,IF($B$2='Paramètres - Admin'!$B$5,TEXT(E11/24,"# 0,00")&" " & 'Paramètres - Admin'!$B$5,IF($B$2='Paramètres - Admin'!$B$6,TEXT((E11/24)/30,"# 0,00")&" " & 'Paramètres - Admin'!$B$6,IF(E11/24>=1,INT(E11/24)&" " & 'Paramètres - Admin'!$D$4 & " " & HOUR(E11/24-INT(E11/24))&" " & 'Paramètres - Admin'!$D$3 & " " & MINUTE(E11/24-INT(E11/24))&" " & 'Paramètres - Admin'!$D$2,HOUR(E11/24-INT(E11/24))&" " & 'Paramètres - Admin'!$D$3 & " " & MINUTE(E11/24-INT(E11/24))&" " & 'Paramètres - Admin'!$D$2)))))) -> 18 jours 3 hrs 0 mins | G11: Usine de Sorts | H11: ='À Faire - Détails'!U73 -> 1 | I11: ='À Faire - Détails'!V73 -> 5 | J11: ='À Faire - Détails'!U80 -> 6200000 | K11: ='À Faire - Détails'!V80 -> 432 | L11: =IF($B$2='Paramètres - Admin'!$B$2,TEXT(K11*60*60,"# 0")&" " & 'Paramètres - Admin'!$B$2,IF($B$2='Paramètres - Admin'!$B$3,TEXT(K11*60,"# 0")&" " & 'Paramètres - Admin'!$B$3,IF($B$2='Paramètres - Admin'!$B$4,TEXT(K11,"# 0,00")&" " & 'Paramètres - Admin'!$B$4,IF($B$2='Paramètres - Admin'!$B$5,TEXT(K11/24,"# 0,00")&" " & 'Paramètres - Admin'!$B$5,IF($B$2='Paramètres - Admin'!$B$6,TEXT((K11/24)/30,"# 0,00")&" " & 'Paramètres - Admin'!$B$6,IF(K11/24>=1,INT(K11/24)&" " & 'Paramètres - Admin'!$D$4 & " " & HOUR(K11/24-INT(K11/24))&" " & 'Paramètres - Admin'!$D$3 & " " & MINUTE(K11/24-INT(K11/24))&" " & 'Paramètres - Admin'!$D$2,HOUR(K11/24-INT(K11/24))&" " & 'Paramètres - Admin'!$D$3 & " " & MINUTE(K11/24-INT(K11/24))&" " & 'Paramètres - Admin'!$D$2)))))) -> 18 jours 0 hrs 0 mins | M11: Défense Antiaérienne | N11: ='À Faire - Détails'!U100 -> 4 | O11: ='À Faire - Détails'!V100 -> 32 | P11: ='À Faire - Détails'!U110 -> 64170000 | Q11: ='À Faire - Détails'!V110 -> 4340 | R11: =IF($B$2='Paramètres - Admin'!$B$2,TEXT(Q11*60*60,"# 0")&" " & 'Paramètres - Admin'!$B$2,IF($B$2='Paramètres - Admin'!$B$3,TEXT(Q11*60,"# 0")&" " & 'Paramètres - Admin'!$B$3,IF($B$2='Paramètres - Admin'!$B$4,TEXT(Q11,"# 0,00")&" " & 'Paramètres - Admin'!$B$4,IF($B$2='Paramètres - Admin'!$B$5,TEXT(Q11/24,"# 0,00")&" " & 'Paramètres - Admin'!$B$5,IF($B$2='Paramètres - Admin'!$B$6,TEXT((Q11/24)/30,"# 0,00")&" " & 'Paramètres - Admin'!$B$6,IF(Q11/24>=1,INT(Q11/24)&" " & 'Paramètres - Admin'!$D$4 & " " & HOUR(Q11/24-INT(Q11/24))&" " & 'Paramètres - Admin'!$D$3 & " " & MINUTE(Q11/24-INT(Q11/24))&" " & 'Paramètres - Admin'!$D$2,HOUR(Q11/24-INT(Q11/24))&" " & 'Paramètres - Admin'!$D$3 & " " & MINUTE(Q11/24-INT(Q11/24))&" " & 'Paramètres - Admin'!$D$2)))))) -> 180 jours 20 hrs 0 mins | Y11: Piège squelettique | Z11: ='À Faire - Détails'!AF133 -> 3 | AA11: ='À Faire - Détails'!AG133 -> 9 | AB11: ='À Faire - Détails'!AF138 -> 5718000 | AC11: ='À Faire - Détails'!AG138 -> 288 | AD11: =IF($B$2='Paramètres - Admin'!$B$2,TEXT(AC11*60*60,"# 0")&" " & 'Paramètres - Admin'!$B$2,IF($B$2='Paramètres - Admin'!$B$3,TEXT(AC11*60,"# 0")&" " & 'Paramètres - Admin'!$B$3,IF($B$2='Paramètres - Admin'!$B$4,TEXT(AC11,"# 0,00")&" " & 'Paramètres - Admin'!$B$4,IF($B$2='Paramètres - Admin'!$B$5,TEXT(AC11/24,"# 0,00")&" " & 'Paramètres - Admin'!$B$5,IF($B$2='Paramètres - Admin'!$B$6,TEXT((AC11/24)/30,"# 0,00")&" " & 'Paramètres - Admin'!$B$6,IF(AC11/24>=1,INT(AC11/24)&" " & 'Paramètres - Admin'!$D$4 & " " & HOUR(AC11/24-INT(AC11/24))&" " & 'Paramètres - Admin'!$D$3 & " " & MINUTE(AC11/24-INT(AC11/24))&" " & 'Paramètres - Admin'!$D$2,HOUR(AC11/24-INT(AC11/24))&" " & 'Paramètres - Admin'!$D$3 & " " & MINUTE(AC11/24-INT(AC11/24))&" " & 'Paramètres - Admin'!$D$2)))))) -> 12 jours 0 hrs 0 mins
A12: Réservoir d'Élixir Noir | B12: ='À Faire - Détails'!J47 -> 1 | C12: ='À Faire - Détails'!K47 -> 6 | D12: ='À Faire - Détails'!J55 -> 12600000 | E12: ='À Faire - Détails'!K55 -> 504 | F12: =IF($B$2='Paramètres - Admin'!$B$2,TEXT(E12*60*60,"# 0")&" " & 'Paramètres - Admin'!$B$2,IF($B$2='Paramètres - Admin'!$B$3,TEXT(E12*60,"# 0")&" " & 'Paramètres - Admin'!$B$3,IF($B$2='Paramètres - Admin'!$B$4,TEXT(E12,"# 0,00")&" " & 'Paramètres - Admin'!$B$4,IF($B$2='Paramètres - Admin'!$B$5,TEXT(E12/24,"# 0,00")&" " & 'Paramètres - Admin'!$B$5,IF($B$2='Paramètres - Admin'!$B$6,TEXT((E12/24)/30,"# 0,00")&" " & 'Paramètres - Admin'!$B$6,IF(E12/24>=1,INT(E12/24)&" " & 'Paramètres - Admin'!$D$4 & " " & HOUR(E12/24-INT(E12/24))&" " & 'Paramètres - Admin'!$D$3 & " " & MINUTE(E12/24-INT(E12/24))&" " & 'Paramètres - Admin'!$D$2,HOUR(E12/24-INT(E12/24))&" " & 'Paramètres - Admin'!$D$3 & " " & MINUTE(E12/24-INT(E12/24))&" " & 'Paramètres - Admin'!$D$2)))))) -> 21 jours 0 hrs 0 mins | G12: Total | H12: =SUM(H8:H11) -> 8 | I12: =SUM(I7:I11) -> 95 | J12: =SUM(J7:J11) -> 90740800 | K12: =SUM(K7:K11) -> 5522.913333 | L12: =IF($B$2='Paramètres - Admin'!$B$2,TEXT(K12*60*60,"# 0")&" " & 'Paramètres - Admin'!$B$2,IF($B$2='Paramètres - Admin'!$B$3,TEXT(K12*60,"# 0")&" " & 'Paramètres - Admin'!$B$3,IF($B$2='Paramètres - Admin'!$B$4,TEXT(K12,"# 0,00")&" " & 'Paramètres - Admin'!$B$4,IF($B$2='Paramètres - Admin'!$B$5,TEXT(K12/24,"# 0,00")&" " & 'Paramètres - Admin'!$B$5,IF($B$2='Paramètres - Admin'!$B$6,TEXT((K12/24)/30,"# 0,00")&" " & 'Paramètres - Admin'!$B$6,IF(K12/24>=1,INT(K12/24)&" " & 'Paramètres - Admin'!$D$4 & " " & HOUR(K12/24-INT(K12/24))&" " & 'Paramètres - Admin'!$D$3 & " " & MINUTE(K12/24-INT(K12/24))&" " & 'Paramètres - Admin'!$D$2,HOUR(K12/24-INT(K12/24))&" " & 'Paramètres - Admin'!$D$3 & " " & MINUTE(K12/24-INT(K12/24))&" " & 'Paramètres - Admin'!$D$2)))))) -> 230 jours 2 hrs 54 mins | M12: Tour de Sorciers | N12: ='À Faire - Détails'!U112 -> 4 | O12: ='À Faire - Détails'!V112 -> 32 | P12: ='À Faire - Détails'!U122 -> 75760000 | Q12: ='À Faire - Détails'!V122 -> 3120 | R12: =IF($B$2='Paramètres - Admin'!$B$2,TEXT(Q12*60*60,"# 0")&" " & 'Paramètres - Admin'!$B$2,IF($B$2='Paramètres - Admin'!$B$3,TEXT(Q12*60,"# 0")&" " & 'Paramètres - Admin'!$B$3,IF($B$2='Paramètres - Admin'!$B$4,TEXT(Q12,"# 0,00")&" " & 'Paramètres - Admin'!$B$4,IF($B$2='Paramètres - Admin'!$B$5,TEXT(Q12/24,"# 0,00")&" " & 'Paramètres - Admin'!$B$5,IF($B$2='Paramètres - Admin'!$B$6,TEXT((Q12/24)/30,"# 0,00")&" " & 'Paramètres - Admin'!$B$6,IF(Q12/24>=1,INT(Q12/24)&" " & 'Paramètres - Admin'!$D$4 & " " & HOUR(Q12/24-INT(Q12/24))&" " & 'Paramètres - Admin'!$D$3 & " " & MINUTE(Q12/24-INT(Q12/24))&" " & 'Paramètres - Admin'!$D$2,HOUR(Q12/24-INT(Q12/24))&" " & 'Paramètres - Admin'!$D$3 & " " & MINUTE(Q12/24-INT(Q12/24))&" " & 'Paramètres - Admin'!$D$2)))))) -> 130 jours 0 hrs 0 mins | Y12: Piège à ressort | Z12: ='À Faire - Détails'!AF140 -> 6 | AA12: ='À Faire - Détails'!AG140 -> 3 | AB12: ='À Faire - Détails'!AF143 -> 6000 | AC12: ='À Faire - Détails'!AG143 -> 0 | AD12: =IF($B$2='Paramètres - Admin'!$B$2,TEXT(AC12*60*60,"# 0")&" " & 'Paramètres - Admin'!$B$2,IF($B$2='Paramètres - Admin'!$B$3,TEXT(AC12*60,"# 0")&" " & 'Paramètres - Admin'!$B$3,IF($B$2='Paramètres - Admin'!$B$4,TEXT(AC12,"# 0,00")&" " & 'Paramètres - Admin'!$B$4,IF($B$2='Paramètres - Admin'!$B$5,TEXT(AC12/24,"# 0,00")&" " & 'Paramètres - Admin'!$B$5,IF($B$2='Paramètres - Admin'!$B$6,TEXT((AC12/24)/30,"# 0,00")&" " & 'Paramètres - Admin'!$B$6,IF(AC12/24>=1,INT(AC12/24)&" " & 'Paramètres - Admin'!$D$4 & " " & HOUR(AC12/24-INT(AC12/24))&" " & 'Paramètres - Admin'!$D$3 & " " & MINUTE(AC12/24-INT(AC12/24))&" " & 'Paramètres - Admin'!$D$2,HOUR(AC12/24-INT(AC12/24))&" " & 'Paramètres - Admin'!$D$3 & " " & MINUTE(AC12/24-INT(AC12/24))&" " & 'Paramètres - Admin'!$D$2)))))) -> 0 hrs 0 mins
A13: Total | B13: =SUM(B7:B12) -> 26 | C13: =SUM(C7:C12) -> 280 | D13: =SUM(D7:D12) -> 79468100 | E13: =SUM(E7:E12) -> 8440.9 | F13: =IF($B$2='Paramètres - Admin'!$B$2,TEXT(E13*60*60,"# 0")&" " & 'Paramètres - Admin'!$B$2,IF($B$2='Paramètres - Admin'!$B$3,TEXT(E13*60,"# 0")&" " & 'Paramètres - Admin'!$B$3,IF($B$2='Paramètres - Admin'!$B$4,TEXT(E13,"# 0,00")&" " & 'Paramètres - Admin'!$B$4,IF($B$2='Paramètres - Admin'!$B$5,TEXT(E13/24,"# 0,00")&" " & 'Paramètres - Admin'!$B$5,IF($B$2='Paramètres - Admin'!$B$6,TEXT((E13/24)/30,"# 0,00")&" " & 'Paramètres - Admin'!$B$6,IF(E13/24>=1,INT(E13/24)&" " & 'Paramètres - Admin'!$D$4 & " " & HOUR(E13/24-INT(E13/24))&" " & 'Paramètres - Admin'!$D$3 & " " & MINUTE(E13/24-INT(E13/24))&" " & 'Paramètres - Admin'!$D$2,HOUR(E13/24-INT(E13/24))&" " & 'Paramètres - Admin'!$D$3 & " " & MINUTE(E13/24-INT(E13/24))&" " & 'Paramètres - Admin'!$D$2)))))) -> 351 jours 16 hrs 54 mins | M13: Tesla Camouflée | N13: ='À Faire - Détails'!U124 -> 4 | O13: ='À Faire - Détails'!V124 -> 28 | P13: ='À Faire - Détails'!U133 -> 59000000 | Q13: ='À Faire - Détails'!V133 -> 5376 | R13: =IF($B$2='Paramètres - Admin'!$B$2,TEXT(Q13*60*60,"# 0")&" " & 'Paramètres - Admin'!$B$2,IF($B$2='Paramètres - Admin'!$B$3,TEXT(Q13*60,"# 0")&" " & 'Paramètres - Admin'!$B$3,IF($B$2='Paramètres - Admin'!$B$4,TEXT(Q13,"# 0,00")&" " & 'Paramètres - Admin'!$B$4,IF($B$2='Paramètres - Admin'!$B$5,TEXT(Q13/24,"# 0,00")&" " & 'Paramètres - Admin'!$B$5,IF($B$2='Paramètres - Admin'!$B$6,TEXT((Q13/24)/30,"# 0,00")&" " & 'Paramètres - Admin'!$B$6,IF(Q13/24>=1,INT(Q13/24)&" " & 'Paramètres - Admin'!$D$4 & " " & HOUR(Q13/24-INT(Q13/24))&" " & 'Paramètres - Admin'!$D$3 & " " & MINUTE(Q13/24-INT(Q13/24))&" " & 'Paramètres - Admin'!$D$2,HOUR(Q13/24-INT(Q13/24))&" " & 'Paramètres - Admin'!$D$3 & " " & MINUTE(Q13/24-INT(Q13/24))&" " & 'Paramètres - Admin'!$D$2)))))) -> 224 jours 0 hrs 0 mins | Y13: Total | Z13: =SUM(Z7:Z12) -> 31 | AA13: =SUM(AA7:AA12) -> 98 | AB13: =SUM(AB7:AB12) -> 76774906 | AC13: =SUM(AC7:AC12) -> 1971.5 | AD13: =IF($B$2='Paramètres - Admin'!$B$2,TEXT(AC13*60*60,"# 0")&" " & 'Paramètres - Admin'!$B$2,IF($B$2='Paramètres - Admin'!$B$3,TEXT(AC13*60,"# 0")&" " & 'Paramètres - Admin'!$B$3,IF($B$2='Paramètres - Admin'!$B$4,TEXT(AC13,"# 0,00")&" " & 'Paramètres - Admin'!$B$4,IF($B$2='Paramètres - Admin'!$B$5,TEXT(AC13/24,"# 0,00")&" " & 'Paramètres - Admin'!$B$5,IF($B$2='Paramètres - Admin'!$B$6,TEXT((AC13/24)/30,"# 0,00")&" " & 'Paramètres - Admin'!$B$6,IF(AC13/24>=1,INT(AC13/24)&" " & 'Paramètres - Admin'!$D$4 & " " & HOUR(AC13/24-INT(AC13/24))&" " & 'Paramètres - Admin'!$D$3 & " " & MINUTE(AC13/24-INT(AC13/24))&" " & 'Paramètres - Admin'!$D$2,HOUR(AC13/24-INT(AC13/24))&" " & 'Paramètres - Admin'!$D$3 & " " & MINUTE(AC13/24-INT(AC13/24))&" " & 'Paramètres - Admin'!$D$2)))))) -> 82 jours 3 hrs 30 mins
M14: Arc-X | N14: ='À Faire - Détails'!U135 -> 3 | O14: ='À Faire - Détails'!V135 -> 12 | P14: ='À Faire - Détails'!U141 -> 69000000 | Q14: ='À Faire - Détails'!V141 -> 3240 | R14: =IF($B$2='Paramètres - Admin'!$B$2,TEXT(Q14*60*60,"# 0")&" " & 'Paramètres - Admin'!$B$2,IF($B$2='Paramètres - Admin'!$B$3,TEXT(Q14*60,"# 0")&" " & 'Paramètres - Admin'!$B$3,IF($B$2='Paramètres - Admin'!$B$4,TEXT(Q14,"# 0,00")&" " & 'Paramètres - Admin'!$B$4,IF($B$2='Paramètres - Admin'!$B$5,TEXT(Q14/24,"# 0,00")&" " & 'Paramètres - Admin'!$B$5,IF($B$2='Paramètres - Admin'!$B$6,TEXT((Q14/24)/30,"# 0,00")&" " & 'Paramètres - Admin'!$B$6,IF(Q14/24>=1,INT(Q14/24)&" " & 'Paramètres - Admin'!$D$4 & " " & HOUR(Q14/24-INT(Q14/24))&" " & 'Paramètres - Admin'!$D$3 & " " & MINUTE(Q14/24-INT(Q14/24))&" " & 'Paramètres - Admin'!$D$2,HOUR(Q14/24-INT(Q14/24))&" " & 'Paramètres - Admin'!$D$3 & " " & MINUTE(Q14/24-INT(Q14/24))&" " & 'Paramètres - Admin'!$D$2)))))) -> 135 jours 0 hrs 0 mins
M15: Inferno Tower | N15: ='À Faire - Détails'!U143 -> 2 | O15: ='À Faire - Détails'!V143 -> 6 | P15: ='À Faire - Détails'!U148 -> 39000000 | Q15: ='À Faire - Détails'!V148 -> 1488 | R15: =IF($B$2='Paramètres - Admin'!$B$2,TEXT(Q15*60*60,"# 0")&" " & 'Paramètres - Admin'!$B$2,IF($B$2='Paramètres - Admin'!$B$3,TEXT(Q15*60,"# 0")&" " & 'Paramètres - Admin'!$B$3,IF($B$2='Paramètres - Admin'!$B$4,TEXT(Q15,"# 0,00")&" " & 'Paramètres - Admin'!$B$4,IF($B$2='Paramètres - Admin'!$B$5,TEXT(Q15/24,"# 0,00")&" " & 'Paramètres - Admin'!$B$5,IF($B$2='Paramètres - Admin'!$B$6,TEXT((Q15/24)/30,"# 0,00")&" " & 'Paramètres - Admin'!$B$6,IF(Q15/24>=1,INT(Q15/24)&" " & 'Paramètres - Admin'!$D$4 & " " & HOUR(Q15/24-INT(Q15/24))&" " & 'Paramètres - Admin'!$D$3 & " " & MINUTE(Q15/24-INT(Q15/24))&" " & 'Paramètres - Admin'!$D$2,HOUR(Q15/24-INT(Q15/24))&" " & 'Paramètres - Admin'!$D$3 & " " & MINUTE(Q15/24-INT(Q15/24))&" " & 'Paramètres - Admin'!$D$2)))))) -> 62 jours 0 hrs 0 mins
M16: Propulseur d'air | N16: ='À Faire - Détails'!U150 -> 1 | O16: ='À Faire - Détails'!V150 -> 6 | P16: ='À Faire - Détails'!U158 -> 16850001 | Q16: ='À Faire - Détails'!V158 -> 792 | R16: =IF($B$2='Paramètres - Admin'!$B$2,TEXT(Q16*60*60,"# 0")&" " & 'Paramètres - Admin'!$B$2,IF($B$2='Paramètres - Admin'!$B$3,TEXT(Q16*60,"# 0")&" " & 'Paramètres - Admin'!$B$3,IF($B$2='Paramètres - Admin'!$B$4,TEXT(Q16,"# 0,00")&" " & 'Paramètres - Admin'!$B$4,IF($B$2='Paramètres - Admin'!$B$5,TEXT(Q16/24,"# 0,00")&" " & 'Paramètres - Admin'!$B$5,IF($B$2='Paramètres - Admin'!$B$6,TEXT((Q16/24)/30,"# 0,00")&" " & 'Paramètres - Admin'!$B$6,IF(Q16/24>=1,INT(Q16/24)&" " & 'Paramètres - Admin'!$D$4 & " " & HOUR(Q16/24-INT(Q16/24))&" " & 'Paramètres - Admin'!$D$3 & " " & MINUTE(Q16/24-INT(Q16/24))&" " & 'Paramètres - Admin'!$D$2,HOUR(Q16/24-INT(Q16/24))&" " & 'Paramètres - Admin'!$D$3 & " " & MINUTE(Q16/24-INT(Q16/24))&" " & 'Paramètres - Admin'!$D$2)))))) -> 33 jours 0 hrs 0 mins
M17: Total | N17: =SUM(N8:N16) -> 35 | O17: =SUM(O8:O16) -> 304 | P17: =SUM(P7:P16) -> 2868023501 | Q17: =SUM(Q8:Q16) -> 31548.6 | R17: =IF($B$2='Paramètres - Admin'!$B$2,TEXT(Q17*60*60,"# 0")&" " & 'Paramètres - Admin'!$B$2,IF($B$2='Paramètres - Admin'!$B$3,TEXT(Q17*60,"# 0")&" " & 'Paramètres - Admin'!$B$3,IF($B$2='Paramètres - Admin'!$B$4,TEXT(Q17,"# 0,00")&" " & 'Paramètres - Admin'!$B$4,IF($B$2='Paramètres - Admin'!$B$5,TEXT(Q17/24,"# 0,00")&" " & 'Paramètres - Admin'!$B$5,IF($B$2='Paramètres - Admin'!$B$6,TEXT((Q17/24)/30,"# 0,00")&" " & 'Paramètres - Admin'!$B$6,IF(Q17/24>=1,INT(Q17/24)&" " & 'Paramètres - Admin'!$D$4 & " " & HOUR(Q17/24-INT(Q17/24))&" " & 'Paramètres - Admin'!$D$3 & " " & MINUTE(Q17/24-INT(Q17/24))&" " & 'Paramètres - Admin'!$D$2,HOUR(Q17/24-INT(Q17/24))&" " & 'Paramètres - Admin'!$D$3 & " " & MINUTE(Q17/24-INT(Q17/24))&" " & 'Paramètres - Admin'!$D$2)))))) -> 1314 jours 12 hrs 36 mins
A18: Spell Upgrades | G18: Améliorations de Troupes | M18: Améliorations de Troupes Noires | S18: Héros
A19: Sort | B19: À Faire | C19: Up. | D19: Coût Total | E19: Temps Total | F19: Temps Total | G19: Troupe Normale | H19: À Faire | I19: Up. | J19: Coût Total | K19: Temps Total | L19: Temps Total | M19: Troupe Noire | N19: À Faire | O19: Up. | P19: Coût Total | Q19: Temps Total | R19: Temps Total | S19: Héros | T19: À Faire | U19: Up. | V19: Coût Total | W19: Temps Total | X19: Temps Total
A20: Sort de Foudre | B20: ='À Faire - Détails'!J182 -> 1 | C20: ='À Faire - Détails'!K182 -> 6 | D20: ='À Faire - Détails'!J190 -> 11700000 | E20: ='À Faire - Détails'!K190 -> 576 | F20: =IF($B$2='Paramètres - Admin'!$B$2,TEXT(E20*60*60,"# 0")&" " & 'Paramètres - Admin'!$B$2,IF($B$2='Paramètres - Admin'!$B$3,TEXT(E20*60,"# 0")&" " & 'Paramètres - Admin'!$B$3,IF($B$2='Paramètres - Admin'!$B$4,TEXT(E20,"# 0,00")&" " & 'Paramètres - Admin'!$B$4,IF($B$2='Paramètres - Admin'!$B$5,TEXT(E20/24,"# 0,00")&" " & 'Paramètres - Admin'!$B$5,IF($B$2='Paramètres - Admin'!$B$6,TEXT((E20/24)/30,"# 0,00")&" " & 'Paramètres - Admin'!$B$6,IF(E20/24>=1,INT(E20/24)&" " & 'Paramètres - Admin'!$D$4 & " " & HOUR(E20/24-INT(E20/24))&" " & 'Paramètres - Admin'!$D$3 & " " & MINUTE(E20/24-INT(E20/24))&" " & 'Paramètres - Admin'!$D$2,HOUR(E20/24-INT(E20/24))&" " & 'Paramètres - Admin'!$D$3 & " " & MINUTE(E20/24-INT(E20/24))&" " & 'Paramètres - Admin'!$D$2)))))) -> 24 jours 0 hrs 0 mins | G20: Barbare | H20: ='À Faire - Détails'!J215 -> 1 | I20: ='À Faire - Détails'!K215 -> 6 | J20: ='À Faire - Détails'!J223 -> 6700000 | K20: ='À Faire - Détails'!K223 -> 462 | L20: =IF($B$2='Paramètres - Admin'!$B$2,TEXT(K20*60*60,"# 0")&" " & 'Paramètres - Admin'!$B$2,IF($B$2='Paramètres - Admin'!$B$3,TEXT(K20*60,"# 0")&" " & 'Paramètres - Admin'!$B$3,IF($B$2='Paramètres - Admin'!$B$4,TEXT(K20,"# 0,00")&" " & 'Paramètres - Admin'!$B$4,IF($B$2='Paramètres - Admin'!$B$5,TEXT(K20/24,"# 0,00")&" " & 'Paramètres - Admin'!$B$5,IF($B$2='Paramètres - Admin'!$B$6,TEXT((K20/24)/30,"# 0,00")&" " & 'Paramètres - Admin'!$B$6,IF(K20/24>=1,INT(K20/24)&" " & 'Paramètres - Admin'!$D$4 & " " & HOUR(K20/24-INT(K20/24))&" " & 'Paramètres - Admin'!$D$3 & " " & MINUTE(K20/24-INT(K20/24))&" " & 'Paramètres - Admin'!$D$2,HOUR(K20/24-INT(K20/24))&" " & 'Paramètres - Admin'!$D$3 & " " & MINUTE(K20/24-INT(K20/24))&" " & 'Paramètres - Admin'!$D$2)))))) -> 19 jours 6 hrs 0 mins | M20: Serviteur | N20: ='À Faire - Détails'!J268 -> 1 | O20: ='À Faire - Détails'!K268 -> 5 | P20: ='À Faire - Détails'!J276 -> 200000 | Q20: ='À Faire - Détails'!K276 -> 672 | R20: =IF($B$2='Paramètres - Admin'!$B$2,TEXT(Q20*60*60,"# 0")&" " & 'Paramètres - Admin'!$B$2,IF($B$2='Paramètres - Admin'!$B$3,TEXT(Q20*60,"# 0")&" " & 'Paramètres - Admin'!$B$3,IF($B$2='Paramètres - Admin'!$B$4,TEXT(Q20,"# 0,00")&" " & 'Paramètres - Admin'!$B$4,IF($B$2='Paramètres - Admin'!$B$5,TEXT(Q20/24,"# 0,00")&" " & 'Paramètres - Admin'!$B$5,IF($B$2='Paramètres - Admin'!$B$6,TEXT((Q20/24)/30,"# 0,00")&" " & 'Paramètres - Admin'!$B$6,IF(Q20/24>=1,INT(Q20/24)&" " & 'Paramètres - Admin'!$D$4 & " " & HOUR(Q20/24-INT(Q20/24))&" " & 'Paramètres - Admin'!$D$3 & " " & MINUTE(Q20/24-INT(Q20/24))&" " & 'Paramètres - Admin'!$D$2,HOUR(Q20/24-INT(Q20/24))&" " & 'Paramètres - Admin'!$D$3 & " " & MINUTE(Q20/24-INT(Q20/24))&" " & 'Paramètres - Admin'!$D$2)))))) -> 28 jours 0 hrs 0 mins | S20: Roi des Barbares | T20: ='À Faire - Détails'!J305 -> 1 | U20: ='À Faire - Détails'!K305 -> 40 | V20: ='À Faire - Détails'!J347 -> 3752500 | W20: ='À Faire - Détails'!K347 -> 9360 | X20: =IF($B$2='Paramètres - Admin'!$B$2,TEXT(W20*60*60,"# 0")&" " & 'Paramètres - Admin'!$B$2,IF($B$2='Paramètres - Admin'!$B$3,TEXT(W20*60,"# 0")&" " & 'Paramètres - Admin'!$B$3,IF($B$2='Paramètres - Admin'!$B$4,TEXT(W20,"# 0,00")&" " & 'Paramètres - Admin'!$B$4,IF($B$2='Paramètres - Admin'!$B$5,TEXT(W20/24,"# 0,00")&" " & 'Paramètres - Admin'!$B$5,IF($B$2='Paramètres - Admin'!$B$6,TEXT((W20/24)/30,"# 0,00")&" " & 'Paramètres - Admin'!$B$6,IF(W20/24>=1,INT(W20/24)&" " & 'Paramètres - Admin'!$D$4 & " " & HOUR(W20/24-INT(W20/24))&" " & 'Paramètres - Admin'!$D$3 & " " & MINUTE(W20/24-INT(W20/24))&" " & 'Paramètres - Admin'!$D$2,HOUR(W20/24-INT(W20/24))&" " & 'Paramètres - Admin'!$D$3 & " " & MINUTE(W20/24-INT(W20/24))&" " & 'Paramètres - Admin'!$D$2)))))) -> 390 jours 0 hrs 0 mins
A21: Sort de Guérison | B21: ='À Faire - Détails'!J192 -> 1 | C21: ='À Faire - Détails'!K192 -> 6 | D21: ='À Faire - Détails'!J200 -> 9300000 | E21: ='À Faire - Détails'!K200 -> 432 | F21: =IF($B$2='Paramètres - Admin'!$B$2,TEXT(E21*60*60,"# 0")&" " & 'Paramètres - Admin'!$B$2,IF($B$2='Paramètres - Admin'!$B$3,TEXT(E21*60,"# 0")&" " & 'Paramètres - Admin'!$B$3,IF($B$2='Paramètres - Admin'!$B$4,TEXT(E21,"# 0,00")&" " & 'Paramètres - Admin'!$B$4,IF($B$2='Paramètres - Admin'!$B$5,TEXT(E21/24,"# 0,00")&" " & 'Paramètres - Admin'!$B$5,IF($B$2='Paramètres - Admin'!$B$6,TEXT((E21/24)/30,"# 0,00")&" " & 'Paramètres - Admin'!$B$6,IF(E21/24>=1,INT(E21/24)&" " & 'Paramètres - Admin'!$D$4 & " " & HOUR(E21/24-INT(E21/24))&" " & 'Paramètres - Admin'!$D$3 & " " & MINUTE(E21/24-INT(E21/24))&" " & 'Paramètres - Admin'!$D$2,HOUR(E21/24-INT(E21/24))&" " & 'Paramètres - Admin'!$D$3 & " " & MINUTE(E21/24-INT(E21/24))&" " & 'Paramètres - Admin'!$D$2)))))) -> 18 jours 0 hrs 0 mins | G21: Archer | H21: ='À Faire - Détails'!J225 -> 1 | I21: ='À Faire - Détails'!K225 -> 6 | J21: ='À Faire - Détails'!J233 -> 9300000 | K21: ='À Faire - Détails'!K233 -> 602 | L21: =IF($B$2='Paramètres - Admin'!$B$2,TEXT(K21*60*60,"# 0")&" " & 'Paramètres - Admin'!$B$2,IF($B$2='Paramètres - Admin'!$B$3,TEXT(K21*60,"# 0")&" " & 'Paramètres - Admin'!$B$3,IF($B$2='Paramètres - Admin'!$B$4,TEXT(K21,"# 0,00")&" " & 'Paramètres - Admin'!$B$4,IF($B$2='Paramètres - Admin'!$B$5,TEXT(K21/24,"# 0,00")&" " & 'Paramètres - Admin'!$B$5,IF($B$2='Paramètres - Admin'!$B$6,TEXT((K21/24)/30,"# 0,00")&" " & 'Paramètres - Admin'!$B$6,IF(K21/24>=1,INT(K21/24)&" " & 'Paramètres - Admin'!$D$4 & " " & HOUR(K21/24-INT(K21/24))&" " & 'Paramètres - Admin'!$D$3 & " " & MINUTE(K21/24-INT(K21/24))&" " & 'Paramètres - Admin'!$D$2,HOUR(K21/24-INT(K21/24))&" " & 'Paramètres - Admin'!$D$3 & " " & MINUTE(K21/24-INT(K21/24))&" " & 'Paramètres - Admin'!$D$2)))))) -> 25 jours 2 hrs 0 mins | M21: Chevaucheur de Cochon | N21: ='À Faire - Détails'!J278 -> 1 | O21: ='À Faire - Détails'!K278 -> 5 | P21: ='À Faire - Détails'!J285 -> 140000 | Q21: ='À Faire - Détails'!K285 -> 1056 | R21: =IF($B$2='Paramètres - Admin'!$B$2,TEXT(Q21*60*60,"# 0")&" " & 'Paramètres - Admin'!$B$2,IF($B$2='Paramètres - Admin'!$B$3,TEXT(Q21*60,"# 0")&" " & 'Paramètres - Admin'!$B$3,IF($B$2='Paramètres - Admin'!$B$4,TEXT(Q21,"# 0,00")&" " & 'Paramètres - Admin'!$B$4,IF($B$2='Paramètres - Admin'!$B$5,TEXT(Q21/24,"# 0,00")&" " & 'Paramètres - Admin'!$B$5,IF($B$2='Paramètres - Admin'!$B$6,TEXT((Q21/24)/30,"# 0,00")&" " & 'Paramètres - Admin'!$B$6,IF(Q21/24>=1,INT(Q21/24)&" " & 'Paramètres - Admin'!$D$4 & " " & HOUR(Q21/24-INT(Q21/24))&" " & 'Paramètres - Admin'!$D$3 & " " & MINUTE(Q21/24-INT(Q21/24))&" " & 'Paramètres - Admin'!$D$2,HOUR(Q21/24-INT(Q21/24))&" " & 'Paramètres - Admin'!$D$3 & " " & MINUTE(Q21/24-INT(Q21/24))&" " & 'Paramètres - Admin'!$D$2)))))) -> 44 jours 0 hrs 0 mins | S21: Reine des Archers | T21: ='À Faire - Détails'!U305 -> 1 | U21: ='À Faire - Détails'!V305 -> 40 | V21: ='À Faire - Détails'!U347 -> 4172500 | W21: ='À Faire - Détails'!V347 -> 5460 | X21: =IF($B$2='Paramètres - Admin'!$B$2,TEXT(W21*60*60,"# 0")&" " & 'Paramètres - Admin'!$B$2,IF($B$2='Paramètres - Admin'!$B$3,TEXT(W21*60,"# 0")&" " & 'Paramètres - Admin'!$B$3,IF($B$2='Paramètres - Admin'!$B$4,TEXT(W21,"# 0,00")&" " & 'Paramètres - Admin'!$B$4,IF($B$2='Paramètres - Admin'!$B$5,TEXT(W21/24,"# 0,00")&" " & 'Paramètres - Admin'!$B$5,IF($B$2='Paramètres - Admin'!$B$6,TEXT((W21/24)/30,"# 0,00")&" " & 'Paramètres - Admin'!$B$6,IF(W21/24>=1,INT(W21/24)&" " & 'Paramètres - Admin'!$D$4 & " " & HOUR(W21/24-INT(W21/24))&" " & 'Paramètres - Admin'!$D$3 & " " & MINUTE(W21/24-INT(W21/24))&" " & 'Paramètres - Admin'!$D$2,HOUR(W21/24-INT(W21/24))&" " & 'Paramètres - Admin'!$D$3 & " " & MINUTE(W21/24-INT(W21/24))&" " & 'Paramètres - Admin'!$D$2)))))) -> 227 jours 12 hrs 0 mins
A22: Sort de Rage | B22: ='À Faire - Détails'!J202 -> 1 | C22: ='À Faire - Détails'!K202 -> 5 | D22: ='À Faire - Détails'!J209 -> 6150000 | E22: ='À Faire - Détails'!K209 -> 408 | F22: =IF($B$2='Paramètres - Admin'!$B$2,TEXT(E22*60*60,"# 0")&" " & 'Paramètres - Admin'!$B$2,IF($B$2='Paramètres - Admin'!$B$3,TEXT(E22*60,"# 0")&" " & 'Paramètres - Admin'!$B$3,IF($B$2='Paramètres - Admin'!$B$4,TEXT(E22,"# 0,00")&" " & 'Paramètres - Admin'!$B$4,IF($B$2='Paramètres - Admin'!$B$5,TEXT(E22/24,"# 0,00")&" " & 'Paramètres - Admin'!$B$5,IF($B$2='Paramètres - Admin'!$B$6,TEXT((E22/24)/30,"# 0,00")&" " & 'Paramètres - Admin'!$B$6,IF(E22/24>=1,INT(E22/24)&" " & 'Paramètres - Admin'!$D$4 & " " & HOUR(E22/24-INT(E22/24))&" " & 'Paramètres - Admin'!$D$3 & " " & MINUTE(E22/24-INT(E22/24))&" " & 'Paramètres - Admin'!$D$2,HOUR(E22/24-INT(E22/24))&" " & 'Paramètres - Admin'!$D$3 & " " & MINUTE(E22/24-INT(E22/24))&" " & 'Paramètres - Admin'!$D$2)))))) -> 17 jours 0 hrs 0 mins | G22: Gobelin | H22: ='À Faire - Détails'!J235 -> 1 | I22: ='À Faire - Détails'!K235 -> 6 | J22: ='À Faire - Détails'!J243 -> 7800000 | K22: ='À Faire - Détails'!K243 -> 492 | L22: =IF($B$2='Paramètres - Admin'!$B$2,TEXT(K22*60*60,"# 0")&" " & 'Paramètres - Admin'!$B$2,IF($B$2='Paramètres - Admin'!$B$3,TEXT(K22*60,"# 0")&" " & 'Paramètres - Admin'!$B$3,IF($B$2='Paramètres - Admin'!$B$4,TEXT(K22,"# 0,00")&" " & 'Paramètres - Admin'!$B$4,IF($B$2='Paramètres - Admin'!$B$5,TEXT(K22/24,"# 0,00")&" " & 'Paramètres - Admin'!$B$5,IF($B$2='Paramètres - Admin'!$B$6,TEXT((K22/24)/30,"# 0,00")&" " & 'Paramètres - Admin'!$B$6,IF(K22/24>=1,INT(K22/24)&" " & 'Paramètres - Admin'!$D$4 & " " & HOUR(K22/24-INT(K22/24))&" " & 'Paramètres - Admin'!$D$3 & " " & MINUTE(K22/24-INT(K22/24))&" " & 'Paramètres - Admin'!$D$2,HOUR(K22/24-INT(K22/24))&" " & 'Paramètres - Admin'!$D$3 & " " & MINUTE(K22/24-INT(K22/24))&" " & 'Paramètres - Admin'!$D$2)))))) -> 20 jours 12 hrs 0 mins | M22: Valkyrie | N22: ='À Faire - Détails'!J287 -> 1 | O22: ='À Faire - Détails'!K287 -> 4 | P22: ='À Faire - Détails'!J293 -> 180000 | Q22: ='À Faire - Détails'!K293 -> 864 | R22: =IF($B$2='Paramètres - Admin'!$B$2,TEXT(Q22*60*60,"# 0")&" " & 'Paramètres - Admin'!$B$2,IF($B$2='Paramètres - Admin'!$B$3,TEXT(Q22*60,"# 0")&" " & 'Paramètres - Admin'!$B$3,IF($B$2='Paramètres - Admin'!$B$4,TEXT(Q22,"# 0,00")&" " & 'Paramètres - Admin'!$B$4,IF($B$2='Paramètres - Admin'!$B$5,TEXT(Q22/24,"# 0,00")&" " & 'Paramètres - Admin'!$B$5,IF($B$2='Paramètres - Admin'!$B$6,TEXT((Q22/24)/30,"# 0,00")&" " & 'Paramètres - Admin'!$B$6,IF(Q22/24>=1,INT(Q22/24)&" " & 'Paramètres - Admin'!$D$4 & " " & HOUR(Q22/24-INT(Q22/24))&" " & 'Paramètres - Admin'!$D$3 & " " & MINUTE(Q22/24-INT(Q22/24))&" " & 'Paramètres - Admin'!$D$2,HOUR(Q22/24-INT(Q22/24))&" " & 'Paramètres - Admin'!$D$3 & " " & MINUTE(Q22/24-INT(Q22/24))&" " & 'Paramètres - Admin'!$D$2)))))) -> 36 jours 0 hrs 0 mins | S22: Total | T22: =SUM(T20:T21) -> 2 | U22: =SUM(U20:U21) -> 80 | V22: =SUM(V20:V21) -> 7925000 | W22: =SUM(W20:W21) -> 14820 | X22: =IF($B$2='Paramètres - Admin'!$B$2,TEXT(W22*60*60,"# 0")&" " & 'Paramètres - Admin'!$B$2,IF($B$2='Paramètres - Admin'!$B$3,TEXT(W22*60,"# 0")&" " & 'Paramètres - Admin'!$B$3,IF($B$2='Paramètres - Admin'!$B$4,TEXT(W22,"# 0,00")&" " & 'Paramètres - Admin'!$B$4,IF($B$2='Paramètres - Admin'!$B$5,TEXT(W22/24,"# 0,00")&" " & 'Paramètres - Admin'!$B$5,IF($B$2='Paramètres - Admin'!$B$6,TEXT((W22/24)/30,"# 0,00")&" " & 'Paramètres - Admin'!$B$6,IF(W22/24>=1,INT(W22/24)&" " & 'Paramètres - Admin'!$D$4 & " " & HOUR(W22/24-INT(W22/24))&" " & 'Paramètres - Admin'!$D$3 & " " & MINUTE(W22/24-INT(W22/24))&" " & 'Paramètres - Admin'!$D$2,HOUR(W22/24-INT(W22/24))&" " & 'Paramètres - Admin'!$D$3 & " " & MINUTE(W22/24-INT(W22/24))&" " & 'Paramètres - Admin'!$D$2)))))) -> 617 jours 12 hrs 0 mins
A23: Sort de Saut | B23: ='À Faire - Détails'!U182 -> 1 | C23: ='À Faire - Détails'!V182 -> 2 | D23: ='À Faire - Détails'!U186 -> 4000000 | E23: ='À Faire - Détails'!V186 -> 120 | F23: =IF($B$2='Paramètres - Admin'!$B$2,TEXT(E23*60*60,"# 0")&" " & 'Paramètres - Admin'!$B$2,IF($B$2='Paramètres - Admin'!$B$3,TEXT(E23*60,"# 0")&" " & 'Paramètres - Admin'!$B$3,IF($B$2='Paramètres - Admin'!$B$4,TEXT(E23,"# 0,00")&" " & 'Paramètres - Admin'!$B$4,IF($B$2='Paramètres - Admin'!$B$5,TEXT(E23/24,"# 0,00")&" " & 'Paramètres - Admin'!$B$5,IF($B$2='Paramètres - Admin'!$B$6,TEXT((E23/24)/30,"# 0,00")&" " & 'Paramètres - Admin'!$B$6,IF(E23/24>=1,INT(E23/24)&" " & 'Paramètres - Admin'!$D$4 & " " & HOUR(E23/24-INT(E23/24))&" " & 'Paramètres - Admin'!$D$3 & " " & MINUTE(E23/24-INT(E23/24))&" " & 'Paramètres - Admin'!$D$2,HOUR(E23/24-INT(E23/24))&" " & 'Paramètres - Admin'!$D$3 & " " & MINUTE(E23/24-INT(E23/24))&" " & 'Paramètres - Admin'!$D$2)))))) -> 5 jours 0 hrs 0 mins | G23: Géant | H23: ='À Faire - Détails'!J245 -> 1 | I23: ='À Faire - Détails'!K245 -> 6 | J23: ='À Faire - Détails'!J253 -> 9350000 | K23: ='À Faire - Détails'!K253 -> 504 | L23: =IF($B$2='Paramètres - Admin'!$B$2,TEXT(K23*60*60,"# 0")&" " & 'Paramètres - Admin'!$B$2,IF($B$2='Paramètres - Admin'!$B$3,TEXT(K23*60,"# 0")&" " & 'Paramètres - Admin'!$B$3,IF($B$2='Paramètres - Admin'!$B$4,TEXT(K23,"# 0,00")&" " & 'Paramètres - Admin'!$B$4,IF($B$2='Paramètres - Admin'!$B$5,TEXT(K23/24,"# 0,00")&" " & 'Paramètres - Admin'!$B$5,IF($B$2='Paramètres - Admin'!$B$6,TEXT((K23/24)/30,"# 0,00")&" " & 'Paramètres - Admin'!$B$6,IF(K23/24>=1,INT(K23/24)&" " & 'Paramètres - Admin'!$D$4 & " " & HOUR(K23/24-INT(K23/24))&" " & 'Paramètres - Admin'!$D$3 & " " & MINUTE(K23/24-INT(K23/24))&" " & 'Paramètres - Admin'!$D$2,HOUR(K23/24-INT(K23/24))&" " & 'Paramètres - Admin'!$D$3 & " " & MINUTE(K23/24-INT(K23/24))&" " & 'Paramètres - Admin'!$D$2)))))) -> 21 jours 0 hrs 0 mins | M23: Golem | N23: ='À Faire - Détails'!U268 -> 1 | O23: ='À Faire - Détails'!V268 -> 5 | P23: ='À Faire - Détails'!U275 -> 300000 | Q23: ='À Faire - Détails'!V275 -> 1200 | R23: =IF($B$2='Paramètres - Admin'!$B$2,TEXT(Q23*60*60,"# 0")&" " & 'Paramètres - Admin'!$B$2,IF($B$2='Paramètres - Admin'!$B$3,TEXT(Q23*60,"# 0")&" " & 'Paramètres - Admin'!$B$3,IF($B$2='Paramètres - Admin'!$B$4,TEXT(Q23,"# 0,00")&" " & 'Paramètres - Admin'!$B$4,IF($B$2='Paramètres - Admin'!$B$5,TEXT(Q23/24,"# 0,00")&" " & 'Paramètres - Admin'!$B$5,IF($B$2='Paramètres - Admin'!$B$6,TEXT((Q23/24)/30,"# 0,00")&" " & 'Paramètres - Admin'!$B$6,IF(Q23/24>=1,INT(Q23/24)&" " & 'Paramètres - Admin'!$D$4 & " " & HOUR(Q23/24-INT(Q23/24))&" " & 'Paramètres - Admin'!$D$3 & " " & MINUTE(Q23/24-INT(Q23/24))&" " & 'Paramètres - Admin'!$D$2,HOUR(Q23/24-INT(Q23/24))&" " & 'Paramètres - Admin'!$D$3 & " " & MINUTE(Q23/24-INT(Q23/24))&" " & 'Paramètres - Admin'!$D$2)))))) -> 50 jours 0 hrs 0 mins
A24: Sort de Gel | B24: ='À Faire - Détails'!U188 -> 1 | C24: ='À Faire - Détails'!V188 -> 4 | D24: ='À Faire - Détails'!U195 -> 23500000 | E24: ='À Faire - Détails'!V195 -> 528 | F24: =IF($B$2='Paramètres - Admin'!$B$2,TEXT(E24*60*60,"# 0")&" " & 'Paramètres - Admin'!$B$2,IF($B$2='Paramètres - Admin'!$B$3,TEXT(E24*60,"# 0")&" " & 'Paramètres - Admin'!$B$3,IF($B$2='Paramètres - Admin'!$B$4,TEXT(E24,"# 0,00")&" " & 'Paramètres - Admin'!$B$4,IF($B$2='Paramètres - Admin'!$B$5,TEXT(E24/24,"# 0,00")&" " & 'Paramètres - Admin'!$B$5,IF($B$2='Paramètres - Admin'!$B$6,TEXT((E24/24)/30,"# 0,00")&" " & 'Paramètres - Admin'!$B$6,IF(E24/24>=1,INT(E24/24)&" " & 'Paramètres - Admin'!$D$4 & " " & HOUR(E24/24-INT(E24/24))&" " & 'Paramètres - Admin'!$D$3 & " " & MINUTE(E24/24-INT(E24/24))&" " & 'Paramètres - Admin'!$D$2,HOUR(E24/24-INT(E24/24))&" " & 'Paramètres - Admin'!$D$3 & " " & MINUTE(E24/24-INT(E24/24))&" " & 'Paramètres - Admin'!$D$2)))))) -> 22 jours 0 hrs 0 mins | G24: Sapeur | H24: ='À Faire - Détails'!J255 -> 1 | I24: ='À Faire - Détails'!K255 -> 6 | J24: ='À Faire - Détails'!J263 -> 10100000 | K24: ='À Faire - Détails'!K263 -> 504 | L24: =IF($B$2='Paramètres - Admin'!$B$2,TEXT(K24*60*60,"# 0")&" " & 'Paramètres - Admin'!$B$2,IF($B$2='Paramètres - Admin'!$B$3,TEXT(K24*60,"# 0")&" " & 'Paramètres - Admin'!$B$3,IF($B$2='Paramètres - Admin'!$B$4,TEXT(K24,"# 0,00")&" " & 'Paramètres - Admin'!$B$4,IF($B$2='Paramètres - Admin'!$B$5,TEXT(K24/24,"# 0,00")&" " & 'Paramètres - Admin'!$B$5,IF($B$2='Paramètres - Admin'!$B$6,TEXT((K24/24)/30,"# 0,00")&" " & 'Paramètres - Admin'!$B$6,IF(K24/24>=1,INT(K24/24)&" " & 'Paramètres - Admin'!$D$4 & " " & HOUR(K24/24-INT(K24/24))&" " & 'Paramètres - Admin'!$D$3 & " " & MINUTE(K24/24-INT(K24/24))&" " & 'Paramètres - Admin'!$D$2,HOUR(K24/24-INT(K24/24))&" " & 'Paramètres - Admin'!$D$3 & " " & MINUTE(K24/24-INT(K24/24))&" " & 'Paramètres - Admin'!$D$2)))))) -> 21 jours 0 hrs 0 mins | M24: Sorcière | N24: ='À Faire - Détails'!U277 -> 1 | O24: ='À Faire - Détails'!V277 -> 2 | P24: ='À Faire - Détails'!U281 -> 75000 | Q24: ='À Faire - Détails'!V281 -> 240 | R24: =IF($B$2='Paramètres - Admin'!$B$2,TEXT(Q24*60*60,"# 0")&" " & 'Paramètres - Admin'!$B$2,IF($B$2='Paramètres - Admin'!$B$3,TEXT(Q24*60,"# 0")&" " & 'Paramètres - Admin'!$B$3,IF($B$2='Paramètres - Admin'!$B$4,TEXT(Q24,"# 0,00")&" " & 'Paramètres - Admin'!$B$4,IF($B$2='Paramètres - Admin'!$B$5,TEXT(Q24/24,"# 0,00")&" " & 'Paramètres - Admin'!$B$5,IF($B$2='Paramètres - Admin'!$B$6,TEXT((Q24/24)/30,"# 0,00")&" " & 'Paramètres - Admin'!$B$6,IF(Q24/24>=1,INT(Q24/24)&" " & 'Paramètres - Admin'!$D$4 & " " & HOUR(Q24/24-INT(Q24/24))&" " & 'Paramètres - Admin'!$D$3 & " " & MINUTE(Q24/24-INT(Q24/24))&" " & 'Paramètres - Admin'!$D$2,HOUR(Q24/24-INT(Q24/24))&" " & 'Paramètres - Admin'!$D$3 & " " & MINUTE(Q24/24-INT(Q24/24))&" " & 'Paramètres - Admin'!$D$2)))))) -> 10 jours 0 hrs 0 mins
A25: Total | B25: =SUM(B20:B24) -> 5 | C25: =SUM(C20:C24) -> 23 | D25: =SUM(D20:D24) -> 54650000 | E25: =SUM(E20:E24) -> 2064 | F25: =IF($B$2='Paramètres - Admin'!$B$2,TEXT(E25*60*60,"# 0")&" " & 'Paramètres - Admin'!$B$2,IF($B$2='Paramètres - Admin'!$B$3,TEXT(E25*60,"# 0")&" " & 'Paramètres - Admin'!$B$3,IF($B$2='Paramètres - Admin'!$B$4,TEXT(E25,"# 0,00")&" " & 'Paramètres - Admin'!$B$4,IF($B$2='Paramètres - Admin'!$B$5,TEXT(E25/24,"# 0,00")&" " & 'Paramètres - Admin'!$B$5,IF($B$2='Paramètres - Admin'!$B$6,TEXT((E25/24)/30,"# 0,00")&" " & 'Paramètres - Admin'!$B$6,IF(E25/24>=1,INT(E25/24)&" " & 'Paramètres - Admin'!$D$4 & " " & HOUR(E25/24-INT(E25/24))&" " & 'Paramètres - Admin'!$D$3 & " " & MINUTE(E25/24-INT(E25/24))&" " & 'Paramètres - Admin'!$D$2,HOUR(E25/24-INT(E25/24))&" " & 'Paramètres - Admin'!$D$3 & " " & MINUTE(E25/24-INT(E25/24))&" " & 'Paramètres - Admin'!$D$2)))))) -> 86 jours 0 hrs 0 mins | G25: Ballon | H25: ='À Faire - Détails'!U215 -> 1 | I25: ='À Faire - Détails'!V215 -> 6 | J25: ='À Faire - Détails'!U223 -> 10450000 | K25: ='À Faire - Détails'!V223 -> 504 | L25: =IF($B$2='Paramètres - Admin'!$B$2,TEXT(K25*60*60,"# 0")&" " & 'Paramètres - Admin'!$B$2,IF($B$2='Paramètres - Admin'!$B$3,TEXT(K25*60,"# 0")&" " & 'Paramètres - Admin'!$B$3,IF($B$2='Paramètres - Admin'!$B$4,TEXT(K25,"# 0,00")&" " & 'Paramètres - Admin'!$B$4,IF($B$2='Paramètres - Admin'!$B$5,TEXT(K25/24,"# 0,00")&" " & 'Paramètres - Admin'!$B$5,IF($B$2='Paramètres - Admin'!$B$6,TEXT((K25/24)/30,"# 0,00")&" " & 'Paramètres - Admin'!$B$6,IF(K25/24>=1,INT(K25/24)&" " & 'Paramètres - Admin'!$D$4 & " " & HOUR(K25/24-INT(K25/24))&" " & 'Paramètres - Admin'!$D$3 & " " & MINUTE(K25/24-INT(K25/24))&" " & 'Paramètres - Admin'!$D$2,HOUR(K25/24-INT(K25/24))&" " & 'Paramètres - Admin'!$D$3 & " " & MINUTE(K25/24-INT(K25/24))&" " & 'Paramètres - Admin'!$D$2)))))) -> 21 jours 0 hrs 0 mins | M25: Molosse de lave | N25: ='À Faire - Détails'!U283 -> 1 | O25: ='À Faire - Détails'!V283 -> 3 | P25: ='À Faire - Détails'!U288 -> 130000 | Q25: ='À Faire - Détails'!V288 -> 528 | R25: =IF($B$2='Paramètres - Admin'!$B$2,TEXT(Q25*60*60,"# 0")&" " & 'Paramètres - Admin'!$B$2,IF($B$2='Paramètres - Admin'!$B$3,TEXT(Q25*60,"# 0")&" " & 'Paramètres - Admin'!$B$3,IF($B$2='Paramètres - Admin'!$B$4,TEXT(Q25,"# 0,00")&" " & 'Paramètres - Admin'!$B$4,IF($B$2='Paramètres - Admin'!$B$5,TEXT(Q25/24,"# 0,00")&" " & 'Paramètres - Admin'!$B$5,IF($B$2='Paramètres - Admin'!$B$6,TEXT((Q25/24)/30,"# 0,00")&" " & 'Paramètres - Admin'!$B$6,IF(Q25/24>=1,INT(Q25/24)&" " & 'Paramètres - Admin'!$D$4 & " " & HOUR(Q25/24-INT(Q25/24))&" " & 'Paramètres - Admin'!$D$3 & " " & MINUTE(Q25/24-INT(Q25/24))&" " & 'Paramètres - Admin'!$D$2,HOUR(Q25/24-INT(Q25/24))&" " & 'Paramètres - Admin'!$D$3 & " " & MINUTE(Q25/24-INT(Q25/24))&" " & 'Paramètres - Admin'!$D$2)))))) -> 22 jours 0 hrs 0 mins
G26: Sorcier | H26: ='À Faire - Détails'!U225 -> 1 | I26: ='À Faire - Détails'!V225 -> 6 | J26: ='À Faire - Détails'!U233 -> 11950000 | K26: ='À Faire - Détails'!V233 -> 600 | L26: =IF($B$2='Paramètres - Admin'!$B$2,TEXT(K26*60*60,"# 0")&" " & 'Paramètres - Admin'!$B$2,IF($B$2='Paramètres - Admin'!$B$3,TEXT(K26*60,"# 0")&" " & 'Paramètres - Admin'!$B$3,IF($B$2='Paramètres - Admin'!$B$4,TEXT(K26,"# 0,00")&" " & 'Paramètres - Admin'!$B$4,IF($B$2='Paramètres - Admin'!$B$5,TEXT(K26/24,"# 0,00")&" " & 'Paramètres - Admin'!$B$5,IF($B$2='Paramètres - Admin'!$B$6,TEXT((K26/24)/30,"# 0,00")&" " & 'Paramètres - Admin'!$B$6,IF(K26/24>=1,INT(K26/24)&" " & 'Paramètres - Admin'!$D$4 & " " & HOUR(K26/24-INT(K26/24))&" " & 'Paramètres - Admin'!$D$3 & " " & MINUTE(K26/24-INT(K26/24))&" " & 'Paramètres - Admin'!$D$2,HOUR(K26/24-INT(K26/24))&" " & 'Paramètres - Admin'!$D$3 & " " & MINUTE(K26/24-INT(K26/24))&" " & 'Paramètres - Admin'!$D$2)))))) -> 25 jours 0 hrs 0 mins | M26: Total | N26: =SUM(N21:N25) -> 5 | O26: =SUM(O20:O25) -> 24 | P26: =SUM(P20:P25) -> 1025000 | Q26: =SUM(Q20:Q25) -> 4560 | R26: =IF($B$2='Paramètres - Admin'!$B$2,TEXT(Q26*60*60,"# 0")&" " & 'Paramètres - Admin'!$B$2,IF($B$2='Paramètres - Admin'!$B$3,TEXT(Q26*60,"# 0")&" " & 'Paramètres - Admin'!$B$3,IF($B$2='Paramètres - Admin'!$B$4,TEXT(Q26,"# 0,00")&" " & 'Paramètres - Admin'!$B$4,IF($B$2='Paramètres - Admin'!$B$5,TEXT(Q26/24,"# 0,00")&" " & 'Paramètres - Admin'!$B$5,IF($B$2='Paramètres - Admin'!$B$6,TEXT((Q26/24)/30,"# 0,00")&" " & 'Paramètres - Admin'!$B$6,IF(Q26/24>=1,INT(Q26/24)&" " & 'Paramètres - Admin'!$D$4 & " " & HOUR(Q26/24-INT(Q26/24))&" " & 'Paramètres - Admin'!$D$3 & " " & MINUTE(Q26/24-INT(Q26/24))&" " & 'Paramètres - Admin'!$D$2,HOUR(Q26/24-INT(Q26/24))&" " & 'Paramètres - Admin'!$D$3 & " " & MINUTE(Q26/24-INT(Q26/24))&" " & 'Paramètres - Admin'!$D$2)))))) -> 190 jours 0 hrs 0 mins
G27: Guérisseuse | H27: ='À Faire - Détails'!U235 -> 1 | I27: ='À Faire - Détails'!V235 -> 4 | J27: ='À Faire - Détails'!U241 -> 5250000 | K27: ='À Faire - Détails'!V241 -> 360 | L27: =IF($B$2='Paramètres - Admin'!$B$2,TEXT(K27*60*60,"# 0")&" " & 'Paramètres - Admin'!$B$2,IF($B$2='Paramètres - Admin'!$B$3,TEXT(K27*60,"# 0")&" " & 'Paramètres - Admin'!$B$3,IF($B$2='Paramètres - Admin'!$B$4,TEXT(K27,"# 0,00")&" " & 'Paramètres - Admin'!$B$4,IF($B$2='Paramètres - Admin'!$B$5,TEXT(K27/24,"# 0,00")&" " & 'Paramètres - Admin'!$B$5,IF($B$2='Paramètres - Admin'!$B$6,TEXT((K27/24)/30,"# 0,00")&" " & 'Paramètres - Admin'!$B$6,IF(K27/24>=1,INT(K27/24)&" " & 'Paramètres - Admin'!$D$4 & " " & HOUR(K27/24-INT(K27/24))&" " & 'Paramètres - Admin'!$D$3 & " " & MINUTE(K27/24-INT(K27/24))&" " & 'Paramètres - Admin'!$D$2,HOUR(K27/24-INT(K27/24))&" " & 'Paramètres - Admin'!$D$3 & " " & MINUTE(K27/24-INT(K27/24))&" " & 'Paramètres - Admin'!$D$2)))))) -> 15 jours 0 hrs 0 mins
G28: Dragon | H28: ='À Faire - Détails'!U243 -> 1 | I28: ='À Faire - Détails'!V243 -> 4 | J28: ='À Faire - Détails'!U249 -> 13000000 | K28: ='À Faire - Détails'!V249 -> 696 | L28: =IF($B$2='Paramètres - Admin'!$B$2,TEXT(K28*60*60,"# 0")&" " & 'Paramètres - Admin'!$B$2,IF($B$2='Paramètres - Admin'!$B$3,TEXT(K28*60,"# 0")&" " & 'Paramètres - Admin'!$B$3,IF($B$2='Paramètres - Admin'!$B$4,TEXT(K28,"# 0,00")&" " & 'Paramètres - Admin'!$B$4,IF($B$2='Paramètres - Admin'!$B$5,TEXT(K28/24,"# 0,00")&" " & 'Paramètres - Admin'!$B$5,IF($B$2='Paramètres - Admin'!$B$6,TEXT((K28/24)/30,"# 0,00")&" " & 'Paramètres - Admin'!$B$6,IF(K28/24>=1,INT(K28/24)&" " & 'Paramètres - Admin'!$D$4 & " " & HOUR(K28/24-INT(K28/24))&" " & 'Paramètres - Admin'!$D$3 & " " & MINUTE(K28/24-INT(K28/24))&" " & 'Paramètres - Admin'!$D$2,HOUR(K28/24-INT(K28/24))&" " & 'Paramètres - Admin'!$D$3 & " " & MINUTE(K28/24-INT(K28/24))&" " & 'Paramètres - Admin'!$D$2)))))) -> 29 jours 0 hrs 0 mins
G29: P.E.K.K.A | H29: ='À Faire - Détails'!U251 -> 1 | I29: ='À Faire - Détails'!V251 -> 4 | J29: ='À Faire - Détails'!U257 -> 17000000 | K29: ='À Faire - Détails'!V257 -> 864 | L29: =IF($B$2='Paramètres - Admin'!$B$2,TEXT(K29*60*60,"# 0")&" " & 'Paramètres - Admin'!$B$2,IF($B$2='Paramètres - Admin'!$B$3,TEXT(K29*60,"# 0")&" " & 'Paramètres - Admin'!$B$3,IF($B$2='Paramètres - Admin'!$B$4,TEXT(K29,"# 0,00")&" " & 'Paramètres - Admin'!$B$4,IF($B$2='Paramètres - Admin'!$B$5,TEXT(K29/24,"# 0,00")&" " & 'Paramètres - Admin'!$B$5,IF($B$2='Paramètres - Admin'!$B$6,TEXT((K29/24)/30,"# 0,00")&" " & 'Paramètres - Admin'!$B$6,IF(K29/24>=1,INT(K29/24)&" " & 'Paramètres - Admin'!$D$4 & " " & HOUR(K29/24-INT(K29/24))&" " & 'Paramètres - Admin'!$D$3 & " " & MINUTE(K29/24-INT(K29/24))&" " & 'Paramètres - Admin'!$D$2,HOUR(K29/24-INT(K29/24))&" " & 'Paramètres - Admin'!$D$3 & " " & MINUTE(K29/24-INT(K29/24))&" " & 'Paramètres - Admin'!$D$2)))))) -> 36 jours 0 hrs 0 mins
G30: Total | H30: =SUM(H20:H29) -> 10 | I30: =SUM(I20:I29) -> 54 | J30: =SUM(J20:J29) -> 100900000 | K30: =SUM(K20:K29) -> 5588 | L30: =IF($B$2='Paramètres - Admin'!$B$2,TEXT(K30*60*60,"# 0")&" " & 'Paramètres - Admin'!$B$2,IF($B$2='Paramètres - Admin'!$B$3,TEXT(K30*60,"# 0")&" " & 'Paramètres - Admin'!$B$3,IF($B$2='Paramètres - Admin'!$B$4,TEXT(K30,"# 0,00")&" " & 'Paramètres - Admin'!$B$4,IF($B$2='Paramètres - Admin'!$B$5,TEXT(K30/24,"# 0,00")&" " & 'Paramètres - Admin'!$B$5,IF($B$2='Paramètres - Admin'!$B$6,TEXT((K30/24)/30,"# 0,00")&" " & 'Paramètres - Admin'!$B$6,IF(K30/24>=1,INT(K30/24)&" " & 'Paramètres - Admin'!$D$4 & " " & HOUR(K30/24-INT(K30/24))&" " & 'Paramètres - Admin'!$D$3 & " " & MINUTE(K30/24-INT(K30/24))&" " & 'Paramètres - Admin'!$D$2,HOUR(K30/24-INT(K30/24))&" " & 'Paramètres - Admin'!$D$3 & " " & MINUTE(K30/24-INT(K30/24))&" " & 'Paramètres - Admin'!$D$2)))))) -> 232 jours 20 hrs 0 mins

Sheet À Faire - Détails
A1: LVL HdV | C1: Or Total : | F1: Élixir Total : | I1: Élixir Noir Total : | K1: Temps Total : | N1: ='À Faire - Récapitulatif'!N1 -> Bâtiments : 684 jours 4 hrs 53 mins | R1: => Temps par Ouvrier : | U1: Améliorations de Troupes/Sorts :
A2: =Paramètres!$BE$2 -> 10 | C2: ='À Faire - Récapitulatif'!D2 -> 2 979 352 457 | F2: ='À Faire - Récapitulatif'!G2 -> 317 074 850 | I2: ='À Faire - Récapitulatif'!I2 -> 8 950 000 | K2: ='À Faire - Récapitulatif'!L2 -> 3174 jours 4 hrs 59 mins | N2: ='À Faire - Récapitulatif'!N2 -> Héros : 617 jours 12 hrs 0 mins | R2: ='À Faire - Récapitulatif'!S2 -> 325 jours 10 hrs 13 mins | U2: ='À Faire - Récapitulatif'!V2 -> 508 jours 20 hrs 0 mins
A3: Bâtiments de Ressources
A4: Élixir | L4: Or
A5: Mine d'Or | D5: Max | E5: Max + | I5: Actuel | J5: À Faire | K5: Améliorations | L5: Extracteur d'Élixir | O5: Max | P5: Max + | T5: Actuel | U5: À Faire | V5: Améliorations
D6: =VLOOKUP($A$2,AVAILABLE_Buildings_Resource[#All],MATCH(A5,AVAILABLE_Buildings_Resource[#Headers],0)) -> 7 | E6: =VLOOKUP($A$2,AVAILABLE_Buildings_Resource[#All],MATCH(A5,AVAILABLE_Buildings_Resource[#Headers],0)+1) -> 12 | I6: =IF(SUM(B8:B19)>D6,"Error",SUM(B8:B19)) -> 0 | J6: =IF(I$6="Error","Error",D6-I6) -> 7 | K6: =IF(I$6="Error","Error",SUM(F8:F19)) -> 84 | O6: =VLOOKUP($A$2,AVAILABLE_Buildings_Resource[#All],MATCH(L5,AVAILABLE_Buildings_Resource[#Headers],0)) -> 7 | P6: =VLOOKUP($A$2,AVAILABLE_Buildings_Resource[#All],MATCH(L5,AVAILABLE_Buildings_Resource[#Headers],0)+1) -> 12 | T6: =IF(SUM(M8:M19)>O6,"Error",SUM(M8:M19)) -> 0 | U6: =IF(T$6="Error","Error",O6-T6) -> 7 | V6: =IF(T$6="Error","Error",SUM(Q8:Q19)) -> 84
A7: + | B7: NB | F7: NB | G7: + | H7: Coût | I7: Temps | J7: Coût Total | K7: Temps Total | L7: + | M7: NB | Q7: NB | R7: + | S7: Coût | T7: Temps | U7: Coût Total | V7: Temps Total
A8: 1 | B8: =IF(Paramètres!B6=0,"",Paramètres!B6) ->  | C8: =IF(C7<>0,C7+IF(AND(B7<>"",A7<E$6),B7,0),IF(AND(B7<>"",A7<E$6),B7,0)) -> 0 | F8: =IF(G8<>"/",IF(I$6="Error","Error",$J$6+C8),"/") -> 7 | G8: =IF(I$6="Error","Error",IF(AND($E$6<>"/",$E$6>'Paramètres - Admin'!$A2),'Paramètres - Admin'!$A3,"/")) -> 1 | H8: =IF(G8<>"/",VLOOKUP(G8,COSTS_Gold_Mine[#All],2),"/") -> 150 | I8: =IF(G8<>"/",VLOOKUP(G8,COSTS_Gold_Mine[#All],3),"/") -> 0.01666666667 | J8: =IF(I$6="Error","Error",IF(H8<>"/",F8*H8,0)) -> 1050 | K8: =IF(I$6="Error","Error",IF(I8<>"/",F8*I8,0)) -> 0.1166666667 | L8: 1 | M8: =IF(Paramètres!C6=0,"",Paramètres!C6) ->  | N8: =IF(N7<>0,N7+IF(AND(M7<>"",L7<P$6),M7,0),IF(AND(M7<>"",L7<P$6),M7,0)) -> 0 | Q8: =IF(R8<>"/",IF(T$6="Error","Error",$U$6+N8),"/") -> 7 | R8: =IF(T$6="Error","Error",IF(AND($P$6<>"/",$P$6>'Paramètres - Admin'!$A2),'Paramètres - Admin'!$A3,"/")) -> 1 | S8: =IF(R8<>"/",VLOOKUP(R8,COSTS_Elixir_Collector[#All],2),"/") -> 150 | T8: =IF(R8<>"/",VLOOKUP(R8,COSTS_Elixir_Collector[#All],3),"/") -> 0.01666666667 | U8: =IF(T$6="Error","Error",IF(S8<>"/",Q8*S8,0)) -> 1050 | V8: =IF(T$6="Error","Error",IF(T8<>"/",Q8*T8,0)) -> 0.1166666667
A9: 2 | B9: =IF(Paramètres!B7=0,"",Paramètres!B7) ->  | C9: =IF(C8<>0,C8+IF(AND(B8<>"",A8<E$6),B8,0),IF(AND(B8<>"",A8<E$6),B8,0)) -> 0 | F9: 7 | G9: =IF(I$6="Error","Error",IF(AND($E$6<>"/",$E$6>'Paramètres - Admin'!$A3),'Paramètres - Admin'!$A4,"/")) -> 2 | H9: =IF(G9<>"/",VLOOKUP(G9,COSTS_Gold_Mine[#All],2),"/") -> 300 | I9: =IF(G9<>"/",VLOOKUP(G9,COSTS_Gold_Mine[#All],3),"/") -> 0.08333333333 | J9: 2100 | K9: 0.5833333333 | L9: 2 | M9: =IF(Paramètres!C7=0,"",Paramètres!C7) ->  | N9: 0 | Q9: 7 | R9: =IF(T$6="Error","Error",IF(AND($P$6<>"/",$P$6>'Paramètres - Admin'!$A3),'Paramètres - Admin'!$A4,"/")) -> 2 | S9: =IF(R9<>"/",VLOOKUP(R9,COSTS_Elixir_Collector[#All],2),"/") -> 300 | T9: =IF(R9<>"/",VLOOKUP(R9,COSTS_Elixir_Collector[#All],3),"/") -> 0.08333333333 | U9: 2100 | V9: 0.5833333333
A10: 3 | B10: =IF(Paramètres!B8=0,"",Paramètres!B8) ->  | C10: 0 | F10: 7 | G10: =IF(I$6="Error","Error",IF(AND($E$6<>"/",$E$6>'Paramètres - Admin'!$A4),'Paramètres - Admin'!$A5,"/")) -> 3 | H10: =IF(G10<>"/",VLOOKUP(G10,COSTS_Gold_Mine[#All],2),"/") -> 700 | I10: =IF(G10<>"/",VLOOKUP(G10,COSTS_Gold_Mine[#All],3),"/") -> 0.25 | J10: 4900 | K10: 1.75 | L10: 3 | M10: =IF(Paramètres!C8=0,"",Paramètres!C8) ->  | N10: 0 | Q10: 7 | R10: =IF(T$6="Error","Error",IF(AND($P$6<>"/",$P$6>'Paramètres - Admin'!$A4),'Paramètres - Admin'!$A5,"/")) -> 3 | S10: =IF(R10<>"/",VLOOKUP(R10,COSTS_Elixir_Collector[#All],2),"/") -> 700 | T10: =IF(R10<>"/",VLOOKUP(R10,COSTS_Elixir_Collector[#All],3),"/") -> 0.25 | U10: 4900 | V10: 1.75
A11: 4 | B11: =IF(Paramètres!B9=0,"",Paramètres!B9) ->  | C11: 0 | F11: 7 | G11: =IF(I$6="Error","Error",IF(AND($E$6<>"/",$E$6>'Paramètres - Admin'!$A5),'Paramètres - Admin'!$A6,"/")) -> 4 | H11: =IF(G11<>"/",VLOOKUP(G11,COSTS_Gold_Mine[#All],2),"/") -> 1400 | I11: =IF(G11<>"/",VLOOKUP(G11,COSTS_Gold_Mine[#All],3),"/") -> 1 | J11: 9800 | K11: 7 | L11: 4 | M11: =IF(Paramètres!C9=0,"",Paramètres!C9) ->  | N11: =IF(N10<>0,N10+IF(AND(M10<>"",L10<P$6),M10,0),IF(AND(M10<>"",L10<P$6),M10,0)) -> 0 | Q11: 7 | R11: =IF(T$6="Error","Error",IF(AND($P$6<>"/",$P$6>'Paramètres - Admin'!$A5),'Paramètres - Admin'!$A6,"/")) -> 4 | S11: =IF(R11<>"/",VLOOKUP(R11,COSTS_Elixir_Collector[#All],2),"/") -> 1400 | T11: =IF(R11<>"/",VLOOKUP(R11,COSTS_Elixir_Collector[#All],3),"/") -> 1 | U11: 9800 | V11: 7
A12: 5 | B12: =IF(Paramètres!B10=0,"",Paramètres!B10) ->  | C12: 0 | F12: 7 | G12: =IF(I$6="Error","Error",IF(AND($E$6<>"/",$E$6>'Paramètres - Admin'!$A6),'Paramètres - Admin'!$A7,"/")) -> 5 | H12: =IF(G12<>"/",VLOOKUP(G12,COSTS_Gold_Mine[#All],2),"/") -> 3000 | I12: =IF(G12<>"/",VLOOKUP(G12,COSTS_Gold_Mine[#All],3),"/") -> 2 | J12: 21000 | K12: 14 | L12: 5 | M12: =IF(Paramètres!C10=0,"",Paramètres!C10) ->  | N12: 0 | Q12: 7 | R12: =IF(T$6="Error","Error",IF(AND($P$6<>"/",$P$6>'Paramètres - Admin'!$A6),'Paramètres - Admin'!$A7,"/")) -> 5 | S12: =IF(R12<>"/",VLOOKUP(R12,COSTS_Elixir_Collector[#All],2),"/") -> 3000 | T12: =IF(R12<>"/",VLOOKUP(R12,COSTS_Elixir_Collector[#All],3),"/") -> 2 | U12: 21000 | V12: 14
A13: 6 | B13: =IF(Paramètres!B11=0,"",Paramètres!B11) ->  | C13: 0 | F13: 7 | G13: =IF(I$6="Error","Error",IF(AND($E$6<>"/",$E$6>'Paramètres - Admin'!$A7),'Paramètres - Admin'!$A8,"/")) -> 6 | H13: =IF(G13<>"/",VLOOKUP(G13,COSTS_Gold_Mine[#All],2),"/") -> 7000 | I13: =IF(G13<>"/",VLOOKUP(G13,COSTS_Gold_Mine[#All],3),"/") -> 6 | J13: 49000 | K13: 42 | L13: 6 | M13: =IF(Paramètres!C11=0,"",Paramètres!C11) ->  | N13: 0 | Q13: 7 | R13: =IF(T$6="Error","Error",IF(AND($P$6<>"/",$P$6>'Paramètres - Admin'!$A7),'Paramètres - Admin'!$A8,"/")) -> 6 | S13: =IF(R13<>"/",VLOOKUP(R13,COSTS_Elixir_Collector[#All],2),"/") -> 7000 | T13: =IF(R13<>"/",VLOOKUP(R13,COSTS_Elixir_Collector[#All],3),"/") -> 6 | U13: 49000 | V13: 42
A14: 7 | B14: =IF(Paramètres!B12=0,"",Paramètres!B12) ->  | C14: 0 | F14: 7 | G14: =IF(I$6="Error","Error",IF(AND($E$6<>"/",$E$6>'Paramètres - Admin'!$A8),'Paramètres - Admin'!$A9,"/")) -> 7 | H14: =IF(G14<>"/",VLOOKUP(G14,COSTS_Gold_Mine[#All],2),"/") -> 14000 | I14: =IF(G14<>"/",VLOOKUP(G14,COSTS_Gold_Mine[#All],3),"/") -> 12 | J14: 98000 | K14: 84 | L14: 7 | M14: =IF(Paramètres!C12=0,"",Paramètres!C12) ->  | N14: 0 | Q14: 7 | R14: =IF(T$6="Error","Error",IF(AND($P$6<>"/",$P$6>'Paramètres - Admin'!$A8),'Paramètres - Admin'!$A9,"/")) -> 7 | S14: =IF(R14<>"/",VLOOKUP(R14,COSTS_Elixir_Collector[#All],2),"/") -> 14000 | T14: =IF(R14<>"/",VLOOKUP(R14,COSTS_Elixir_Collector[#All],3),"/") -> 12 | U14: 98000 | V14: 84
A15: 8 | B15: =IF(Paramètres!B13=0,"",Paramètres!B13) ->  | C15: 0 | F15: 7 | G15: =IF(I$6="Error","Error",IF(AND($E$6<>"/",$E$6>'Paramètres - Admin'!$A9),'Paramètres - Admin'!$A10,"/")) -> 8 | H15: =IF(G15<>"/",VLOOKUP(G15,COSTS_Gold_Mine[#All],2),"/") -> 28000 | I15: =IF(G15<>"/",VLOOKUP(G15,COSTS_Gold_Mine[#All],3),"/") -> 24 | J15: 196000 | K15: 168 | L15: 8 | M15: =IF(Paramètres!C13=0,"",Paramètres!C13) ->  | N15: =IF(N14<>0,N14+IF(AND(M14<>"",L14<P$6),M14,0),IF(AND(M14<>"",L14<P$6),M14,0)) -> 0 | Q15: 7 | R15: =IF(T$6="Error","Error",IF(AND($P$6<>"/",$P$6>'Paramètres - Admin'!$A9),'Paramètres - Admin'!$A10,"/")) -> 8 | S15: =IF(R15<>"/",VLOOKUP(R15,COSTS_Elixir_Collector[#All],2),"/") -> 28000 | T15: =IF(R15<>"/",VLOOKUP(R15,COSTS_Elixir_Collector[#All],3),"/") -> 24 | U15: 196000 | V15: 168
A16: 9 | B16: =IF(Paramètres!B14=0,"",Paramètres!B14) ->  | C16: 0 | F16: 7 | G16: =IF(I$6="Error","Error",IF(AND($E$6<>"/",$E$6>'Paramètres - Admin'!$A10),'Paramètres - Admin'!$A11,"/")) -> 9 | H16: =IF(G16<>"/",VLOOKUP(G16,COSTS_Gold_Mine[#All],2),"/") -> 56000 | I16: =IF(G16<>"/",VLOOKUP(G16,COSTS_Gold_Mine[#All],3),"/") -> 48 | J16: 392000 | K16: 336 | L16: 9 | M16: =IF(Paramètres!C14=0,"",Paramètres!C14) ->  | N16: 0 | Q16: 7 | R16: =IF(T$6="Error","Error",IF(AND($P$6<>"/",$P$6>'Paramètres - Admin'!$A10),'Paramètres - Admin'!$A11,"/")) -> 9 | S16: =IF(R16<>"/",VLOOKUP(R16,COSTS_Elixir_Collector[#All],2),"/") -> 56000 | T16: =IF(R16<>"/",VLOOKUP(R16,COSTS_Elixir_Collector[#All],3),"/") -> 48 | U16: 392000 | V16: 336
A17: 10 | B17: =IF(Paramètres!B15=0,"",Paramètres!B15) ->  | C17: =IF(C16<>0,C16+IF(AND(B16<>"",A16<E$6),B16,0),IF(AND(B16<>"",A16<E$6),B16,0)) -> 0 | F17: 7 | G17: =IF(I$6="Error","Error",IF(AND($E$6<>"/",$E$6>'Paramètres - Admin'!$A11),'Paramètres - Admin'!$A12,"/")) -> 10 | H17: =IF(G17<>"/",VLOOKUP(G17,COSTS_Gold_Mine[#All],2),"/") -> 84000 | I17: =IF(G17<>"/",VLOOKUP(G17,COSTS_Gold_Mine[#All],3),"/") -> 72 | J17: 588000 | K17: 504 | L17: 10 | M17: =IF(Paramètres!C15=0,"",Paramètres!C15) ->  | N17: 0 | Q17: 7 | R17: =IF(T$6="Error","Error",IF(AND($P$6<>"/",$P$6>'Paramètres - Admin'!$A11),'Paramètres - Admin'!$A12,"/")) -> 10 | S17: =IF(R17<>"/",VLOOKUP(R17,COSTS_Elixir_Collector[#All],2),"/") -> 84000 | T17: =IF(R17<>"/",VLOOKUP(R17,COSTS_Elixir_Collector[#All],3),"/") -> 72 | U17: 588000 | V17: 504
A18: 11 | B18: =IF(Paramètres!B16=0,"",Paramètres!B16) ->  | C18: 0 | F18: 7 | G18: =IF(I$6="Error","Error",IF(AND($E$6<>"/",$E$6>'Paramètres - Admin'!$A12),'Paramètres - Admin'!$A13,"/")) -> 11 | H18: =IF(G18<>"/",VLOOKUP(G18,COSTS_Gold_Mine[#All],2),"/") -> 168000 | I18: =IF(G18<>"/",VLOOKUP(G18,COSTS_Gold_Mine[#All],3),"/") -> 96 | J18: 1176000 | K18: 672 | L18: 11 | M18: =IF(Paramètres!C16=0,"",Paramètres!C16) ->  | N18: 0 | Q18: 7 | R18: =IF(T$6="Error","Error",IF(AND($P$6<>"/",$P$6>'Paramètres - Admin'!$A12),'Paramètres - Admin'!$A13,"/")) -> 11 | S18: =IF(R18<>"/",VLOOKUP(R18,COSTS_Elixir_Collector[#All],2),"/") -> 168000 | T18: =IF(R18<>"/",VLOOKUP(R18,COSTS_Elixir_Collector[#All],3),"/") -> 96 | U18: 1176000 | V18: 672
A19: 12 | B19: =IF(Paramètres!B17=0,"",Paramètres!B17) ->  | C19: 0 | F19: 7 | G19: =IF(I$6="Error","Error",IF(AND($E$6<>"/",$E$6>'Paramètres - Admin'!$A13),'Paramètres - Admin'!$A14,"/")) -> 12 | H19: =IF(G19<>"/",VLOOKUP(G19,COSTS_Gold_Mine[#All],2),"/") -> 336000 | I19: =IF(G19<>"/",VLOOKUP(G19,COSTS_Gold_Mine[#All],3),"/") -> 120 | J19: 2352000 | K19: 840 | L19: 12 | M19: =IF(Paramètres!C17=0,"",Paramètres!C17) ->  | N19: 0 | Q19: 7 | R19: =IF(T$6="Error","Error",IF(AND($P$6<>"/",$P$6>'Paramètres - Admin'!$A13),'Paramètres - Admin'!$A14,"/")) -> 12 | S19: =IF(R19<>"/",VLOOKUP(R19,COSTS_Elixir_Collector[#All],2),"/") -> 336000 | T19: =IF(R19<>"/",VLOOKUP(R19,COSTS_Elixir_Collector[#All],3),"/") -> 120 | U19: 2352000 | V19: 840
I20: Total | J20: =IF(I$6="Error","Error",SUM(J8:J19)) -> 4889850 | K20: =IF(I$6="Error","Error",SUM(K8:K19)) -> 2669.45 | T20: Total | U20: =IF(T$6="Error","Error",SUM(U8:U19)) -> 4889850 | V20: =IF(T$6="Error","Error",SUM(V8:V19)) -> 2669.45
A21: Foreuse d'Élixir Noir | D21: Max | E21: Max + | I21: Actuel | J21: À Faire | K21: Améliorations | L21: Réservoir d'Élixir | O21: Max | P21: Max + | T21: Actuel | V21: Améliorations
D22: =VLOOKUP($A$2,AVAILABLE_Buildings_Resource[#All],MATCH(A21,AVAILABLE_Buildings_Resource[#Headers],0)) -> 3 | E22: =VLOOKUP($A$2,AVAILABLE_Buildings_Resource[#All],MATCH(A21,AVAILABLE_Buildings_Resource[#Headers],0)+1) -> 6 | I22: =IF(SUM(B24:B29)>D22,"Error",SUM(B24:B29)) -> 0 | J22: =IF(I$22="Error","Error",D22-I22) -> 3 | K22: =IF(I$22="Error","Error",SUM(F24:F29)) -> 18 | O22: =VLOOKUP($A$2,AVAILABLE_Buildings_Resource[#All],MATCH(L21,AVAILABLE_Buildings_Resource[#Headers],0)) -> 4 | P22: =VLOOKUP($A$2,AVAILABLE_Buildings_Resource[#All],MATCH(L21,AVAILABLE_Buildings_Resource[#Headers],0)+1) -> 11 | T22: =IF(SUM(M24:M34)>O22,"Error",SUM(M24:M34)) -> 0 | U22: =IF(T$22="Error","Error",O22-T22) -> 4 | V22: =IF(T$22="Error","Error",SUM(Q24:Q34)) -> 44
A23: + | B23: NB | F23: NB | G23: + | H23: Coût | I23: Temps | J23: Coût Total | K23: Temps Total | L23: + | M23: NB | Q23: NB | R23: + | S23: Coût | T23: Temps | U23: Coût Total | V23: Temps Total
A24: 1 | B24: =IF(Paramètres!D6=0,"",Paramètres!D6) ->  | C24: =IF(C23<>0,C23+IF(AND(B23<>"",A23<E$6),B23,0),IF(AND(B23<>"",A23<E$6),B23,0)) -> 0 | F24: =IF(G24<>"/",IF(I$22="Error","Error",$J$22+C24),"/") -> 3 | G24: =IF(I$22="Error","Error",IF(AND($E$22<>"/",$E$22>'Paramètres - Admin'!$A2),'Paramètres - Admin'!$A3,"/")) -> 1 | H24: =IF(G24<>"/",VLOOKUP(G24,COSTS_Dark_Elixir_Drill[#All],2),"/") -> 1000000 | I24: =IF(G24<>"/",VLOOKUP(G24,COSTS_Dark_Elixir_Drill[#All],3),"/") -> 24 | J24: =IF(I$22="Error","Error",IF(H24<>"/",F24*H24,0)) -> 3000000 | K24: =IF(I$22="Error","Error",IF(I24<>"/",F24*I24,0)) -> 72 | L24: 1 | M24: =IF(Paramètres!F6=0,"",Paramètres!F6) ->  | N24: =IF(N23<>0,N23+IF(AND(M23<>"",L23<P$6),M23,0),IF(AND(M23<>"",L23<P$6),M23,0)) -> 0 | Q24: =IF(R24<>"/",IF(T$22="Error","Error",$U$22+N24),"/") -> 4 | R24: =IF(T$22="Error","Error",IF(AND($P$22<>"/",$P$22>'Paramètres - Admin'!$A2),'Paramètres - Admin'!$A3,"/")) -> 1 | S24: =IF(R24<>"/",VLOOKUP(R24,COSTS_Elixir_Storage[#All],2),"/") -> 300 | T24: =IF(R24<>"/",VLOOKUP(R24,COSTS_Elixir_Storage[#All],3),"/") -> 0.25 | U24: =IF(T$22="Error","Error",IF(S24<>"/",Q24*S24,0)) -> 1200 | V24: =IF(T$22="Error","Error",IF(T24<>"/",Q24*T24,0)) -> 1
A25: 2 | B25: =IF(Paramètres!D7=0,"",Paramètres!D7) ->  | C25: 0 | F25: 3 | G25: =IF(I$22="Error","Error",IF(AND($E$22<>"/",$E$22>'Paramètres - Admin'!$A3),'Paramètres - Admin'!$A4,"/")) -> 2 | H25: =IF(G25<>"/",VLOOKUP(G25,COSTS_Dark_Elixir_Drill[#All],2),"/") -> 1500000 | I25: =IF(G25<>"/",VLOOKUP(G25,COSTS_Dark_Elixir_Drill[#All],3),"/") -> 48 | J25: 4500000 | K25: 144 | L25: 2 | M25: =IF(Paramètres!F7=0,"",Paramètres!F7) ->  | N25: 0 | Q25: 4 | R25: =IF(T$22="Error","Error",IF(AND($P$22<>"/",$P$22>'Paramètres - Admin'!$A3),'Paramètres - Admin'!$A4,"/")) -> 2 | S25: =IF(R25<>"/",VLOOKUP(R25,COSTS_Elixir_Storage[#All],2),"/") -> 750 | T25: =IF(R25<>"/",VLOOKUP(R25,COSTS_Elixir_Storage[#All],3),"/") -> 0.5 | U25: 3000 | V25: 2
A26: 3 | B26: =IF(Paramètres!D8=0,"",Paramètres!D8) ->  | C26: 0 | F26: 3 | G26: =IF(I$22="Error","Error",IF(AND($E$22<>"/",$E$22>'Paramètres - Admin'!$A4),'Paramètres - Admin'!$A5,"/")) -> 3 | H26: =IF(G26<>"/",VLOOKUP(G26,COSTS_Dark_Elixir_Drill[#All],2),"/") -> 2000000 | I26: =IF(G26<>"/",VLOOKUP(G26,COSTS_Dark_Elixir_Drill[#All],3),"/") -> 72 | J26: 6000000 | K26: 216 | L26: 3 | M26: =IF(Paramètres!F8=0,"",Paramètres!F8) ->  | N26: 0 | Q26: 4 | R26: =IF(T$22="Error","Error",IF(AND($P$22<>"/",$P$22>'Paramètres - Admin'!$A4),'Paramètres - Admin'!$A5,"/")) -> 3 | S26: =IF(R26<>"/",VLOOKUP(R26,COSTS_Elixir_Storage[#All],2),"/") -> 1500 | T26: =IF(R26<>"/",VLOOKUP(R26,COSTS_Elixir_Storage[#All],3),"/") -> 1 | U26: 6000 | V26: 4
A27: 4 | B27: =IF(Paramètres!D9=0,"",Paramètres!D9) ->  | C27: 0 | F27: 3 | G27: =IF(I$22="Error","Error",IF(AND($E$22<>"/",$E$22>'Paramètres - Admin'!$A5),'Paramètres - Admin'!$A6,"/")) -> 4 | H27: =IF(G27<>"/",VLOOKUP(G27,COSTS_Dark_Elixir_Drill[#All],2),"/") -> 3000000 | I27: =IF(G27<>"/",VLOOKUP(G27,COSTS_Dark_Elixir_Drill[#All],3),"/") -> 96 | J27: 9000000 | K27: 288 | L27: 4 | M27: =IF(Paramètres!F9=0,"",Paramètres!F9) ->  | N27: 0 | Q27: 4 | R27: =IF(T$22="Error","Error",IF(AND($P$22<>"/",$P$22>'Paramètres - Admin'!$A5),'Paramètres - Admin'!$A6,"/")) -> 4 | S27: =IF(R27<>"/",VLOOKUP(R27,COSTS_Elixir_Storage[#All],2),"/") -> 3000 | T27: =IF(R27<>"/",VLOOKUP(R27,COSTS_Elixir_Storage[#All],3),"/") -> 2 | U27: 12000 | V27: 8
A28: 5 | B28: =IF(Paramètres!D10=0,"",Paramètres!D10) ->  | C28: 0 | F28: 3 | G28: =IF(I$22="Error","Error",IF(AND($E$22<>"/",$E$22>'Paramètres - Admin'!$A6),'Paramètres - Admin'!$A7,"/")) -> 5 | H28: =IF(G28<>"/",VLOOKUP(G28,COSTS_Dark_Elixir_Drill[#All],2),"/") -> 4000000 | I28: =IF(G28<>"/",VLOOKUP(G28,COSTS_Dark_Elixir_Drill[#All],3),"/") -> 144 | J28: 12000000 | K28: 432 | L28: 5 | M28: =IF(Paramètres!F10=0,"",Paramètres!F10) ->  | N28: 0 | Q28: 4 | R28: =IF(T$22="Error","Error",IF(AND($P$22<>"/",$P$22>'Paramètres - Admin'!$A6),'Paramètres - Admin'!$A7,"/")) -> 5 | S28: =IF(R28<>"/",VLOOKUP(R28,COSTS_Elixir_Storage[#All],2),"/") -> 6000 | T28: =IF(R28<>"/",VLOOKUP(R28,COSTS_Elixir_Storage[#All],3),"/") -> 3 | U28: 24000 | V28: 12
A29: 6 | B29: =IF(Paramètres!D11=0,"",Paramètres!D11) ->  | C29: 0 | F29: 3 | G29: =IF(I$22="Error","Error",IF(AND($E$22<>"/",$E$22>'Paramètres - Admin'!$A7),'Paramètres - Admin'!$A8,"/")) -> 6 | H29: =IF(G29<>"/",VLOOKUP(G29,COSTS_Dark_Elixir_Drill[#All],2),"/") -> 5000000 | I29: =IF(G29<>"/",VLOOKUP(G29,COSTS_Dark_Elixir_Drill[#All],3),"/") -> 192 | J29: 15000000 | K29: 576 | L29: 6 | M29: =IF(Paramètres!F11=0,"",Paramètres!F11) ->  | N29: 0 | Q29: 4 | R29: =IF(T$22="Error","Error",IF(AND($P$22<>"/",$P$22>'Paramètres - Admin'!$A7),'Paramètres - Admin'!$A8,"/")) -> 6 | S29: =IF(R29<>"/",VLOOKUP(R29,COSTS_Elixir_Storage[#All],2),"/") -> 12000 | T29: =IF(R29<>"/",VLOOKUP(R29,COSTS_Elixir_Storage[#All],3),"/") -> 4 | U29: 48000 | V29: 16
I30: Total | J30: =IF(I$22="Error","Error",SUM(J24:J29)) -> 49500000 | K30: =IF(I$22="Error","Error",SUM(K24:K29)) -> 1728 | L30: 7 | M30: =IF(Paramètres!F12=0,"",Paramètres!F12) ->  | N30: 0 | Q30: 4 | R30: =IF(T$22="Error","Error",IF(AND($P$22<>"/",$P$22>'Paramètres - Admin'!$A8),'Paramètres - Admin'!$A9,"/")) -> 7 | S30: =IF(R30<>"/",VLOOKUP(R30,COSTS_Elixir_Storage[#All],2),"/") -> 25000 | T30: =IF(R30<>"/",VLOOKUP(R30,COSTS_Elixir_Storage[#All],3),"/") -> 6 | U30: 100000 | V30: 24
A31: Réserve d'Or | D31: Max | E31: Max + | I31: Actuel | J31: À Faire | K31: Améliorations | L31: 8 | M31: =IF(Paramètres!F13=0,"",Paramètres!F13) ->  | N31: 0 | Q31: 4 | R31: =IF(T$22="Error","Error",IF(AND($P$22<>"/",$P$22>'Paramètres - Admin'!$A9),'Paramètres - Admin'!$A10,"/")) -> 8 | S31: =IF(R31<>"/",VLOOKUP(R31,COSTS_Elixir_Storage[#All],2),"/") -> 50000 | T31: =IF(R31<>"/",VLOOKUP(R31,COSTS_Elixir_Storage[#All],3),"/") -> 8 | U31: 200000 | V31: 32
D32: =VLOOKUP($A$2,AVAILABLE_Buildings_Resource[#All],MATCH(A31,AVAILABLE_Buildings_Resource[#Headers],0)) -> 4 | E32: =VLOOKUP($A$2,AVAILABLE_Buildings_Resource[#All],MATCH(A31,AVAILABLE_Buildings_Resource[#Headers],0)+1) -> 11 | I32: =IF(SUM(B34:B44)>D32,"Error",SUM(B34:B44)) -> 0 | J32: =IF(I$32="Error","Error",D32-I32) -> 4 | K32: =IF(I$32="Error","Error",SUM(F34:F44)) -> 44 | L32: 9 | M32: =IF(Paramètres!F14=0,"",Paramètres!F14) ->  | N32: 0 | Q32: 4 | R32: =IF(T$22="Error","Error",IF(AND($P$22<>"/",$P$22>'Paramètres - Admin'!$A10),'Paramètres - Admin'!$A11,"/")) -> 9 | S32: =IF(R32<>"/",VLOOKUP(R32,COSTS_Elixir_Storage[#All],2),"/") -> 100000 | T32: =IF(R32<>"/",VLOOKUP(R32,COSTS_Elixir_Storage[#All],3),"/") -> 12 | U32: 400000 | V32: 48
A33: + | B33: NB | F33: NB | G33: + | H33: Coût | I33: Temps | J33: Coût Total | K33: Temps Total | L33: 10 | M33: =IF(Paramètres!F15=0,"",Paramètres!F15) ->  | N33: 0 | Q33: 4 | R33: =IF(T$22="Error","Error",IF(AND($P$22<>"/",$P$22>'Paramètres - Admin'!$A11),'Paramètres - Admin'!$A12,"/")) -> 10 | S33: =IF(R33<>"/",VLOOKUP(R33,COSTS_Elixir_Storage[#All],2),"/") -> 250000 | T33: =IF(R33<>"/",VLOOKUP(R33,COSTS_Elixir_Storage[#All],3),"/") -> 24 | U33: 1000000 | V33: 96
A34: 1 | B34: =IF(Paramètres!E6=0,"",Paramètres!E6) ->  | C34: =IF(C33<>0,C33+IF(AND(B33<>"",A33<E$6),B33,0),IF(AND(B33<>"",A33<E$6),B33,0)) -> 0 | F34: =IF(G34<>"/",IF(I$32="Error","Error",$J$32+C34),"/") -> 4 | G34: =IF(I$32="Error","Error",IF(AND($E$32<>"/",$E$32>'Paramètres - Admin'!$A2),'Paramètres - Admin'!$A3,"/")) -> 1 | H34: =IF(G34<>"/",VLOOKUP(G34,COSTS_Gold_Storage[#All],2),"/") -> 300 | I34: =IF(G34<>"/",VLOOKUP(G34,COSTS_Gold_Storage[#All],3),"/") -> 0.25 | J34: =IF(I$32="Error","Error",IF(H34<>"/",F34*H34,0)) -> 1200 | K34: =IF(I$32="Error","Error",IF(I34<>"/",F34*I34,0)) -> 1 | L34: 11 | M34: =IF(Paramètres!F16=0,"",Paramètres!F16) ->  | N34: 0 | Q34: 4 | R34: =IF(T$22="Error","Error",IF(AND($P$22<>"/",$P$22>'Paramètres - Admin'!$A12),'Paramètres - Admin'!$A13,"/")) -> 11 | S34: =IF(R34<>"/",VLOOKUP(R34,COSTS_Elixir_Storage[#All],2),"/") -> 500000 | T34: =IF(R34<>"/",VLOOKUP(R34,COSTS_Elixir_Storage[#All],3),"/") -> 48 | U34: 2000000 | V34: 192
A35: 2 | B35: =IF(Paramètres!E7=0,"",Paramètres!E7) ->  | C35: 0 | F35: 4 | G35: =IF(I$32="Error","Error",IF(AND($E$32<>"/",$E$32>'Paramètres - Admin'!$A3),'Paramètres - Admin'!$A4,"/")) -> 2 | H35: =IF(G35<>"/",VLOOKUP(G35,COSTS_Gold_Storage[#All],2),"/") -> 750 | I35: =IF(G35<>"/",VLOOKUP(G35,COSTS_Gold_Storage[#All],3),"/") -> 0.5 | J35: 3000 | K35: 2 | T35: Total | U35: =IF(T$6="Error","Error",SUM(U23:U34)) -> 3794200 | V35: =IF(T$22="Error","Error",SUM(V24:V34)) -> 435
A36: 3 | B36: =IF(Paramètres!E8=0,"",Paramètres!E8) ->  | C36: 0 | F36: 4 | G36: =IF(I$32="Error","Error",IF(AND($E$32<>"/",$E$32>'Paramètres - Admin'!$A4),'Paramètres - Admin'!$A5,"/")) -> 3 | H36: =IF(G36<>"/",VLOOKUP(G36,COSTS_Gold_Storage[#All],2),"/") -> 1500 | I36: =IF(G36<>"/",VLOOKUP(G36,COSTS_Gold_Storage[#All],3),"/") -> 1 | J36: 6000 | K36: 4
A37: 4 | B37: =IF(Paramètres!E9=0,"",Paramètres!E9) ->  | C37: 0 | F37: 4 | G37: =IF(I$32="Error","Error",IF(AND($E$32<>"/",$E$32>'Paramètres - Admin'!$A5),'Paramètres - Admin'!$A6,"/")) -> 4 | H37: =IF(G37<>"/",VLOOKUP(G37,COSTS_Gold_Storage[#All],2),"/") -> 3000 | I37: =IF(G37<>"/",VLOOKUP(G37,COSTS_Gold_Storage[#All],3),"/") -> 2 | J37: 12000 | K37: 8
A38: 5 | B38: =IF(Paramètres!E10=0,"",Paramètres!E10) ->  | C38: 0 | F38: 4 | G38: =IF(I$32="Error","Error",IF(AND($E$32<>"/",$E$32>'Paramètres - Admin'!$A6),'Paramètres - Admin'!$A7,"/")) -> 5 | H38: =IF(G38<>"/",VLOOKUP(G38,COSTS_Gold_Storage[#All],2),"/") -> 6000 | I38: =IF(G38<>"/",VLOOKUP(G38,COSTS_Gold_Storage[#All],3),"/") -> 3 | J38: 24000 | K38: 12
A39: 6 | B39: =IF(Paramètres!E11=0,"",Paramètres!E11) ->  | C39: 0 | F39: 4 | G39: =IF(I$32="Error","Error",IF(AND($E$32<>"/",$E$32>'Paramètres - Admin'!$A7),'Paramètres - Admin'!$A8,"/")) -> 6 | H39: =IF(G39<>"/",VLOOKUP(G39,COSTS_Gold_Storage[#All],2),"/") -> 12000 | I39: =IF(G39<>"/",VLOOKUP(G39,COSTS_Gold_Storage[#All],3),"/") -> 4 | J39: 48000 | K39: 16
A40: 7 | B40: =IF(Paramètres!E12=0,"",Paramètres!E12) ->  | C40: 0 | F40: 4 | G40: =IF(I$32="Error","Error",IF(AND($E$32<>"/",$E$32>'Paramètres - Admin'!$A8),'Paramètres - Admin'!$A9,"/")) -> 7 | H40: =IF(G40<>"/",VLOOKUP(G40,COSTS_Gold_Storage[#All],2),"/") -> 25000 | I40: =IF(G40<>"/",VLOOKUP(G40,COSTS_Gold_Storage[#All],3),"/") -> 6 | J40: 100000 | K40: 24
A41: 8 | B41: =IF(Paramètres!E13=0,"",Paramètres!E13) ->  | C41: 0 | F41: 4 | G41: =IF(I$32="Error","Error",IF(AND($E$32<>"/",$E$32>'Paramètres - Admin'!$A9),'Paramètres - Admin'!$A10,"/")) -> 8 | H41: =IF(G41<>"/",VLOOKUP(G41,COSTS_Gold_Storage[#All],2),"/") -> 50000 | I41: =IF(G41<>"/",VLOOKUP(G41,COSTS_Gold_Storage[#All],3),"/") -> 8 | J41: 200000 | K41: 32
A42: 9 | B42: =IF(Paramètres!E14=0,"",Paramètres!E14) ->  | C42: 0 | F42: 4 | G42: =IF(I$32="Error","Error",IF(AND($E$32<>"/",$E$32>'Paramètres - Admin'!$A10),'Paramètres - Admin'!$A11,"/")) -> 9 | H42: =IF(G42<>"/",VLOOKUP(G42,COSTS_Gold_Storage[#All],2),"/") -> 100000 | I42: =IF(G42<>"/",VLOOKUP(G42,COSTS_Gold_Storage[#All],3),"/") -> 12 | J42: 400000 | K42: 48
A43: 10 | B43: =IF(Paramètres!E15=0,"",Paramètres!E15) ->  | C43: 0 | F43: 4 | G43: =IF(I$32="Error","Error",IF(AND($E$32<>"/",$E$32>'Paramètres - Admin'!$A11),'Paramètres - Admin'!$A12,"/")) -> 10 | H43: =IF(G43<>"/",VLOOKUP(G43,COSTS_Gold_Storage[#All],2),"/") -> 250000 | I43: =IF(G43<>"/",VLOOKUP(G43,COSTS_Gold_Storage[#All],3),"/") -> 24 | J43: 1000000 | K43: 96
A44: 11 | B44: =IF(Paramètres!E16=0,"",Paramètres!E16) ->  | C44: 0 | F44: 4 | G44: =IF(I$32="Error","Error",IF(AND($E$32<>"/",$E$32>'Paramètres - Admin'!$A12),'Paramètres - Admin'!$A13,"/")) -> 11 | H44: =IF(G44<>"/",VLOOKUP(G44,COSTS_Gold_Storage[#All],2),"/") -> 500000 | I44: =IF(G44<>"/",VLOOKUP(G44,COSTS_Gold_Storage[#All],3),"/") -> 48 | J44: 2000000 | K44: 192
I45: Total | J45: =IF(I$32="Error","Error",SUM(J34:J44)) -> 3794200 | K45: =IF(I$32="Error","Error",SUM(K34:K44)) -> 435
A46: Réservoir d'Élixir Noir | D46: Max | E46: Max + | I46: Actuel | J46: À Faire | K46: Améliorations
D47: =VLOOKUP($A$2,AVAILABLE_Buildings_Resource[#All],MATCH(A46,AVAILABLE_Buildings_Resource[#Headers],0)) -> 1 | E47: =VLOOKUP($A$2,AVAILABLE_Buildings_Resource[#All],MATCH(A46,AVAILABLE_Buildings_Resource[#Headers],0)+1) -> 6 | I47: =IF(SUM(B49:B54)>D47,"Error",SUM(B49:B54)) -> 0 | J47: =IF(I$47="Error","Error",D47-I47) -> 1 | K47: =IF(I$47="Error","Error",SUM(F49:F54)) -> 6
A48: + | B48: NB | F48: NB | G48: + | H48: Coût | I48: Temps | J48: Coût Total | K48: Temps Total
A49: 1 | B49: =IF(Paramètres!G6=0,"",Paramètres!G6) ->  | C49: =IF(C48<>0,C48+IF(AND(B48<>"",A48<E$6),B48,0),IF(AND(B48<>"",A48<E$6),B48,0)) -> 0 | F49: =IF(G49<>"/",IF(I$47="Error","Error",$J$47+C49),"/") -> 1 | G49: =IF(I$47="Error","Error",IF(AND($E$47<>"/",$E$47>'Paramètres - Admin'!$A2),'Paramètres - Admin'!$A3,"/")) -> 1 | H49: =IF(G49<>"/",VLOOKUP(G49,COSTS_Dark_Elixir_Storage[#All],2),"/") -> 600000 | I49: =IF(G49<>"/",VLOOKUP(G49,COSTS_Dark_Elixir_Storage[#All],3),"/") -> 24 | J49: =IF(I$47="Error","Error",IF(H49<>"/",F49*H49,0)) -> 600000 | K49: =IF(I$47="Error","Error",IF(I49<>"/",F49*I49,0)) -> 24
A50: 2 | B50: =IF(Paramètres!G7=0,"",Paramètres!G7) ->  | C50: 0 | F50: 1 | G50: =IF(I$47="Error","Error",IF(AND($E$47<>"/",$E$47>'Paramètres - Admin'!$A3),'Paramètres - Admin'!$A4,"/")) -> 2 | H50: =IF(G50<>"/",VLOOKUP(G50,COSTS_Dark_Elixir_Storage[#All],2),"/") -> 1200000 | I50: =IF(G50<>"/",VLOOKUP(G50,COSTS_Dark_Elixir_Storage[#All],3),"/") -> 48 | J50: 1200000 | K50: 48
A51: 3 | B51: =IF(Paramètres!G8=0,"",Paramètres!G8) ->  | C51: 0 | F51: 1 | G51: =IF(I$47="Error","Error",IF(AND($E$47<>"/",$E$47>'Paramètres - Admin'!$A4),'Paramètres - Admin'!$A5,"/")) -> 3 | H51: =IF(G51<>"/",VLOOKUP(G51,COSTS_Dark_Elixir_Storage[#All],2),"/") -> 1800000 | I51: =IF(G51<>"/",VLOOKUP(G51,COSTS_Dark_Elixir_Storage[#All],3),"/") -> 72 | J51: 1800000 | K51: 72
A52: 4 | B52: =IF(Paramètres!G9=0,"",Paramètres!G9) ->  | C52: 0 | F52: 1 | G52: =IF(I$47="Error","Error",IF(AND($E$47<>"/",$E$47>'Paramètres - Admin'!$A5),'Paramètres - Admin'!$A6,"/")) -> 4 | H52: =IF(G52<>"/",VLOOKUP(G52,COSTS_Dark_Elixir_Storage[#All],2),"/") -> 2400000 | I52: =IF(G52<>"/",VLOOKUP(G52,COSTS_Dark_Elixir_Storage[#All],3),"/") -> 96 | J52: 2400000 | K52: 96
A53: 5 | B53: =IF(Paramètres!G10=0,"",Paramètres!G10) ->  | C53: 0 | F53: 1 | G53: =IF(I$47="Error","Error",IF(AND($E$47<>"/",$E$47>'Paramètres - Admin'!$A6),'Paramètres - Admin'!$A7,"/")) -> 5 | H53: =IF(G53<>"/",VLOOKUP(G53,COSTS_Dark_Elixir_Storage[#All],2),"/") -> 3000000 | I53: =IF(G53<>"/",VLOOKUP(G53,COSTS_Dark_Elixir_Storage[#All],3),"/") -> 120 | J53: 3000000 | K53: 120
A54: 6 | B54: =IF(Paramètres!G11=0,"",Paramètres!G11) ->  | C54: 0 | F54: 1 | G54: =IF(I$47="Error","Error",IF(AND($E$47<>"/",$E$47>'Paramètres - Admin'!$A7),'Paramètres - Admin'!$A8,"/")) -> 6 | H54: =IF(G54<>"/",VLOOKUP(G54,COSTS_Dark_Elixir_Storage[#All],2),"/") -> 3600000 | I54: =IF(G54<>"/",VLOOKUP(G54,COSTS_Dark_Elixir_Storage[#All],3),"/") -> 144 | J54: 3600000 | K54: 144
I55: Total | J55: =IF(I$47="Error","Error",SUM(J49:J54)) -> 12600000 | K55: =IF(I$47="Error","Error",SUM(K49:K54)) -> 504
A58: Bâtiments d'Armée
A59: Élixir
A60: Caserne | D60: Max | E60: Max + | I60: Actuel | J60: À Faire | K60: Améliorations | L60: Laboratoire | O60: Max | P60: Max + | T60: Actuel | U60: À Faire | V60: Améliorations
D61: =VLOOKUP($A$2,AVAILABLE_Buildings_Army[#All],MATCH(A60,AVAILABLE_Buildings_Army[#Headers],0)) -> 4 | E61: =VLOOKUP($A$2,AVAILABLE_Buildings_Army[#All],MATCH(A60,AVAILABLE_Buildings_Army[#Headers],0)+1) -> 10 | I61: =IF(SUM(B63:B72)>D61,"Error",SUM(B63:B72)) -> 0 | J61: =IF(I$61="Error","Error",D61-I61) -> 4 | K61: =IF(I$61="Error","Error",SUM(F63:F72)) -> 40 | O61: =VLOOKUP($A$2,AVAILABLE_Buildings_Army[#All],MATCH(L60,AVAILABLE_Buildings_Army[#Headers],0)) -> 1 | P61: =VLOOKUP($A$2,AVAILABLE_Buildings_Army[#All],MATCH(L60,AVAILABLE_Buildings_Army[#Headers],0)+1) -> 8 | T61: =IF(SUM(M63:M70)>O61,"Error",SUM(M63:M70)) -> 0 | U61: =IF(T$61="Error","Error",O61-T61) -> 1 | V61: =IF(T$61="Error","Error",SUM(Q63:Q70)) -> 8
A62: + | B62: NB | F62: NB | G62: + | H62: Coût | I62: Temps | J62: Coût Total | K62: Temps Total | L62: + | M62: NB | Q62: NB | R62: + | S62: Coût | T62: Temps | U62: Coût Total | V62: Temps Total
A63: 1 | B63: =IF(Paramètres!H6=0,"",Paramètres!H6) ->  | C63: =IF(C62<>0,C62+IF(AND(B62<>"",A62<E$6),B62,0),IF(AND(B62<>"",A62<E$6),B62,0)) -> 0 | F63: =IF(G63<>"/",IF(I$61="Error","Error",$J$61+C63),"/") -> 4 | G63: =IF(I$61="Error","Error",IF(AND($E$61<>"/",$E$61>'Paramètres - Admin'!$A2),'Paramètres - Admin'!$A3,"/")) -> 1 | H63: =IF(G63<>"/",VLOOKUP(G63,COSTS_Barrack[#All],2),"/") -> 200 | I63: =IF(G63<>"/",VLOOKUP(G63,COSTS_Barrack[#All],3),"/") -> 0.02 | J63: =IF(I$61="Error","Error",IF(H63<>"/",F63*H63,0)) -> 800 | K63: =IF(I$61="Error","Error",IF(I63<>"/",F63*I63,0)) -> 0.08 | L63: 1 | M63: =IF(Paramètres!K6=0,"",Paramètres!K6) ->  | N63: =IF(N62<>0,N62+IF(AND(M62<>"",L62<E$6),M62,0),IF(AND(M62<>"",L62<E$6),M62,0)) -> 0 | Q63: =IF(R63<>"/",IF(T$61="Error","Error",$U$61+N63),"/") -> 1 | R63: =IF(T$61="Error","Error",IF(AND($P$61<>"/",$P$61>'Paramètres - Admin'!$A2),'Paramètres - Admin'!$A3,"/")) -> 1 | S63: =IF(R63<>"/",VLOOKUP(R63,COSTS_Laboratory[#All],2),"/") -> 25000 | T63: =IF(R63<>"/",VLOOKUP(R63,COSTS_Laboratory[#All],3),"/") -> 0.5 | U63: =IF(T$61="Error","Error",IF(S63<>"/",Q63*S63,0)) -> 25000 | V63: =IF(T$61="Error","Error",IF(T63<>"/",Q63*T63,0)) -> 0.5
A64: 2 | B64: =IF(Paramètres!H7=0,"",Paramètres!H7) ->  | C64: 0 | F64: 4 | G64: =IF(I$61="Error","Error",IF(AND($E$61<>"/",$E$61>'Paramètres - Admin'!$A3),'Paramètres - Admin'!$A4,"/")) -> 2 | H64: =IF(G64<>"/",VLOOKUP(G64,COSTS_Barrack[#All],2),"/") -> 1000 | I64: =IF(G64<>"/",VLOOKUP(G64,COSTS_Barrack[#All],3),"/") -> 0.25 | J64: 4000 | K64: 1 | L64: 2 | M64: =IF(Paramètres!K7=0,"",Paramètres!K7) ->  | N64: 0 | Q64: 1 | R64: =IF(T$61="Error","Error",IF(AND($P$61<>"/",$P$61>'Paramètres - Admin'!$A3),'Paramètres - Admin'!$A4,"/")) -> 2 | S64: =IF(R64<>"/",VLOOKUP(R64,COSTS_Laboratory[#All],2),"/") -> 50000 | T64: =IF(R64<>"/",VLOOKUP(R64,COSTS_Laboratory[#All],3),"/") -> 5 | U64: 50000 | V64: 5
A65: 3 | B65: =IF(Paramètres!H8=0,"",Paramètres!H8) ->  | C65: 0 | F65: 4 | G65: =IF(I$61="Error","Error",IF(AND($E$61<>"/",$E$61>'Paramètres - Admin'!$A4),'Paramètres - Admin'!$A5,"/")) -> 3 | H65: =IF(G65<>"/",VLOOKUP(G65,COSTS_Barrack[#All],2),"/") -> 2500 | I65: =IF(G65<>"/",VLOOKUP(G65,COSTS_Barrack[#All],3),"/") -> 2 | J65: 10000 | K65: 8 | L65: 3 | M65: =IF(Paramètres!K8=0,"",Paramètres!K8) ->  | N65: 0 | Q65: 1 | R65: =IF(T$61="Error","Error",IF(AND($P$61<>"/",$P$61>'Paramètres - Admin'!$A4),'Paramètres - Admin'!$A5,"/")) -> 3 | S65: =IF(R65<>"/",VLOOKUP(R65,COSTS_Laboratory[#All],2),"/") -> 90000 | T65: =IF(R65<>"/",VLOOKUP(R65,COSTS_Laboratory[#All],3),"/") -> 12 | U65: 90000 | V65: 12
A66: 4 | B66: =IF(Paramètres!H9=0,"",Paramètres!H9) ->  | C66: 0 | F66: 4 | G66: =IF(I$61="Error","Error",IF(AND($E$61<>"/",$E$61>'Paramètres - Admin'!$A5),'Paramètres - Admin'!$A6,"/")) -> 4 | H66: =IF(G66<>"/",VLOOKUP(G66,COSTS_Barrack[#All],2),"/") -> 5000 | I66: =IF(G66<>"/",VLOOKUP(G66,COSTS_Barrack[#All],3),"/") -> 4 | J66: 20000 | K66: 16 | L66: 4 | M66: =IF(Paramètres!K9=0,"",Paramètres!K9) ->  | N66: 0 | Q66: 1 | R66: =IF(T$61="Error","Error",IF(AND($P$61<>"/",$P$61>'Paramètres - Admin'!$A5),'Paramètres - Admin'!$A6,"/")) -> 4 | S66: =IF(R66<>"/",VLOOKUP(R66,COSTS_Laboratory[#All],2),"/") -> 270000 | T66: =IF(R66<>"/",VLOOKUP(R66,COSTS_Laboratory[#All],3),"/") -> 24 | U66: 270000 | V66: 24
A67: 5 | B67: =IF(Paramètres!H10=0,"",Paramètres!H10) ->  | C67: 0 | F67: 4 | G67: =IF(I$61="Error","Error",IF(AND($E$61<>"/",$E$61>'Paramètres - Admin'!$A6),'Paramètres - Admin'!$A7,"/")) -> 5 | H67: =IF(G67<>"/",VLOOKUP(G67,COSTS_Barrack[#All],2),"/") -> 10000 | I67: =IF(G67<>"/",VLOOKUP(G67,COSTS_Barrack[#All],3),"/") -> 10 | J67: 40000 | K67: 40 | L67: 5 | M67: =IF(Paramètres!K10=0,"",Paramètres!K10) ->  | N67: 0 | Q67: 1 | R67: =IF(T$61="Error","Error",IF(AND($P$61<>"/",$P$61>'Paramètres - Admin'!$A6),'Paramètres - Admin'!$A7,"/")) -> 5 | S67: =IF(R67<>"/",VLOOKUP(R67,COSTS_Laboratory[#All],2),"/") -> 500000 | T67: =IF(R67<>"/",VLOOKUP(R67,COSTS_Laboratory[#All],3),"/") -> 48 | U67: 500000 | V67: 48
A68: 6 | B68: =IF(Paramètres!H11=0,"",Paramètres!H11) ->  | C68: 0 | F68: 4 | G68: =IF(I$61="Error","Error",IF(AND($E$61<>"/",$E$61>'Paramètres - Admin'!$A7),'Paramètres - Admin'!$A8,"/")) -> 6 | H68: =IF(G68<>"/",VLOOKUP(G68,COSTS_Barrack[#All],2),"/") -> 80000 | I68: =IF(G68<>"/",VLOOKUP(G68,COSTS_Barrack[#All],3),"/") -> 16 | J68: 320000 | K68: 64 | L68: 6 | M68: =IF(Paramètres!K11=0,"",Paramètres!K11) ->  | N68: 0 | Q68: 1 | R68: =IF(T$61="Error","Error",IF(AND($P$61<>"/",$P$61>'Paramètres - Admin'!$A7),'Paramètres - Admin'!$A8,"/")) -> 6 | S68: =IF(R68<>"/",VLOOKUP(R68,COSTS_Laboratory[#All],2),"/") -> 1000000 | T68: =IF(R68<>"/",VLOOKUP(R68,COSTS_Laboratory[#All],3),"/") -> 96 | U68: 1000000 | V68: 96
A69: 7 | B69: =IF(Paramètres!H12=0,"",Paramètres!H12) ->  | C69: 0 | F69: 4 | G69: =IF(I$61="Error","Error",IF(AND($E$61<>"/",$E$61>'Paramètres - Admin'!$A8),'Paramètres - Admin'!$A9,"/")) -> 7 | H69: =IF(G69<>"/",VLOOKUP(G69,COSTS_Barrack[#All],2),"/") -> 240000 | I69: =IF(G69<>"/",VLOOKUP(G69,COSTS_Barrack[#All],3),"/") -> 24 | J69: 960000 | K69: 96 | L69: 7 | M69: =IF(Paramètres!K12=0,"",Paramètres!K12) ->  | N69: 0 | Q69: 1 | R69: =IF(T$61="Error","Error",IF(AND($P$61<>"/",$P$61>'Paramètres - Admin'!$A8),'Paramètres - Admin'!$A9,"/")) -> 7 | S69: =IF(R69<>"/",VLOOKUP(R69,COSTS_Laboratory[#All],2),"/") -> 2500000 | T69: =IF(R69<>"/",VLOOKUP(R69,COSTS_Laboratory[#All],3),"/") -> 120 | U69: 2500000 | V69: 120
A70: 8 | B70: =IF(Paramètres!H13=0,"",Paramètres!H13) ->  | C70: 0 | F70: 4 | G70: =IF(I$61="Error","Error",IF(AND($E$61<>"/",$E$61>'Paramètres - Admin'!$A9),'Paramètres - Admin'!$A10,"/")) -> 8 | H70: =IF(G70<>"/",VLOOKUP(G70,COSTS_Barrack[#All],2),"/") -> 700000 | I70: =IF(G70<>"/",VLOOKUP(G70,COSTS_Barrack[#All],3),"/") -> 48 | J70: 2800000 | K70: 192 | L70: 8 | M70: =IF(Paramètres!K13=0,"",Paramètres!K13) ->  | N70: 0 | Q70: 1 | R70: =IF(T$61="Error","Error",IF(AND($P$61<>"/",$P$61>'Paramètres - Admin'!$A9),'Paramètres - Admin'!$A10,"/")) -> 8 | S70: =IF(R70<>"/",VLOOKUP(R70,COSTS_Laboratory[#All],2),"/") -> 4000000 | T70: =IF(R70<>"/",VLOOKUP(R70,COSTS_Laboratory[#All],3),"/") -> 144 | U70: 4000000 | V70: 144
A71: 9 | B71: =IF(Paramètres!H14=0,"",Paramètres!H14) ->  | C71: 0 | F71: 4 | G71: =IF(I$61="Error","Error",IF(AND($E$61<>"/",$E$61>'Paramètres - Admin'!$A10),'Paramètres - Admin'!$A11,"/")) -> 9 | H71: =IF(G71<>"/",VLOOKUP(G71,COSTS_Barrack[#All],2),"/") -> 1500000 | I71: =IF(G71<>"/",VLOOKUP(G71,COSTS_Barrack[#All],3),"/") -> 96 | J71: 6000000 | K71: 384 | T71: Total | U71: =IF(T$61="Error","Error",SUM(U63:U70)) -> 8435000 | V71: =IF(T$61="Error","Error",SUM(V63:V70)) -> 449.5
A72: 10 | B72: =IF(Paramètres!H15=0,"",Paramètres!H15) ->  | C72: 0 | F72: 4 | G72: =IF(I$61="Error","Error",IF(AND($E$61<>"/",$E$61>'Paramètres - Admin'!$A11),'Paramètres - Admin'!$A12,"/")) -> 10 | H72: =IF(G72<>"/",VLOOKUP(G72,COSTS_Barrack[#All],2),"/") -> 2000000 | I72: =IF(G72<>"/",VLOOKUP(G72,COSTS_Barrack[#All],3),"/") -> 144 | J72: 8000000 | K72: 576 | L72: Usine de Sorts | O72: Max | P72: Max + | T72: Actuel | U72: À Faire | V72: Améliorations
I73: Total | J73: =IF(I$61="Error","Error",SUM(J63:J72)) -> 18154800 | K73: =IF(I$61="Error","Error",SUM(K63:K72)) -> 1377.08 | O73: =VLOOKUP($A$2,AVAILABLE_Buildings_Army[#All],MATCH(L72,AVAILABLE_Buildings_Army[#Headers],0)) -> 1 | P73: =VLOOKUP($A$2,AVAILABLE_Buildings_Army[#All],MATCH(L72,AVAILABLE_Buildings_Army[#Headers],0)+1) -> 5 | T73: =IF(SUM(M75:M79)>O73,"Error",SUM(M75:M79)) -> 0 | U73: =IF(T$73="Error","Error",O73-T73) -> 1 | V73: =IF(T$73="Error","Error",SUM(Q75:Q79)) -> 5
A74: Caserne Noire | D74: Max | E74: Max + | I74: Actuel | J74: À Faire | K74: Améliorations | L74: + | M74: NB | Q74: NB | R74: + | S74: Coût | T74: Temps | U74: Coût Total | V74: Temps Total
D75: =VLOOKUP($A$2,AVAILABLE_Buildings_Army[#All],MATCH(A74,AVAILABLE_Buildings_Army[#Headers],0)) -> 2 | E75: =VLOOKUP($A$2,AVAILABLE_Buildings_Army[#All],MATCH(A74,AVAILABLE_Buildings_Army[#Headers],0)+1) -> 6 | I75: =IF(SUM(B77:B81)>D75,"Error",SUM(B77:B81)) -> 0 | J75: =IF(I$75="Error","Error",D75-I75) -> 2 | K75: =IF(I$75="Error","Error",SUM(F77:F81)) -> 10 | L75: 1 | M75: =IF(Paramètres!L6=0,"",Paramètres!L6) ->  | N75: =IF(N74<>0,N74+IF(AND(M74<>"",L74<E$6),M74,0),IF(AND(M74<>"",L74<E$6),M74,0)) -> 0 | Q75: =IF(R75<>"/",IF(T$73="Error","Error",$U$73+N75),"/") -> 1 | R75: =IF(T$73="Error","Error",IF(AND($P$73<>"/",$P$73>'Paramètres - Admin'!$A2),'Paramètres - Admin'!$A3,"/")) -> 1 | S75: =IF(R75<>"/",VLOOKUP(R75,COSTS_Spell_Factory[#All],2),"/") -> 200000 | T75: =IF(R75<>"/",VLOOKUP(R75,COSTS_Spell_Factory[#All],3),"/") -> 24 | U75: =IF(T$73="Error","Error",IF(S75<>"/",Q75*S75,0)) -> 200000 | V75: =IF(T$73="Error","Error",IF(T75<>"/",Q75*T75,0)) -> 24
A76: + | B76: NB | F76: NB | G76: + | H76: Coût | I76: Temps | J76: Coût Total | K76: Temps Total | L76: 2 | M76: =IF(Paramètres!L7=0,"",Paramètres!L7) ->  | N76: =IF(N75<>0,N75+IF(AND(M75<>"",L75<E$6),M75,0),IF(AND(M75<>"",L75<E$6),M75,0)) -> 0 | Q76: =IF(R76<>"/",IF(T$73="Error","Error",$U$73+N76),"/") -> 1 | R76: =IF(T$73="Error","Error",IF(AND($P$73<>"/",$P$73>'Paramètres - Admin'!$A3),'Paramètres - Admin'!$A4,"/")) -> 2 | S76: =IF(R76<>"/",VLOOKUP(R76,COSTS_Spell_Factory[#All],2),"/") -> 400000 | T76: =IF(R76<>"/",VLOOKUP(R76,COSTS_Spell_Factory[#All],3),"/") -> 48 | U76: =IF(T$73="Error","Error",IF(S76<>"/",Q76*S76,0)) -> 400000 | V76: =IF(T$73="Error","Error",IF(T76<>"/",Q76*T76,0)) -> 48
A77: 1 | B77: =IF(Paramètres!I6=0,"",Paramètres!I6) ->  | C77: =IF(C76<>0,C76+IF(AND(B76<>"",A76<E$6),B76,0),IF(AND(B76<>"",A76<E$6),B76,0)) -> 0 | F77: =IF(G77<>"/",IF(I$75="Error","Error",$J$75+C77),"/") -> 2 | G77: =IF(I$75="Error","Error",IF(AND($E$75<>"/",$E$75>'Paramètres - Admin'!$A2),'Paramètres - Admin'!$A3,"/")) -> 1 | H77: =IF(G77<>"/",VLOOKUP(G77,COSTS_Dark_Barrack[#All],2),"/") -> 750000 | I77: =IF(G77<>"/",VLOOKUP(G77,COSTS_Dark_Barrack[#All],3),"/") -> 72 | J77: =IF(I$75="Error","Error",IF(H77<>"/",F77*H77,0)) -> 1500000 | K77: =IF(I$75="Error","Error",IF(I77<>"/",F77*I77,0)) -> 144 | L77: 3 | M77: =IF(Paramètres!L8=0,"",Paramètres!L8) ->  | N77: =IF(N76<>0,N76+IF(AND(M76<>"",L76<E$6),M76,0),IF(AND(M76<>"",L76<E$6),M76,0)) -> 0 | Q77: =IF(R77<>"/",IF(T$73="Error","Error",$U$73+N77),"/") -> 1 | R77: =IF(T$73="Error","Error",IF(AND($P$73<>"/",$P$73>'Paramètres - Admin'!$A4),'Paramètres - Admin'!$A5,"/")) -> 3 | S77: =IF(R77<>"/",VLOOKUP(R77,COSTS_Spell_Factory[#All],2),"/") -> 800000 | T77: =IF(R77<>"/",VLOOKUP(R77,COSTS_Spell_Factory[#All],3),"/") -> 96 | U77: =IF(T$73="Error","Error",IF(S77<>"/",Q77*S77,0)) -> 800000 | V77: =IF(T$73="Error","Error",IF(T77<>"/",Q77*T77,0)) -> 96
A78: 2 | B78: =IF(Paramètres!I7=0,"",Paramètres!I7) ->  | C78: =IF(C77<>0,C77+IF(AND(B77<>"",A77<E$6),B77,0),IF(AND(B77<>"",A77<E$6),B77,0)) -> 0 | F78: =IF(G78<>"/",IF(I$75="Error","Error",$J$75+C78),"/") -> 2 | G78: =IF(I$75="Error","Error",IF(AND($E$75<>"/",$E$75>'Paramètres - Admin'!$A3),'Paramètres - Admin'!$A4,"/")) -> 2 | H78: =IF(G78<>"/",VLOOKUP(G78,COSTS_Dark_Barrack[#All],2),"/") -> 1250000 | I78: =IF(G78<>"/",VLOOKUP(G78,COSTS_Dark_Barrack[#All],3),"/") -> 120 | J78: =IF(I$75="Error","Error",IF(H78<>"/",F78*H78,0)) -> 2500000 | K78: =IF(I$75="Error","Error",IF(I78<>"/",F78*I78,0)) -> 240 | L78: 4 | M78: =IF(Paramètres!L9=0,"",Paramètres!L9) ->  | N78: =IF(N77<>0,N77+IF(AND(M77<>"",L77<E$6),M77,0),IF(AND(M77<>"",L77<E$6),M77,0)) -> 0 | Q78: =IF(R78<>"/",IF(T$73="Error","Error",$U$73+N78),"/") -> 1 | R78: =IF(T$73="Error","Error",IF(AND($P$73<>"/",$P$73>'Paramètres - Admin'!$A5),'Paramètres - Admin'!$A6,"/")) -> 4 | S78: =IF(R78<>"/",VLOOKUP(R78,COSTS_Spell_Factory[#All],2),"/") -> 1600000 | T78: =IF(R78<>"/",VLOOKUP(R78,COSTS_Spell_Factory[#All],3),"/") -> 120 | U78: =IF(T$73="Error","Error",IF(S78<>"/",Q78*S78,0)) -> 1600000 | V78: =IF(T$73="Error","Error",IF(T78<>"/",Q78*T78,0)) -> 120
A79: 3 | B79: =IF(Paramètres!I8=0,"",Paramètres!I8) ->  | C79: =IF(C78<>0,C78+IF(AND(B78<>"",A78<E$6),B78,0),IF(AND(B78<>"",A78<E$6),B78,0)) -> 0 | F79: =IF(G79<>"/",IF(I$75="Error","Error",$J$75+C79),"/") -> 2 | G79: =IF(I$75="Error","Error",IF(AND($E$75<>"/",$E$75>'Paramètres - Admin'!$A4),'Paramètres - Admin'!$A5,"/")) -> 3 | H79: =IF(G79<>"/",VLOOKUP(G79,COSTS_Dark_Barrack[#All],2),"/") -> 1750000 | I79: =IF(G79<>"/",VLOOKUP(G79,COSTS_Dark_Barrack[#All],3),"/") -> 144 | J79: =IF(I$75="Error","Error",IF(H79<>"/",F79*H79,0)) -> 3500000 | K79: =IF(I$75="Error","Error",IF(I79<>"/",F79*I79,0)) -> 288 | L79: 5 | M79: =IF(Paramètres!L10=0,"",Paramètres!L10) ->  | N79: =IF(N78<>0,N78+IF(AND(M78<>"",L78<E$6),M78,0),IF(AND(M78<>"",L78<E$6),M78,0)) -> 0 | Q79: =IF(R79<>"/",IF(T$73="Error","Error",$U$73+N79),"/") -> 1 | R79: =IF(T$73="Error","Error",IF(AND($P$73<>"/",$P$73>'Paramètres - Admin'!$A6),'Paramètres - Admin'!$A7,"/")) -> 5 | S79: =IF(R79<>"/",VLOOKUP(R79,COSTS_Spell_Factory[#All],2),"/") -> 3200000 | T79: =IF(R79<>"/",VLOOKUP(R79,COSTS_Spell_Factory[#All],3),"/") -> 144 | U79: =IF(T$73="Error","Error",IF(S79<>"/",Q79*S79,0)) -> 3200000 | V79: =IF(T$73="Error","Error",IF(T79<>"/",Q79*T79,0)) -> 144
A80: 4 | B80: =IF(Paramètres!I9=0,"",Paramètres!I9) ->  | C80: =IF(C79<>0,C79+IF(AND(B79<>"",A79<E$6),B79,0),IF(AND(B79<>"",A79<E$6),B79,0)) -> 0 | F80: =IF(G80<>"/",IF(I$75="Error","Error",$J$75+C80),"/") -> 2 | G80: =IF(I$75="Error","Error",IF(AND($E$75<>"/",$E$75>'Paramètres - Admin'!$A5),'Paramètres - Admin'!$A6,"/")) -> 4 | H80: =IF(G80<>"/",VLOOKUP(G80,COSTS_Dark_Barrack[#All],2),"/") -> 2250000 | I80: =IF(G80<>"/",VLOOKUP(G80,COSTS_Dark_Barrack[#All],3),"/") -> 168 | J80: =IF(I$75="Error","Error",IF(H80<>"/",F80*H80,0)) -> 4500000 | K80: =IF(I$75="Error","Error",IF(I80<>"/",F80*I80,0)) -> 336 | T80: Total | U80: =IF(T$73="Error","Error",SUM(U75:U79)) -> 6200000 | V80: =IF(T$73="Error","Error",SUM(V75:V79)) -> 432
A81: 5 | B81: =IF(Paramètres!I10=0,"",Paramètres!I10) ->  | C81: =IF(C80<>0,C80+IF(AND(B80<>"",A80<E$6),B80,0),IF(AND(B80<>"",A80<E$6),B80,0)) -> 0 | F81: =IF(G81<>"/",IF(I$75="Error","Error",$J$75+C81),"/") -> 2 | G81: =IF(I$75="Error","Error",IF(AND($E$75<>"/",$E$75>'Paramètres - Admin'!$A6),'Paramètres - Admin'!$A7,"/")) -> 5 | H81: =IF(G81<>"/",VLOOKUP(G81,COSTS_Dark_Barrack[#All],2),"/") -> 2750000 | I81: =IF(G81<>"/",VLOOKUP(G81,COSTS_Dark_Barrack[#All],3),"/") -> 192 | J81: =IF(I$75="Error","Error",IF(H81<>"/",F81*H81,0)) -> 5500000 | K81: =IF(I$75="Error","Error",IF(I81<>"/",F81*I81,0)) -> 384
I82: Total | J82: =IF(I$75="Error","Error",SUM(J77:J81)) -> 17500000 | K82: =IF(I$75="Error","Error",SUM(K77:K81)) -> 1392
A83: Camp Militaire | D83: Max | E83: Max + | I83: Actuel | J83: À Faire | K83: Améliorations
D84: =VLOOKUP($A$2,AVAILABLE_Buildings_Army[#All],MATCH(A83,AVAILABLE_Buildings_Army[#Headers],0)) -> 4 | E84: =VLOOKUP($A$2,AVAILABLE_Buildings_Army[#All],MATCH(A83,AVAILABLE_Buildings_Army[#Headers],0)+1) -> 8 | I84: =IF(SUM(B86:B93)>D84,"Error",SUM(B86:B93)) -> 0 | J84: =IF(I$84="Error","Error",D84-I84) -> 4 | K84: =IF(I$84="Error","Error",SUM(F86:F93)) -> 32
A85: + | B85: NB | F85: NB | G85: + | H85: Coût | I85: Temps | J85: Coût Total | K85: Temps Total
A86: 1 | B86: =IF(Paramètres!J6=0,"",Paramètres!J6) ->  | C86: =IF(C85<>0,C85+IF(AND(B85<>"",A85<E$6),B85,0),IF(AND(B85<>"",A85<E$6),B85,0)) -> 0 | F86: =IF(G86<>"/",IF(I$84="Error","Error",$J$84+C86),"/") -> 4 | G86: =IF(I$84="Error","Error",IF(AND($E$84<>"/",$E$84>'Paramètres - Admin'!$A2),'Paramètres - Admin'!$A3,"/")) -> 1 | H86: =IF(G86<>"/",VLOOKUP(G86,COSTS_Army_Camp[#All],2),"/") -> 250 | I86: =IF(G86<>"/",VLOOKUP(G86,COSTS_Army_Camp[#All],3),"/") -> 0.08333333333 | J86: =IF(I$84="Error","Error",IF(H86<>"/",F86*H86,0)) -> 1000 | K86: =IF(I$84="Error","Error",IF(I86<>"/",F86*I86,0)) -> 0.3333333333
A87: 2 | B87: =IF(Paramètres!J7=0,"",Paramètres!J7) ->  | C87: =IF(C86<>0,C86+IF(AND(B86<>"",A86<E$6),B86,0),IF(AND(B86<>"",A86<E$6),B86,0)) -> 0 | F87: =IF(G87<>"/",IF(I$84="Error","Error",$J$84+C87),"/") -> 4 | G87: =IF(I$84="Error","Error",IF(AND($E$84<>"/",$E$84>'Paramètres - Admin'!$A3),'Paramètres - Admin'!$A4,"/")) -> 2 | H87: =IF(G87<>"/",VLOOKUP(G87,COSTS_Army_Camp[#All],2),"/") -> 2500 | I87: =IF(G87<>"/",VLOOKUP(G87,COSTS_Army_Camp[#All],3),"/") -> 1 | J87: =IF(I$84="Error","Error",IF(H87<>"/",F87*H87,0)) -> 10000 | K87: =IF(I$84="Error","Error",IF(I87<>"/",F87*I87,0)) -> 4
A88: 3 | B88: =IF(Paramètres!J8=0,"",Paramètres!J8) ->  | C88: 0 | F88: =IF(G88<>"/",IF(I$84="Error","Error",$J$84+C88),"/") -> 4 | G88: =IF(I$84="Error","Error",IF(AND($E$84<>"/",$E$84>'Paramètres - Admin'!$A4),'Paramètres - Admin'!$A5,"/")) -> 3 | H88: =IF(G88<>"/",VLOOKUP(G88,COSTS_Army_Camp[#All],2),"/") -> 10000 | I88: =IF(G88<>"/",VLOOKUP(G88,COSTS_Army_Camp[#All],3),"/") -> 3 | J88: =IF(I$84="Error","Error",IF(H88<>"/",F88*H88,0)) -> 40000 | K88: =IF(I$84="Error","Error",IF(I88<>"/",F88*I88,0)) -> 12
A89: 4 | B89: =IF(Paramètres!J9=0,"",Paramètres!J9) ->  | C89: 0 | F89: 4 | G89: =IF(I$84="Error","Error",IF(AND($E$84<>"/",$E$84>'Paramètres - Admin'!$A5),'Paramètres - Admin'!$A6,"/")) -> 4 | H89: =IF(G89<>"/",VLOOKUP(G89,COSTS_Army_Camp[#All],2),"/") -> 100000 | I89: =IF(G89<>"/",VLOOKUP(G89,COSTS_Army_Camp[#All],3),"/") -> 8 | J89: 400000 | K89: 32
A90: 5 | B90: =IF(Paramètres!J10=0,"",Paramètres!J10) ->  | C90: 0 | F90: 4 | G90: =IF(I$84="Error","Error",IF(AND($E$84<>"/",$E$84>'Paramètres - Admin'!$A6),'Paramètres - Admin'!$A7,"/")) -> 5 | H90: =IF(G90<>"/",VLOOKUP(G90,COSTS_Army_Camp[#All],2),"/") -> 250000 | I90: =IF(G90<>"/",VLOOKUP(G90,COSTS_Army_Camp[#All],3),"/") -> 24 | J90: 1000000 | K90: 96
A91: 6 | B91: =IF(Paramètres!J11=0,"",Paramètres!J11) ->  | C91: 0 | F91: 4 | G91: =IF(I$84="Error","Error",IF(AND($E$84<>"/",$E$84>'Paramètres - Admin'!$A7),'Paramètres - Admin'!$A8,"/")) -> 6 | H91: =IF(G91<>"/",VLOOKUP(G91,COSTS_Army_Camp[#All],2),"/") -> 750000 | I91: =IF(G91<>"/",VLOOKUP(G91,COSTS_Army_Camp[#All],3),"/") -> 72 | J91: 3000000 | K91: 288
A92: 7 | B92: =IF(Paramètres!J12=0,"",Paramètres!J12) ->  | C92: 0 | F92: 4 | G92: =IF(I$84="Error","Error",IF(AND($E$84<>"/",$E$84>'Paramètres - Admin'!$A8),'Paramètres - Admin'!$A9,"/")) -> 7 | H92: =IF(G92<>"/",VLOOKUP(G92,COSTS_Army_Camp[#All],2),"/") -> 2250000 | I92: =IF(G92<>"/",VLOOKUP(G92,COSTS_Army_Camp[#All],3),"/") -> 120 | J92: 9000000 | K92: 480
A93: 8 | B93: =IF(Paramètres!J13=0,"",Paramètres!J13) ->  | C93: 0 | F93: 4 | G93: =IF(I$84="Error","Error",IF(AND($E$84<>"/",$E$84>'Paramètres - Admin'!$A9),'Paramètres - Admin'!$A10,"/")) -> 8 | H93: =IF(G93<>"/",VLOOKUP(G93,COSTS_Army_Camp[#All],2),"/") -> 6750000 | I93: =IF(G93<>"/",VLOOKUP(G93,COSTS_Army_Camp[#All],3),"/") -> 240 | J93: 27000000 | K93: 960
I94: Total | J94: =IF(I$84="Error","Error",SUM(J86:J93)) -> 40451000 | K94: =IF(I$84="Error","Error",SUM(K86:K93)) -> 1872.333333
A97: Bâtiments Défensifs
A98: Or
A99: Rempart | D99: Max | E99: Max + | I99: Actuel | J99: À Faire | K99: Améliorations | L99: Défense Antiaérienne | O99: Max | P99: Max + | T99: Actuel | U99: À Faire | V99: Améliorations | W99: Bombe | Z99: Max | AA99: Max + | AE99: Actuel | AF99: À Faire | AG99: Améliorations
D100: =VLOOKUP($A$2,AVAILABLE_Buildings_Defensive[#All],MATCH(A99,AVAILABLE_Buildings_Defensive[#Headers],0)) -> 250 | E100: =VLOOKUP($A$2,AVAILABLE_Buildings_Defensive[#All],MATCH(A99,AVAILABLE_Buildings_Defensive[#Headers],0)+1) -> 11 | I100: =IF(SUM(B102:B112)>D100,"Error",SUM(B102:B112)) -> 0 | J100: =IF(I$100="Error","Error",D100-I100) -> 250 | K100: =IF(I$100="Error","Error",SUM(F102:F112)) -> 2750 | O100: =VLOOKUP($A$2,AVAILABLE_Buildings_Defensive[#All],MATCH(L99,AVAILABLE_Buildings_Defensive[#Headers],0)) -> 4 | P100: =VLOOKUP($A$2,AVAILABLE_Buildings_Defensive[#All],MATCH(L99,AVAILABLE_Buildings_Defensive[#Headers],0)+1) -> 8 | T100: =IF(SUM(M102:M109)>O100,"Error",SUM(M102:M109)) -> 0 | U100: =IF(T$100="Error","Error",O100-T100) -> 4 | V100: =IF(T$100="Error","Error",SUM(Q102:Q109)) -> 32 | Z100: =VLOOKUP($A$2,AVAILABLE_Traps[#All],MATCH(W99,AVAILABLE_Traps[#Headers],0)) -> 6 | AA100: =VLOOKUP($A$2,AVAILABLE_Traps[#All],MATCH(W99,AVAILABLE_Traps[#Headers],0)+1) -> 6 | AE100: =IF(SUM(X102:X107)>Z100,"Error",SUM(X102:X107)) -> 0 | AF100: =IF(AE$100="Error","Error",Z100-AE100) -> 6 | AG100: =IF(AE$100="Error","Error",SUM(AB102:AB107)) -> 36
A101: + | B101: NB | F101: NB | G101: + | H101: Coût | I101: Temps | J101: Coût Total | K101: Temps Total | L101: + | M101: NB | Q101: NB | R101: + | S101: Coût | T101: Temps | U101: Coût Total | V101: Temps Total | W101: + | X101: NB | AB101: NB | AC101: + | AD101: Coût | AE101: Temps | AF101: Coût Total | AG101: Temps Total
A102: 1 | B102: =IF(Paramètres!M6=0,"",Paramètres!M6) ->  | C102: =IF(C101<>0,C101+IF(AND(B101<>"",A101<E$6),B101,0),IF(AND(B101<>"",A101<E$6),B101,0)) -> 0 | F102: =IF(G102<>"/",IF(I$100="Error","Error",$J$100+C102),"/") -> 250 | G102: =IF(I$100="Error","Error",IF(AND($E$100<>"/",$E$100>'Paramètres - Admin'!$A2),'Paramètres - Admin'!$A3,"/")) -> 1 | H102: =IF(G102<>"/",VLOOKUP(G102,COSTS_Wall[#All],2),"/") -> 200 | I102: =IF(G102<>"/",VLOOKUP(G102,COSTS_Wall[#All],3),"/") -> 0 | J102: =IF(I$100="Error","Error",IF(H102<>"/",F102*H102,0)) -> 50000 | K102: =IF(I$100="Error","Error",IF(I102<>"/",F102*I102,0)) -> 0 | L102: 1 | M102: =IF(Paramètres!Q6=0,"",Paramètres!Q6) ->  | N102: =IF(N101<>0,N101+IF(AND(M101<>"",L101<E$6),M101,0),IF(AND(M101<>"",L101<E$6),M101,0)) -> 0 | Q102: =IF(R102<>"/",IF(T$100="Error","Error",$U$100+N102),"/") -> 4 | R102: =IF(T$100="Error","Error",IF(AND($P$100<>"/",$P$100>'Paramètres - Admin'!$A2),'Paramètres - Admin'!$A3,"/")) -> 1 | S102: =IF(R102<>"/",VLOOKUP(R102,COSTS_Air_Defense[#All],2),"/") -> 22500 | T102: =IF(R102<>"/",VLOOKUP(R102,COSTS_Air_Defense[#All],3),"/") -> 5 | U102: =IF(T$100="Error","Error",IF(S102<>"/",Q102*S102,0)) -> 90000 | V102: =IF(T$100="Error","Error",IF(T102<>"/",Q102*T102,0)) -> 20 | W102: 1 | X102: =IF(Paramètres!Y6=0,"",Paramètres!Y6) ->  | Y102: =IF(Y101<>0,Y101+IF(AND(X101<>"",W101<P$6),X101,0),IF(AND(X101<>"",W101<P$6),X101,0)) -> 0 | AB102: =IF(AC102<>"/",IF(AE$100="Error","Error",$AF$100+Y102),"/") -> 6 | AC102: =IF(AE$100="Error","Error",IF(AND($AA$100<>"/",$AA$100>'Paramètres - Admin'!$A2),'Paramètres - Admin'!$A3,"/")) -> 1 | AD102: =IF(AC102<>"/",VLOOKUP(AC102,COSTS_Bombe[#All],2),"/") -> 400 | AE102: =IF(AC102<>"/",VLOOKUP(AC102,COSTS_Bombe[#All],3),"/") -> 0 | AF102: =IF(AE$100="Error","Error",IF(AD102<>"/",AB102*AD102,0)) -> 2400 | AG102: =IF(AE$100="Error","Error",IF(AE102<>"/",AB102*AE102,0)) -> 0
A103: 2 | B103: =IF(Paramètres!M7=0,"",Paramètres!M7) ->  | C103: 0 | F103: 250 | G103: =IF(I$100="Error","Error",IF(AND($E$100<>"/",$E$100>'Paramètres - Admin'!$A3),'Paramètres - Admin'!$A4,"/")) -> 2 | H103: =IF(G103<>"/",VLOOKUP(G103,COSTS_Wall[#All],2),"/") -> 1000 | I103: =IF(G103<>"/",VLOOKUP(G103,COSTS_Wall[#All],3),"/") -> 0 | J103: 250000 | K103: 0 | L103: 2 | M103: =IF(Paramètres!Q7=0,"",Paramètres!Q7) ->  | N103: 0 | Q103: 4 | R103: =IF(T$100="Error","Error",IF(AND($P$100<>"/",$P$100>'Paramètres - Admin'!$A3),'Paramètres - Admin'!$A4,"/")) -> 2 | S103: =IF(R103<>"/",VLOOKUP(R103,COSTS_Air_Defense[#All],2),"/") -> 90000 | T103: =IF(R103<>"/",VLOOKUP(R103,COSTS_Air_Defense[#All],3),"/") -> 24 | U103: 360000 | V103: 96 | W103: 2 | X103: =IF(Paramètres!Y7=0,"",Paramètres!Y7) ->  | Y103: 0 | AB103: 6 | AC103: =IF(AE$100="Error","Error",IF(AND($AA$100<>"/",$AA$100>'Paramètres - Admin'!$A3),'Paramètres - Admin'!$A4,"/")) -> 2 | AD103: =IF(AC103<>"/",VLOOKUP(AC103,COSTS_Bombe[#All],2),"/") -> 1000 | AE103: =IF(AC103<>"/",VLOOKUP(AC103,COSTS_Bombe[#All],3),"/") -> 0.25 | AF103: 6000 | AG103: 1.5
A104: 3 | B104: =IF(Paramètres!M8=0,"",Paramètres!M8) ->  | C104: 0 | F104: 250 | G104: =IF(I$100="Error","Error",IF(AND($E$100<>"/",$E$100>'Paramètres - Admin'!$A4),'Paramètres - Admin'!$A5,"/")) -> 3 | H104: =IF(G104<>"/",VLOOKUP(G104,COSTS_Wall[#All],2),"/") -> 5000 | I104: =IF(G104<>"/",VLOOKUP(G104,COSTS_Wall[#All],3),"/") -> 0 | J104: 1250000 | K104: 0 | L104: 3 | M104: =IF(Paramètres!Q8=0,"",Paramètres!Q8) ->  | N104: 0 | Q104: 4 | R104: =IF(T$100="Error","Error",IF(AND($P$100<>"/",$P$100>'Paramètres - Admin'!$A4),'Paramètres - Admin'!$A5,"/")) -> 3 | S104: =IF(R104<>"/",VLOOKUP(R104,COSTS_Air_Defense[#All],2),"/") -> 270000 | T104: =IF(R104<>"/",VLOOKUP(R104,COSTS_Air_Defense[#All],3),"/") -> 72 | U104: 1080000 | V104: 288 | W104: 3 | X104: =IF(Paramètres!Y8=0,"",Paramètres!Y8) ->  | Y104: 0 | AB104: 6 | AC104: =IF(AE$100="Error","Error",IF(AND($AA$100<>"/",$AA$100>'Paramètres - Admin'!$A4),'Paramètres - Admin'!$A5,"/")) -> 3 | AD104: =IF(AC104<>"/",VLOOKUP(AC104,COSTS_Bombe[#All],2),"/") -> 10000 | AE104: =IF(AC104<>"/",VLOOKUP(AC104,COSTS_Bombe[#All],3),"/") -> 2 | AF104: 60000 | AG104: 12
A105: 4 | B105: =IF(Paramètres!M9=0,"",Paramètres!M9) ->  | C105: 0 | F105: 250 | G105: =IF(I$100="Error","Error",IF(AND($E$100<>"/",$E$100>'Paramètres - Admin'!$A5),'Paramètres - Admin'!$A6,"/")) -> 4 | H105: =IF(G105<>"/",VLOOKUP(G105,COSTS_Wall[#All],2),"/") -> 10000 | I105: =IF(G105<>"/",VLOOKUP(G105,COSTS_Wall[#All],3),"/") -> 0 | J105: 2500000 | K105: 0 | L105: 4 | M105: =IF(Paramètres!Q9=0,"",Paramètres!Q9) ->  | N105: 0 | Q105: 4 | R105: =IF(T$100="Error","Error",IF(AND($P$100<>"/",$P$100>'Paramètres - Admin'!$A5),'Paramètres - Admin'!$A6,"/")) -> 4 | S105: =IF(R105<>"/",VLOOKUP(R105,COSTS_Air_Defense[#All],2),"/") -> 540000 | T105: =IF(R105<>"/",VLOOKUP(R105,COSTS_Air_Defense[#All],3),"/") -> 120 | U105: 2160000 | V105: 480 | W105: 4 | X105: =IF(Paramètres!Y9=0,"",Paramètres!Y9) ->  | Y105: 0 | AB105: 6 | AC105: =IF(AE$100="Error","Error",IF(AND($AA$100<>"/",$AA$100>'Paramètres - Admin'!$A5),'Paramètres - Admin'!$A6,"/")) -> 4 | AD105: =IF(AC105<>"/",VLOOKUP(AC105,COSTS_Bombe[#All],2),"/") -> 100000 | AE105: =IF(AC105<>"/",VLOOKUP(AC105,COSTS_Bombe[#All],3),"/") -> 8 | AF105: 600000 | AG105: 48
A106: 5 | B106: =IF(Paramètres!M10=0,"",Paramètres!M10) ->  | C106: 0 | F106: 250 | G106: =IF(I$100="Error","Error",IF(AND($E$100<>"/",$E$100>'Paramètres - Admin'!$A6),'Paramètres - Admin'!$A7,"/")) -> 5 | H106: =IF(G106<>"/",VLOOKUP(G106,COSTS_Wall[#All],2),"/") -> 30000 | I106: =IF(G106<>"/",VLOOKUP(G106,COSTS_Wall[#All],3),"/") -> 0 | J106: 7500000 | K106: 0 | L106: 5 | M106: =IF(Paramètres!Q10=0,"",Paramètres!Q10) ->  | N106: 0 | Q106: 4 | R106: =IF(T$100="Error","Error",IF(AND($P$100<>"/",$P$100>'Paramètres - Admin'!$A6),'Paramètres - Admin'!$A7,"/")) -> 5 | S106: =IF(R106<>"/",VLOOKUP(R106,COSTS_Air_Defense[#All],2),"/") -> 1080000 | T106: =IF(R106<>"/",VLOOKUP(R106,COSTS_Air_Defense[#All],3),"/") -> 144 | U106: 4320000 | V106: 576 | W106: 5 | X106: =IF(Paramètres!Y10=0,"",Paramètres!Y10) ->  | Y106: 0 | AB106: 6 | AC106: =IF(AE$100="Error","Error",IF(AND($AA$100<>"/",$AA$100>'Paramètres - Admin'!$A6),'Paramètres - Admin'!$A7,"/")) -> 5 | AD106: =IF(AC106<>"/",VLOOKUP(AC106,COSTS_Bombe[#All],2),"/") -> 1000000 | AE106: =IF(AC106<>"/",VLOOKUP(AC106,COSTS_Bombe[#All],3),"/") -> 24 | AF106: 6000000 | AG106: 144
A107: 6 | B107: =IF(Paramètres!M11=0,"",Paramètres!M11) ->  | C107: 0 | F107: 250 | G107: =IF(I$100="Error","Error",IF(AND($E$100<>"/",$E$100>'Paramètres - Admin'!$A7),'Paramètres - Admin'!$A8,"/")) -> 6 | H107: =IF(G107<>"/",VLOOKUP(G107,COSTS_Wall[#All],2),"/") -> 75000 | I107: =IF(G107<>"/",VLOOKUP(G107,COSTS_Wall[#All],3),"/") -> 0 | J107: 18750000 | K107: 0 | L107: 6 | M107: =IF(Paramètres!Q11=0,"",Paramètres!Q11) ->  | N107: 0 | Q107: 4 | R107: =IF(T$100="Error","Error",IF(AND($P$100<>"/",$P$100>'Paramètres - Admin'!$A7),'Paramètres - Admin'!$A8,"/")) -> 6 | S107: =IF(R107<>"/",VLOOKUP(R107,COSTS_Air_Defense[#All],2),"/") -> 2160000 | T107: =IF(R107<>"/",VLOOKUP(R107,COSTS_Air_Defense[#All],3),"/") -> 192 | U107: 8640000 | V107: 768 | W107: 6 | X107: =IF(Paramètres!Y11=0,"",Paramètres!Y11) ->  | Y107: 0 | AB107: =IF(AC107<>"/",IF(AE$100="Error","Error",$AF$100+Y107),"/") -> 6 | AC107: =IF(AE$100="Error","Error",IF(AND($AA$100<>"/",$AA$100>'Paramètres - Admin'!$A7),'Paramètres - Admin'!$A8,"/")) -> 6 | AD107: =IF(AC107<>"/",VLOOKUP(AC107,COSTS_Bombe[#All],2),"/") -> 1500000 | AE107: =IF(AC107<>"/",VLOOKUP(AC107,COSTS_Bombe[#All],3),"/") -> 48 | AF107: 9000000 | AG107: 288
A108: 7 | B108: =IF(Paramètres!M12=0,"",Paramètres!M12) ->  | C108: 0 | F108: 250 | G108: =IF(I$100="Error","Error",IF(AND($E$100<>"/",$E$100>'Paramètres - Admin'!$A8),'Paramètres - Admin'!$A9,"/")) -> 7 | H108: =IF(G108<>"/",VLOOKUP(G108,COSTS_Wall[#All],2),"/") -> 200000 | I108: =IF(G108<>"/",VLOOKUP(G108,COSTS_Wall[#All],3),"/") -> 0 | J108: 50000000 | K108: 0 | L108: 7 | M108: =IF(Paramètres!Q12=0,"",Paramètres!Q12) ->  | N108: 0 | Q108: 4 | R108: =IF(T$100="Error","Error",IF(AND($P$100<>"/",$P$100>'Paramètres - Admin'!$A8),'Paramètres - Admin'!$A9,"/")) -> 7 | S108: =IF(R108<>"/",VLOOKUP(R108,COSTS_Air_Defense[#All],2),"/") -> 4320000 | T108: =IF(R108<>"/",VLOOKUP(R108,COSTS_Air_Defense[#All],3),"/") -> 240 | U108: 17280000 | V108: 960 | AE108: Total | AF108: =IF(AE$100="Error","Error",SUM(AF100:AF107)) -> 15668406 | AG108: =IF(AE$100="Error","Error",SUM(AG102:AG107)) -> 493.5
A109: 8 | B109: =IF(Paramètres!M13=0,"",Paramètres!M13) ->  | C109: 0 | F109: 250 | G109: =IF(I$100="Error","Error",IF(AND($E$100<>"/",$E$100>'Paramètres - Admin'!$A9),'Paramètres - Admin'!$A10,"/")) -> 8 | H109: =IF(G109<>"/",VLOOKUP(G109,COSTS_Wall[#All],2),"/") -> 500000 | I109: =IF(G109<>"/",VLOOKUP(G109,COSTS_Wall[#All],3),"/") -> 0 | J109: 125000000 | K109: 0 | L109: 8 | M109: =IF(Paramètres!Q13=0,"",Paramètres!Q13) ->  | N109: 0 | Q109: 4 | R109: =IF(T$100="Error","Error",IF(AND($P$100<>"/",$P$100>'Paramètres - Admin'!$A9),'Paramètres - Admin'!$A10,"/")) -> 8 | S109: =IF(R109<>"/",VLOOKUP(R109,COSTS_Air_Defense[#All],2),"/") -> 7560000 | T109: =IF(R109<>"/",VLOOKUP(R109,COSTS_Air_Defense[#All],3),"/") -> 288 | U109: 30240000 | V109: 1152 | W109: Mine chercheuse | Z109: Max | AA109: Max + | AE109: Actuel | AF109: À Faire | AG109: Améliorations
A110: 9 | B110: =IF(Paramètres!M14=0,"",Paramètres!M14) ->  | C110: 0 | F110: =IF(G110<>"/",IF(I$100="Error","Error",$J$100+C110),"/") -> 250 | G110: =IF(I$100="Error","Error",IF(AND($E$100<>"/",$E$100>'Paramètres - Admin'!$A10),'Paramètres - Admin'!$A11,"/")) -> 9 | H110: =IF(G110<>"/",VLOOKUP(G110,COSTS_Wall[#All],2),"/") -> 1000000 | I110: =IF(G110<>"/",VLOOKUP(G110,COSTS_Wall[#All],3),"/") -> 0 | J110: =IF(I$100="Error","Error",IF(H110<>"/",F110*H110,0)) -> 250000000 | K110: =IF(I$100="Error","Error",IF(I110<>"/",F110*I110,0)) -> 0 | T110: Total | U110: =IF(T$100="Error","Error",SUM(U102:U109)) -> 64170000 | V110: =IF(T$100="Error","Error",SUM(V102:V109)) -> 4340 | Z110: =VLOOKUP($A$2,AVAILABLE_Traps[#All],MATCH(W109,AVAILABLE_Traps[#Headers],0)) -> 5 | AA110: =VLOOKUP($A$2,AVAILABLE_Traps[#All],MATCH(W109,AVAILABLE_Traps[#Headers],0)+1) -> 3 | AE110: =IF(SUM(X112:X114)>Z110,"Error",SUM(X112:X114)) -> 0 | AF110: =IF(AE$110="Error","Error",Z110-AE110) -> 5 | AG110: =IF(AE$110="Error","Error",SUM(AB112:AB114)) -> 15
A111: 10 | B111: =IF(Paramètres!M15=0,"",Paramètres!M15) ->  | C111: 0 | F111: =IF(G111<>"/",IF(I$100="Error","Error",$J$100+C111),"/") -> 250 | G111: =IF(I$100="Error","Error",IF(AND($E$100<>"/",$E$100>'Paramètres - Admin'!$A11),'Paramètres - Admin'!$A12,"/")) -> 10 | H111: =IF(G111<>"/",VLOOKUP(G111,COSTS_Wall[#All],2),"/") -> 3000000 | I111: =IF(G111<>"/",VLOOKUP(G111,COSTS_Wall[#All],3),"/") -> 0 | J111: =IF(I$100="Error","Error",IF(H111<>"/",F111*H111,0)) -> 750000000 | K111: =IF(I$100="Error","Error",IF(I111<>"/",F111*I111,0)) -> 0 | L111: Tour de Sorciers | O111: Max | P111: Max + | T111: Actuel | U111: À Faire | V111: Améliorations | W111: + | X111: NB | AB111: NB | AC111: + | AD111: Coût | AE111: Temps | AF111: Coût Total | AG111: Temps Total
A112: 11 | B112: =IF(Paramètres!M16=0,"",Paramètres!M16) ->  | C112: 0 | F112: =IF(G112<>"/",IF(I$100="Error","Error",$J$100+C112),"/") -> 250 | G112: =IF(I$100="Error","Error",IF(AND($E$100<>"/",$E$100>'Paramètres - Admin'!$A12),'Paramètres - Admin'!$A13,"/")) -> 11 | H112: =IF(G112<>"/",VLOOKUP(G112,COSTS_Wall[#All],2),"/") -> 4000000 | I112: =IF(G112<>"/",VLOOKUP(G112,COSTS_Wall[#All],3),"/") -> 0 | J112: =IF(I$100="Error","Error",IF(H112<>"/",F112*H112,0)) -> 1000000000 | K112: =IF(I$100="Error","Error",IF(I112<>"/",F112*I112,0)) -> 0 | O112: =VLOOKUP($A$2,AVAILABLE_Buildings_Defensive[#All],MATCH(L111,AVAILABLE_Buildings_Defensive[#Headers],0)) -> 4 | P112: =VLOOKUP($A$2,AVAILABLE_Buildings_Defensive[#All],MATCH(L111,AVAILABLE_Buildings_Defensive[#Headers],0)+1) -> 8 | T112: =IF(SUM(M114:M121)>O112,"Error",SUM(M114:M121)) -> 0 | U112: =IF(T$112="Error","Error",O112-T112) -> 4 | V112: =IF(T$112="Error","Error",SUM(Q114:Q121)) -> 32 | W112: 1 | X112: =IF(Paramètres!Z6=0,"",Paramètres!Z6) ->  | Y112: =IF(Y111<>0,Y111+IF(AND(X111<>"",W111<P$6),X111,0),IF(AND(X111<>"",W111<P$6),X111,0)) -> 0 | AB112: =IF(AC112<>"/",IF(AE$110="Error","Error",$AF$110+Y112),"/") -> 5 | AC112: =IF(AE$110="Error","Error",IF(AND($AA$110<>"/",AA$110>'Paramètres - Admin'!$A2),'Paramètres - Admin'!$A3,"/")) -> 1 | AD112: =IF(AC112<>"/",VLOOKUP(AC112,COSTS_Mine_chercheuse[#All],2),"/") -> 15000 | AE112: =IF(AC112<>"/",VLOOKUP(AC112,COSTS_Mine_chercheuse[#All],3),"/") -> 0 | AF112: =IF(AE$110="Error","Error",IF(AD112<>"/",AB112*AD112,0)) -> 75000 | AG112: =IF(AE$110="Error","Error",IF(AE112<>"/",AB112*AE112,0)) -> 0
I113: Total | J113: =IF(I$100="Error","Error",SUM(J102:J112)) -> 2205300000 | K113: =IF(I$100="Error","Error",SUM(K102:K112)) -> 0 | L113: + | M113: NB | Q113: NB | R113: + | S113: Coût | T113: Temps | U113: Coût Total | V113: Temps Total | W113: 2 | X113: =IF(Paramètres!Z7=0,"",Paramètres!Z7) ->  | Y113: 0 | AB113: =IF(AC113<>"/",IF(AE$110="Error","Error",$AF$110+Y113),"/") -> 5 | AC113: =IF(AE$110="Error","Error",IF(AND($AA$110<>"/",AA$110>'Paramètres - Admin'!$A3),'Paramètres - Admin'!$A4,"/")) -> 2 | AD113: =IF(AC113<>"/",VLOOKUP(AC113,COSTS_Mine_chercheuse[#All],2),"/") -> 2000000 | AE113: =IF(AC113<>"/",VLOOKUP(AC113,COSTS_Mine_chercheuse[#All],3),"/") -> 24 | AF113: =IF(AE$110="Error","Error",IF(AD113<>"/",AB113*AD113,0)) -> 10000000 | AG113: =IF(AE$110="Error","Error",IF(AE113<>"/",AB113*AE113,0)) -> 120
A114: Canon | D114: Max | E114: Max + | I114: Actuel | J114: À Faire | K114: Améliorations | L114: 1 | M114: =IF(Paramètres!R6=0,"",Paramètres!R6) ->  | N114: =IF(N113<>0,N113+IF(AND(M113<>"",L113<P$6),M113,0),IF(AND(M113<>"",L113<P$6),M113,0)) -> 0 | Q114: =IF(R114<>"/",IF(T$112="Error","Error",$U$112+N114),"/") -> 4 | R114: =IF(T$112="Error","Error",IF(AND($P$112<>"/",$P$112>'Paramètres - Admin'!$A2),'Paramètres - Admin'!$A3,"/")) -> 1 | S114: =IF(R114<>"/",VLOOKUP(R114,COSTS_Wizard_Tower[#All],2),"/") -> 180000 | T114: =IF(R114<>"/",VLOOKUP(R114,COSTS_Wizard_Tower[#All],3),"/") -> 12 | U114: =IF(T$112="Error","Error",IF(S114<>"/",Q114*S114,0)) -> 720000 | V114: =IF(T$112="Error","Error",IF(T114<>"/",Q114*T114,0)) -> 48 | W114: 3 | X114: =IF(Paramètres!Z8=0,"",Paramètres!Z8) ->  | Y114: 0 | AB114: 5 | AC114: =IF(AE$110="Error","Error",IF(AND($AA$110<>"/",AA$110>'Paramètres - Admin'!$A4),'Paramètres - Admin'!$A5,"/")) -> 3 | AD114: =IF(AC114<>"/",VLOOKUP(AC114,COSTS_Mine_chercheuse[#All],2),"/") -> 4000000 | AE114: =IF(AC114<>"/",VLOOKUP(AC114,COSTS_Mine_chercheuse[#All],3),"/") -> 72 | AF114: 20000000 | AG114: 360
D115: =VLOOKUP($A$2,AVAILABLE_Buildings_Defensive[#All],MATCH(A114,AVAILABLE_Buildings_Defensive[#Headers],0)) -> 6 | E115: =VLOOKUP($A$2,AVAILABLE_Buildings_Defensive[#All],MATCH(A114,AVAILABLE_Buildings_Defensive[#Headers],0)+1) -> 13 | I115: =IF(SUM(B117:B128)>D115,"Error",SUM(B117:B128)) -> 0 | J115: =IF(I$115="Error","Error",D115-I115) -> 6 | K115: =IF(I$115="Error","Error",SUM(F117:F128)) -> 72 | L115: 2 | M115: =IF(Paramètres!R7=0,"",Paramètres!R7) ->  | N115: 0 | Q115: 4 | R115: =IF(T$112="Error","Error",IF(AND($P$112<>"/",$P$112>'Paramètres - Admin'!$A3),'Paramètres - Admin'!$A4,"/")) -> 2 | S115: =IF(R115<>"/",VLOOKUP(R115,COSTS_Wizard_Tower[#All],2),"/") -> 360000 | T115: =IF(R115<>"/",VLOOKUP(R115,COSTS_Wizard_Tower[#All],3),"/") -> 24 | U115: 1440000 | V115: 96 | AE115: Total | AF115: =IF(AE$110="Error","Error",SUM(AF112:AF114)) -> 30075000 | AG115: =IF(AE$110="Error","Error",SUM(AG112:AG114)) -> 480
A116: + | B116: NB | F116: NB | G116: + | H116: Coût | I116: Temps | J116: Coût Total | K116: Temps Total | L116: 3 | M116: =IF(Paramètres!R8=0,"",Paramètres!R8) ->  | N116: 0 | Q116: 4 | R116: =IF(T$112="Error","Error",IF(AND($P$112<>"/",$P$112>'Paramètres - Admin'!$A4),'Paramètres - Admin'!$A5,"/")) -> 3 | S116: =IF(R116<>"/",VLOOKUP(R116,COSTS_Wizard_Tower[#All],2),"/") -> 720000 | T116: =IF(R116<>"/",VLOOKUP(R116,COSTS_Wizard_Tower[#All],3),"/") -> 48 | U116: 2880000 | V116: 192 | W116: Bombe géante | Z116: Max | AA116: Max + | AE116: Actuel | AF116: À Faire | AG116: Améliorations
A117: 1 | B117: =IF(Paramètres!N6=0,"",Paramètres!N6) ->  | C117: =IF(C116<>0,C116+IF(AND(B116<>"",A116<E$6),B116,0),IF(AND(B116<>"",A116<E$6),B116,0)) -> 0 | F117: =IF(G117<>"/",IF(I$115="Error","Error",$J$115+C117),"/") -> 6 | G117: =IF(I$115="Error","Error",IF(AND($E$115<>"/",$E$115>'Paramètres - Admin'!$A2),'Paramètres - Admin'!$A3,"/")) -> 1 | H117: =IF(G117<>"/",VLOOKUP(G117,COSTS_Cannon[#All],2),"/") -> 250 | I117: =IF(G117<>"/",VLOOKUP(G117,COSTS_Cannon[#All],3),"/") -> 0.01666666667 | J117: =IF(I$115="Error","Error",IF(H117<>"/",F117*H117,0)) -> 1500 | K117: =IF(I$115="Error","Error",IF(I117<>"/",F117*I117,0)) -> 0.1 | L117: 4 | M117: =IF(Paramètres!R9=0,"",Paramètres!R9) ->  | N117: 0 | Q117: 4 | R117: =IF(T$112="Error","Error",IF(AND($P$112<>"/",$P$112>'Paramètres - Admin'!$A5),'Paramètres - Admin'!$A6,"/")) -> 4 | S117: =IF(R117<>"/",VLOOKUP(R117,COSTS_Wizard_Tower[#All],2),"/") -> 1280000 | T117: =IF(R117<>"/",VLOOKUP(R117,COSTS_Wizard_Tower[#All],3),"/") -> 72 | U117: 5120000 | V117: 288 | Z117: =VLOOKUP($A$2,AVAILABLE_Traps[#All],MATCH(W116,AVAILABLE_Traps[#Headers],0)) -> 5 | AA117: =VLOOKUP($A$2,AVAILABLE_Traps[#All],MATCH(W116,AVAILABLE_Traps[#Headers],0)+1) -> 4 | AE117: =IF(SUM(X119:X122)>Z117,"Error",SUM(X119:X122)) -> 0 | AF117: =IF(AE$117="Error","Error",Z117-AE117) -> 5 | AG117: =IF(AE$117="Error","Error",SUM(AB119:AB121)) -> 15
A118: 2 | B118: =IF(Paramètres!N7=0,"",Paramètres!N7) ->  | C118: 0 | F118: 6 | G118: =IF(I$115="Error","Error",IF(AND($E$115<>"/",$E$115>'Paramètres - Admin'!$A3),'Paramètres - Admin'!$A4,"/")) -> 2 | H118: =IF(G118<>"/",VLOOKUP(G118,COSTS_Cannon[#All],2),"/") -> 1000 | I118: =IF(G118<>"/",VLOOKUP(G118,COSTS_Cannon[#All],3),"/") -> 0.25 | J118: 6000 | K118: 1.5 | L118: 5 | M118: =IF(Paramètres!R10=0,"",Paramètres!R10) ->  | N118: 0 | Q118: 4 | R118: =IF(T$112="Error","Error",IF(AND($P$112<>"/",$P$112>'Paramètres - Admin'!$A6),'Paramètres - Admin'!$A7,"/")) -> 5 | S118: =IF(R118<>"/",VLOOKUP(R118,COSTS_Wizard_Tower[#All],2),"/") -> 1960000 | T118: =IF(R118<>"/",VLOOKUP(R118,COSTS_Wizard_Tower[#All],3),"/") -> 96 | U118: 7840000 | V118: 384 | W118: + | X118: NB | AB118: NB | AC118: + | AD118: Coût | AE118: Temps | AF118: Coût Total | AG118: Temps Total
A119: 3 | B119: =IF(Paramètres!N8=0,"",Paramètres!N8) ->  | C119: 0 | F119: 6 | G119: =IF(I$115="Error","Error",IF(AND($E$115<>"/",$E$115>'Paramètres - Admin'!$A4),'Paramètres - Admin'!$A5,"/")) -> 3 | H119: =IF(G119<>"/",VLOOKUP(G119,COSTS_Cannon[#All],2),"/") -> 4000 | I119: =IF(G119<>"/",VLOOKUP(G119,COSTS_Cannon[#All],3),"/") -> 0.75 | J119: 24000 | K119: 4.5 | L119: 6 | M119: =IF(Paramètres!R11=0,"",Paramètres!R11) ->  | N119: 0 | Q119: 4 | R119: =IF(T$112="Error","Error",IF(AND($P$112<>"/",$P$112>'Paramètres - Admin'!$A7),'Paramètres - Admin'!$A8,"/")) -> 6 | S119: =IF(R119<>"/",VLOOKUP(R119,COSTS_Wizard_Tower[#All],2),"/") -> 2680000 | T119: =IF(R119<>"/",VLOOKUP(R119,COSTS_Wizard_Tower[#All],3),"/") -> 120 | U119: 10720000 | V119: 480 | W119: 1 | X119: =IF(Paramètres!AA6=0,"",Paramètres!AA6) ->  | Y119: =IF(Y118<>0,Y118+IF(AND(X118<>"",W118<P$6),X118,0),IF(AND(X118<>"",W118<P$6),X118,0)) -> 0 | AB119: =IF(AC119<>"/",IF(AE$117="Error","Error",$AF$117+Y119),"/") -> 5 | AC119: =IF(AE$117="Error","Error",IF(AND($AA$117<>"/",$AA$117>'Paramètres - Admin'!$A2),'Paramètres - Admin'!$A3,"/")) -> 1 | AD119: =IF(AC119<>"/",VLOOKUP(AC119,COSTS_Bombe_géante[#All],2),"/") -> 12500 | AE119: =IF(AC119<>"/",VLOOKUP(AC119,COSTS_Bombe_géante[#All],3),"/") -> 0 | AF119: =IF(AE$117="Error","Error",IF(AD119<>"/",AB119*AD119,0)) -> 62500 | AG119: =IF(AE$117="Error","Error",IF(AE119<>"/",AB119*AE119,0)) -> 0
A120: 4 | B120: =IF(Paramètres!N9=0,"",Paramètres!N9) ->  | C120: 0 | F120: 6 | G120: =IF(I$115="Error","Error",IF(AND($E$115<>"/",$E$115>'Paramètres - Admin'!$A5),'Paramètres - Admin'!$A6,"/")) -> 4 | H120: =IF(G120<>"/",VLOOKUP(G120,COSTS_Cannon[#All],2),"/") -> 16000 | I120: =IF(G120<>"/",VLOOKUP(G120,COSTS_Cannon[#All],3),"/") -> 2 | J120: 96000 | K120: 12 | L120: 7 | M120: =IF(Paramètres!R12=0,"",Paramètres!R12) ->  | N120: =IF(N119<>0,N119+IF(AND(M119<>"",L119<P$6),M119,0),IF(AND(M119<>"",L119<P$6),M119,0)) -> 0 | Q120: =IF(R120<>"/",IF(T$112="Error","Error",$U$112+N120),"/") -> 4 | R120: =IF(T$112="Error","Error",IF(AND($P$112<>"/",$P$112>'Paramètres - Admin'!$A8),'Paramètres - Admin'!$A9,"/")) -> 7 | S120: =IF(R120<>"/",VLOOKUP(R120,COSTS_Wizard_Tower[#All],2),"/") -> 5360000 | T120: =IF(R120<>"/",VLOOKUP(R120,COSTS_Wizard_Tower[#All],3),"/") -> 168 | U120: =IF(T$112="Error","Error",IF(S120<>"/",Q120*S120,0)) -> 21440000 | V120: =IF(T$112="Error","Error",IF(T120<>"/",Q120*T120,0)) -> 672 | W120: 2 | X120: =IF(Paramètres!AA7=0,"",Paramètres!AA7) ->  | Y120: 0 | AB120: =IF(AC120<>"/",IF(AE$117="Error","Error",$AF$117+Y120),"/") -> 5 | AC120: =IF(AE$117="Error","Error",IF(AND($AA$117<>"/",$AA$117>'Paramètres - Admin'!$A3),'Paramètres - Admin'!$A4,"/")) -> 2 | AD120: =IF(AC120<>"/",VLOOKUP(AC120,COSTS_Bombe_géante[#All],2),"/") -> 75000 | AE120: =IF(AC120<>"/",VLOOKUP(AC120,COSTS_Bombe_géante[#All],3),"/") -> 6 | AF120: =IF(AE$117="Error","Error",IF(AD120<>"/",AB120*AD120,0)) -> 375000 | AG120: =IF(AE$117="Error","Error",IF(AE120<>"/",AB120*AE120,0)) -> 30
A121: 5 | B121: =IF(Paramètres!N10=0,"",Paramètres!N10) ->  | C121: 0 | F121: 6 | G121: =IF(I$115="Error","Error",IF(AND($E$115<>"/",$E$115>'Paramètres - Admin'!$A6),'Paramètres - Admin'!$A7,"/")) -> 5 | H121: =IF(G121<>"/",VLOOKUP(G121,COSTS_Cannon[#All],2),"/") -> 50000 | I121: =IF(G121<>"/",VLOOKUP(G121,COSTS_Cannon[#All],3),"/") -> 6 | J121: 300000 | K121: 36 | L121: 8 | M121: =IF(Paramètres!R13=0,"",Paramètres!R13) ->  | N121: =IF(N120<>0,N120+IF(AND(M120<>"",L120<P$6),M120,0),IF(AND(M120<>"",L120<P$6),M120,0)) -> 0 | Q121: =IF(R121<>"/",IF(T$112="Error","Error",$U$112+N121),"/") -> 4 | R121: =IF(T$112="Error","Error",IF(AND($P$112<>"/",$P$112>'Paramètres - Admin'!$A9),'Paramètres - Admin'!$A10,"/")) -> 8 | S121: =IF(R121<>"/",VLOOKUP(R121,COSTS_Wizard_Tower[#All],2),"/") -> 6400000 | T121: =IF(R121<>"/",VLOOKUP(R121,COSTS_Wizard_Tower[#All],3),"/") -> 240 | U121: =IF(T$112="Error","Error",IF(S121<>"/",Q121*S121,0)) -> 25600000 | V121: =IF(T$112="Error","Error",IF(T121<>"/",Q121*T121,0)) -> 960 | W121: 3 | X121: =IF(Paramètres!AA8=0,"",Paramètres!AA8) ->  | Y121: 0 | AB121: 5 | AC121: =IF(AE$117="Error","Error",IF(AND($AA$117<>"/",$AA$117>'Paramètres - Admin'!$A4),'Paramètres - Admin'!$A5,"/")) -> 3 | AD121: =IF(AC121<>"/",VLOOKUP(AC121,COSTS_Bombe_géante[#All],2),"/") -> 750000 | AE121: =IF(AC121<>"/",VLOOKUP(AC121,COSTS_Bombe_géante[#All],3),"/") -> 24 | AF121: 3750000 | AG121: 120
A122: 6 | B122: =IF(Paramètres!N11=0,"",Paramètres!N11) ->  | C122: 0 | F122: 6 | G122: =IF(I$115="Error","Error",IF(AND($E$115<>"/",$E$115>'Paramètres - Admin'!$A7),'Paramètres - Admin'!$A8,"/")) -> 6 | H122: =IF(G122<>"/",VLOOKUP(G122,COSTS_Cannon[#All],2),"/") -> 100000 | I122: =IF(G122<>"/",VLOOKUP(G122,COSTS_Cannon[#All],3),"/") -> 12 | J122: 600000 | K122: 72 | T122: Total | U122: =IF(T$112="Error","Error",SUM(U114:U121)) -> 75760000 | V122: =IF(T$112="Error","Error",SUM(V114:V121)) -> 3120 | W122: 4 | X122: =IF(Paramètres!AA9=0,"",Paramètres!AA9) ->  | Y122: 0 | AB122: 5 | AC122: =IF(AE$117="Error","Error",IF(AND($AA$117<>"/",$AA$117>'Paramètres - Admin'!$A5),'Paramètres - Admin'!$A6,"/")) -> 4 | AD122: =IF(AC122<>"/",VLOOKUP(AC122,COSTS_Bombe_géante[#All],2),"/") -> 2500000 | AE122: =IF(AC122<>"/",VLOOKUP(AC122,COSTS_Bombe_géante[#All],3),"/") -> 72 | AF122: 12500000 | AG122: 360
A123: 7 | B123: =IF(Paramètres!N12=0,"",Paramètres!N12) ->  | C123: 0 | F123: 6 | G123: =IF(I$115="Error","Error",IF(AND($E$115<>"/",$E$115>'Paramètres - Admin'!$A8),'Paramètres - Admin'!$A9,"/")) -> 7 | H123: =IF(G123<>"/",VLOOKUP(G123,COSTS_Cannon[#All],2),"/") -> 200000 | I123: =IF(G123<>"/",VLOOKUP(G123,COSTS_Cannon[#All],3),"/") -> 24 | J123: 1200000 | K123: 144 | L123: Tesla Camouflée | O123: Max | P123: Max + | T123: Actuel | U123: À Faire | V123: Améliorations | AE123: Total | AF123: =IF(AE$117="Error","Error",SUM(AF119:AF122)) -> 16687500 | AG123: =IF(AE$117="Error","Error",SUM(AG119:AG122)) -> 510
A124: 8 | B124: =IF(Paramètres!N13=0,"",Paramètres!N13) ->  | C124: 0 | F124: 6 | G124: =IF(I$115="Error","Error",IF(AND($E$115<>"/",$E$115>'Paramètres - Admin'!$A9),'Paramètres - Admin'!$A10,"/")) -> 8 | H124: =IF(G124<>"/",VLOOKUP(G124,COSTS_Cannon[#All],2),"/") -> 400000 | I124: =IF(G124<>"/",VLOOKUP(G124,COSTS_Cannon[#All],3),"/") -> 48 | J124: 2400000 | K124: 288 | O124: =VLOOKUP($A$2,AVAILABLE_Buildings_Defensive[#All],MATCH(L123,AVAILABLE_Buildings_Defensive[#Headers],0)) -> 4 | P124: =VLOOKUP($A$2,AVAILABLE_Buildings_Defensive[#All],MATCH(L123,AVAILABLE_Buildings_Defensive[#Headers],0)+1) -> 7 | T124: =IF(SUM(M126:M132)>O124,"Error",SUM(M126:M132)) -> 0 | U124: =IF(T$124="Error","Error",O124-T124) -> 4 | V124: =IF(T$124="Error","Error",SUM(Q126:Q132)) -> 28 | W124: Bombe aérienne | Z124: Max | AA124: Max + | AE124: Actuel | AF124: À Faire | AG124: Améliorations
A125: 9 | B125: =IF(Paramètres!N14=0,"",Paramètres!N14) ->  | C125: 0 | F125: 6 | G125: =IF(I$115="Error","Error",IF(AND($E$115<>"/",$E$115>'Paramètres - Admin'!$A10),'Paramètres - Admin'!$A11,"/")) -> 9 | H125: =IF(G125<>"/",VLOOKUP(G125,COSTS_Cannon[#All],2),"/") -> 800000 | I125: =IF(G125<>"/",VLOOKUP(G125,COSTS_Cannon[#All],3),"/") -> 72 | J125: 4800000 | K125: 432 | L125: + | M125: NB | Q125: NB | R125: + | S125: Coût | T125: Temps | U125: Coût Total | V125: Temps Total | Z125: =VLOOKUP($A$2,AVAILABLE_Traps[#All],MATCH(W124,AVAILABLE_Traps[#Headers],0)) -> 5 | AA125: =VLOOKUP($A$2,AVAILABLE_Traps[#All],MATCH(W124,AVAILABLE_Traps[#Headers],0)+1) -> 4 | AE125: =IF(SUM(X127:X130)>Z125,"Error",SUM(X127:X130)) -> 0 | AF125: =IF(AE$125="Error","Error",Z125-AE125) -> 5 | AG125: =IF(AE$125="Error","Error",SUM(AB127:AB130)) -> 20
A126: 10 | B126: =IF(Paramètres!N15=0,"",Paramètres!N15) ->  | C126: =IF(C125<>0,C125+IF(AND(B125<>"",A125<E$6),B125,0),IF(AND(B125<>"",A125<E$6),B125,0)) -> 0 | F126: 6 | G126: =IF(I$115="Error","Error",IF(AND($E$115<>"/",$E$115>'Paramètres - Admin'!$A11),'Paramètres - Admin'!$A12,"/")) -> 10 | H126: =IF(G126<>"/",VLOOKUP(G126,COSTS_Cannon[#All],2),"/") -> 1600000 | I126: =IF(G126<>"/",VLOOKUP(G126,COSTS_Cannon[#All],3),"/") -> 96 | J126: 9600000 | K126: 576 | L126: 1 | M126: =IF(Paramètres!S6=0,"",Paramètres!S6) ->  | N126: =IF(N125<>0,N125+IF(AND(M125<>"",L125<P$6),M125,0),IF(AND(M125<>"",L125<P$6),M125,0)) -> 0 | Q126: =IF(R126<>"/",IF(T$124="Error","Error",$U$124+N126),"/") -> 4 | R126: =IF(T$124="Error","Error",IF(AND($P$124<>"/",$P$124>'Paramètres - Admin'!$A2),'Paramètres - Admin'!$A3,"/")) -> 1 | S126: =IF(R126<>"/",VLOOKUP(R126,COSTS_Hidden_Tesla[#All],2),"/") -> 1000000 | T126: =IF(R126<>"/",VLOOKUP(R126,COSTS_Hidden_Tesla[#All],3),"/") -> 48 | U126: =IF(T$124="Error","Error",IF(S126<>"/",Q126*S126,0)) -> 4000000 | V126: =IF(T$124="Error","Error",IF(T126<>"/",Q126*T126,0)) -> 192 | W126: + | X126: NB | AB126: NB | AC126: + | AD126: Coût | AE126: Temps | AF126: Coût Total | AG126: Temps Total
A127: 11 | B127: =IF(Paramètres!N16=0,"",Paramètres!N16) ->  | C127: =IF(C126<>0,C126+IF(AND(B126<>"",A126<E$6),B126,0),IF(AND(B126<>"",A126<E$6),B126,0)) -> 0 | F127: =IF(G127<>"/",IF(I$115="Error","Error",$J$115+C127),"/") -> 6 | G127: =IF(I$115="Error","Error",IF(AND($E$115<>"/",$E$115>'Paramètres - Admin'!$A12),'Paramètres - Admin'!$A13,"/")) -> 11 | H127: =IF(G127<>"/",VLOOKUP(G127,COSTS_Cannon[#All],2),"/") -> 3200000 | I127: =IF(G127<>"/",VLOOKUP(G127,COSTS_Cannon[#All],3),"/") -> 120 | J127: =IF(I$115="Error","Error",IF(H127<>"/",F127*H127,0)) -> 19200000 | K127: =IF(I$115="Error","Error",IF(I127<>"/",F127*I127,0)) -> 720 | L127: 2 | M127: =IF(Paramètres!S7=0,"",Paramètres!S7) ->  | N127: 0 | Q127: 4 | R127: =IF(T$124="Error","Error",IF(AND($P$124<>"/",$P$124>'Paramètres - Admin'!$A3),'Paramètres - Admin'!$A4,"/")) -> 2 | S127: =IF(R127<>"/",VLOOKUP(R127,COSTS_Hidden_Tesla[#All],2),"/") -> 1250000 | T127: =IF(R127<>"/",VLOOKUP(R127,COSTS_Hidden_Tesla[#All],3),"/") -> 96 | U127: 5000000 | V127: 384 | W127: 1 | X127: =IF(Paramètres!AB6=0,"",Paramètres!AB6) ->  | Y127: =IF(Y126<>0,Y126+IF(AND(X126<>"",W126<P$6),X126,0),IF(AND(X126<>"",W126<P$6),X126,0)) -> 0 | AB127: =IF(AC127<>"/",IF(AE$125="Error","Error",$AF$125+Y127),"/") -> 5 | AC127: =IF(AE$125="Error","Error",IF(AND($AA$125<>"/",$AA$125>'Paramètres - Admin'!$A2),'Paramètres - Admin'!$A3,"/")) -> 1 | AD127: =IF(AC127<>"/",VLOOKUP(AC127,COSTS_Bombe_aerienne[#All],2),"/") -> 4000 | AE127: =IF(AC127<>"/",VLOOKUP(AC127,COSTS_Bombe_aerienne[#All],3),"/") -> 0 | AF127: =IF(AE$125="Error","Error",IF(AD127<>"/",AB127*AD127,0)) -> 20000 | AG127: =IF(AE$125="Error","Error",IF(AE127<>"/",AB127*AE127,0)) -> 0
A128: 12 | B128: =IF(Paramètres!N17=0,"",Paramètres!N17) ->  | C128: =IF(C127<>0,C127+IF(AND(B127<>"",A127<E$6),B127,0),IF(AND(B127<>"",A127<E$6),B127,0)) -> 0 | F128: =IF(G128<>"/",IF(I$115="Error","Error",$J$115+C128),"/") -> 6 | G128: =IF(I$115="Error","Error",IF(AND($E$115<>"/",$E$115>'Paramètres - Admin'!$A13),'Paramètres - Admin'!$A14,"/")) -> 12 | H128: =IF(G128<>"/",VLOOKUP(G128,COSTS_Cannon[#All],2),"/") -> 6400000 | I128: =IF(G128<>"/",VLOOKUP(G128,COSTS_Cannon[#All],3),"/") -> 144 | J128: =IF(I$115="Error","Error",IF(H128<>"/",F128*H128,0)) -> 38400000 | K128: =IF(I$115="Error","Error",IF(I128<>"/",F128*I128,0)) -> 864 | L128: 3 | M128: =IF(Paramètres!S8=0,"",Paramètres!S8) ->  | N128: 0 | Q128: 4 | R128: =IF(T$124="Error","Error",IF(AND($P$124<>"/",$P$124>'Paramètres - Admin'!$A4),'Paramètres - Admin'!$A5,"/")) -> 3 | S128: =IF(R128<>"/",VLOOKUP(R128,COSTS_Hidden_Tesla[#All],2),"/") -> 1500000 | T128: =IF(R128<>"/",VLOOKUP(R128,COSTS_Hidden_Tesla[#All],3),"/") -> 144 | U128: 6000000 | V128: 576 | W128: 2 | X128: =IF(Paramètres!AB7=0,"",Paramètres!AB7) ->  | Y128: 0 | AB128: =IF(AC128<>"/",IF(AE$125="Error","Error",$AF$125+Y128),"/") -> 5 | AC128: =IF(AE$125="Error","Error",IF(AND($AA$125<>"/",$AA$125>'Paramètres - Admin'!$A3),'Paramètres - Admin'!$A4,"/")) -> 2 | AD128: =IF(AC128<>"/",VLOOKUP(AC128,COSTS_Bombe_aerienne[#All],2),"/") -> 20000 | AE128: =IF(AC128<>"/",VLOOKUP(AC128,COSTS_Bombe_aerienne[#All],3),"/") -> 4 | AF128: =IF(AE$125="Error","Error",IF(AD128<>"/",AB128*AD128,0)) -> 100000 | AG128: =IF(AE$125="Error","Error",IF(AE128<>"/",AB128*AE128,0)) -> 20
A129: 13 | B129: =IF(Paramètres!N18=0,"",Paramètres!N18) ->  | C129: =IF(C128<>0,C128+IF(AND(B128<>"",A128<E$6),B128,0),IF(AND(B128<>"",A128<E$6),B128,0)) -> 0 | F129: =IF(G129<>"/",IF(I$115="Error","Error",$J$115+C129),"/") -> 6 | G129: =IF(I$115="Error","Error",IF(AND($E$115<>"/",$E$115>'Paramètres - Admin'!$A14),'Paramètres - Admin'!$A15,"/")) -> 13 | H129: =IF(G129<>"/",VLOOKUP(G129,COSTS_Cannon[#All],2),"/") -> 7500000 | I129: =IF(G129<>"/",VLOOKUP(G129,COSTS_Cannon[#All],3),"/") -> 168 | J129: =IF(I$115="Error","Error",IF(H129<>"/",F129*H129,0)) -> 45000000 | K129: =IF(I$115="Error","Error",IF(I129<>"/",F129*I129,0)) -> 1008 | L129: 4 | M129: =IF(Paramètres!S9=0,"",Paramètres!S9) ->  | N129: 0 | Q129: 4 | R129: =IF(T$124="Error","Error",IF(AND($P$124<>"/",$P$124>'Paramètres - Admin'!$A5),'Paramètres - Admin'!$A6,"/")) -> 4 | S129: =IF(R129<>"/",VLOOKUP(R129,COSTS_Hidden_Tesla[#All],2),"/") -> 2000000 | T129: =IF(R129<>"/",VLOOKUP(R129,COSTS_Hidden_Tesla[#All],3),"/") -> 192 | U129: 8000000 | V129: 768 | W129: 3 | X129: =IF(Paramètres!AB8=0,"",Paramètres!AB8) ->  | Y129: 0 | AB129: 5 | AC129: =IF(AE$125="Error","Error",IF(AND($AA$125<>"/",$AA$125>'Paramètres - Admin'!$A4),'Paramètres - Admin'!$A5,"/")) -> 3 | AD129: =IF(AC129<>"/",VLOOKUP(AC129,COSTS_Bombe_aerienne[#All],2),"/") -> 200000 | AE129: =IF(AC129<>"/",VLOOKUP(AC129,COSTS_Bombe_aerienne[#All],3),"/") -> 12 | AF129: 1000000 | AG129: 60
I130: Total | J130: =IF(I$115="Error","Error",SUM(J117:J129)) -> 121627500 | K130: =IF(I$115="Error","Error",SUM(K117:K129)) -> 4158.1 | L130: 5 | M130: =IF(Paramètres!S10=0,"",Paramètres!S10) ->  | N130: 0 | Q130: 4 | R130: =IF(T$124="Error","Error",IF(AND($P$124<>"/",$P$124>'Paramètres - Admin'!$A6),'Paramètres - Admin'!$A7,"/")) -> 5 | S130: =IF(R130<>"/",VLOOKUP(R130,COSTS_Hidden_Tesla[#All],2),"/") -> 2500000 | T130: =IF(R130<>"/",VLOOKUP(R130,COSTS_Hidden_Tesla[#All],3),"/") -> 240 | U130: 10000000 | V130: 960 | W130: 4 | X130: =IF(Paramètres!AB9=0,"",Paramètres!AB9) ->  | Y130: 0 | AB130: 5 | AC130: =IF(AE$125="Error","Error",IF(AND($AA$125<>"/",$AA$125>'Paramètres - Admin'!$A5),'Paramètres - Admin'!$A6,"/")) -> 4 | AD130: =IF(AC130<>"/",VLOOKUP(AC130,COSTS_Bombe_aerienne[#All],2),"/") -> 1500000 | AE130: =IF(AC130<>"/",VLOOKUP(AC130,COSTS_Bombe_aerienne[#All],3),"/") -> 24 | AF130: 7500000 | AG130: 120
A131: Tour d'Archers | D131: Max | E131: Max + | I131: Actuel | J131: À Faire | K131: Améliorations | L131: 6 | M131: =IF(Paramètres!S11=0,"",Paramètres!S11) ->  | N131: 0 | Q131: 4 | R131: =IF(T$124="Error","Error",IF(AND($P$124<>"/",$P$124>'Paramètres - Admin'!$A7),'Paramètres - Admin'!$A8,"/")) -> 6 | S131: =IF(R131<>"/",VLOOKUP(R131,COSTS_Hidden_Tesla[#All],2),"/") -> 3000000 | T131: =IF(R131<>"/",VLOOKUP(R131,COSTS_Hidden_Tesla[#All],3),"/") -> 288 | U131: 12000000 | V131: 1152 | AE131: Total | AF131: =IF(AE$125="Error","Error",SUM(AF127:AF130)) -> 8620000 | AG131: =IF(AE$125="Error","Error",SUM(AG127:AG130)) -> 200
D132: =VLOOKUP($A$2,AVAILABLE_Buildings_Defensive[#All],MATCH(A131,AVAILABLE_Buildings_Defensive[#Headers],0)) -> 7 | E132: =VLOOKUP($A$2,AVAILABLE_Buildings_Defensive[#All],MATCH(A131,AVAILABLE_Buildings_Defensive[#Headers],0)+1) -> 13 | I132: =IF(SUM(B134:B145)>D132,"Error",SUM(B134:B145)) -> 0 | J132: =IF(I$132="Error","Error",D132-I132) -> 7 | K132: =IF(I$132="Error","Error",SUM(F134:F145)) -> 84 | L132: 7 | M132: =IF(Paramètres!S12=0,"",Paramètres!S12) ->  | N132: 0 | Q132: 4 | R132: =IF(T$124="Error","Error",IF(AND($P$124<>"/",$P$124>'Paramètres - Admin'!$A8),'Paramètres - Admin'!$A9,"/")) -> 7 | S132: =IF(R132<>"/",VLOOKUP(R132,COSTS_Hidden_Tesla[#All],2),"/") -> 3500000 | T132: =IF(R132<>"/",VLOOKUP(R132,COSTS_Hidden_Tesla[#All],3),"/") -> 336 | U132: 14000000 | V132: 1344 | W132: Piège squelettique | Z132: Max | AA132: Max + | AE132: Actuel | AF132: À Faire | AG132: Améliorations
A133: + | B133: NB | F133: NB | G133: + | H133: Coût | I133: Temps | J133: Coût Total | K133: Temps Total | T133: Total | U133: =IF(T$124="Error","Error",SUM(U126:U132)) -> 59000000 | V133: =IF(T$124="Error","Error",SUM(V126:V132)) -> 5376 | Z133: =VLOOKUP($A$2,AVAILABLE_Traps[#All],MATCH(W132,AVAILABLE_Traps[#Headers],0)) -> 3 | AA133: =VLOOKUP($A$2,AVAILABLE_Traps[#All],MATCH(W132,AVAILABLE_Traps[#Headers],0)+1) -> 3 | AE133: =IF(SUM(X135:X137)>Z133,"Error",SUM(X135:X137)) -> 0 | AF133: =IF(AE$133="Error","Error",Z133-AE133) -> 3 | AG133: =IF(AE$110="Error","Error",SUM(AB135:AB137)) -> 9
A134: 1 | B134: =IF(Paramètres!O6=0,"",Paramètres!O6) ->  | C134: =IF(C133<>0,C133+IF(AND(B133<>"",A133<E$6),B133,0),IF(AND(B133<>"",A133<E$6),B133,0)) -> 0 | F134: =IF(G134<>"/",IF(I$132="Error","Error",$J$132+C134),"/") -> 7 | G134: =IF(I$132="Error","Error",IF(AND($E$132<>"/",$E$132>'Paramètres - Admin'!$A2),'Paramètres - Admin'!$A3,"/")) -> 1 | H134: =IF(G134<>"/",VLOOKUP(G134,COSTS_Archer_Tower[#All],2),"/") -> 1000 | I134: =IF(G134<>"/",VLOOKUP(G134,COSTS_Archer_Tower[#All],3),"/") -> 0.25 | J134: =IF(I$132="Error","Error",IF(H134<>"/",F134*H134,0)) -> 7000 | K134: =IF(I$132="Error","Error",IF(I134<>"/",F134*I134,0)) -> 1.75 | L134: Arc-X | O134: Max | P134: Max + | T134: Actuel | U134: À Faire | V134: Améliorations | W134: + | X134: NB | AB134: NB | AC134: + | AD134: Coût | AE134: Temps | AF134: Coût Total | AG134: Temps Total
A135: 2 | B135: =IF(Paramètres!O7=0,"",Paramètres!O7) ->  | C135: =IF(C134<>0,C134+IF(AND(B134<>"",A134<E$6),B134,0),IF(AND(B134<>"",A134<E$6),B134,0)) -> 0 | F135: =IF(G135<>"/",IF(I$132="Error","Error",$J$132+C135),"/") -> 7 | G135: =IF(I$132="Error","Error",IF(AND($E$132<>"/",$E$132>'Paramètres - Admin'!$A3),'Paramètres - Admin'!$A4,"/")) -> 2 | H135: =IF(G135<>"/",VLOOKUP(G135,COSTS_Archer_Tower[#All],2),"/") -> 2000 | I135: =IF(G135<>"/",VLOOKUP(G135,COSTS_Archer_Tower[#All],3),"/") -> 0.5 | J135: =IF(I$132="Error","Error",IF(H135<>"/",F135*H135,0)) -> 14000 | K135: =IF(I$132="Error","Error",IF(I135<>"/",F135*I135,0)) -> 3.5 | O135: =VLOOKUP($A$2,AVAILABLE_Buildings_Defensive[#All],MATCH(L134,AVAILABLE_Buildings_Defensive[#Headers],0)) -> 3 | P135: =VLOOKUP($A$2,AVAILABLE_Buildings_Defensive[#All],MATCH(L134,AVAILABLE_Buildings_Defensive[#Headers],0)+1) -> 4 | T135: =IF(SUM(M137:M140)>O135,"Error",SUM(M137:M140)) -> 0 | U135: =IF(T$135="Error","Error",O135-T135) -> 3 | V135: =IF(T$135="Error","Error",SUM(Q137:Q140)) -> 12 | W135: 1 | X135: =IF(Paramètres!AC6=0,"",Paramètres!AC6) ->  | Y135: =IF(Y134<>0,Y134+IF(AND(X134<>"",W134<P$6),X134,0),IF(AND(X134<>"",W134<P$6),X134,0)) -> 0 | AB135: =IF(AC135<>"/",IF(AE$133="Error","Error",$AF$133+Y135),"/") -> 3 | AC135: =IF(AE$133="Error","Error",IF(AND($AA$133<>"/",AA$133>'Paramètres - Admin'!$A2),'Paramètres - Admin'!$A3,"/")) -> 1 | AD135: =IF(AC135<>"/",VLOOKUP(AC135,COSTS_Piège_squeletique[#All],2),"/") -> 6000 | AE135: =IF(AC135<>"/",VLOOKUP(AC135,COSTS_Piège_squeletique[#All],3),"/") -> 0 | AF135: =IF(AE$133="Error","Error",IF(AD135<>"/",AB135*AD135,0)) -> 18000 | AG135: =IF(AE$133="Error","Error",IF(AE135<>"/",AB135*AE135,0)) -> 0
A136: 3 | B136: =IF(Paramètres!O8=0,"",Paramètres!O8) ->  | C136: =IF(C135<>0,C135+IF(AND(B135<>"",A135<E$6),B135,0),IF(AND(B135<>"",A135<E$6),B135,0)) -> 0 | F136: =IF(G136<>"/",IF(I$132="Error","Error",$J$132+C136),"/") -> 7 | G136: =IF(I$132="Error","Error",IF(AND($E$132<>"/",$E$132>'Paramètres - Admin'!$A4),'Paramètres - Admin'!$A5,"/")) -> 3 | H136: =IF(G136<>"/",VLOOKUP(G136,COSTS_Archer_Tower[#All],2),"/") -> 5000 | I136: =IF(G136<>"/",VLOOKUP(G136,COSTS_Archer_Tower[#All],3),"/") -> 0.75 | J136: =IF(I$132="Error","Error",IF(H136<>"/",F136*H136,0)) -> 35000 | K136: =IF(I$132="Error","Error",IF(I136<>"/",F136*I136,0)) -> 5.25 | L136: + | M136: NB | Q136: NB | R136: + | S136: Coût | T136: Temps | U136: Coût Total | V136: Temps Total | W136: 2 | X136: =IF(Paramètres!AC7=0,"",Paramètres!AC7) ->  | Y136: 0 | AB136: =IF(AC136<>"/",IF(AE$133="Error","Error",$AF$133+Y136),"/") -> 3 | AC136: =IF(AE$133="Error","Error",IF(AND($AA$133<>"/",AA$133>'Paramètres - Admin'!$A3),'Paramètres - Admin'!$A4,"/")) -> 2 | AD136: =IF(AC136<>"/",VLOOKUP(AC136,COSTS_Piège_squeletique[#All],2),"/") -> 600000 | AE136: =IF(AC136<>"/",VLOOKUP(AC136,COSTS_Mine_chercheuse[#All],3),"/") -> 24 | AF136: =IF(AE$133="Error","Error",IF(AD136<>"/",AB136*AD136,0)) -> 1800000 | AG136: =IF(AE$133="Error","Error",IF(AE136<>"/",AB136*AE136,0)) -> 72
A137: 4 | B137: =IF(Paramètres!O9=0,"",Paramètres!O9) ->  | C137: =IF(C136<>0,C136+IF(AND(B136<>"",A136<E$6),B136,0),IF(AND(B136<>"",A136<E$6),B136,0)) -> 0 | F137: =IF(G137<>"/",IF(I$132="Error","Error",$J$132+C137),"/") -> 7 | G137: =IF(I$132="Error","Error",IF(AND($E$132<>"/",$E$132>'Paramètres - Admin'!$A5),'Paramètres - Admin'!$A6,"/")) -> 4 | H137: =IF(G137<>"/",VLOOKUP(G137,COSTS_Archer_Tower[#All],2),"/") -> 20000 | I137: =IF(G137<>"/",VLOOKUP(G137,COSTS_Archer_Tower[#All],3),"/") -> 4 | J137: =IF(I$132="Error","Error",IF(H137<>"/",F137*H137,0)) -> 140000 | K137: =IF(I$132="Error","Error",IF(I137<>"/",F137*I137,0)) -> 28 | L137: 1 | M137: =IF(Paramètres!T6=0,"",Paramètres!T6) ->  | N137: =IF(N136<>0,N136+IF(AND(M136<>"",L136<P$6),M136,0),IF(AND(M136<>"",L136<P$6),M136,0)) -> 0 | Q137: =IF(R137<>"/",IF(T$135="Error","Error",$U$135+N137),"/") -> 3 | R137: =IF(T$135="Error","Error",IF(AND($P$135<>"/",$P$135>'Paramètres - Admin'!$A2),'Paramètres - Admin'!$A3,"/")) -> 1 | S137: =IF(R137<>"/",VLOOKUP(R137,COSTS_XBow[#All],2),"/") -> 3000000 | T137: =IF(R137<>"/",VLOOKUP(R137,COSTS_XBow[#All],3),"/") -> 168 | U137: =IF(T$135="Error","Error",IF(S137<>"/",Q137*S137,0)) -> 9000000 | V137: =IF(T$135="Error","Error",IF(T137<>"/",Q137*T137,0)) -> 504 | W137: 3 | X137: =IF(Paramètres!AC8=0,"",Paramètres!AC8) ->  | Y137: 0 | AB137: 3 | AC137: =IF(AE$133="Error","Error",IF(AND($AA$133<>"/",AA$133>'Paramètres - Admin'!$A4),'Paramètres - Admin'!$A5,"/")) -> 3 | AD137: =IF(AC137<>"/",VLOOKUP(AC137,COSTS_Piège_squeletique[#All],2),"/") -> 1300000 | AE137: =IF(AC137<>"/",VLOOKUP(AC137,COSTS_Mine_chercheuse[#All],3),"/") -> 72 | AF137: 3900000 | AG137: 216
A138: 5 | B138: =IF(Paramètres!O10=0,"",Paramètres!O10) ->  | C138: =IF(C137<>0,C137+IF(AND(B137<>"",A137<E$6),B137,0),IF(AND(B137<>"",A137<E$6),B137,0)) -> 0 | F138: =IF(G138<>"/",IF(I$132="Error","Error",$J$132+C138),"/") -> 7 | G138: =IF(I$132="Error","Error",IF(AND($E$132<>"/",$E$132>'Paramètres - Admin'!$A6),'Paramètres - Admin'!$A7,"/")) -> 5 | H138: =IF(G138<>"/",VLOOKUP(G138,COSTS_Archer_Tower[#All],2),"/") -> 80000 | I138: =IF(G138<>"/",VLOOKUP(G138,COSTS_Archer_Tower[#All],3),"/") -> 12 | J138: =IF(I$132="Error","Error",IF(H138<>"/",F138*H138,0)) -> 560000 | K138: =IF(I$132="Error","Error",IF(I138<>"/",F138*I138,0)) -> 84 | L138: 2 | M138: =IF(Paramètres!T7=0,"",Paramètres!T7) ->  | N138: =IF(N137<>0,N137+IF(AND(M137<>"",L137<P$6),M137,0),IF(AND(M137<>"",L137<P$6),M137,0)) -> 0 | Q138: =IF(R138<>"/",IF(T$135="Error","Error",$U$135+N138),"/") -> 3 | R138: =IF(T$135="Error","Error",IF(AND($P$135<>"/",$P$135>'Paramètres - Admin'!$A3),'Paramètres - Admin'!$A4,"/")) -> 2 | S138: =IF(R138<>"/",VLOOKUP(R138,COSTS_XBow[#All],2),"/") -> 5000000 | T138: =IF(R138<>"/",VLOOKUP(R138,COSTS_XBow[#All],3),"/") -> 240 | U138: =IF(T$135="Error","Error",IF(S138<>"/",Q138*S138,0)) -> 15000000 | V138: =IF(T$135="Error","Error",IF(T138<>"/",Q138*T138,0)) -> 720 | AE138: Total | AF138: =IF(AE$133="Error","Error",SUM(AF135:AF137)) -> 5718000 | AG138: =IF(AE$133="Error","Error",SUM(AG135:AG137)) -> 288
A139: 6 | B139: =IF(Paramètres!O11=0,"",Paramètres!O11) ->  | C139: =IF(C138<>0,C138+IF(AND(B138<>"",A138<E$6),B138,0),IF(AND(B138<>"",A138<E$6),B138,0)) -> 0 | F139: =IF(G139<>"/",IF(I$132="Error","Error",$J$132+C139),"/") -> 7 | G139: =IF(I$132="Error","Error",IF(AND($E$132<>"/",$E$132>'Paramètres - Admin'!$A7),'Paramètres - Admin'!$A8,"/")) -> 6 | H139: =IF(G139<>"/",VLOOKUP(G139,COSTS_Archer_Tower[#All],2),"/") -> 180000 | I139: =IF(G139<>"/",VLOOKUP(G139,COSTS_Archer_Tower[#All],3),"/") -> 24 | J139: =IF(I$132="Error","Error",IF(H139<>"/",F139*H139,0)) -> 1260000 | K139: =IF(I$132="Error","Error",IF(I139<>"/",F139*I139,0)) -> 168 | L139: 3 | M139: =IF(Paramètres!T8=0,"",Paramètres!T8) ->  | N139: =IF(N138<>0,N138+IF(AND(M138<>"",L138<P$6),M138,0),IF(AND(M138<>"",L138<P$6),M138,0)) -> 0 | Q139: =IF(R139<>"/",IF(T$135="Error","Error",$U$135+N139),"/") -> 3 | R139: =IF(T$135="Error","Error",IF(AND($P$135<>"/",$P$135>'Paramètres - Admin'!$A4),'Paramètres - Admin'!$A5,"/")) -> 3 | S139: =IF(R139<>"/",VLOOKUP(R139,COSTS_XBow[#All],2),"/") -> 7000000 | T139: =IF(R139<>"/",VLOOKUP(R139,COSTS_XBow[#All],3),"/") -> 336 | U139: =IF(T$135="Error","Error",IF(S139<>"/",Q139*S139,0)) -> 21000000 | V139: =IF(T$135="Error","Error",IF(T139<>"/",Q139*T139,0)) -> 1008 | W139: Piège à ressort | Z139: Max | AA139: Max + | AE139: Actuel | AF139: À Faire | AG139: Améliorations
A140: 7 | B140: =IF(Paramètres!O12=0,"",Paramètres!O12) ->  | C140: =IF(C139<>0,C139+IF(AND(B139<>"",A139<E$6),B139,0),IF(AND(B139<>"",A139<E$6),B139,0)) -> 0 | F140: =IF(G140<>"/",IF(I$132="Error","Error",$J$132+C140),"/") -> 7 | G140: =IF(I$132="Error","Error",IF(AND($E$132<>"/",$E$132>'Paramètres - Admin'!$A8),'Paramètres - Admin'!$A9,"/")) -> 7 | H140: =IF(G140<>"/",VLOOKUP(G140,COSTS_Archer_Tower[#All],2),"/") -> 360000 | I140: =IF(G140<>"/",VLOOKUP(G140,COSTS_Archer_Tower[#All],3),"/") -> 48 | J140: =IF(I$132="Error","Error",IF(H140<>"/",F140*H140,0)) -> 2520000 | K140: =IF(I$132="Error","Error",IF(I140<>"/",F140*I140,0)) -> 336 | L140: 4 | M140: =IF(Paramètres!T9=0,"",Paramètres!T9) ->  | N140: =IF(N139<>0,N139+IF(AND(M139<>"",L139<P$6),M139,0),IF(AND(M139<>"",L139<P$6),M139,0)) -> 0 | Q140: =IF(R140<>"/",IF(T$135="Error","Error",$U$135+N140),"/") -> 3 | R140: =IF(T$135="Error","Error",IF(AND($P$135<>"/",$P$135>'Paramètres - Admin'!$A5),'Paramètres - Admin'!$A6,"/")) -> 4 | S140: =IF(R140<>"/",VLOOKUP(R140,COSTS_XBow[#All],2),"/") -> 8000000 | T140: =IF(R140<>"/",VLOOKUP(R140,COSTS_XBow[#All],3),"/") -> 336 | U140: =IF(T$135="Error","Error",IF(S140<>"/",Q140*S140,0)) -> 24000000 | V140: =IF(T$135="Error","Error",IF(T140<>"/",Q140*T140,0)) -> 1008 | Z140: =VLOOKUP($A$2,AVAILABLE_Traps[#All],MATCH(W139,AVAILABLE_Traps[#Headers],0)) -> 6 | AA140: =VLOOKUP($A$2,AVAILABLE_Traps[#All],MATCH(W139,AVAILABLE_Traps[#Headers],0)+1) -> 1 | AE140: =IF(SUM(X142:X142)>Z140,"Error",SUM(X142:X142)) -> 0 | AF140: =IF(AE$140="Error","Error",Z140-AE140) -> 6 | AG140: =IF(AE$140="Error","Error",SUM(AB142:AB142)) -> 3
A141: 8 | B141: =IF(Paramètres!O13=0,"",Paramètres!O13) ->  | C141: =IF(C140<>0,C140+IF(AND(B140<>"",A140<E$6),B140,0),IF(AND(B140<>"",A140<E$6),B140,0)) -> 0 | F141: =IF(G141<>"/",IF(I$132="Error","Error",$J$132+C141),"/") -> 7 | G141: =IF(I$132="Error","Error",IF(AND($E$132<>"/",$E$132>'Paramètres - Admin'!$A9),'Paramètres - Admin'!$A10,"/")) -> 8 | H141: =IF(G141<>"/",VLOOKUP(G141,COSTS_Archer_Tower[#All],2),"/") -> 720000 | I141: =IF(G141<>"/",VLOOKUP(G141,COSTS_Archer_Tower[#All],3),"/") -> 72 | J141: =IF(I$132="Error","Error",IF(H141<>"/",F141*H141,0)) -> 5040000 | K141: =IF(I$132="Error","Error",IF(I141<>"/",F141*I141,0)) -> 504 | T141: Total | U141: =IF(T$135="Error","Error",SUM(U137:U140)) -> 69000000 | V141: =IF(T$135="Error","Error",SUM(V137:V140)) -> 3240 | W141: + | X141: NB | AB141: NB | AC141: + | AD141: Coût | AE141: Temps | AF141: Coût Total | AG141: Temps Total
A142: 9 | B142: =IF(Paramètres!O14=0,"",Paramètres!O14) ->  | C142: =IF(C141<>0,C141+IF(AND(B141<>"",A141<E$6),B141,0),IF(AND(B141<>"",A141<E$6),B141,0)) -> 0 | F142: =IF(G142<>"/",IF(I$132="Error","Error",$J$132+C142),"/") -> 7 | G142: =IF(I$132="Error","Error",IF(AND($E$132<>"/",$E$132>'Paramètres - Admin'!$A10),'Paramètres - Admin'!$A11,"/")) -> 9 | H142: =IF(G142<>"/",VLOOKUP(G142,COSTS_Archer_Tower[#All],2),"/") -> 1500000 | I142: =IF(G142<>"/",VLOOKUP(G142,COSTS_Archer_Tower[#All],3),"/") -> 96 | J142: =IF(I$132="Error","Error",IF(H142<>"/",F142*H142,0)) -> 10500000 | K142: =IF(I$132="Error","Error",IF(I142<>"/",F142*I142,0)) -> 672 | L142: Tour de l'Enfer | O142: Max | P142: Max + | T142: Actuel | U142: À Faire | V142: Améliorations | W142: 1 | X142: =IF(Paramètres!AD6=0,"",Paramètres!AD6) ->  | Y142: =IF(Y141<>0,Y141+IF(AND(X141<>"",W141<P$6),X141,0),IF(AND(X141<>"",W141<P$6),X141,0)) -> 0 | AB142: =IF(AC142<>"/",IF(AE$133="Error","Error",$AF$133+Y142),"/") -> 3 | AC142: =IF(AE$140="Error","Error",IF(AND($AA$140<>"/",AA$140>'Paramètres - Admin'!$A2),'Paramètres - Admin'!$A3,"/")) -> 1 | AD142: =IF(AC142<>"/",VLOOKUP(AC142,COSTS_Piege_a_ressort[#All],2),"/") -> 2000 | AE142: =IF(AC142<>"/",VLOOKUP(AC142,COSTS_Piege_a_ressort[#All],3),"/") -> 0 | AF142: =IF(AE$133="Error","Error",IF(AD142<>"/",AB142*AD142,0)) -> 6000 | AG142: =IF(AE$133="Error","Error",IF(AE142<>"/",AB142*AE142,0)) -> 0
A143: 10 | B143: =IF(Paramètres!O15=0,"",Paramètres!O15) ->  | C143: =IF(C142<>0,C142+IF(AND(B142<>"",A142<E$6),B142,0),IF(AND(B142<>"",A142<E$6),B142,0)) -> 0 | F143: =IF(G143<>"/",IF(I$132="Error","Error",$J$132+C143),"/") -> 7 | G143: =IF(I$132="Error","Error",IF(AND($E$132<>"/",$E$132>'Paramètres - Admin'!$A11),'Paramètres - Admin'!$A12,"/")) -> 10 | H143: =IF(G143<>"/",VLOOKUP(G143,COSTS_Archer_Tower[#All],2),"/") -> 2500000 | I143: =IF(G143<>"/",VLOOKUP(G143,COSTS_Archer_Tower[#All],3),"/") -> 120 | J143: =IF(I$132="Error","Error",IF(H143<>"/",F143*H143,0)) -> 17500000 | K143: =IF(I$132="Error","Error",IF(I143<>"/",F143*I143,0)) -> 840 | O143: =VLOOKUP($A$2,AVAILABLE_Buildings_Defensive[#All],MATCH(L142,AVAILABLE_Buildings_Defensive[#Headers],0)) -> 2 | P143: =VLOOKUP($A$2,AVAILABLE_Buildings_Defensive[#All],MATCH(L142,AVAILABLE_Buildings_Defensive[#Headers],0)+1) -> 3 | T143: =IF(SUM(M145:M147)>O143,"Error",SUM(M145:M147)) -> 0 | U143: =IF(T$143="Error","Error",O143-T143) -> 2 | V143: =IF(T$143="Error","Error",SUM(Q145:Q147)) -> 6 | AE143: Total | AF143: =IF(AE$133="Error","Error",SUM(AF142:AF142)) -> 6000 | AG143: =IF(AE$133="Error","Error",SUM(AG142:AG142)) -> 0
A144: 11 | B144: =IF(Paramètres!O16=0,"",Paramètres!O16) ->  | C144: =IF(C143<>0,C143+IF(AND(B143<>"",A143<E$6),B143,0),IF(AND(B143<>"",A143<E$6),B143,0)) -> 0 | F144: =IF(G144<>"/",IF(I$132="Error","Error",$J$132+C144),"/") -> 7 | G144: =IF(I$132="Error","Error",IF(AND($E$132<>"/",$E$132>'Paramètres - Admin'!$A12),'Paramètres - Admin'!$A13,"/")) -> 11 | H144: =IF(G144<>"/",VLOOKUP(G144,COSTS_Archer_Tower[#All],2),"/") -> 4500000 | I144: =IF(G144<>"/",VLOOKUP(G144,COSTS_Archer_Tower[#All],3),"/") -> 144 | J144: =IF(I$132="Error","Error",IF(H144<>"/",F144*H144,0)) -> 31500000 | K144: =IF(I$132="Error","Error",IF(I144<>"/",F144*I144,0)) -> 1008 | L144: + | M144: NB | Q144: NB | R144: + | S144: Coût | T144: Temps | U144: Coût Total | V144: Temps Total
A145: 12 | B145: =IF(Paramètres!O17=0,"",Paramètres!O17) ->  | C145: =IF(C144<>0,C144+IF(AND(B144<>"",A144<E$6),B144,0),IF(AND(B144<>"",A144<E$6),B144,0)) -> 0 | F145: =IF(G145<>"/",IF(I$132="Error","Error",$J$132+C145),"/") -> 7 | G145: =IF(I$132="Error","Error",IF(AND($E$132<>"/",$E$132>'Paramètres - Admin'!$A13),'Paramètres - Admin'!$A14,"/")) -> 12 | H145: =IF(G145<>"/",VLOOKUP(G145,COSTS_Archer_Tower[#All],2),"/") -> 6500000 | I145: =IF(G145<>"/",VLOOKUP(G145,COSTS_Archer_Tower[#All],3),"/") -> 168 | J145: =IF(I$132="Error","Error",IF(H145<>"/",F145*H145,0)) -> 45500000 | K145: =IF(I$132="Error","Error",IF(I145<>"/",F145*I145,0)) -> 1176 | L145: 1 | M145: =IF(Paramètres!U6=0,"",Paramètres!U6) ->  | N145: =IF(N144<>0,N144+IF(AND(M144<>"",L144<P$6),M144,0),IF(AND(M144<>"",L144<P$6),M144,0)) -> 0 | Q145: =IF(R145<>"/",IF(T$143="Error","Error",$U$143+N145),"/") -> 2 | R145: =IF(T$143="Error","Error",IF(AND($P$143<>"/",$P$143>'Paramètres - Admin'!$A2),'Paramètres - Admin'!$A3,"/")) -> 1 | S145: =IF(R145<>"/",VLOOKUP(R145,COSTS_Inferno_Tower[#All],2),"/") -> 5000000 | T145: =IF(R145<>"/",VLOOKUP(R145,COSTS_Inferno_Tower[#All],3),"/") -> 168 | U145: =IF(T$143="Error","Error",IF(S145<>"/",Q145*S145,0)) -> 10000000 | V145: =IF(T$143="Error","Error",IF(T145<>"/",Q145*T145,0)) -> 336
A146: 13 | B146: =IF(Paramètres!O18=0,"",Paramètres!O18) ->  | C146: =IF(C145<>0,C145+IF(AND(B145<>"",A145<E$6),B145,0),IF(AND(B145<>"",A145<E$6),B145,0)) -> 0 | F146: =IF(G146<>"/",IF(I$132="Error","Error",$J$132+C146),"/") -> 7 | G146: =IF(I$132="Error","Error",IF(AND($E$132<>"/",$E$132>'Paramètres - Admin'!$A14),'Paramètres - Admin'!$A15,"/")) -> 13 | H146: =IF(G146<>"/",VLOOKUP(G146,COSTS_Archer_Tower[#All],2),"/") -> 7500000 | I146: =IF(G146<>"/",VLOOKUP(G146,COSTS_Archer_Tower[#All],3),"/") -> 192 | J146: =IF(I$132="Error","Error",IF(H146<>"/",F146*H146,0)) -> 52500000 | K146: =IF(I$132="Error","Error",IF(I146<>"/",F146*I146,0)) -> 1344 | L146: 2 | M146: =IF(Paramètres!U7=0,"",Paramètres!U7) ->  | N146: =IF(N145<>0,N145+IF(AND(M145<>"",L145<P$6),M145,0),IF(AND(M145<>"",L145<P$6),M145,0)) -> 0 | Q146: =IF(R146<>"/",IF(T$143="Error","Error",$U$143+N146),"/") -> 2 | R146: =IF(T$143="Error","Error",IF(AND($P$143<>"/",$P$143>'Paramètres - Admin'!$A3),'Paramètres - Admin'!$A4,"/")) -> 2 | S146: =IF(R146<>"/",VLOOKUP(R146,COSTS_Inferno_Tower[#All],2),"/") -> 6500000 | T146: =IF(R146<>"/",VLOOKUP(R146,COSTS_Inferno_Tower[#All],3),"/") -> 240 | U146: =IF(T$143="Error","Error",IF(S146<>"/",Q146*S146,0)) -> 13000000 | V146: =IF(T$143="Error","Error",IF(T146<>"/",Q146*T146,0)) -> 480
I147: Total | J147: =IF(I$132="Error","Error",SUM(J134:J146)) -> 167076000 | K147: =IF(I$132="Error","Error",SUM(K134:K146)) -> 6170.5 | L147: 3 | M147: =IF(Paramètres!U8=0,"",Paramètres!U8) ->  | N147: =IF(N146<>0,N146+IF(AND(M146<>"",L146<P$6),M146,0),IF(AND(M146<>"",L146<P$6),M146,0)) -> 0 | Q147: =IF(R147<>"/",IF(T$143="Error","Error",$U$143+N147),"/") -> 2 | R147: =IF(T$143="Error","Error",IF(AND($P$143<>"/",$P$143>'Paramètres - Admin'!$A4),'Paramètres - Admin'!$A5,"/")) -> 3 | S147: =IF(R147<>"/",VLOOKUP(R147,COSTS_Inferno_Tower[#All],2),"/") -> 8000000 | T147: =IF(R147<>"/",VLOOKUP(R147,COSTS_Inferno_Tower[#All],3),"/") -> 336 | U147: =IF(T$143="Error","Error",IF(S147<>"/",Q147*S147,0)) -> 16000000 | V147: =IF(T$143="Error","Error",IF(T147<>"/",Q147*T147,0)) -> 672
A148: Mortier | D148: Max | E148: Max + | I148: Actuel | J148: À Faire | K148: Améliorations | T148: Total | U148: =IF(T$135="Error","Error",SUM(U145:U147)) -> 39000000 | V148: =IF(T$135="Error","Error",SUM(V145:V147)) -> 1488
D149: =VLOOKUP($A$2,AVAILABLE_Buildings_Defensive[#All],MATCH(A148,AVAILABLE_Buildings_Defensive[#Headers],0)) -> 4 | E149: =VLOOKUP($A$2,AVAILABLE_Buildings_Defensive[#All],MATCH(A148,AVAILABLE_Buildings_Defensive[#Headers],0)+1) -> 8 | I149: =IF(SUM(B151:B158)>D149,"Error",SUM(B151:B158)) -> 0 | J149: =IF(I$149="Error","Error",D149-I149) -> 4 | K149: =IF(I$149="Error","Error",SUM(F151:F158)) -> 32 | L149: Propulseur d'air | O149: Max | P149: Max + | T149: Actuel | U149: À Faire | V149: Améliorations
A150: + | B150: NB | F150: NB | G150: + | H150: Coût | I150: Temps | J150: Coût Total | K150: Temps Total | O150: =VLOOKUP($A$2,AVAILABLE_Buildings_Defensive[#All],MATCH(L149,AVAILABLE_Buildings_Defensive[#Headers],0)) -> 1 | P150: =VLOOKUP($A$2,AVAILABLE_Buildings_Defensive[#All],MATCH(L149,AVAILABLE_Buildings_Defensive[#Headers],0)+1) -> 6 | T150: =IF(SUM(M152:M157)>O150,"Error",SUM(M152:M157)) -> 0 | U150: =IF(T$150="Error","Error",O150-T150) -> 1 | V150: =IF(T$150="Error","Error",SUM(Q152:Q157)) -> 6
A151: 1 | B151: =IF(Paramètres!P6=0,"",Paramètres!P6) ->  | C151: =IF(C150<>0,C150+IF(AND(B150<>"",A150<E$6),B150,0),IF(AND(B150<>"",A150<E$6),B150,0)) -> 0 | F151: =IF(G151<>"/",IF(I$149="Error","Error",$J$149+C151),"/") -> 4 | G151: =IF(I$149="Error","Error",IF(AND($E$149<>"/",$E$149>'Paramètres - Admin'!$A2),'Paramètres - Admin'!$A3,"/")) -> 1 | H151: =IF(G151<>"/",VLOOKUP(G151,COSTS_Mortar[#All],2),"/") -> 8000 | I151: =IF(G151<>"/",VLOOKUP(G151,COSTS_Mortar[#All],3),"/") -> 8 | J151: =IF(I$149="Error","Error",IF(H151<>"/",F151*H151,0)) -> 32000 | K151: =IF(I$149="Error","Error",IF(I151<>"/",F151*I151,0)) -> 32 | L151: + | M151: NB | Q151: NB | R151: + | S151: Coût | T151: Temps | U151: Coût Total | V151: Temps Total
A152: 2 | B152: =IF(Paramètres!P7=0,"",Paramètres!P7) ->  | C152: =IF(C151<>0,C151+IF(AND(B151<>"",A151<E$6),B151,0),IF(AND(B151<>"",A151<E$6),B151,0)) -> 0 | F152: =IF(G152<>"/",IF(I$149="Error","Error",$J$149+C152),"/") -> 4 | G152: =IF(I$149="Error","Error",IF(AND($E$149<>"/",$E$149>'Paramètres - Admin'!$A3),'Paramètres - Admin'!$A4,"/")) -> 2 | H152: =IF(G152<>"/",VLOOKUP(G152,COSTS_Mortar[#All],2),"/") -> 32000 | I152: =IF(G152<>"/",VLOOKUP(G152,COSTS_Mortar[#All],3),"/") -> 12 | J152: =IF(I$149="Error","Error",IF(H152<>"/",F152*H152,0)) -> 128000 | K152: =IF(I$149="Error","Error",IF(I152<>"/",F152*I152,0)) -> 48 | L152: 1 | M152: =IF(Paramètres!V6=0,"",Paramètres!V6) ->  | N152: =IF(N151<>0,N151+IF(AND(M151<>"",L151<P$6),M151,0),IF(AND(M151<>"",L151<P$6),M151,0)) -> 0 | Q152: =IF(R152<>"/",IF(T$150="Error","Error",$U$150+N152),"/") -> 1 | R152: =IF(T$150="Error","Error",IF(AND($P$150<>"/",$P$150>'Paramètres - Admin'!$A2),'Paramètres - Admin'!$A3,"/")) -> 1 | S152: =IF(R152<>"/",VLOOKUP(R152,COSTS_Propulseur[#All],2),"/") -> 500000 | T152: =IF(R152<>"/",VLOOKUP(R152,COSTS_Propulseur[#All],3),"/") -> 24 | U152: =IF(T$150="Error","Error",IF(S152<>"/",Q152*S152,0)) -> 500000 | V152: =IF(T$150="Error","Error",IF(T152<>"/",Q152*T152,0)) -> 24
A153: 3 | B153: =IF(Paramètres!P8=0,"",Paramètres!P8) ->  | C153: =IF(C152<>0,C152+IF(AND(B152<>"",A152<E$6),B152,0),IF(AND(B152<>"",A152<E$6),B152,0)) -> 0 | F153: =IF(G153<>"/",IF(I$149="Error","Error",$J$149+C153),"/") -> 4 | G153: =IF(I$149="Error","Error",IF(AND($E$149<>"/",$E$149>'Paramètres - Admin'!$A4),'Paramètres - Admin'!$A5,"/")) -> 3 | H153: =IF(G153<>"/",VLOOKUP(G153,COSTS_Mortar[#All],2),"/") -> 120000 | I153: =IF(G153<>"/",VLOOKUP(G153,COSTS_Mortar[#All],3),"/") -> 24 | J153: =IF(I$149="Error","Error",IF(H153<>"/",F153*H153,0)) -> 480000 | K153: =IF(I$149="Error","Error",IF(I153<>"/",F153*I153,0)) -> 96 | L153: 2 | M153: =IF(Paramètres!V7=0,"",Paramètres!V7) ->  | N153: =IF(N152<>0,N152+IF(AND(M152<>"",L152<P$6),M152,0),IF(AND(M152<>"",L152<P$6),M152,0)) -> 0 | Q153: =IF(R153<>"/",IF(T$150="Error","Error",$U$150+N153),"/") -> 1 | R153: =IF(T$150="Error","Error",IF(AND($P$150<>"/",$P$150>'Paramètres - Admin'!$A3),'Paramètres - Admin'!$A4,"/")) -> 2 | S153: =IF(R153<>"/",VLOOKUP(R153,COSTS_Propulseur[#All],2),"/") -> 700000 | T153: =IF(R153<>"/",VLOOKUP(R153,COSTS_Propulseur[#All],3),"/") -> 72 | U153: =IF(T$150="Error","Error",IF(S153<>"/",Q153*S153,0)) -> 700000 | V153: =IF(T$150="Error","Error",IF(T153<>"/",Q153*T153,0)) -> 72
A154: 4 | B154: =IF(Paramètres!P9=0,"",Paramètres!P9) ->  | C154: =IF(C153<>0,C153+IF(AND(B153<>"",A153<E$6),B153,0),IF(AND(B153<>"",A153<E$6),B153,0)) -> 0 | F154: =IF(G154<>"/",IF(I$149="Error","Error",$J$149+C154),"/") -> 4 | G154: =IF(I$149="Error","Error",IF(AND($E$149<>"/",$E$149>'Paramètres - Admin'!$A5),'Paramètres - Admin'!$A6,"/")) -> 4 | H154: =IF(G154<>"/",VLOOKUP(G154,COSTS_Mortar[#All],2),"/") -> 400000 | I154: =IF(G154<>"/",VLOOKUP(G154,COSTS_Mortar[#All],3),"/") -> 48 | J154: =IF(I$149="Error","Error",IF(H154<>"/",F154*H154,0)) -> 1600000 | K154: =IF(I$149="Error","Error",IF(I154<>"/",F154*I154,0)) -> 192 | L154: 3 | M154: =IF(Paramètres!V8=0,"",Paramètres!V8) ->  | N154: =IF(N153<>0,N153+IF(AND(M153<>"",L153<P$6),M153,0),IF(AND(M153<>"",L153<P$6),M153,0)) -> 0 | Q154: 1 | R154: =IF(T$150="Error","Error",IF(AND($P$150<>"/",$P$150>'Paramètres - Admin'!$A4),'Paramètres - Admin'!$A5,"/")) -> 3 | S154: =IF(R154<>"/",VLOOKUP(R154,COSTS_Propulseur[#All],2),"/") -> 1250000 | T154: =IF(R154<>"/",VLOOKUP(R154,COSTS_Propulseur[#All],3),"/") -> 120 | U154: 1250000 | V154: 120
A155: 5 | B155: =IF(Paramètres!P10=0,"",Paramètres!P10) ->  | C155: =IF(C154<>0,C154+IF(AND(B154<>"",A154<E$6),B154,0),IF(AND(B154<>"",A154<E$6),B154,0)) -> 0 | F155: =IF(G155<>"/",IF(I$149="Error","Error",$J$149+C155),"/") -> 4 | G155: =IF(I$149="Error","Error",IF(AND($E$149<>"/",$E$149>'Paramètres - Admin'!$A6),'Paramètres - Admin'!$A7,"/")) -> 5 | H155: =IF(G155<>"/",VLOOKUP(G155,COSTS_Mortar[#All],2),"/") -> 800000 | I155: =IF(G155<>"/",VLOOKUP(G155,COSTS_Mortar[#All],3),"/") -> 96 | J155: =IF(I$149="Error","Error",IF(H155<>"/",F155*H155,0)) -> 3200000 | K155: =IF(I$149="Error","Error",IF(I155<>"/",F155*I155,0)) -> 384 | L155: 4 | M155: =IF(Paramètres!V9=0,"",Paramètres!V9) ->  | N155: =IF(N154<>0,N154+IF(AND(M154<>"",L154<P$6),M154,0),IF(AND(M154<>"",L154<P$6),M154,0)) -> 0 | Q155: 1 | R155: =IF(T$150="Error","Error",IF(AND($P$150<>"/",$P$150>'Paramètres - Admin'!$A5),'Paramètres - Admin'!$A6,"/")) -> 4 | S155: =IF(R155<>"/",VLOOKUP(R155,COSTS_Propulseur[#All],2),"/") -> 2400000 | T155: =IF(R155<>"/",VLOOKUP(R155,COSTS_Propulseur[#All],3),"/") -> 168 | U155: 2400000 | V155: 168
A156: 6 | B156: =IF(Paramètres!P11=0,"",Paramètres!P11) ->  | C156: =IF(C155<>0,C155+IF(AND(B155<>"",A155<E$6),B155,0),IF(AND(B155<>"",A155<E$6),B155,0)) -> 0 | F156: =IF(G156<>"/",IF(I$149="Error","Error",$J$149+C156),"/") -> 4 | G156: =IF(I$149="Error","Error",IF(AND($E$149<>"/",$E$149>'Paramètres - Admin'!$A7),'Paramètres - Admin'!$A8,"/")) -> 6 | H156: =IF(G156<>"/",VLOOKUP(G156,COSTS_Mortar[#All],2),"/") -> 1600000 | I156: =IF(G156<>"/",VLOOKUP(G156,COSTS_Mortar[#All],3),"/") -> 120 | J156: =IF(I$149="Error","Error",IF(H156<>"/",F156*H156,0)) -> 6400000 | K156: =IF(I$149="Error","Error",IF(I156<>"/",F156*I156,0)) -> 480 | L156: 5 | M156: =IF(Paramètres!V10=0,"",Paramètres!V10) ->  | N156: 0 | Q156: 1 | R156: =IF(T$150="Error","Error",IF(AND($P$150<>"/",$P$150>'Paramètres - Admin'!$A6),'Paramètres - Admin'!$A7,"/")) -> 5 | S156: =IF(R156<>"/",VLOOKUP(R156,COSTS_Propulseur[#All],2),"/") -> 4800000 | T156: =IF(R156<>"/",VLOOKUP(R156,COSTS_Propulseur[#All],3),"/") -> 192 | U156: 4800000 | V156: 192
A157: 7 | B157: =IF(Paramètres!P12=0,"",Paramètres!P12) ->  | C157: =IF(C156<>0,C156+IF(AND(B156<>"",A156<E$6),B156,0),IF(AND(B156<>"",A156<E$6),B156,0)) -> 0 | F157: =IF(G157<>"/",IF(I$149="Error","Error",$J$149+C157),"/") -> 4 | G157: =IF(I$149="Error","Error",IF(AND($E$149<>"/",$E$149>'Paramètres - Admin'!$A8),'Paramètres - Admin'!$A9,"/")) -> 7 | H157: =IF(G157<>"/",VLOOKUP(G157,COSTS_Mortar[#All],2),"/") -> 3200000 | I157: =IF(G157<>"/",VLOOKUP(G157,COSTS_Mortar[#All],3),"/") -> 168 | J157: =IF(I$149="Error","Error",IF(H157<>"/",F157*H157,0)) -> 12800000 | K157: =IF(I$149="Error","Error",IF(I157<>"/",F157*I157,0)) -> 672 | L157: 6 | M157: =IF(Paramètres!V11=0,"",Paramètres!V11) ->  | N157: 0 | Q157: 1 | R157: =IF(T$150="Error","Error",IF(AND($P$150<>"/",$P$150>'Paramètres - Admin'!$A7),'Paramètres - Admin'!$A8,"/")) -> 6 | S157: =IF(R157<>"/",VLOOKUP(R157,COSTS_Propulseur[#All],2),"/") -> 7200000 | T157: =IF(R157<>"/",VLOOKUP(R157,COSTS_Propulseur[#All],3),"/") -> 216 | U157: 7200000 | V157: 216
A158: 8 | B158: =IF(Paramètres!P13=0,"",Paramètres!P13) ->  | C158: =IF(C157<>0,C157+IF(AND(B157<>"",A157<E$6),B157,0),IF(AND(B157<>"",A157<E$6),B157,0)) -> 0 | F158: =IF(G158<>"/",IF(I$149="Error","Error",$J$149+C158),"/") -> 4 | G158: =IF(I$149="Error","Error",IF(AND($E$149<>"/",$E$149>'Paramètres - Admin'!$A9),'Paramètres - Admin'!$A10,"/")) -> 8 | H158: =IF(G158<>"/",VLOOKUP(G158,COSTS_Mortar[#All],2),"/") -> 6400000 | I158: =IF(G158<>"/",VLOOKUP(G158,COSTS_Mortar[#All],3),"/") -> 240 | J158: =IF(I$149="Error","Error",IF(H158<>"/",F158*H158,0)) -> 25600000 | K158: =IF(I$149="Error","Error",IF(I158<>"/",F158*I158,0)) -> 960 | T158: Total | U158: =IF(T$147="Error","Error",SUM(U150:U157)) -> 16850001 | V158: =IF(T$147="Error","Error",SUM(V152:V157)) -> 792
I159: Total | J159: =IF(I$149="Error","Error",SUM(J151:J158)) -> 50240000 | K159: =IF(I$149="Error","Error",SUM(K151:K158)) -> 2864
A161: Bâtiments Autres
A162: Or
A163: Château de Clan | D163: Max | E163: Max + | I163: Actuel | J163: À Faire | K163: Améliorations | L163: Hôtel de Ville | O163: Max | P163: Max + | T163: Actuel | U163: À Faire | V163: Améliorations
D164: =VLOOKUP($A$2,AVAILABLE_Buildings_Other[#All],MATCH(A163,AVAILABLE_Buildings_Other[#Headers],0)) -> 1 | E164: =VLOOKUP($A$2,AVAILABLE_Buildings_Other[#All],MATCH(A163,AVAILABLE_Buildings_Other[#Headers],0)+1) -> 6 | I164: =IF(SUM(B166:B171)>D164,"Error",SUM(B166:B171)) -> 0 | J164: =IF(I$164="Error","Error",D164-I164) -> 1 | K164: =IF(I$164="Error","Error",SUM(F166:F171)) -> 6 | O164: =VLOOKUP($A$2,AVAILABLE_Buildings_Other[#All],MATCH(L163,AVAILABLE_Buildings_Other[#Headers],0)) -> 1 | P164: =VLOOKUP($A$2,AVAILABLE_Buildings_Other[#All],MATCH(L163,AVAILABLE_Buildings_Other[#Headers],0)+1) -> 10 | T164: =IF(SUM(M166:M175)>O164,"Error",SUM(M166:M175)) -> 0 | U164: =IF(T$164="Error","Error",O164-T164) -> 1 | V164: =IF(T$164="Error","Error",SUM(Q166:Q175)) -> 10
A165: + | B165: NB | F165: NB | G165: + | H165: Coût | I165: Temps | J165: Coût Total | K165: Temps Total | L165: + | M165: NB | Q165: NB | R165: + | S165: Coût | T165: Temps | U165: Coût Total | V165: Temps Total
A166: 1 | B166: =IF(Paramètres!W6=0,"",Paramètres!W6) ->  | C166: =IF(C165<>0,C165+IF(AND(B165<>"",A165<P$6),B165,0),IF(AND(B165<>"",A165<P$6),B165,0)) -> 0 | F166: =IF(G166<>"/",IF(I$164="Error","Error",$J$164+C166),"/") -> 1 | G166: =IF(I$164="Error","Error",IF(AND($E$164<>"/",$E$164>'Paramètres - Admin'!$A2),'Paramètres - Admin'!$A3,"/")) -> 1 | H166: =IF(G166<>"/",VLOOKUP(G166,COSTS_Clan_Castle[#All],2),"/") -> 40000 | I166: =IF(G166<>"/",VLOOKUP(G166,COSTS_Clan_Castle[#All],3),"/") -> 0 | J166: =IF(I$164="Error","Error",IF(H166<>"/",F166*H166,0)) -> 40000 | K166: =IF(I$164="Error","Error",IF(I166<>"/",F166*I166,0)) -> 0 | L166: 1 | M166: =IF(Paramètres!X6=0,"",Paramètres!X6) ->  | N166: =IF(N165<>0,N165+IF(AND(M165<>"",L165<P$6),M165,0),IF(AND(M165<>"",L165<P$6),M165,0)) -> 0 | Q166: =IF(R166<>"/",IF(T$164="Error","Error",$U$164+N166),"/") -> 1 | R166: =IF(T$164="Error","Error",IF(AND($P$164<>"/",$P$164>'Paramètres - Admin'!$A2),'Paramètres - Admin'!$A3,"/")) -> 1 | S166: =IF(R166<>"/",VLOOKUP(R166,COSTS_Town_Home[#All],2),"/") -> 0 | T166: =IF(R166<>"/",VLOOKUP(R166,COSTS_Town_Home[#All],3),"/") -> 0 | U166: =IF(T$164="Error","Error",IF(S166<>"/",Q166*S166,0)) -> 0 | V166: =IF(T$164="Error","Error",IF(T166<>"/",Q166*T166,0)) -> 0
A167: 2 | B167: =IF(Paramètres!W7=0,"",Paramètres!W7) ->  | C167: 0 | F167: 1 | G167: =IF(I$164="Error","Error",IF(AND($E$164<>"/",$E$164>'Paramètres - Admin'!$A3),'Paramètres - Admin'!$A4,"/")) -> 2 | H167: =IF(G167<>"/",VLOOKUP(G167,COSTS_Clan_Castle[#All],2),"/") -> 100000 | I167: =IF(G167<>"/",VLOOKUP(G167,COSTS_Clan_Castle[#All],3),"/") -> 6 | J167: 100000 | K167: 6 | L167: 2 | M167: =IF(Paramètres!X7=0,"",Paramètres!X7) ->  | N167: 0 | Q167: 1 | R167: =IF(T$164="Error","Error",IF(AND($P$164<>"/",$P$164>'Paramètres - Admin'!$A3),'Paramètres - Admin'!$A4,"/")) -> 2 | S167: =IF(R167<>"/",VLOOKUP(R167,COSTS_Town_Home[#All],2),"/") -> 1000 | T167: =IF(R167<>"/",VLOOKUP(R167,COSTS_Town_Home[#All],3),"/") -> 0.08333333333 | U167: 1000 | V167: 0.08333333333
A168: 3 | B168: =IF(Paramètres!W8=0,"",Paramètres!W8) ->  | C168: 0 | F168: 1 | G168: =IF(I$164="Error","Error",IF(AND($E$164<>"/",$E$164>'Paramètres - Admin'!$A4),'Paramètres - Admin'!$A5,"/")) -> 3 | H168: =IF(G168<>"/",VLOOKUP(G168,COSTS_Clan_Castle[#All],2),"/") -> 800000 | I168: =IF(G168<>"/",VLOOKUP(G168,COSTS_Clan_Castle[#All],3),"/") -> 24 | J168: 800000 | K168: 24 | L168: 3 | M168: =IF(Paramètres!X8=0,"",Paramètres!X8) ->  | N168: 0 | Q168: 1 | R168: =IF(T$164="Error","Error",IF(AND($P$164<>"/",$P$164>'Paramètres - Admin'!$A4),'Paramètres - Admin'!$A5,"/")) -> 3 | S168: =IF(R168<>"/",VLOOKUP(R168,COSTS_Town_Home[#All],2),"/") -> 4000 | T168: =IF(R168<>"/",VLOOKUP(R168,COSTS_Town_Home[#All],3),"/") -> 3 | U168: 4000 | V168: 3
A169: 4 | B169: =IF(Paramètres!W9=0,"",Paramètres!W9) ->  | C169: 0 | F169: 1 | G169: =IF(I$164="Error","Error",IF(AND($E$164<>"/",$E$164>'Paramètres - Admin'!$A5),'Paramètres - Admin'!$A6,"/")) -> 4 | H169: =IF(G169<>"/",VLOOKUP(G169,COSTS_Clan_Castle[#All],2),"/") -> 1800000 | I169: =IF(G169<>"/",VLOOKUP(G169,COSTS_Clan_Castle[#All],3),"/") -> 48 | J169: 1800000 | K169: 48 | L169: 4 | M169: =IF(Paramètres!X9=0,"",Paramètres!X9) ->  | N169: 0 | Q169: 1 | R169: =IF(T$164="Error","Error",IF(AND($P$164<>"/",$P$164>'Paramètres - Admin'!$A5),'Paramètres - Admin'!$A6,"/")) -> 4 | S169: =IF(R169<>"/",VLOOKUP(R169,COSTS_Town_Home[#All],2),"/") -> 25000 | T169: =IF(R169<>"/",VLOOKUP(R169,COSTS_Town_Home[#All],3),"/") -> 24 | U169: 25000 | V169: 24
A170: 5 | B170: =IF(Paramètres!W10=0,"",Paramètres!W10) ->  | C170: 0 | F170: 1 | G170: =IF(I$164="Error","Error",IF(AND($E$164<>"/",$E$164>'Paramètres - Admin'!$A6),'Paramètres - Admin'!$A7,"/")) -> 5 | H170: =IF(G170<>"/",VLOOKUP(G170,COSTS_Clan_Castle[#All],2),"/") -> 5000000 | I170: =IF(G170<>"/",VLOOKUP(G170,COSTS_Clan_Castle[#All],3),"/") -> 168 | J170: 5000000 | K170: 168 | L170: 5 | M170: =IF(Paramètres!X10=0,"",Paramètres!X10) ->  | N170: 0 | Q170: 1 | R170: =IF(T$164="Error","Error",IF(AND($P$164<>"/",$P$164>'Paramètres - Admin'!$A6),'Paramètres - Admin'!$A7,"/")) -> 5 | S170: =IF(R170<>"/",VLOOKUP(R170,COSTS_Town_Home[#All],2),"/") -> 150000 | T170: =IF(R170<>"/",VLOOKUP(R170,COSTS_Town_Home[#All],3),"/") -> 48 | U170: 150000 | V170: 48
A171: 6 | B171: =IF(Paramètres!W11=0,"",Paramètres!W11) ->  | C171: 0 | F171: 1 | G171: =IF(I$164="Error","Error",IF(AND($E$164<>"/",$E$164>'Paramètres - Admin'!$A7),'Paramètres - Admin'!$A8,"/")) -> 6 | H171: =IF(G171<>"/",VLOOKUP(G171,COSTS_Clan_Castle[#All],2),"/") -> 7000000 | I171: =IF(G171<>"/",VLOOKUP(G171,COSTS_Clan_Castle[#All],3),"/") -> 336 | J171: 7000000 | K171: 336 | L171: 6 | M171: =IF(Paramètres!X11=0,"",Paramètres!X11) ->  | N171: 0 | Q171: 1 | R171: =IF(T$164="Error","Error",IF(AND($P$164<>"/",$P$164>'Paramètres - Admin'!$A7),'Paramètres - Admin'!$A8,"/")) -> 6 | S171: =IF(R171<>"/",VLOOKUP(R171,COSTS_Town_Home[#All],2),"/") -> 750000 | T171: =IF(R171<>"/",VLOOKUP(R171,COSTS_Town_Home[#All],3),"/") -> 96 | U171: 750000 | V171: 96
I172: Total | J172: =IF(I$164="Error","Error",SUM(J166:J171)) -> 14740000 | K172: =IF(I$164="Error","Error",SUM(K166:K171)) -> 582 | L172: 7 | M172: =IF(Paramètres!X12=0,"",Paramètres!X12) ->  | N172: 0 | Q172: 1 | R172: =IF(T$164="Error","Error",IF(AND($P$164<>"/",$P$164>'Paramètres - Admin'!$A8),'Paramètres - Admin'!$A9,"/")) -> 7 | S172: =IF(R172<>"/",VLOOKUP(R172,COSTS_Town_Home[#All],2),"/") -> 1200000 | T172: =IF(R172<>"/",VLOOKUP(R172,COSTS_Town_Home[#All],3),"/") -> 144 | U172: 1200000 | V172: 144
L173: 8 | M173: =IF(Paramètres!X13=0,"",Paramètres!X13) ->  | N173: 0 | Q173: 1 | R173: =IF(T$164="Error","Error",IF(AND($P$164<>"/",$P$164>'Paramètres - Admin'!$A9),'Paramètres - Admin'!$A10,"/")) -> 8 | S173: =IF(R173<>"/",VLOOKUP(R173,COSTS_Town_Home[#All],2),"/") -> 2000000 | T173: =IF(R173<>"/",VLOOKUP(R173,COSTS_Town_Home[#All],3),"/") -> 192 | U173: 2000000 | V173: 192
L174: 9 | M174: =IF(Paramètres!X14=0,"",Paramètres!X14) ->  | N174: 0 | Q174: 1 | R174: =IF(T$164="Error","Error",IF(AND($P$164<>"/",$P$164>'Paramètres - Admin'!$A10),'Paramètres - Admin'!$A11,"/")) -> 9 | S174: =IF(R174<>"/",VLOOKUP(R174,COSTS_Town_Home[#All],2),"/") -> 3000000 | T174: =IF(R174<>"/",VLOOKUP(R174,COSTS_Town_Home[#All],3),"/") -> 240 | U174: 3000000 | V174: 240
L175: 10 | M175: =IF(Paramètres!X15=0,"",Paramètres!X15) ->  | N175: 0 | Q175: 1 | R175: =IF(T$164="Error","Error",IF(AND($P$164<>"/",$P$164>'Paramètres - Admin'!$A11),'Paramètres - Admin'!$A12,"/")) -> 10 | S175: =IF(R175<>"/",VLOOKUP(R175,COSTS_Town_Home[#All],2),"/") -> 4000000 | T175: =IF(R175<>"/",VLOOKUP(R175,COSTS_Town_Home[#All],3),"/") -> 336 | U175: 4000000 | V175: 336
T176: Total | U176: =IF(T$164="Error","Error",SUM(U166:U175)) -> 11130000 | V176: =IF(T$164="Error","Error",SUM(V166:V175)) -> 1083.083333
A179: Spell Upgrades
A180: Élixir
A181: Sort de Foudre | D181: Max | E181: Max + | I181: Actuel | J181: À Faire | K181: Améliorations | L181: Sort de Saut | O181: Max | P181: Max + | T181: Actuel | U181: À Faire | V181: Améliorations
D182: =VLOOKUP($A$2,AVAILABLE_Upgrades_Spells[#All],MATCH(A181,AVAILABLE_Upgrades_Spells[#Headers],0)) -> 1 | E182: =VLOOKUP($A$2,AVAILABLE_Upgrades_Spells[#All],MATCH(A181,AVAILABLE_Upgrades_Spells[#Headers],0)+1) -> 6 | I182: =IF(SUM(B184:B189)>D182,"Error",SUM(B184:B189)) -> 0 | J182: =IF(I$182="Error","Error",D182-I182) -> 1 | K182: =IF(I$182="Error","Error",SUM(F184:F189)) -> 6 | O182: =VLOOKUP($A$2,AVAILABLE_Upgrades_Spells[#All],MATCH(L181,AVAILABLE_Upgrades_Spells[#Headers],0)) -> 1 | P182: =VLOOKUP($A$2,AVAILABLE_Upgrades_Spells[#All],MATCH(L181,AVAILABLE_Upgrades_Spells[#Headers],0)+1) -> 2 | T182: =IF(SUM(M184:M185)>O182,"Error",SUM(M184:M185)) -> 0 | U182: =IF(T$182="Error","Error",O182-T182) -> 1 | V182: =IF(T$182="Error","Error",SUM(Q184:Q185)) -> 2
A183: + | B183: NB | F183: NB | G183: + | H183: Coût | I183: Temps | J183: Coût Total | K183: Temps Total | L183: + | M183: NB | Q183: NB | R183: + | S183: Coût | T183: Temps | U183: Coût Total | V183: Temps Total
A184: 1 | B184: =IF(Paramètres!AF6=0,"",Paramètres!AF6) ->  | C184: =IF(C183<>0,C183+IF(AND(B183<>"",A183<E$6),B183,0),IF(AND(B183<>"",A183<E$6),B183,0)) -> 0 | F184: =IF(G184<>"/",IF(I$182="Error","Error",$J$182+C184),"/") -> 1 | G184: =IF(I$182="Error","Error",IF(AND($E$182<>"/",$E$182>'Paramètres - Admin'!$A2),'Paramètres - Admin'!$A3,"/")) -> 1 | H184: =IF(G184<>"/",VLOOKUP(G184,COSTS_Spell_Lightning[#All],2),"/") -> 0 | I184: =IF(G184<>"/",VLOOKUP(G184,COSTS_Spell_Lightning[#All],3),"/") -> 0 | J184: =IF(I$182="Error","Error",IF(H184<>"/",F184*H184,0)) -> 0 | K184: =IF(I$182="Error","Error",IF(I184<>"/",F184*I184,0)) -> 0 | L184: 1 | M184: =IF(Paramètres!AI6=0,"",Paramètres!AI6) ->  | N184: =IF(N183<>0,N183+IF(AND(M183<>"",L183<P$6),M183,0),IF(AND(M183<>"",L183<P$6),M183,0)) -> 0 | Q184: =IF(R184<>"/",IF(T$182="Error","Error",$U$182+N184),"/") -> 1 | R184: =IF(T$182="Error","Error",IF(AND($P$182<>"/",$P$182>'Paramètres - Admin'!$A2),'Paramètres - Admin'!$A3,"/")) -> 1 | S184: =IF(R184<>"/",VLOOKUP(R184,COSTS_Spell_Jump[#All],2),"/") -> 0 | T184: =IF(R184<>"/",VLOOKUP(R184,COSTS_Spell_Jump[#All],3),"/") -> 0 | U184: =IF(T$182="Error","Error",IF(S184<>"/",Q184*S184,0)) -> 0 | V184: =IF(T$182="Error","Error",IF(T184<>"/",Q184*T184,0)) -> 0
A185: 2 | B185: =IF(Paramètres!AF7=0,"",Paramètres!AF7) ->  | C185: 0 | F185: 1 | G185: =IF(I$182="Error","Error",IF(AND($E$182<>"/",$E$182>'Paramètres - Admin'!$A3),'Paramètres - Admin'!$A4,"/")) -> 2 | H185: =IF(G185<>"/",VLOOKUP(G185,COSTS_Spell_Lightning[#All],2),"/") -> 200000 | I185: =IF(G185<>"/",VLOOKUP(G185,COSTS_Spell_Lightning[#All],3),"/") -> 24 | J185: 200000 | K185: 24 | L185: 2 | M185: =IF(Paramètres!AI7=0,"",Paramètres!AI7) ->  | N185: =IF(N184<>0,N184+IF(AND(M184<>"",L184<P$6),M184,0),IF(AND(M184<>"",L184<P$6),M184,0)) -> 0 | Q185: =IF(R185<>"/",IF(T$182="Error","Error",$U$182+N185),"/") -> 1 | R185: =IF(T$182="Error","Error",IF(AND($P$182<>"/",$P$182>'Paramètres - Admin'!$A3),'Paramètres - Admin'!$A4,"/")) -> 2 | S185: =IF(R185<>"/",VLOOKUP(R185,COSTS_Spell_Jump[#All],2),"/") -> 4000000 | T185: =IF(R185<>"/",VLOOKUP(R185,COSTS_Spell_Jump[#All],3),"/") -> 120 | U185: =IF(T$182="Error","Error",IF(S185<>"/",Q185*S185,0)) -> 4000000 | V185: =IF(T$182="Error","Error",IF(T185<>"/",Q185*T185,0)) -> 120
A186: 3 | B186: =IF(Paramètres!AF8=0,"",Paramètres!AF8) ->  | C186: 0 | F186: 1 | G186: =IF(I$182="Error","Error",IF(AND($E$182<>"/",$E$182>'Paramètres - Admin'!$A4),'Paramètres - Admin'!$A5,"/")) -> 3 | H186: =IF(G186<>"/",VLOOKUP(G186,COSTS_Spell_Lightning[#All],2),"/") -> 500000 | I186: =IF(G186<>"/",VLOOKUP(G186,COSTS_Spell_Lightning[#All],3),"/") -> 48 | J186: 500000 | K186: 48 | T186: Total | U186: =IF(T$182="Error","Error",SUM(U184:U185)) -> 4000000 | V186: =IF(T$182="Error","Error",SUM(V184:V185)) -> 120
A187: 4 | B187: =IF(Paramètres!AF9=0,"",Paramètres!AF9) ->  | C187: 0 | F187: 1 | G187: =IF(I$182="Error","Error",IF(AND($E$182<>"/",$E$182>'Paramètres - Admin'!$A5),'Paramètres - Admin'!$A6,"/")) -> 4 | H187: =IF(G187<>"/",VLOOKUP(G187,COSTS_Spell_Lightning[#All],2),"/") -> 1000000 | I187: =IF(G187<>"/",VLOOKUP(G187,COSTS_Spell_Lightning[#All],3),"/") -> 72 | J187: 1000000 | K187: 72 | L187: Sort de Gel | O187: Max | P187: Max + | T187: Actuel | U187: À Faire | V187: Améliorations
A188: 5 | B188: =IF(Paramètres!AF10=0,"",Paramètres!AF10) ->  | C188: 0 | F188: 1 | G188: =IF(I$182="Error","Error",IF(AND($E$182<>"/",$E$182>'Paramètres - Admin'!$A6),'Paramètres - Admin'!$A7,"/")) -> 5 | H188: =IF(G188<>"/",VLOOKUP(G188,COSTS_Spell_Lightning[#All],2),"/") -> 2000000 | I188: =IF(G188<>"/",VLOOKUP(G188,COSTS_Spell_Lightning[#All],3),"/") -> 96 | J188: 2000000 | K188: 96 | O188: =VLOOKUP($A$2,AVAILABLE_Upgrades_Spells[#All],MATCH(L187,AVAILABLE_Upgrades_Spells[#Headers],0)) -> 1 | P188: =VLOOKUP($A$2,AVAILABLE_Upgrades_Spells[#All],MATCH(L187,AVAILABLE_Upgrades_Spells[#Headers],0)+1) -> 5 | T188: =IF(SUM(M190:M194)>O188,"Error",SUM(M190:M194)) -> 0 | U188: =IF(T$188="Error","Error",O188-T188) -> 1 | V188: =IF(T$188="Error","Error",SUM(Q190:Q193)) -> 4
A189: 6 | B189: =IF(Paramètres!AF11=0,"",Paramètres!AF11) ->  | C189: 0 | F189: 1 | G189: =IF(I$182="Error","Error",IF(AND($E$182<>"/",$E$182>'Paramètres - Admin'!$A7),'Paramètres - Admin'!$A8,"/")) -> 6 | H189: =IF(G189<>"/",VLOOKUP(G189,COSTS_Spell_Lightning[#All],2),"/") -> 8000000 | I189: =IF(G189<>"/",VLOOKUP(G189,COSTS_Spell_Lightning[#All],3),"/") -> 336 | J189: 8000000 | K189: 336 | L189: + | M189: NB | Q189: NB | R189: + | S189: Coût | T189: Temps | U189: Coût Total | V189: Temps Total
I190: Total | J190: =IF(I$182="Error","Error",SUM(J184:J189)) -> 11700000 | K190: =IF(I$182="Error","Error",SUM(K184:K189)) -> 576 | L190: 1 | M190: =IF(Paramètres!AJ6=0,"",Paramètres!AJ6) ->  | N190: =IF(N189<>0,N189+IF(AND(M189<>"",L189<P$6),M189,0),IF(AND(M189<>"",L189<P$6),M189,0)) -> 0 | Q190: =IF(R190<>"/",IF(T$188="Error","Error",$U$188+N190),"/") -> 1 | R190: =IF(T$188="Error","Error",IF(AND($P$188<>"/",$P$188>'Paramètres - Admin'!$A2),'Paramètres - Admin'!$A3,"/")) -> 1 | S190: =IF(R190<>"/",VLOOKUP(R190,COSTS_Spell_Freeze[#All],2),"/") -> 0 | T190: =IF(R190<>"/",VLOOKUP(R190,COSTS_Spell_Freeze[#All],3),"/") -> 0 | U190: =IF(T$188="Error","Error",IF(S190<>"/",Q190*S190,0)) -> 0 | V190: =IF(T$188="Error","Error",IF(T190<>"/",Q190*T190,0)) -> 0
A191: Sort de Guérison | D191: Max | E191: Max + | I191: Actuel | J191: À Faire | K191: Améliorations | L191: 2 | M191: =IF(Paramètres!AJ7=0,"",Paramètres!AJ7) ->  | N191: =IF(N190<>0,N190+IF(AND(M190<>"",L190<P$6),M190,0),IF(AND(M190<>"",L190<P$6),M190,0)) -> 0 | Q191: =IF(R191<>"/",IF(T$188="Error","Error",$U$188+N191),"/") -> 1 | R191: =IF(T$188="Error","Error",IF(AND($P$188<>"/",$P$188>'Paramètres - Admin'!$A3),'Paramètres - Admin'!$A4,"/")) -> 2 | S191: =IF(R191<>"/",VLOOKUP(R191,COSTS_Spell_Freeze[#All],2),"/") -> 4000000 | T191: =IF(R191<>"/",VLOOKUP(R191,COSTS_Spell_Freeze[#All],3),"/") -> 120 | U191: =IF(T$188="Error","Error",IF(S191<>"/",Q191*S191,0)) -> 4000000 | V191: =IF(T$188="Error","Error",IF(T191<>"/",Q191*T191,0)) -> 120
D192: =VLOOKUP($A$2,AVAILABLE_Upgrades_Spells[#All],MATCH(A191,AVAILABLE_Upgrades_Spells[#Headers],0)) -> 1 | E192: =VLOOKUP($A$2,AVAILABLE_Upgrades_Spells[#All],MATCH(A191,AVAILABLE_Upgrades_Spells[#Headers],0)+1) -> 6 | I192: =IF(SUM(B194:B199)>D192,"Error",SUM(B194:B199)) -> 0 | J192: =IF(I$192="Error","Error",D192-I192) -> 1 | K192: =IF(I$192="Error","Error",SUM(F194:F199)) -> 6 | L192: 3 | M192: =IF(Paramètres!AJ8=0,"",Paramètres!AJ8) ->  | N192: =IF(N191<>0,N191+IF(AND(M191<>"",L191<P$6),M191,0),IF(AND(M191<>"",L191<P$6),M191,0)) -> 0 | Q192: =IF(R192<>"/",IF(T$188="Error","Error",$U$188+N192),"/") -> 1 | R192: =IF(T$188="Error","Error",IF(AND($P$188<>"/",$P$188>'Paramètres - Admin'!$A4),'Paramètres - Admin'!$A5,"/")) -> 3 | S192: =IF(R192<>"/",VLOOKUP(R192,COSTS_Spell_Freeze[#All],2),"/") -> 5000000 | T192: =IF(R192<>"/",VLOOKUP(R192,COSTS_Spell_Freeze[#All],3),"/") -> 168 | U192: =IF(T$188="Error","Error",IF(S192<>"/",Q192*S192,0)) -> 5000000 | V192: =IF(T$188="Error","Error",IF(T192<>"/",Q192*T192,0)) -> 168
A193: + | B193: NB | F193: NB | G193: + | H193: Coût | I193: Temps | J193: Coût Total | K193: Temps Total | L193: 4 | M193: =IF(Paramètres!AJ9=0,"",Paramètres!AJ9) ->  | N193: =IF(N192<>0,N192+IF(AND(M192<>"",L192<P$6),M192,0),IF(AND(M192<>"",L192<P$6),M192,0)) -> 0 | Q193: =IF(R193<>"/",IF(T$188="Error","Error",$U$188+N193),"/") -> 1 | R193: =IF(T$188="Error","Error",IF(AND($P$188<>"/",$P$188>'Paramètres - Admin'!$A5),'Paramètres - Admin'!$A6,"/")) -> 4 | S193: =IF(R193<>"/",VLOOKUP(R193,COSTS_Spell_Freeze[#All],2),"/") -> 6500000 | T193: =IF(R193<>"/",VLOOKUP(R193,COSTS_Spell_Freeze[#All],3),"/") -> 240 | U193: =IF(T$188="Error","Error",IF(S193<>"/",Q193*S193,0)) -> 6500000 | V193: =IF(T$188="Error","Error",IF(T193<>"/",Q193*T193,0)) -> 240
A194: 1 | B194: =IF(Paramètres!AG6=0,"",Paramètres!AG6) ->  | C194: =IF(C193<>0,C193+IF(AND(B193<>"",A193<E$6),B193,0),IF(AND(B193<>"",A193<E$6),B193,0)) -> 0 | F194: =IF(G194<>"/",IF(I$192="Error","Error",$J$192+C194),"/") -> 1 | G194: =IF(I$192="Error","Error",IF(AND($E$192<>"/",$E$192>'Paramètres - Admin'!$A2),'Paramètres - Admin'!$A3,"/")) -> 1 | H194: =IF(G194<>"/",VLOOKUP(G194,COSTS_Spell_Healing[#All],2),"/") -> 0 | I194: =IF(G194<>"/",VLOOKUP(G194,COSTS_Spell_Healing[#All],3),"/") -> 0 | J194: =IF(I$192="Error","Error",IF(H194<>"/",F194*H194,0)) -> 0 | K194: =IF(I$192="Error","Error",IF(I194<>"/",F194*I194,0)) -> 0 | L194: 5 | M194: =IF(Paramètres!AJ10=0,"",Paramètres!AJ10) ->  | N194: =IF(N193<>0,N193+IF(AND(M193<>"",L193<P$6),M193,0),IF(AND(M193<>"",L193<P$6),M193,0)) -> 0 | Q194: =IF(R194<>"/",IF(T$188="Error","Error",$U$188+N194),"/") -> 1 | R194: =IF(T$188="Error","Error",IF(AND($P$188<>"/",$P$188>'Paramètres - Admin'!$A6),'Paramètres - Admin'!$A7,"/")) -> 5 | S194: =IF(R194<>"/",VLOOKUP(R194,COSTS_Spell_Freeze[#All],2),"/") -> 8000000 | T194: =IF(R194<>"/",VLOOKUP(R194,COSTS_Spell_Freeze[#All],3),"/") -> 336 | U194: =IF(T$188="Error","Error",IF(S194<>"/",Q194*S194,0)) -> 8000000 | V194: =IF(T$188="Error","Error",IF(T194<>"/",Q194*T194,0)) -> 336
A195: 2 | B195: =IF(Paramètres!AG7=0,"",Paramètres!AG7) ->  | C195: 0 | F195: 1 | G195: =IF(I$192="Error","Error",IF(AND($E$192<>"/",$E$192>'Paramètres - Admin'!$A3),'Paramètres - Admin'!$A4,"/")) -> 2 | H195: =IF(G195<>"/",VLOOKUP(G195,COSTS_Spell_Healing[#All],2),"/") -> 300000 | I195: =IF(G195<>"/",VLOOKUP(G195,COSTS_Spell_Healing[#All],3),"/") -> 24 | J195: 300000 | K195: 24 | T195: Total | U195: =IF(T$188="Error","Error",SUM(U190:U194)) -> 23500000 | V195: =IF(T$188="Error","Error",SUM(V190:V193)) -> 528
A196: 3 | B196: =IF(Paramètres!AG8=0,"",Paramètres!AG8) ->  | C196: 0 | F196: 1 | G196: =IF(I$192="Error","Error",IF(AND($E$192<>"/",$E$192>'Paramètres - Admin'!$A4),'Paramètres - Admin'!$A5,"/")) -> 3 | H196: =IF(G196<>"/",VLOOKUP(G196,COSTS_Spell_Healing[#All],2),"/") -> 600000 | I196: =IF(G196<>"/",VLOOKUP(G196,COSTS_Spell_Healing[#All],3),"/") -> 48 | J196: 600000 | K196: 48
A197: 4 | B197: =IF(Paramètres!AG9=0,"",Paramètres!AG9) ->  | C197: 0 | F197: 1 | G197: =IF(I$192="Error","Error",IF(AND($E$192<>"/",$E$192>'Paramètres - Admin'!$A5),'Paramètres - Admin'!$A6,"/")) -> 4 | H197: =IF(G197<>"/",VLOOKUP(G197,COSTS_Spell_Healing[#All],2),"/") -> 1200000 | I197: =IF(G197<>"/",VLOOKUP(G197,COSTS_Spell_Healing[#All],3),"/") -> 72 | J197: 1200000 | K197: 72
A198: 5 | B198: =IF(Paramètres!AG10=0,"",Paramètres!AG10) ->  | C198: 0 | F198: 1 | G198: =IF(I$192="Error","Error",IF(AND($E$192<>"/",$E$192>'Paramètres - Admin'!$A6),'Paramètres - Admin'!$A7,"/")) -> 5 | H198: =IF(G198<>"/",VLOOKUP(G198,COSTS_Spell_Healing[#All],2),"/") -> 2400000 | I198: =IF(G198<>"/",VLOOKUP(G198,COSTS_Spell_Healing[#All],3),"/") -> 120 | J198: 2400000 | K198: 120
A199: 6 | B199: =IF(Paramètres!AG11=0,"",Paramètres!AG11) ->  | C199: 0 | F199: 1 | G199: =IF(I$192="Error","Error",IF(AND($E$192<>"/",$E$192>'Paramètres - Admin'!$A7),'Paramètres - Admin'!$A8,"/")) -> 6 | H199: =IF(G199<>"/",VLOOKUP(G199,COSTS_Spell_Healing[#All],2),"/") -> 4800000 | I199: =IF(G199<>"/",VLOOKUP(G199,COSTS_Spell_Healing[#All],3),"/") -> 168 | J199: 4800000 | K199: 168
I200: Total | J200: =IF(I$192="Error","Error",SUM(J194:J199)) -> 9300000 | K200: =IF(I$192="Error","Error",SUM(K194:K199)) -> 432
A201: Sort de Rage | D201: Max | E201: Max + | I201: Actuel | J201: À Faire | K201: Améliorations
D202: =VLOOKUP($A$2,AVAILABLE_Upgrades_Spells[#All],MATCH(A201,AVAILABLE_Upgrades_Spells[#Headers],0)) -> 1 | E202: =VLOOKUP($A$2,AVAILABLE_Upgrades_Spells[#All],MATCH(A201,AVAILABLE_Upgrades_Spells[#Headers],0)+1) -> 5 | I202: =IF(SUM(B204:B208)>D202,"Error",SUM(B204:B208)) -> 0 | J202: =IF(I$202="Error","Error",D202-I202) -> 1 | K202: =IF(I$202="Error","Error",SUM(F204:F208)) -> 5
A203: + | B203: NB | F203: NB | G203: + | H203: Coût | I203: Temps | J203: Coût Total | K203: Temps Total
A204: 1 | B204: =IF(Paramètres!AH6=0,"",Paramètres!AH6) ->  | C204: =IF(C203<>0,C203+IF(AND(B203<>"",A203<E$6),B203,0),IF(AND(B203<>"",A203<E$6),B203,0)) -> 0 | F204: =IF(G204<>"/",IF(I$202="Error","Error",$J$202+C204),"/") -> 1 | G204: =IF(I$202="Error","Error",IF(AND($E$202<>"/",$E$202>'Paramètres - Admin'!$A2),'Paramètres - Admin'!$A3,"/")) -> 1 | H204: =IF(G204<>"/",VLOOKUP(G204,COSTS_Spell_Rage[#All],2),"/") -> 0 | I204: =IF(G204<>"/",VLOOKUP(G204,COSTS_Spell_Rage[#All],3),"/") -> 0 | J204: =IF(I$202="Error","Error",IF(H204<>"/",F204*H204,0)) -> 0 | K204: =IF(I$202="Error","Error",IF(I204<>"/",F204*I204,0)) -> 0
A205: 2 | B205: =IF(Paramètres!AH7=0,"",Paramètres!AH7) ->  | C205: =IF(C204<>0,C204+IF(AND(B204<>"",A204<E$6),B204,0),IF(AND(B204<>"",A204<E$6),B204,0)) -> 0 | F205: =IF(G205<>"/",IF(I$202="Error","Error",$J$202+C205),"/") -> 1 | G205: =IF(I$202="Error","Error",IF(AND($E$202<>"/",$E$202>'Paramètres - Admin'!$A3),'Paramètres - Admin'!$A4,"/")) -> 2 | H205: =IF(G205<>"/",VLOOKUP(G205,COSTS_Spell_Rage[#All],2),"/") -> 450000 | I205: =IF(G205<>"/",VLOOKUP(G205,COSTS_Spell_Rage[#All],3),"/") -> 48 | J205: =IF(I$202="Error","Error",IF(H205<>"/",F205*H205,0)) -> 450000 | K205: =IF(I$202="Error","Error",IF(I205<>"/",F205*I205,0)) -> 48
A206: 3 | B206: =IF(Paramètres!AH8=0,"",Paramètres!AH8) ->  | C206: =IF(C205<>0,C205+IF(AND(B205<>"",A205<E$6),B205,0),IF(AND(B205<>"",A205<E$6),B205,0)) -> 0 | F206: =IF(G206<>"/",IF(I$202="Error","Error",$J$202+C206),"/") -> 1 | G206: =IF(I$202="Error","Error",IF(AND($E$202<>"/",$E$202>'Paramètres - Admin'!$A4),'Paramètres - Admin'!$A5,"/")) -> 3 | H206: =IF(G206<>"/",VLOOKUP(G206,COSTS_Spell_Rage[#All],2),"/") -> 900000 | I206: =IF(G206<>"/",VLOOKUP(G206,COSTS_Spell_Rage[#All],3),"/") -> 72 | J206: =IF(I$202="Error","Error",IF(H206<>"/",F206*H206,0)) -> 900000 | K206: =IF(I$202="Error","Error",IF(I206<>"/",F206*I206,0)) -> 72
A207: 4 | B207: =IF(Paramètres!AH9=0,"",Paramètres!AH9) ->  | C207: =IF(C206<>0,C206+IF(AND(B206<>"",A206<E$6),B206,0),IF(AND(B206<>"",A206<E$6),B206,0)) -> 0 | F207: =IF(G207<>"/",IF(I$202="Error","Error",$J$202+C207),"/") -> 1 | G207: =IF(I$202="Error","Error",IF(AND($E$202<>"/",$E$202>'Paramètres - Admin'!$A5),'Paramètres - Admin'!$A6,"/")) -> 4 | H207: =IF(G207<>"/",VLOOKUP(G207,COSTS_Spell_Rage[#All],2),"/") -> 1800000 | I207: =IF(G207<>"/",VLOOKUP(G207,COSTS_Spell_Rage[#All],3),"/") -> 120 | J207: =IF(I$202="Error","Error",IF(H207<>"/",F207*H207,0)) -> 1800000 | K207: =IF(I$202="Error","Error",IF(I207<>"/",F207*I207,0)) -> 120
... 129 more rows

Sheet Production
A1: LVL HdV | B1: Période | C1: Or Total : | D1: Élixir Total : | E1: Élixir Noir Total :
A2: =Paramètres!$BE$2 -> 10 | B2: 1 jour | C2: ='À Faire - Récapitulatif'!D2 -> 2 979 352 457 | D2: ='À Faire - Récapitulatif'!G2 -> 317 074 850 | E2: ='À Faire - Récapitulatif'!I2 -> 8 950 000
A3: Production
A4: Type | B4: Mine d'Or | C4: Extracteur d'Élixir | D4: Foreuse d'Élixir Noir
A5: Max + | B5: =VLOOKUP($A$2,AVAILABLE_Buildings_Resource[#All],MATCH(B$4,AVAILABLE_Buildings_Resource[#Headers],0)+1) -> 12 | C5: =VLOOKUP($A$2,AVAILABLE_Buildings_Resource[#All],MATCH(C$4,AVAILABLE_Buildings_Resource[#Headers],0)+1) -> 12 | D5: =VLOOKUP($A$2,AVAILABLE_Buildings_Resource[#All],MATCH(D$4,AVAILABLE_Buildings_Resource[#Headers],0)+1) -> 6
A6: 1 | B6: =Paramètres!B6 -> 0 | C6: =Paramètres!C6 -> 0 | D6: =Paramètres!D6 -> 0
A7: 2 | B7: =Paramètres!B7 -> 0 | C7: =Paramètres!C7 -> 0 | D7: =Paramètres!D7 -> 0
A8: 3 | B8: =Paramètres!B8 -> 0 | C8: =Paramètres!C8 -> 0 | D8: =Paramètres!D8 -> 0
A9: 4 | B9: =Paramètres!B9 -> 0 | C9: =Paramètres!C9 -> 0 | D9: =Paramètres!D9 -> 0
A10: 5 | B10: =Paramètres!B10 -> 0 | C10: =Paramètres!C10 -> 0 | D10: =Paramètres!D10 -> 0
A11: 6 | B11: =Paramètres!B11 -> 0 | C11: =Paramètres!C11 -> 0 | D11: =Paramètres!D11 -> 0
A12: 7 | B12: =Paramètres!B12 -> 0 | C12: =Paramètres!C12 -> 0 | D12: =Paramètres!D12 -> 0
A13: 8 | B13: =Paramètres!B13 -> 0 | C13: =Paramètres!C13 -> 0 | D13: =Paramètres!D13 -> 0
A14: 9 | B14: =Paramètres!B14 -> 0 | C14: =Paramètres!C14 -> 0 | D14: =Paramètres!D14 -> 0
A15: 10 | B15: =Paramètres!B15 -> 0 | C15: =Paramètres!C15 -> 0 | D15: =Paramètres!D15 -> 0
A16: 11 | B16: =Paramètres!B16 -> 0 | C16: =Paramètres!C16 -> 0 | D16: =Paramètres!D16 -> 0
A17: 11 | B17: =Paramètres!B17 -> 0 | C17: =Paramètres!C17 -> 0
A18: Production / heure | B18: =SUMPRODUCT(B6:B17,EARNINGS_Gold_Mine[Production]) -> 0 | C18: =SUMPRODUCT(C6:C17,EARNINGS_Elixir_Collector[Production]) -> 0 | D18: =SUMPRODUCT(D6:D11,EARNINGS_Dark_Elixir_Drill[Production]) -> 0
A19: Production / période | B19: =IF($B$2='Paramètres - Admin'!$E$2,B18,IF($B$2='Paramètres - Admin'!$E$3,B18*2,IF($B$2='Paramètres - Admin'!$E$4,B18*4,IF($B$2='Paramètres - Admin'!$E$5,B18*8,IF($B$2='Paramètres - Admin'!$E$6,B18*16,IF($B$2='Paramètres - Admin'!$E$7,B18*24,IF($B$2='Paramètres - Admin'!$E$8,B18*48,IF($B$2='Paramètres - Admin'!$E$9,B18*72,IF($B$2='Paramètres - Admin'!$E$10,B18*168,IF($B$2='Paramètres - Admin'!$E$11,B18*720)))))))))) -> 0 | C19: =IF($B$2='Paramètres - Admin'!$E$2,C18,IF($B$2='Paramètres - Admin'!$E$3,C18*2,IF($B$2='Paramètres - Admin'!$E$4,C18*4,IF($B$2='Paramètres - Admin'!$E$5,C18*8,IF($B$2='Paramètres - Admin'!$E$6,C18*16,IF($B$2='Paramètres - Admin'!$E$7,C18*24,IF($B$2='Paramètres - Admin'!$E$8,C18*48,IF($B$2='Paramètres - Admin'!$E$9,C18*72,IF($B$2='Paramètres - Admin'!$E$10,C18*168,IF($B$2='Paramètres - Admin'!$E$11,C18*720)))))))))) -> 0 | D19: =IF($B$2='Paramètres - Admin'!$E$2,D18,IF($B$2='Paramètres - Admin'!$E$3,D18*2,IF($B$2='Paramètres - Admin'!$E$4,D18*4,IF($B$2='Paramètres - Admin'!$E$5,D18*8,IF($B$2='Paramètres - Admin'!$E$6,D18*16,IF($B$2='Paramètres - Admin'!$E$7,D18*24,IF($B$2='Paramètres - Admin'!$E$8,D18*48,IF($B$2='Paramètres - Admin'!$E$9,D18*72,IF($B$2='Paramètres - Admin'!$E$10,D18*168,IF($B$2='Paramètres - Admin'!$E$11,D18*720)))))))))) -> 0
A20: Temps pour obtenir besoins | B20: =IF(B$18<>0,IF($B$2='Paramètres - Admin'!$B$2,TEXT((('À Faire - Récapitulatif'!D8+'À Faire - Récapitulatif'!D11+'À Faire - Récapitulatif'!P16+'À Faire - Récapitulatif'!V9)/B$18)*60*60,"# 0")&" " & 'Paramètres - Admin'!$B$2,IF($B$2='Paramètres - Admin'!$B$3,TEXT((('À Faire - Récapitulatif'!D8+'À Faire - Récapitulatif'!D11+'À Faire - Récapitulatif'!P16+'À Faire - Récapitulatif'!V9)/B$18)*60,"# 0")&" " & 'Paramètres - Admin'!$B$3,IF($B$2='Paramètres - Admin'!$B$4,TEXT((('À Faire - Récapitulatif'!D8+'À Faire - Récapitulatif'!D11+'À Faire - Récapitulatif'!P16+'À Faire - Récapitulatif'!V9)/B$18),"# 0,00")&" " & 'Paramètres - Admin'!$B$4,IF($B$2='Paramètres - Admin'!$B$5,TEXT((('À Faire - Récapitulatif'!D8+'À Faire - Récapitulatif'!D11+'À Faire - Récapitulatif'!P16+'À Faire - Récapitulatif'!V9)/B$18)/24,"# 0,00")&" " & 'Paramètres - Admin'!$B$5,IF($B$2='Paramètres - Admin'!$B$6,TEXT(((('À Faire - Récapitulatif'!D8+'À Faire - Récapitulatif'!D11+'À Faire - Récapitulatif'!P16+'À Faire - Récapitulatif'!V9)/B$18)/24)/30,"# 0,00")&" " & 'Paramètres - Admin'!$B$6,IF((('À Faire - Récapitulatif'!D8+'À Faire - Récapitulatif'!D11+'À Faire - Récapitulatif'!P16+'À Faire - Récapitulatif'!V9)/B$18)/24>=1,INT((('À Faire - Récapitulatif'!D8+'À Faire - Récapitulatif'!D11+'À Faire - Récapitulatif'!P16+'À Faire - Récapitulatif'!V9)/B$18)/24)&" " & 'Paramètres - Admin'!$D$4 & " " & HOUR((('À Faire - Récapitulatif'!D8+'À Faire - Récapitulatif'!D11+'À Faire - Récapitulatif'!P16+'À Faire - Récapitulatif'!V9)/B$18)/24-INT((('À Faire - Récapitulatif'!D8+'À Faire - Récapitulatif'!D11+'À Faire - Récapitulatif'!P16+'À Faire - Récapitulatif'!V9)/B$18)/24))&" " & 'Paramètres - Admin'!$D$3 & " " & MINUTE((('À Faire - Récapitulatif'!D8+'À Faire - Récapitulatif'!D11+'À Faire - Récapitulatif'!P16+'À Faire - Récapitulatif'!V9)/B$18)/24-INT((('À Faire - Récapitulatif'!D8+'À Faire - Récapitulatif'!D11+'À Faire - Récapitulatif'!P16+'À Faire - Récapitulatif'!V9)/B$18)/24))&" " & 'Paramètres - Admin'!$D$2,HOUR((('À Faire - Récapitulatif'!D8+'À Faire - Récapitulatif'!D11+'À Faire - Récapitulatif'!P16+'À Faire - Récapitulatif'!V9)/B$18)/24-INT((('À Faire - Récapitulatif'!D8+'À Faire - Récapitulatif'!D11+'À Faire - Récapitulatif'!P16+'À Faire - Récapitulatif'!V9)/B$18)/24))&" " & 'Paramètres - Admin'!$D$3 & " " & MINUTE((('À Faire - Récapitulatif'!D8+'À Faire - Récapitulatif'!D11+'À Faire - Récapitulatif'!P16+'À Faire - Récapitulatif'!V9)/B$18)/24-INT((('À Faire - Récapitulatif'!D8+'À Faire - Récapitulatif'!D11+'À Faire - Récapitulatif'!P16+'À Faire - Récapitulatif'!V9)/B$18)/24))&" " & 'Paramètres - Admin'!$D$2)))))),0) -> 0 | C20: =IF(C$18<>0,IF($B$2='Paramètres - Admin'!$B$2,TEXT((('À Faire - Récapitulatif'!D7+'À Faire - Récapitulatif'!D9+'À Faire - Récapitulatif'!D10+'À Faire - Récapitulatif'!D12+'À Faire - Récapitulatif'!J12+'À Faire - Récapitulatif'!D25+'À Faire - Récapitulatif'!J30)/C$18)*60*60,"# 0")&" " & 'Paramètres - Admin'!$B$2,IF($B$2='Paramètres - Admin'!$B$3,TEXT((('À Faire - Récapitulatif'!D7+'À Faire - Récapitulatif'!D9+'À Faire - Récapitulatif'!D10+'À Faire - Récapitulatif'!D12+'À Faire - Récapitulatif'!J12+'À Faire - Récapitulatif'!D25+'À Faire - Récapitulatif'!J30)/C$18)*60,"# 0")&" " & 'Paramètres - Admin'!$B$3,IF($B$2='Paramètres - Admin'!$B$4,TEXT((('À Faire - Récapitulatif'!D7+'À Faire - Récapitulatif'!D9+'À Faire - Récapitulatif'!D10+'À Faire - Récapitulatif'!D12+'À Faire - Récapitulatif'!J12+'À Faire - Récapitulatif'!D25+'À Faire - Récapitulatif'!J30)/C$18),"# 0,00")&" " & 'Paramètres - Admin'!$B$4,IF($B$2='Paramètres - Admin'!$B$5,TEXT((('À Faire - Récapitulatif'!D7+'À Faire - Récapitulatif'!D9+'À Faire - Récapitulatif'!D10+'À Faire - Récapitulatif'!D12+'À Faire - Récapitulatif'!J12+'À Faire - Récapitulatif'!D25+'À Faire - Récapitulatif'!J30)/C$18)/24,"# 0,00")&" " & 'Paramètres - Admin'!$B$5,IF($B$2='Paramètres - Admin'!$B$6,TEXT(((('À Faire - Récapitulatif'!D7+'À Faire - Récapitulatif'!D9+'À Faire - Récapitulatif'!D10+'À Faire - Récapitulatif'!D12+'À Faire - Récapitulatif'!J12+'À Faire - Récapitulatif'!D25+'À Faire - Récapitulatif'!J30)/C$18)/24)/30,"# 0,00")&" " & 'Paramètres - Admin'!$B$6,IF((('À Faire - Récapitulatif'!D7+'À Faire - Récapitulatif'!D9+'À Faire - Récapitulatif'!D10+'À Faire - Récapitulatif'!D12+'À Faire - Récapitulatif'!J12+'À Faire - Récapitulatif'!D25+'À Faire - Récapitulatif'!J30)/C$18)/24>=1,INT((('À Faire - Récapitulatif'!D7+'À Faire - Récapitulatif'!D9+'À Faire - Récapitulatif'!D10+'À Faire - Récapitulatif'!D12+'À Faire - Récapitulatif'!J12+'À Faire - Récapitulatif'!D25+'À Faire - Récapitulatif'!J30)/C$18)/24)&" " & 'Paramètres - Admin'!$D$4 & " " & HOUR((('À Faire - Récapitulatif'!D7+'À Faire - Récapitulatif'!D9+'À Faire - Récapitulatif'!D10+'À Faire - Récapitulatif'!D12+'À Faire - Récapitulatif'!J12+'À Faire - Récapitulatif'!D25+'À Faire - Récapitulatif'!J30)/C$18)/24-INT((('À Faire - Récapitulatif'!D7+'À Faire - Récapitulatif'!D9+'À Faire - Récapitulatif'!D10+'À Faire - Récapitulatif'!D12+'À Faire - Récapitulatif'!J12+'À Faire - Récapitulatif'!D25+'À Faire - Récapitulatif'!J30)/C$18)/24))&" " & 'Paramètres - Admin'!$D$3 & " " & MINUTE((('À Faire - Récapitulatif'!D7+'À Faire - Récapitulatif'!D9+'À Faire - Récapitulatif'!D10+'À Faire - Récapitulatif'!D12+'À Faire - Récapitulatif'!J12+'À Faire - Récapitulatif'!D25+'À Faire - Récapitulatif'!J30)/C$18)/24-INT((('À Faire - Récapitulatif'!D7+'À Faire - Récapitulatif'!D9+'À Faire - Récapitulatif'!D10+'À Faire - Récapitulatif'!D12+'À Faire - Récapitulatif'!J12+'À Faire - Récapitulatif'!D25+'À Faire - Récapitulatif'!J30)/C$18)/24))&" " & 'Paramètres - Admin'!$D$2,HOUR((('À Faire - Récapitulatif'!D7+'À Faire - Récapitulatif'!D9+'À Faire - Récapitulatif'!D10+'À Faire - Récapitulatif'!D12+'À Faire - Récapitulatif'!J12+'À Faire - Récapitulatif'!D25+'À Faire - Récapitulatif'!J30)/C$18)/24-INT((('À Faire - Récapitulatif'!D7+'À Faire - Récapitulatif'!D9+'À Faire - Récapitulatif'!D10+'À Faire - Récapitulatif'!D12+'À Faire - Récapitulatif'!J12+'À Faire - Récapitulatif'!D25+'À Faire - Récapitulatif'!J30)/C$18)/24))&" " & 'Paramètres - Admin'!$D$3 & " " & MINUTE((('À Faire - Récapitulatif'!D7+'À Faire - Récapitulatif'!D9+'À Faire - Récapitulatif'!D10+'À Faire - Récapitulatif'!D12+'À Faire - Récapitulatif'!J12+'À Faire - Récapitulatif'!D25+'À Faire - Récapitulatif'!J30)/C$18)/24-INT((('À Faire - Récapitulatif'!D7+'À Faire - Récapitulatif'!D9+'À Faire - Récapitulatif'!D10+'À Faire - Récapitulatif'!D12+'À Faire - Récapitulatif'!J12+'À Faire - Récapitulatif'!D25+'À Faire - Récapitulatif'!J30)/C$18)/24))&" " & 'Paramètres - Admin'!$D$2)))))),0) -> 0 | D20: =IF(D$18<>0,IF($B$2='Paramètres - Admin'!$B$2,TEXT((('À Faire - Récapitulatif'!P26+'À Faire - Récapitulatif'!V22)/D$18)*60*60,"# 0")&" " & 'Paramètres - Admin'!$B$2,IF($B$2='Paramètres - Admin'!$B$3,TEXT((('À Faire - Récapitulatif'!P26+'À Faire - Récapitulatif'!V22)/D$18)*60,"# 0")&" " & 'Paramètres - Admin'!$B$3,IF($B$2='Paramètres - Admin'!$B$4,TEXT((('À Faire - Récapitulatif'!P26+'À Faire - Récapitulatif'!V22)/D$18),"# 0,00")&" " & 'Paramètres - Admin'!$B$4,IF($B$2='Paramètres - Admin'!$B$5,TEXT((('À Faire - Récapitulatif'!P26+'À Faire - Récapitulatif'!V22)/D$18)/24,"# 0,00")&" " & 'Paramètres - Admin'!$B$5,IF($B$2='Paramètres - Admin'!$B$6,TEXT(((('À Faire - Récapitulatif'!P26+'À Faire - Récapitulatif'!V22)/D$18)/24)/30,"# 0,00")&" " & 'Paramètres - Admin'!$B$6,IF((('À Faire - Récapitulatif'!P26+'À Faire - Récapitulatif'!V22)/D$18)/24>=1,INT((('À Faire - Récapitulatif'!P26+'À Faire - Récapitulatif'!V22)/D$18)/24)&" " & 'Paramètres - Admin'!$D$4 & " " & HOUR((('À Faire - Récapitulatif'!P26+'À Faire - Récapitulatif'!V22)/D$18)/24-INT((('À Faire - Récapitulatif'!P26+'À Faire - Récapitulatif'!V22)/D$18)/24))&" " & 'Paramètres - Admin'!$D$3 & " " & MINUTE((('À Faire - Récapitulatif'!P26+'À Faire - Récapitulatif'!V22)/D$18)/24-INT((('À Faire - Récapitulatif'!P26+'À Faire - Récapitulatif'!V22)/D$18)/24))&" " & 'Paramètres - Admin'!$D$2,HOUR((('À Faire - Récapitulatif'!P26+'À Faire - Récapitulatif'!V22)/D$18)/24-INT((('À Faire - Récapitulatif'!P26+'À Faire - Récapitulatif'!V22)/D$18)/24))&" " & 'Paramètres - Admin'!$D$3 & " " & MINUTE((('À Faire - Récapitulatif'!P26+'À Faire - Récapitulatif'!V22)/D$18)/24-INT((('À Faire - Récapitulatif'!P26+'À Faire - Récapitulatif'!V22)/D$18)/24))&" " & 'Paramètres - Admin'!$D$2)))))),0) -> 0

Sheet Combats - Loots
A1: LVL HdV | B1: Attaque / Défense | C1: LVL HdV Opposant | D1: Différence LVL HdV | E1: Trophées
A2: =Paramètres!$BE$2 -> 10 | B2: Défense | C2: 10 | D2: =IF($B$2='Paramètres - Admin'!$F$2,$C$2-$A$2,IF(B2='Paramètres - Admin'!$F$3,$A$2-$C$2)) -> 0 | E2: 1679
A3: Combat - Nombre Total de Ressources | M3: Type | N3: % | O3: Gain Maximum
B4: Réserve d'Or | C4: Réservoir d'Élixir | D4: Réservoir d'Élixir Noir | E4: Mine d'Or | F4: Extracteur d'Élixir | G4: Foreuse d'Élixir Noir | M4: Réserve d'Or | N4: 0.1 | O4: 400000
A5: Max | B5: =IF($B$2='Paramètres - Admin'!$F$2,VLOOKUP($C$2,AVAILABLE_Buildings_Resource[#All],MATCH(B$4,AVAILABLE_Buildings_Resource[#Headers],0)),IF($B$2='Paramètres - Admin'!$F$3,VLOOKUP($A$2,AVAILABLE_Buildings_Resource[#All],MATCH(B$4,AVAILABLE_Buildings_Resource[#Headers],0)))) -> 4 | C5: =IF($B$2='Paramètres - Admin'!$F$2,VLOOKUP($C$2,AVAILABLE_Buildings_Resource[#All],MATCH(C$4,AVAILABLE_Buildings_Resource[#Headers],0)),IF($B$2='Paramètres - Admin'!$F$3,VLOOKUP($A$2,AVAILABLE_Buildings_Resource[#All],MATCH(C$4,AVAILABLE_Buildings_Resource[#Headers],0)))) -> 4 | D5: =IF($B$2='Paramètres - Admin'!$F$2,VLOOKUP($C$2,AVAILABLE_Buildings_Resource[#All],MATCH(D$4,AVAILABLE_Buildings_Resource[#Headers],0)),IF($B$2='Paramètres - Admin'!$F$3,VLOOKUP($A$2,AVAILABLE_Buildings_Resource[#All],MATCH(D$4,AVAILABLE_Buildings_Resource[#Headers],0)))) -> 1 | E5: =IF($B$2='Paramètres - Admin'!$F$2,VLOOKUP($C$2,AVAILABLE_Buildings_Resource[#All],MATCH(E$4,AVAILABLE_Buildings_Resource[#Headers],0)),IF($B$2='Paramètres - Admin'!$F$3,VLOOKUP($A$2,AVAILABLE_Buildings_Resource[#All],MATCH(E$4,AVAILABLE_Buildings_Resource[#Headers],0)))) -> 7 | F5: =IF($B$2='Paramètres - Admin'!$F$2,VLOOKUP($C$2,AVAILABLE_Buildings_Resource[#All],MATCH(F$4,AVAILABLE_Buildings_Resource[#Headers],0)),IF($B$2='Paramètres - Admin'!$F$3,VLOOKUP($A$2,AVAILABLE_Buildings_Resource[#All],MATCH(F$4,AVAILABLE_Buildings_Resource[#Headers],0)))) -> 7 | G5: =IF($B$2='Paramètres - Admin'!$F$2,VLOOKUP($C$2,AVAILABLE_Buildings_Resource[#All],MATCH(G$4,AVAILABLE_Buildings_Resource[#Headers],0)),IF($B$2='Paramètres - Admin'!$F$3,VLOOKUP($A$2,AVAILABLE_Buildings_Resource[#All],MATCH(G$4,AVAILABLE_Buildings_Resource[#Headers],0)))) -> 3 | I5: Cellule rouge : | J5: Bâtiment non disponible | M5: Réservoir d'Élixir | N5: 0.1 | O5: 400000
A6: Stockage Max | B6: =IF($B$2='Paramètres - Admin'!$F$2,IF(ISERROR(VLOOKUP(VLOOKUP($C$2,AVAILABLE_Buildings_Resource[#All],MATCH(B$4,AVAILABLE_Buildings_Resource[#Headers],0)+1),EARNINGS_Gold_Storage[#All],2)),0,VLOOKUP(VLOOKUP($C$2,AVAILABLE_Buildings_Resource[#All],MATCH(B$4,AVAILABLE_Buildings_Resource[#Headers],0)+1),EARNINGS_Gold_Storage[#All],2)),IF($B$2='Paramètres - Admin'!$F$3,IF(ISERROR(VLOOKUP(VLOOKUP($A$2,AVAILABLE_Buildings_Resource[#All],MATCH(B$4,AVAILABLE_Buildings_Resource[#Headers],0)+1),EARNINGS_Gold_Storage[#All],2)),0,VLOOKUP(VLOOKUP($A$2,AVAILABLE_Buildings_Resource[#All],MATCH(B$4,AVAILABLE_Buildings_Resource[#Headers],0)+1),EARNINGS_Gold_Storage[#All],2)))) -> 2000000 | C6: =IF($B$2='Paramètres - Admin'!$F$2,IF(ISERROR(VLOOKUP(VLOOKUP($C$2,AVAILABLE_Buildings_Resource[#All],MATCH(C$4,AVAILABLE_Buildings_Resource[#Headers],0)+1),EARNINGS_Elixir_Storage[#All],2)),0,VLOOKUP(VLOOKUP($C$2,AVAILABLE_Buildings_Resource[#All],MATCH(C$4,AVAILABLE_Buildings_Resource[#Headers],0)+1),EARNINGS_Elixir_Storage[#All],2)),IF($B$2='Paramètres - Admin'!$F$3,IF(ISERROR(VLOOKUP(VLOOKUP($A$2,AVAILABLE_Buildings_Resource[#All],MATCH(C$4,AVAILABLE_Buildings_Resource[#Headers],0)+1),EARNINGS_Elixir_Storage[#All],2)),0,VLOOKUP(VLOOKUP($A$2,AVAILABLE_Buildings_Resource[#All],MATCH(C$4,AVAILABLE_Buildings_Resource[#Headers],0)+1),EARNINGS_Elixir_Storage[#All],2)))) -> 2000000 | D6: =IF($B$2='Paramètres - Admin'!$F$2,IF(ISERROR(VLOOKUP(VLOOKUP($C$2,AVAILABLE_Buildings_Resource[#All],MATCH(D$4,AVAILABLE_Buildings_Resource[#Headers],0)+1),EARNINGS_Dark_Elixir_Storage[#All],2)),0,VLOOKUP(VLOOKUP($C$2,AVAILABLE_Buildings_Resource[#All],MATCH(D$4,AVAILABLE_Buildings_Resource[#Headers],0)+1),EARNINGS_Dark_Elixir_Storage[#All],2)),IF($B$2='Paramètres - Admin'!$F$3,IF(ISERROR(VLOOKUP(VLOOKUP($A$2,AVAILABLE_Buildings_Resource[#All],MATCH(D$4,AVAILABLE_Buildings_Resource[#Headers],0)+1),EARNINGS_Dark_Elixir_Storage[#All],2)),0,VLOOKUP(VLOOKUP($A$2,AVAILABLE_Buildings_Resource[#All],MATCH(D$4,AVAILABLE_Buildings_Resource[#Headers],0)+1),EARNINGS_Dark_Elixir_Storage[#All],2)))) -> 200000 | E6: =IF($B$2='Paramètres - Admin'!$F$2,IF(ISERROR(VLOOKUP(VLOOKUP($C$2,AVAILABLE_Buildings_Resource[#All],MATCH(E$4,AVAILABLE_Buildings_Resource[#Headers],0)+1),EARNINGS_Gold_Mine[#All],3)),0,VLOOKUP(VLOOKUP($C$2,AVAILABLE_Buildings_Resource[#All],MATCH(E$4,AVAILABLE_Buildings_Resource[#Headers],0)+1),EARNINGS_Gold_Mine[#All],3)),IF($B$2='Paramètres - Admin'!$F$3,IF(ISERROR(VLOOKUP(VLOOKUP($A$2,AVAILABLE_Buildings_Resource[#All],MATCH(E$4,AVAILABLE_Buildings_Resource[#Headers],0)+1),EARNINGS_Gold_Mine[#All],3)),0,VLOOKUP(VLOOKUP($A$2,AVAILABLE_Buildings_Resource[#All],MATCH(E$4,AVAILABLE_Buildings_Resource[#Headers],0)+1),EARNINGS_Gold_Mine[#All],3)))) -> 200000 | F6: =IF($B$2='Paramètres - Admin'!$F$2,IF(ISERROR(VLOOKUP(VLOOKUP($C$2,AVAILABLE_Buildings_Resource[#All],MATCH(F$4,AVAILABLE_Buildings_Resource[#Headers],0)+1),EARNINGS_Elixir_Collector[#All],3)),0,VLOOKUP(VLOOKUP($C$2,AVAILABLE_Buildings_Resource[#All],MATCH(F$4,AVAILABLE_Buildings_Resource[#Headers],0)+1),EARNINGS_Elixir_Collector[#All],3)),IF($B$2='Paramètres - Admin'!$F$3,IF(ISERROR(VLOOKUP(VLOOKUP($A$2,AVAILABLE_Buildings_Resource[#All],MATCH(F$4,AVAILABLE_Buildings_Resource[#Headers],0)+1),EARNINGS_Elixir_Collector[#All],3)),0,VLOOKUP(VLOOKUP($A$2,AVAILABLE_Buildings_Resource[#All],MATCH(F$4,AVAILABLE_Buildings_Resource[#Headers],0)+1),EARNINGS_Elixir_Collector[#All],3)))) -> 200000 | G6: =IF($B$2='Paramètres - Admin'!$F$2,IF(ISERROR(VLOOKUP(VLOOKUP($C$2,AVAILABLE_Buildings_Resource[#All],MATCH(E$4,AVAILABLE_Buildings_Resource[#Headers],0)+1),EARNINGS_Dark_Elixir_Drill[#All],3)),0,VLOOKUP(VLOOKUP($C$2,AVAILABLE_Buildings_Resource[#All],MATCH(E$4,AVAILABLE_Buildings_Resource[#Headers],0)+1),EARNINGS_Dark_Elixir_Drill[#All],3)),IF($B$2='Paramètres - Admin'!$F$3,IF(ISERROR(VLOOKUP(VLOOKUP($A$2,AVAILABLE_Buildings_Resource[#All],MATCH(E$4,AVAILABLE_Buildings_Resource[#Headers],0)+1),EARNINGS_Dark_Elixir_Drill[#All],3)),0,VLOOKUP(VLOOKUP($A$2,AVAILABLE_Buildings_Resource[#All],MATCH(E$4,AVAILABLE_Buildings_Resource[#Headers],0)+1),EARNINGS_Dark_Elixir_Drill[#All],3)))) -> 1600 | M6: Réservoir d'Élixir Noir | N6: 0.04 | O6: 3000
A7: 1 | B7: 2000000 | C7: 2000000 | D7: 80000 | E7: 150000 | F7: 150000 | G7: 1600 | M7: Mine d'Or | N7: 0.5 | O7: =IF($B$2='Paramètres - Admin'!$F$2,IF(ISERROR(VLOOKUP(VLOOKUP($C$2,AVAILABLE_Buildings_Resource[#All],MATCH(E$4,AVAILABLE_Buildings_Resource[#Headers],0)+1),EARNINGS_Gold_Storage[#All],2)),0,VLOOKUP(VLOOKUP($C$2,AVAILABLE_Buildings_Resource[#All],MATCH(E$4,AVAILABLE_Buildings_Resource[#Headers],0)+1),EARNINGS_Gold_Mine[#All],3)),IF($B$2='Paramètres - Admin'!$F$3,IF(ISERROR(VLOOKUP(VLOOKUP($A$2,AVAILABLE_Buildings_Resource[#All],MATCH(E$4,AVAILABLE_Buildings_Resource[#Headers],0)+1),EARNINGS_Gold_Storage[#All],2)),0,VLOOKUP(VLOOKUP($A$2,AVAILABLE_Buildings_Resource[#All],MATCH(E$4,AVAILABLE_Buildings_Resource[#Headers],0)+1),EARNINGS_Gold_Mine[#All],3)))) -> 200000
A8: 2 | B8: 2000000 | C8: 2000000 | E8: 150000 | F8: 150000 | G8: 1600 | I8: Cellule orange : | J8: Erreur - Bâtiment Max. total atteint | M8: Extracteur d'Élixir | N8: 0.5 | O8: =IF($B$2='Paramètres - Admin'!$F$2,IF(ISERROR(VLOOKUP(VLOOKUP($C$2,AVAILABLE_Buildings_Resource[#All],MATCH(F$4,AVAILABLE_Buildings_Resource[#Headers],0)+1),EARNINGS_Gold_Storage[#All],2)),0,VLOOKUP(VLOOKUP($C$2,AVAILABLE_Buildings_Resource[#All],MATCH(F$4,AVAILABLE_Buildings_Resource[#Headers],0)+1),EARNINGS_Elixir_Collector[#All],3)),IF($B$2='Paramètres - Admin'!$F$3,IF(ISERROR(VLOOKUP(VLOOKUP($A$2,AVAILABLE_Buildings_Resource[#All],MATCH(F$4,AVAILABLE_Buildings_Resource[#Headers],0)+1),EARNINGS_Gold_Storage[#All],2)),0,VLOOKUP(VLOOKUP($A$2,AVAILABLE_Buildings_Resource[#All],MATCH(F$4,AVAILABLE_Buildings_Resource[#Headers],0)+1),EARNINGS_Elixir_Collector[#All],3)))) -> 200000
A9: 3 | B9: 2000000 | C9: 2000000 | E9: 150000 | F9: 150000 | M9: Foreuse d'Élixir Noir | N9: 0.75 | O9: 1600
A10: 4 | E10: 150000 | F10: 150000 | M10: Hôtel de Ville - Or | N10: 1 | O10: 1000
A11: 5 | E11: 150000 | F11: 150000 | M11: Hôtel de Ville - Élixir | N11: 1 | O11: 1000
A12: 6 | E12: 150000 | F12: 150000
A13: 7
A14: Total | B14: =SUMIF($A7:$A13,"<="&B$5,B7:B13) -> 6000000 | C14: 6000000 | D14: 80000 | E14: 900000 | F14: 900000 | G14: 3200
A17: Combat - Nombre de Ressources Disponibles
B18: Réserve d'Or | C18: Réservoir d'Élixir | D18: Réservoir d'Élixir Noir | E18: Mine d'Or | F18: Extracteur d'Élixir | G18: Foreuse d'Élixir Noir
A19: 1 | B19: =IF($A19>B$5,0,IF((B$7*$N$4)+(B$8*$N$4)+(B$9*$N$4)+(B$10*$N$4)+(B$11*$N$4)+(B$12*$N$4)+(B$13*$N$4)>$O$4,$O$4*(B7/B$14),B7*$N$4)) -> 133333.3333 | C19: =IF($A19>C$5,0,IF((C$7*$N$5)+(C$8*$N$5)+(C$9*$N$5)+(C$10*$N$5)+(C$11*$N$5)+(C$12*$N$5)+(C$13*$N$5)>$O$5,$O$5*(C7/C$14),C7*$N$5)) -> 133333.3333 | D19: =IF($A19>D$5,0,IF((D$7*$N$6)+(D$8*$N$6)+(D$9*$N$6)+(D$10*$N$6)+(D$11*$N$6)+(D$12*$N$6)+(D$13*$N$6)>$O$6,$O$6*(D7/D$14),D7*$N$6)) -> 3000 | E19: =IF($A19>E$5,0,IF(E7>$O$7,$O$7*$N$7,E7*$N$7)) -> 75000 | F19: =IF($A19>F$5,0,IF(F7>$O$8,$O$8*$N$8,F7*$N$8)) -> 75000 | G19: =IF($A19>G$5,0,IF(G7>$O$9,$O$9*$N$9,G7*$N$9)) -> 1200
A20: 2 | B20: =IF($A20>B$5,0,IF((B$7*$N$4)+(B$8*$N$4)+(B$9*$N$4)+(B$10*$N$4)+(B$11*$N$4)+(B$12*$N$4)+(B$13*$N$4)>$O$4,$O$4*(B8/B$14),B8*$N$4)) -> 133333.3333 | C20: 133333.3333 | D20: 0 | E20: 75000 | F20: =IF($A20>F$5,0,IF(F8>$O$8,$O$8*$N$8,F8*$N$8)) -> 75000 | G20: 1200
A21: 3 | B21: 133333.3333 | C21: 133333.3333 | D21: 0 | E21: 75000 | F21: 75000 | G21: 0
A22: 4 | B22: 0 | C22: 0 | D22: 0 | E22: 75000 | F22: 75000 | G22: 0
A23: 5 | B23: 0 | C23: 0 | D23: 0 | E23: 75000 | F23: 75000 | G23: 0
A24: 6 | B24: 0 | C24: 0 | D24: 0 | E24: 75000 | F24: 75000 | G24: 0
A25: 7 | B25: 0 | C25: 0 | D25: 0 | E25: 0 | F25: 0 | G25: 0
A26: Total | B26: =SUM(B19:B25) -> 400000 | C26: 400000 | D26: 3000 | E26: 450000 | F26: 450000 | G26: 2400
A29: =IF($B$2='Paramètres - Admin'!$F$2,$G$29 & C2,IF($B$2='Paramètres - Admin'!$F$3,$H$29 & C2)) -> Loots - Pertes Possibles vs HdV LVL 10 | G29: Loots - Gains Possibles vs HdV LVL | H29: Loots - Pertes Possibles vs HdV LVL
C30: Multiplicateur de Loot | D30: Or | E30: Élixir | F30: Élixir Noir
A31: Stockages | C31: =VLOOKUP(1,LEAGUES_Loot_Multiplier[#All],3) -> 1 | D31: =B26*$C31 -> 400000 | E31: =C26*$C31 -> 400000 | F31: =D26*$C31 -> 3000
A32: Mines/Extracteurs/Foreuses | C32: =VLOOKUP(1,LEAGUES_Loot_Multiplier[#All],3) -> 1 | D32: =E26*$C32 -> 450000 | E32: =F26*$C32 -> 450000 | F32: =G26*$C32 -> 2400
A33: Hôtel de Ville | C33: =IF(D2>0,1,VLOOKUP(1,LEAGUES_Loot_Multiplier[#All],3)) -> 1 | D33: =$O$10*$C33 -> 1000 | E33: =$O$11*$C33 -> 1000 | F33: 0
A34: Bonus de Ligue | C34: / | D34: =IF($B$2='Paramètres - Admin'!$F$2,VLOOKUP(1,LEAGUES_Bonus[#All],3),0) -> 0 | E34: =IF($B$2='Paramètres - Admin'!$F$2,VLOOKUP(1,LEAGUES_Bonus[#All],4),0) -> 0 | F34: =IF($B$2='Paramètres - Admin'!$F$2,VLOOKUP(1,LEAGUES_Bonus[#All],5),0) -> 0
C35: Total | D35: =SUM(D31:D34) -> 851000 | E35: =SUM(E31:E34) -> 851000 | F35: =SUM(F31:F34) -> 5400

Sheet Formation de Troupes
A1: LVL HdV | B1: Affichage Temps | G1: LVL Usine de Sorts | I1: NB Caserne | O1: LVL Caserne n°1 | P1: LVL Caserne n°2 | Q1: LVL Caserne n°3 | R1: LVL Caserne n°4 | U1: NB Caserne Noire | AA1: LVL Caserne Noire n°1 | AB1: LVL Caserne Noire n°2
A2: =Paramètres!$BE$2 -> 10 | B2: h/m/s | G2: =IF(ISERROR(MATCH(1,Paramètres!L$6:L$45,0)),0,MATCH(1,Paramètres!L$6:L$45,0)) -> 0 | I2: =Paramètres!H46 -> 0 | O2: 10 | P2: 9 | Q2: 9 | R2: 9 | U2: =Paramètres!I46 -> 0 | AA2: 4 | AB2: 4
A3: Création de Sorts | I3: Formation de Troupes Normales | U3: Formation de Troupes Noires
B4: Max + | C4: Actuel + | D4: Espace | E4: Coût | F4: Time (s) | G4: Laboratoire - NB | J4: Max + | K4: Actuel + | L4: Espace | M4: Coût | N4: Time (s) | O4: Caserne n°1 - NB | P4: Caserne° 2 - NB | Q4: Caserne n°3 - NB | R4: Caserne n°4 - NB | S4: Total | V4: Max + | W4: Actuel + | X4: Espace | Y4: Coût | Z4: Time (s) | AA4: Caserne Noire n°1 - NB | AB4: Caserne Noire n°2 - NB | AC4: Total
A5: Sort de Foudre | B5: =VLOOKUP($A$2,AVAILABLE_Upgrades_Spells[#All],MATCH($A5,AVAILABLE_Upgrades_Spells[#Headers],0)+1) -> 6 | C5: =IF(ISERROR(MATCH(1,Paramètres!AF$6:AF$45,0)),0,MATCH(1,Paramètres!AF$6:AF$45,0)) -> 0 | D5: =IF($C5<>0,VLOOKUP($C5,TRAINING_Spell_Lightning[#All],2),0) -> 0 | E5: =IF($C5<>0,VLOOKUP($C5,TRAINING_Spell_Lightning[#All],3),0) -> 0 | F5: =IF($C5<>0,VLOOKUP($C5,TRAINING_Spell_Lightning[#All],4),0) -> 0 | I5: Barbare | J5: =VLOOKUP($A$2,AVAILABLE_Upgrades_Normal_Troops[#All],MATCH($I5,AVAILABLE_Upgrades_Normal_Troops[#Headers],0)+1) -> 7 | K5: =IF(ISERROR(MATCH(1,Paramètres!AK$6:AK$45,0)),0,MATCH(1,Paramètres!AK$6:AK$45,0)) -> 0 | L5: =IF($K5<>0,VLOOKUP($K5,TRAINING_Barbarian[#All],2),0) -> 0 | M5: =IF($K5<>0,VLOOKUP($K5,TRAINING_Barbarian[#All],3),0) -> 0 | N5: =IF($K5<>0,VLOOKUP($K5,TRAINING_Barbarian[#All],4),0) -> 0 | O5: 20 | P5: 20 | Q5: 20 | R5: 20 | S5: =SUM(O5:R5) -> 80 | U5: Serviteur | V5: =VLOOKUP($A$2,AVAILABLE_Upgrades_Dark_Troops[#All],MATCH($U5,AVAILABLE_Upgrades_Dark_Troops[#Headers],0)+1) -> 6 | W5: =IF(ISERROR(MATCH(1,Paramètres!AU$6:AU$45,0)),0,MATCH(1,Paramètres!AU$6:AU$45,0)) -> 0 | X5: =IF($W5<>0,VLOOKUP($W5,TRAINING_Minion[#All],2),0) -> 0 | Y5: =IF($W5<>0,VLOOKUP($W5,TRAINING_Minion[#All],3),0) -> 0 | Z5: =IF($W5<>0,VLOOKUP($W5,TRAINING_Minion[#All],4),0) -> 0 | AC5: =SUM(AA5:AB5) -> 0
A6: Sort de Guérison | B6: =VLOOKUP($A$2,AVAILABLE_Upgrades_Spells[#All],MATCH($A6,AVAILABLE_Upgrades_Spells[#Headers],0)+1) -> 6 | C6: =IF(ISERROR(MATCH(1,Paramètres!AG$6:AG$45,0)),0,MATCH(1,Paramètres!AG$6:AG$45,0)) -> 0 | D6: =IF($C6<>0,VLOOKUP($C6,TRAINING_Spell_Healing[#All],2),0) -> 0 | E6: =IF($C6<>0,VLOOKUP($C6,TRAINING_Spell_Healing[#All],3),0) -> 0 | F6: =IF($C6<>0,VLOOKUP($C6,TRAINING_Spell_Healing[#All],4),0) -> 0 | I6: Archer | J6: =VLOOKUP($A$2,AVAILABLE_Upgrades_Normal_Troops[#All],MATCH($I6,AVAILABLE_Upgrades_Normal_Troops[#Headers],0)+1) -> 7 | K6: =IF(ISERROR(MATCH(1,Paramètres!AL$6:AL$45,0)),0,MATCH(1,Paramètres!AL$6:AL$45,0)) -> 0 | L6: =IF($K6<>0,VLOOKUP($K6,TRAINING_Archer[#All],2),0) -> 0 | M6: =IF($K6<>0,VLOOKUP($K6,TRAINING_Archer[#All],3),0) -> 0 | N6: =IF($K6<>0,VLOOKUP($K6,TRAINING_Archer[#All],4),0) -> 0 | O6: 20 | P6: 20 | Q6: 20 | R6: 20 | S6: =SUM(O6:R6) -> 80 | U6: Chevaucheur de Cochon | V6: =VLOOKUP($A$2,AVAILABLE_Upgrades_Dark_Troops[#All],MATCH($U6,AVAILABLE_Upgrades_Dark_Troops[#Headers],0)+1) -> 5 | W6: =IF(ISERROR(MATCH(1,Paramètres!AV$6:AV$45,0)),0,MATCH(1,Paramètres!AV$6:AV$45,0)) -> 0 | X6: =IF($W6<>0,VLOOKUP($W6,TRAINING_Hog_Rider[#All],2),0) -> 0 | Y6: =IF($W6<>0,VLOOKUP($W6,TRAINING_Hog_Rider[#All],3),0) -> 0 | Z6: =IF($W6<>0,VLOOKUP($W6,TRAINING_Hog_Rider[#All],4),0) -> 0 | AC6: 0
A7: Sort de Rage | B7: =VLOOKUP($A$2,AVAILABLE_Upgrades_Spells[#All],MATCH($A7,AVAILABLE_Upgrades_Spells[#Headers],0)+1) -> 5 | C7: =IF(ISERROR(MATCH(1,Paramètres!AH$6:AH$45,0)),0,MATCH(1,Paramètres!AH$6:AH$45,0)) -> 0 | D7: =IF($C7<>0,VLOOKUP($C7,TRAINING_Spell_Rage[#All],2),0) -> 0 | E7: =IF($C7<>0,VLOOKUP($C7,TRAINING_Spell_Rage[#All],3),0) -> 0 | F7: =IF($C7<>0,VLOOKUP($C7,TRAINING_Spell_Rage[#All],4),0) -> 0 | I7: Géant | J7: =VLOOKUP($A$2,AVAILABLE_Upgrades_Normal_Troops[#All],MATCH($I7,AVAILABLE_Upgrades_Normal_Troops[#Headers],0)+1) -> 7 | K7: =IF(ISERROR(MATCH(1,Paramètres!AM$6:AM$45,0)),0,MATCH(1,Paramètres!AM$6:AM$45,0)) -> 0 | L7: =IF($K8<>0,VLOOKUP($K8,TRAINING_Giant[#All],2),0) -> 0 | M7: =IF($K8<>0,VLOOKUP($K8,TRAINING_Giant[#All],3),0) -> 0 | N7: =IF($K8<>0,VLOOKUP($K8,TRAINING_Giant[#All],4),0) -> 0 | S7: 0 | U7: Valkyrie | V7: =VLOOKUP($A$2,AVAILABLE_Upgrades_Dark_Troops[#All],MATCH($U7,AVAILABLE_Upgrades_Dark_Troops[#Headers],0)+1) -> 4 | W7: =IF(ISERROR(MATCH(1,Paramètres!AW$6:AW$45,0)),0,MATCH(1,Paramètres!AW$6:AW$45,0)) -> 0 | X7: =IF($W7<>0,VLOOKUP($W7,TRAINING_Valkyrie[#All],2),0) -> 0 | Y7: =IF($W7<>0,VLOOKUP($W7,TRAINING_Valkyrie[#All],3),0) -> 0 | Z7: =IF($W7<>0,VLOOKUP($W7,TRAINING_Valkyrie[#All],4),0) -> 0 | AC7: 0
A8: Sort de Saut | B8: =VLOOKUP($A$2,AVAILABLE_Upgrades_Spells[#All],MATCH($A8,AVAILABLE_Upgrades_Spells[#Headers],0)+1) -> 2 | C8: =IF(ISERROR(MATCH(1,Paramètres!AI$6:AI$45,0)),0,MATCH(1,Paramètres!AI$6:AI$45,0)) -> 0 | D8: =IF($C8<>0,VLOOKUP($C8,TRAINING_Spell_Jump[#All],2),0) -> 0 | E8: =IF($C8<>0,VLOOKUP($C8,TRAINING_Spell_Jump[#All],3),0) -> 0 | F8: =IF($C8<>0,VLOOKUP($C8,TRAINING_Spell_Jump[#All],4),0) -> 0 | I8: Gobelin | J8: =VLOOKUP($A$2,AVAILABLE_Upgrades_Normal_Troops[#All],MATCH($I8,AVAILABLE_Upgrades_Normal_Troops[#Headers],0)+1) -> 6 | K8: =IF(ISERROR(MATCH(1,Paramètres!AN$6:AN$45,0)),0,MATCH(1,Paramètres!AN$6:AN$45,0)) -> 0 | L8: =IF($K7<>0,VLOOKUP($K7,TRAINING_Goblin[#All],2),0) -> 0 | M8: =IF($K8<>0,VLOOKUP($K8,TRAINING_Goblin[#All],3),0) -> 0 | N8: =IF($K8<>0,VLOOKUP($K8,TRAINING_Goblin[#All],4),0) -> 0 | O8: 8 | P8: 8 | Q8: 8 | R8: 8 | S8: 32 | U8: Golem | V8: =VLOOKUP($A$2,AVAILABLE_Upgrades_Dark_Troops[#All],MATCH($U8,AVAILABLE_Upgrades_Dark_Troops[#Headers],0)+1) -> 5 | W8: =IF(ISERROR(MATCH(1,Paramètres!AX$6:AX$45,0)),0,MATCH(1,Paramètres!AX$6:AX$45,0)) -> 0 | X8: =IF($W8<>0,VLOOKUP($W8,TRAINING_Golem[#All],2),0) -> 0 | Y8: =IF($W8<>0,VLOOKUP($W8,TRAINING_Golem[#All],3),0) -> 0 | Z8: =IF($W8<>0,VLOOKUP($W8,TRAINING_Golem[#All],4),0) -> 0 | AC8: 0
A9: Sort de Gel | B9: =VLOOKUP($A$2,AVAILABLE_Upgrades_Spells[#All],MATCH($A9,AVAILABLE_Upgrades_Spells[#Headers],0)+1) -> 5 | C9: =IF(ISERROR(MATCH(1,Paramètres!AJ$6:AJ$45,0)),0,MATCH(1,Paramètres!AJ$6:AJ$45,0)) -> 0 | D9: =IF($C9<>0,VLOOKUP($C9,TRAINING_Spell_Freeze[#All],2),0) -> 0 | E9: =IF($C9<>0,VLOOKUP($C9,TRAINING_Spell_Freeze[#All],3),0) -> 0 | F9: =IF($C9<>0,VLOOKUP($C9,TRAINING_Spell_Freeze[#All],4),0) -> 0 | I9: Sapeur | J9: =VLOOKUP($A$2,AVAILABLE_Upgrades_Normal_Troops[#All],MATCH($I9,AVAILABLE_Upgrades_Normal_Troops[#Headers],0)+1) -> 6 | K9: =IF(ISERROR(MATCH(1,Paramètres!AO$6:AO$45,0)),0,MATCH(1,Paramètres!AO$6:AO$45,0)) -> 0 | L9: =IF($K9<>0,VLOOKUP($K9,TRAINING_Wall_Breaker[#All],2),0) -> 0 | M9: =IF($K9<>0,VLOOKUP($K9,TRAINING_Wall_Breaker[#All],3),0) -> 0 | N9: =IF($K9<>0,VLOOKUP($K9,TRAINING_Wall_Breaker[#All],4),0) -> 0 | O9: 1 | P9: 1 | Q9: 1 | R9: 1 | S9: 4 | U9: Sorcière | V9: =VLOOKUP($A$2,AVAILABLE_Upgrades_Dark_Troops[#All],MATCH($U9,AVAILABLE_Upgrades_Dark_Troops[#Headers],0)+1) -> 2 | W9: =IF(ISERROR(MATCH(1,Paramètres!AY$6:AY$45,0)),0,MATCH(1,Paramètres!AY$6:AY$45,0)) -> 0 | X9: =IF($W9<>0,VLOOKUP($W9,'Coûts de Formation'!$Q$28:$X$31,2),0) -> 0 | Y9: =IF($W9<>0,VLOOKUP($W9,TRAINING_WITCH2,3),0) -> 0 | Z9: =IF($W9<>0,VLOOKUP($W9,TRAINING_WITCH2,4),0) -> 0 | AC9: 0
B10: Espace Max | G10: =VLOOKUP($G$2,TRAINING_Spell_Factory[#All],2) ->  | I10: Ballon | J10: =VLOOKUP($A$2,AVAILABLE_Upgrades_Normal_Troops[#All],MATCH($I10,AVAILABLE_Upgrades_Normal_Troops[#Headers],0)+1) -> 6 | K10: =IF(ISERROR(MATCH(1,Paramètres!AP$6:AP$45,0)),0,MATCH(1,Paramètres!AP$6:AP$45,0)) -> 0 | L10: =IF($K10<>0,VLOOKUP($K10,TRAINING_Balloon[#All],2),0) -> 0 | M10: =IF($K10<>0,VLOOKUP($K10,TRAINING_Balloon[#All],3),0) -> 0 | N10: =IF($K10<>0,VLOOKUP($K10,TRAINING_Balloon[#All],4),0) -> 0 | S10: 0 | U10: Molosse de lave | V10: =VLOOKUP($A$2,AVAILABLE_Upgrades_Dark_Troops[#All],MATCH($U10,AVAILABLE_Upgrades_Dark_Troops[#Headers],0)+1) -> 3 | W10: =IF(ISERROR(MATCH(1,Paramètres!AZ$6:AZ$45,0)),0,MATCH(1,Paramètres!AY$6:AY$45,0)) -> 0 | X10: =IF($W10<>0,VLOOKUP($W10,'Coûts de Formation'!$Q$28:$X$31,2),0) -> 0 | Y10: =IF($W10<>0,VLOOKUP($W10,TRAININTG_MOLOSSLAVE,3),0) -> 0 | Z10: =IF($W10<>0,VLOOKUP($W10,TRAININTG_MOLOSSLAVE,4),0) -> 0 | AC10: 0
B11: Espace Total | G11: =SUMPRODUCT(G$5:G$9,$D$5:$D$9) -> 0 | I11: Sorcier | J11: =VLOOKUP($A$2,AVAILABLE_Upgrades_Normal_Troops[#All],MATCH($I11,AVAILABLE_Upgrades_Normal_Troops[#Headers],0)+1) -> 6 | K11: =IF(ISERROR(MATCH(1,Paramètres!AQ$6:AQ$45,0)),0,MATCH(1,Paramètres!AQ$6:AQ$45,0)) -> 0 | L11: =IF($K11<>0,VLOOKUP($K11,TRAINING_Wizard[#All],2),0) -> 0 | M11: =IF($K11<>0,VLOOKUP($K11,TRAINING_Wizard[#All],3),0) -> 0 | N11: =IF($K11<>0,VLOOKUP($K11,TRAINING_Wizard[#All],4),0) -> 0 | S11: 0 | V11: Espace Max | AA11: =VLOOKUP(AA$2,TRAINING_Dark_Barrack[#All],2) -> 70 | AB11: =VLOOKUP(AB$2,TRAINING_Dark_Barrack[#All],2) -> 70 | AC11: 140
B12: Coût Total | G12: =SUMPRODUCT(G$5:G$9,$E$5:$E$9) -> 0 | I12: Guérisseuse | J12: =VLOOKUP($A$2,AVAILABLE_Upgrades_Normal_Troops[#All],MATCH($I12,AVAILABLE_Upgrades_Normal_Troops[#Headers],0)+1) -> 4 | K12: =IF(ISERROR(MATCH(1,Paramètres!AR$6:AR$45,0)),0,MATCH(1,Paramètres!AR$6:AR$45,0)) -> 0 | L12: =IF($K12<>0,VLOOKUP($K12,TRAINING_Healer[#All],2),0) -> 0 | M12: =IF($K12<>0,VLOOKUP($K12,TRAINING_Healer[#All],3),0) -> 0 | N12: =IF($K12<>0,VLOOKUP($K12,TRAINING_Healer[#All],4),0) -> 0 | S12: 0 | V12: Espace Total | AA12: =SUMPRODUCT(AA$5:AA$10,$X$5:$X$10) -> 0 | AB12: =SUMPRODUCT(AB$5:AB$10,$X$5:$X$10) -> 0 | AC12: =SUM(Y19:Y19) -> 0
B13: Temps Total | G13: =IF($B$2='Paramètres - Admin'!$B$2,TEXT(SUMPRODUCT(G$5:G$9,$F$5:$F$9),"# 0")&" " & 'Paramètres - Admin'!$B$2,IF($B$2='Paramètres - Admin'!$B$3,TEXT(SUMPRODUCT(G$5:G$9,$F$5:$F$9)/60,"# 0")&" " & 'Paramètres - Admin'!$B$3,IF($B$2='Paramètres - Admin'!$B$4,TEXT(SUMPRODUCT(G$5:G$9,$F$5:$F$9)/3600,"# 0,00")&" " & 'Paramètres - Admin'!$B$4,IF(SUMPRODUCT(G$5:G$9,$F$5:$F$9)/3600>=1,INT(SUMPRODUCT(G$5:G$9,$F$5:$F$9)/3600) &" " & 'Paramètres - Admin'!$D$3 & " " & MINUTE(SUMPRODUCT(G$5:G$9,$F$5:$F$9)/86400-INT(SUMPRODUCT(G$5:G$9,$F$5:$F$9)/86400)) &" " & 'Paramètres - Admin'!$D$2 & " " & SECOND(SUMPRODUCT(G$5:G$9,$F$5:$F$9)/86400-INT(SUMPRODUCT(G$5:G$9,$F$5:$F$9)/86400)) &" " & 'Paramètres - Admin'!$D$5,MINUTE(SUMPRODUCT(G$5:G$9,$F$5:$F$9)/86400-INT(SUMPRODUCT(G$5:G$9,$F$5:$F$9)/86400)) &" " & 'Paramètres - Admin'!$D$2 & " " & SECOND(SUMPRODUCT(G$5:G$9,$F$5:$F$9)/86400-INT(SUMPRODUCT(G$5:G$9,$F$5:$F$9)/86400)) &" " & 'Paramètres - Admin'!$D$5)))) -> 0 mins 0 sec | I13: Dragon | J13: =VLOOKUP($A$2,AVAILABLE_Upgrades_Normal_Troops[#All],MATCH($I13,AVAILABLE_Upgrades_Normal_Troops[#Headers],0)+1) -> 4 | K13: =IF(ISERROR(MATCH(1,Paramètres!AS$6:AS$45,0)),0,MATCH(1,Paramètres!AS$6:AS$45,0)) -> 0 | L13: =IF($K13<>0,VLOOKUP($K13,TRAINING_Dragon[#All],2),0) -> 0 | M13: =IF($K13<>0,VLOOKUP($K13,TRAINING_Dragon[#All],3),0) -> 0 | N13: =IF($K13<>0,VLOOKUP($K13,TRAINING_Dragon[#All],4),0) -> 0 | S13: 0 | V13: Coût Total | AA13: =SUMPRODUCT(AA$5:AA$10,$Y$5:$Y$10) -> 0 | AB13: =SUMPRODUCT(AB$5:AB$10,$Y$5:$Y$10) -> 0 | AC13: =SUM(Y20:AB20) -> 0
I14: P.E.K.K.A | J14: =VLOOKUP($A$2,AVAILABLE_Upgrades_Normal_Troops[#All],MATCH($I14,AVAILABLE_Upgrades_Normal_Troops[#Headers],0)+1) -> 5 | K14: =IF(ISERROR(MATCH(1,Paramètres!AT$6:AT$45,0)),0,MATCH(1,Paramètres!AT$6:AT$45,0)) -> 0 | L14: =IF($K14<>0,VLOOKUP($K14,TRAINING_PEKKA[#All],2),0) -> 0 | M14: =IF($K14<>0,VLOOKUP($K14,TRAINING_PEKKA[#All],3),0) -> 0 | N14: =IF($K14<>0,VLOOKUP($K14,TRAINING_PEKKA[#All],4),0) -> 0 | S14: 0 | V14: Temps Total | AA14: =IF($B$2='Paramètres - Admin'!$B$2,TEXT(SUMPRODUCT(AA$5:AA$10,$Z$5:$Z$10),"# 0")&" " & 'Paramètres - Admin'!$B$2,IF($B$2='Paramètres - Admin'!$B$3,TEXT(SUMPRODUCT(AA$5:AA$10,$Z$5:$Z$10)/60,"# 0")&" " & 'Paramètres - Admin'!$B$3,IF($B$2='Paramètres - Admin'!$B$4,TEXT(SUMPRODUCT(AA$5:AA$10,$Z$5:$Z$10)/3600,"# 0,00")&" " & 'Paramètres - Admin'!$B$4,IF(SUMPRODUCT(AA$5:AA$10,$Z$5:$Z$10)/3600>=1,INT(SUMPRODUCT(AA$5:AA$10,$Z$5:$Z$10)/3600) &" " & 'Paramètres - Admin'!$D$3 & " " & MINUTE(SUMPRODUCT(AA$5:AA$10,$Z$5:$Z$10)/86400-INT(SUMPRODUCT(AA$5:AA$10,$Z$5:$Z$10)/86400)) &" " & 'Paramètres - Admin'!$D$2 & " " & SECOND(SUMPRODUCT(AA$5:AA$10,$Z$5:$Z$10)/86400-INT(SUMPRODUCT(AA$5:AA$10,$Z$5:$Z$10)/86400)) &" " & 'Paramètres - Admin'!$D$5,MINUTE(SUMPRODUCT(AA$5:AA$10,$Z$5:$Z$10)/86400-INT(SUMPRODUCT(AA$5:AA$10,$Z$5:$Z$10)/86400)) &" " & 'Paramètres - Admin'!$D$2 & " " & SECOND(SUMPRODUCT(AA$5:AA$10,$Z$5:$Z$10)/86400-INT(SUMPRODUCT(AA$5:AA$10,$Z$5:$Z$10)/86400)) &" " & 'Paramètres - Admin'!$D$5)))) -> 0 mins 0 sec | AB14: =IF($B$2='Paramètres - Admin'!$B$2,TEXT(SUMPRODUCT(AB$5:AB$10,$Z$5:$Z$10),"# 0")&" " & 'Paramètres - Admin'!$B$2,IF($B$2='Paramètres - Admin'!$B$3,TEXT(SUMPRODUCT(AB$5:AB$10,$Z$5:$Z$10)/60,"# 0")&" " & 'Paramètres - Admin'!$B$3,IF($B$2='Paramètres - Admin'!$B$4,TEXT(SUMPRODUCT(AB$5:AB$10,$Z$5:$Z$10)/3600,"# 0,00")&" " & 'Paramètres - Admin'!$B$4,IF(SUMPRODUCT(AB$5:AB$10,$Z$5:$Z$10)/3600>=1,INT(SUMPRODUCT(AB$5:AB$10,$Z$5:$Z$10)/3600) &" " & 'Paramètres - Admin'!$D$3 & " " & MINUTE(SUMPRODUCT(AB$5:AB$10,$Z$5:$Z$10)/86400-INT(SUMPRODUCT(AB$5:AB$10,$Z$5:$Z$10)/86400)) &" " & 'Paramètres - Admin'!$D$2 & " " & SECOND(SUMPRODUCT(AB$5:AB$10,$Z$5:$Z$10)/86400-INT(SUMPRODUCT(AB$5:AB$10,$Z$5:$Z$10)/86400)) &" " & 'Paramètres - Admin'!$D$5,MINUTE(SUMPRODUCT(AB$5:AB$10,$Z$5:$Z$10)/86400-INT(SUMPRODUCT(AB$5:AB$10,$Z$5:$Z$10)/86400)) &" " & 'Paramètres - Admin'!$D$2 & " " & SECOND(SUMPRODUCT(AB$5:AB$10,$Z$5:$Z$10)/86400-INT(SUMPRODUCT(AB$5:AB$10,$Z$5:$Z$10)/86400)) &" " & 'Paramètres - Admin'!$D$5)))) -> 0 mins 0 sec | AC14: =IF($B$2='Paramètres - Admin'!$B$2,TEXT((SUMPRODUCT(AA$5:AA$14,$Z$5:$Z$14)+SUMPRODUCT(AB$5:AB$14,$Z$5:$Z$14)),"# 0")&" " & 'Paramètres - Admin'!$B$2,IF($B$2='Paramètres - Admin'!$B$3,TEXT((SUMPRODUCT(AA$5:AA$14,$Z$5:$Z$14)+SUMPRODUCT(AB$5:AB$14,$Z$5:$Z$14))/60,"# 0")&" " & 'Paramètres - Admin'!$B$3,IF($B$2='Paramètres - Admin'!$B$4,TEXT((SUMPRODUCT(AA$5:AA$14,$Z$5:$Z$14)+SUMPRODUCT(AB$5:AB$14,$Z$5:$Z$14))/3600,"# 0,00")&" " & 'Paramètres - Admin'!$B$4,IF((SUMPRODUCT(AA$5:AA$14,$Z$5:$Z$14)+SUMPRODUCT(AB$5:AB$14,$Z$5:$Z$14))/3600>=1,INT((SUMPRODUCT(AA$5:AA$14,$Z$5:$Z$14)+SUMPRODUCT(AB$5:AB$14,$Z$5:$Z$14))/3600) &" " & 'Paramètres - Admin'!$D$3 & " " & MINUTE((SUMPRODUCT(AA$5:AA$14,$Z$5:$Z$14)+SUMPRODUCT(AB$5:AB$14,$Z$5:$Z$14))/86400-INT((SUMPRODUCT(AA$5:AA$14,$Z$5:$Z$14)+SUMPRODUCT(AB$5:AB$14,$Z$5:$Z$14))/86400)) &" " & 'Paramètres - Admin'!$D$2 & " " & SECOND((SUMPRODUCT(AA$5:AA$14,$Z$5:$Z$14)+SUMPRODUCT(AB$5:AB$14,$Z$5:$Z$14))/86400-INT((SUMPRODUCT(AA$5:AA$14,$Z$5:$Z$14)+SUMPRODUCT(AB$5:AB$14,$Z$5:$Z$14))/86400)) &" " & 'Paramètres - Admin'!$D$5,MINUTE((SUMPRODUCT(AA$5:AA$14,$Z$5:$Z$14)+SUMPRODUCT(AB$5:AB$14,$Z$5:$Z$14))/86400-INT((SUMPRODUCT(AA$5:AA$14,$Z$5:$Z$14)+SUMPRODUCT(AB$5:AB$14,$Z$5:$Z$14))/86400)) &" " & 'Paramètres - Admin'!$D$2 & " " & SECOND((SUMPRODUCT(AA$5:AA$14,$Z$5:$Z$14)+SUMPRODUCT(AB$5:AB$14,$Z$5:$Z$14))/86400-INT((SUMPRODUCT(AA$5:AA$14,$Z$5:$Z$14)+SUMPRODUCT(AB$5:AB$14,$Z$5:$Z$14))/86400)) &" " & 'Paramètres - Admin'!$D$5)))) -> 0 mins 0 sec
J15: Espace Max | O15: =VLOOKUP(O$2,TRAINING_Barrack[#All],2) -> 75 | P15: =VLOOKUP(P$2,TRAINING_Barrack[#All],2) -> 60 | Q15: =VLOOKUP(Q$2,TRAINING_Barrack[#All],2) -> 60 | R15: =VLOOKUP(R$2,TRAINING_Barrack[#All],2) -> 60 | S15: =SUM(O15:R15) -> 255
J16: Espace Total | O16: =SUMPRODUCT(O$5:O$14,$L$5:$L$14) -> 0 | P16: =SUMPRODUCT(P$5:P$14,$L$5:$L$14) -> 0 | Q16: =SUMPRODUCT(Q$5:Q$14,$L$5:$L$14) -> 0 | R16: =SUMPRODUCT(R$5:R$14,$L$5:$L$14) -> 0 | S16: =SUM(O16:R16) -> 0
J17: Coût Total | O17: =SUMPRODUCT(O$5:O$14,$M$5:$M$14) -> 0 | P17: =SUMPRODUCT(P$5:P$14,$M$5:$M$14) -> 0 | Q17: =SUMPRODUCT(Q$5:Q$14,$M$5:$M$14) -> 0 | R17: =SUMPRODUCT(R$5:R$14,$M$5:$M$14) -> 0 | S17: =SUM(O17:R17) -> 0
J18: Temps Total | O18: =IF($B$2='Paramètres - Admin'!$B$2,TEXT(SUMPRODUCT(O$5:O$14,$N$5:$N$14),"# 0")&" " & 'Paramètres - Admin'!$B$2,IF($B$2='Paramètres - Admin'!$B$3,TEXT(SUMPRODUCT(O$5:O$14,$N$5:$N$14)/60,"# 0")&" " & 'Paramètres - Admin'!$B$3,IF($B$2='Paramètres - Admin'!$B$4,TEXT(SUMPRODUCT(O$5:O$14,$N$5:$N$14)/3600,"# 0,00")&" " & 'Paramètres - Admin'!$B$4,IF(SUMPRODUCT(O$5:O$14,$N$5:$N$14)/3600>=1,INT(SUMPRODUCT(O$5:O$14,$N$5:$N$14)/3600) &" " & 'Paramètres - Admin'!$D$3 & " " & MINUTE(SUMPRODUCT(O$5:O$14,$N$5:$N$14)/86400-INT(SUMPRODUCT(O$5:O$14,$N$5:$N$14)/86400)) &" " & 'Paramètres - Admin'!$D$2 & " " & SECOND(SUMPRODUCT(O$5:O$14,$N$5:$N$14)/86400-INT(SUMPRODUCT(O$5:O$14,$N$5:$N$14)/86400)) &" " & 'Paramètres - Admin'!$D$5,MINUTE(SUMPRODUCT(O$5:O$14,$N$5:$N$14)/86400-INT(SUMPRODUCT(O$5:O$14,$N$5:$N$14)/86400)) &" " & 'Paramètres - Admin'!$D$2 & " " & SECOND(SUMPRODUCT(O$5:O$14,$N$5:$N$14)/86400-INT(SUMPRODUCT(O$5:O$14,$N$5:$N$14)/86400)) &" " & 'Paramètres - Admin'!$D$5)))) -> 0 mins 0 sec | P18: =IF($B$2='Paramètres - Admin'!$B$2,TEXT(SUMPRODUCT(P$5:P$14,$N$5:$N$14),"# 0")&" " & 'Paramètres - Admin'!$B$2,IF($B$2='Paramètres - Admin'!$B$3,TEXT(SUMPRODUCT(P$5:P$14,$N$5:$N$14)/60,"# 0")&" " & 'Paramètres - Admin'!$B$3,IF($B$2='Paramètres - Admin'!$B$4,TEXT(SUMPRODUCT(P$5:P$14,$N$5:$N$14)/3600,"# 0,00")&" " & 'Paramètres - Admin'!$B$4,IF(SUMPRODUCT(P$5:P$14,$N$5:$N$14)/3600>=1,INT(SUMPRODUCT(P$5:P$14,$N$5:$N$14)/3600) &" " & 'Paramètres - Admin'!$D$3 & " " & MINUTE(SUMPRODUCT(P$5:P$14,$N$5:$N$14)/86400-INT(SUMPRODUCT(P$5:P$14,$N$5:$N$14)/86400)) &" " & 'Paramètres - Admin'!$D$2 & " " & SECOND(SUMPRODUCT(P$5:P$14,$N$5:$N$14)/86400-INT(SUMPRODUCT(P$5:P$14,$N$5:$N$14)/86400)) &" " & 'Paramètres - Admin'!$D$5,MINUTE(SUMPRODUCT(P$5:P$14,$N$5:$N$14)/86400-INT(SUMPRODUCT(P$5:P$14,$N$5:$N$14)/86400)) &" " & 'Paramètres - Admin'!$D$2 & " " & SECOND(SUMPRODUCT(P$5:P$14,$N$5:$N$14)/86400-INT(SUMPRODUCT(P$5:P$14,$N$5:$N$14)/86400)) &" " & 'Paramètres - Admin'!$D$5)))) -> 0 mins 0 sec | Q18: =IF($B$2='Paramètres - Admin'!$B$2,TEXT(SUMPRODUCT(Q$5:Q$14,$N$5:$N$14),"# 0")&" " & 'Paramètres - Admin'!$B$2,IF($B$2='Paramètres - Admin'!$B$3,TEXT(SUMPRODUCT(Q$5:Q$14,$N$5:$N$14)/60,"# 0")&" " & 'Paramètres - Admin'!$B$3,IF($B$2='Paramètres - Admin'!$B$4,TEXT(SUMPRODUCT(Q$5:Q$14,$N$5:$N$14)/3600,"# 0,00")&" " & 'Paramètres - Admin'!$B$4,IF(SUMPRODUCT(Q$5:Q$14,$N$5:$N$14)/3600>=1,INT(SUMPRODUCT(Q$5:Q$14,$N$5:$N$14)/3600) &" " & 'Paramètres - Admin'!$D$3 & " " & MINUTE(SUMPRODUCT(Q$5:Q$14,$N$5:$N$14)/86400-INT(SUMPRODUCT(Q$5:Q$14,$N$5:$N$14)/86400)) &" " & 'Paramètres - Admin'!$D$2 & " " & SECOND(SUMPRODUCT(Q$5:Q$14,$N$5:$N$14)/86400-INT(SUMPRODUCT(Q$5:Q$14,$N$5:$N$14)/86400)) &" " & 'Paramètres - Admin'!$D$5,MINUTE(SUMPRODUCT(Q$5:Q$14,$N$5:$N$14)/86400-INT(SUMPRODUCT(Q$5:Q$14,$N$5:$N$14)/86400)) &" " & 'Paramètres - Admin'!$D$2 & " " & SECOND(SUMPRODUCT(Q$5:Q$14,$N$5:$N$14)/86400-INT(SUMPRODUCT(Q$5:Q$14,$N$5:$N$14)/86400)) &" " & 'Paramètres - Admin'!$D$5)))) -> 0 mins 0 sec | R18: =IF($B$2='Paramètres - Admin'!$B$2,TEXT(SUMPRODUCT(R$5:R$14,$N$5:$N$14),"# 0")&" " & 'Paramètres - Admin'!$B$2,IF($B$2='Paramètres - Admin'!$B$3,TEXT(SUMPRODUCT(R$5:R$14,$N$5:$N$14)/60,"# 0")&" " & 'Paramètres - Admin'!$B$3,IF($B$2='Paramètres - Admin'!$B$4,TEXT(SUMPRODUCT(R$5:R$14,$N$5:$N$14)/3600,"# 0,00")&" " & 'Paramètres - Admin'!$B$4,IF(SUMPRODUCT(R$5:R$14,$N$5:$N$14)/3600>=1,INT(SUMPRODUCT(R$5:R$14,$N$5:$N$14)/3600) &" " & 'Paramètres - Admin'!$D$3 & " " & MINUTE(SUMPRODUCT(R$5:R$14,$N$5:$N$14)/86400-INT(SUMPRODUCT(R$5:R$14,$N$5:$N$14)/86400)) &" " & 'Paramètres - Admin'!$D$2 & " " & SECOND(SUMPRODUCT(R$5:R$14,$N$5:$N$14)/86400-INT(SUMPRODUCT(R$5:R$14,$N$5:$N$14)/86400)) &" " & 'Paramètres - Admin'!$D$5,MINUTE(SUMPRODUCT(R$5:R$14,$N$5:$N$14)/86400-INT(SUMPRODUCT(R$5:R$14,$N$5:$N$14)/86400)) &" " & 'Paramètres - Admin'!$D$2 & " " & SECOND(SUMPRODUCT(R$5:R$14,$N$5:$N$14)/86400-INT(SUMPRODUCT(R$5:R$14,$N$5:$N$14)/86400)) &" " & 'Paramètres - Admin'!$D$5)))) -> 0 mins 0 sec | S18: =IF($B$2='Paramètres - Admin'!$B$2,TEXT((SUMPRODUCT(O$5:O$14,$N$5:$N$14)+SUMPRODUCT(P$5:P$14,$N$5:$N$14)+SUMPRODUCT(Q$5:Q$14,$N$5:$N$14)+SUMPRODUCT(R$5:R$14,$N$5:$N$14)),"# 0")&" " & 'Paramètres - Admin'!$B$2,IF($B$2='Paramètres - Admin'!$B$3,TEXT((SUMPRODUCT(O$5:O$14,$N$5:$N$14)+SUMPRODUCT(P$5:P$14,$N$5:$N$14)+SUMPRODUCT(Q$5:Q$14,$N$5:$N$14)+SUMPRODUCT(R$5:R$14,$N$5:$N$14))/60,"# 0")&" " & 'Paramètres - Admin'!$B$3,IF($B$2='Paramètres - Admin'!$B$4,TEXT((SUMPRODUCT(O$5:O$14,$N$5:$N$14)+SUMPRODUCT(P$5:P$14,$N$5:$N$14)+SUMPRODUCT(Q$5:Q$14,$N$5:$N$14)+SUMPRODUCT(R$5:R$14,$N$5:$N$14))/3600,"# 0,00")&" " & 'Paramètres - Admin'!$B$4,IF((SUMPRODUCT(O$5:O$14,$N$5:$N$14)+SUMPRODUCT(P$5:P$14,$N$5:$N$14)+SUMPRODUCT(Q$5:Q$14,$N$5:$N$14)+SUMPRODUCT(R$5:R$14,$N$5:$N$14))/3600>=1,INT((SUMPRODUCT(O$5:O$14,$N$5:$N$14)+SUMPRODUCT(P$5:P$14,$N$5:$N$14)+SUMPRODUCT(Q$5:Q$14,$N$5:$N$14)+SUMPRODUCT(R$5:R$14,$N$5:$N$14))/3600) &" " & 'Paramètres - Admin'!$D$3 & " " & MINUTE((SUMPRODUCT(O$5:O$14,$N$5:$N$14)+SUMPRODUCT(P$5:P$14,$N$5:$N$14)+SUMPRODUCT(Q$5:Q$14,$N$5:$N$14)+SUMPRODUCT(R$5:R$14,$N$5:$N$14))/86400-INT((SUMPRODUCT(O$5:O$14,$N$5:$N$14)+SUMPRODUCT(P$5:P$14,$N$5:$N$14)+SUMPRODUCT(Q$5:Q$14,$N$5:$N$14)+SUMPRODUCT(R$5:R$14,$N$5:$N$14))/86400)) &" " & 'Paramètres - Admin'!$D$2 & " " & SECOND((SUMPRODUCT(O$5:O$14,$N$5:$N$14)+SUMPRODUCT(P$5:P$14,$N$5:$N$14)+SUMPRODUCT(Q$5:Q$14,$N$5:$N$14)+SUMPRODUCT(R$5:R$14,$N$5:$N$14))/86400-INT((SUMPRODUCT(O$5:O$14,$N$5:$N$14)+SUMPRODUCT(P$5:P$14,$N$5:$N$14)+SUMPRODUCT(Q$5:Q$14,$N$5:$N$14)+SUMPRODUCT(R$5:R$14,$N$5:$N$14))/86400)) &" " & 'Paramètres - Admin'!$D$5,MINUTE((SUMPRODUCT(O$5:O$14,$N$5:$N$14)+SUMPRODUCT(P$5:P$14,$N$5:$N$14)+SUMPRODUCT(Q$5:Q$14,$N$5:$N$14)+SUMPRODUCT(R$5:R$14,$N$5:$N$14))/86400-INT((SUMPRODUCT(O$5:O$14,$N$5:$N$14)+SUMPRODUCT(P$5:P$14,$N$5:$N$14)+SUMPRODUCT(Q$5:Q$14,$N$5:$N$14)+SUMPRODUCT(R$5:R$14,$N$5:$N$14))/86400)) &" " & 'Paramètres - Admin'!$D$2 & " " & SECOND((SUMPRODUCT(O$5:O$14,$N$5:$N$14)+SUMPRODUCT(P$5:P$14,$N$5:$N$14)+SUMPRODUCT(Q$5:Q$14,$N$5:$N$14)+SUMPRODUCT(R$5:R$14,$N$5:$N$14))/86400-INT((SUMPRODUCT(O$5:O$14,$N$5:$N$14)+SUMPRODUCT(P$5:P$14,$N$5:$N$14)+SUMPRODUCT(Q$5:Q$14,$N$5:$N$14)+SUMPRODUCT(R$5:R$14,$N$5:$N$14))/86400)) &" " & 'Paramètres - Admin'!$D$5)))) -> 0 mins 0 sec
A19: Combat - Gains
A20: Type | B20: Montant | J20: Cellule rouge : | K20: Troupe/Sort non disponible | Q20: Camp Militaire Capacité Totale | R20: =SUMPRODUCT(Paramètres!J6:J13,'Coûts de Formation'!H41:H48) -> 0
A21: Or | B21: 100000
A22: Élixir | B22: 100000
A23: Élixir Noir | B23: 30 | J23: Colonne orange : | K23: Erreur - Caserne Max. total atteint
A25: Combat - Profits
A26: Type | B26: Montant | J26: Cellule marron : | K26: Caserne non disponible (ou pas de Laboratoire) | Q26: Ligne jaune : | R26: Erreur - Camp Militaire Max. total atteint
A27: Or | B27: =B21 -> 100000
A28: Élixir | B28: =B22-S17-G12 -> 100000
A29: Élixir Noir | B29: =B23-AC12 -> 30

Sheet Bâtiments (hidden)
A1: Bâtiments de Ressources (Disponibles et LVL Max) | O1: Bâtiments de Ressources (Changements)
A2: LVL HdV | B2: Mine d'Or | C2: LVL Max | D2: Extracteur d'Élixir | E2: LVL Max2 | F2: Foreuse d'Élixir Noir | G2: LVL Max3 | H2: Réserve d'Or | I2: LVL Max4 | J2: Réservoir d'Élixir | K2: LVL Max5 | L2: Réservoir d'Élixir Noir | M2: LVL Max6 | O2: LVL HdV | P2: Mine d'Or | Q2: LVL Max | R2: Extracteur d'Élixir | S2: LVL Max2 | T2: Foreuse d'Élixir Noir | U2: LVL Max3 | V2: Réserve d'Or | W2: LVL Max4 | X2: Réservoir d'Élixir | Y2: LVL Max5 | Z2: Réservoir d'Élixir Noir | AA2: LVL Max6
A3: 0 | B3: 0 | C3: 0 | D3: 0 | E3: 0 | F3: 0 | G3: 0 | H3: 0 | I3: 0 | J3: 0 | K3: 0 | L3: 0 | M3: 0 | O3: 0 | P3: =B3 -> 0 | Q3: 0 | R3: 0 | S3: 0 | T3: 0 | U3: 0 | V3: 0 | W3: 0 | X3: 0 | Y3: 0 | Z3: 0 | AA3: 0
A4: 1 | B4: 1 | C4: 2 | D4: 1 | E4: 2 | F4: 0 | G4: 0 | H4: 1 | I4: 1 | J4: 1 | K4: 1 | L4: 0 | M4: 0 | O4: 1 | P4: =B4-B3 -> 1 | Q4: =C4-C3 -> 2 | R4: =D4-D3 -> 1 | S4: =E4-E3 -> 2 | T4: =F4-F3 -> 0 | U4: =G4-G3 -> 0 | V4: =H4-H3 -> 1 | W4: =I4-I3 -> 1 | X4: =J4-J3 -> 1 | Y4: =K4-K3 -> 1 | Z4: =L4-L3 -> 0 | AA4: =M4-M3 -> 0
A5: 2 | B5: 2 | C5: 4 | D5: 2 | E5: 4 | F5: 0 | G5: 0 | H5: 1 | I5: 3 | J5: 1 | K5: 3 | L5: 0 | M5: 0 | O5: 2 | P5: 1 | Q5: 2 | R5: 1 | S5: 2 | T5: 0 | U5: 0 | V5: 0 | W5: 2 | X5: 0 | Y5: 2 | Z5: 0 | AA5: 0
A6: 3 | B6: 3 | C6: 6 | D6: 3 | E6: 6 | F6: 0 | G6: 0 | H6: 2 | I6: 6 | J6: 2 | K6: 6 | L6: 0 | M6: 0 | O6: 3 | P6: 1 | Q6: 2 | R6: 1 | S6: 2 | T6: 0 | U6: 0 | V6: 1 | W6: 3 | X6: 1 | Y6: 3 | Z6: 0 | AA6: 0
A7: 4 | B7: 4 | C7: 8 | D7: 4 | E7: 8 | F7: 0 | G7: 0 | H7: 2 | I7: 8 | J7: 2 | K7: 8 | L7: 0 | M7: 0 | O7: 4 | P7: 1 | Q7: 2 | R7: 1 | S7: 2 | T7: 0 | U7: 0 | V7: 0 | W7: 2 | X7: 0 | Y7: 2 | Z7: 0 | AA7: 0
A8: 5 | B8: 5 | C8: 10 | D8: 5 | E8: 10 | F8: 0 | G8: 0 | H8: 2 | I8: 9 | J8: 2 | K8: 9 | L8: 0 | M8: 0 | O8: 5 | P8: 1 | Q8: 2 | R8: 1 | S8: 2 | T8: 0 | U8: 0 | V8: 0 | W8: 1 | X8: 0 | Y8: 1 | Z8: 0 | AA8: 0
A9: 6 | B9: 6 | C9: 10 | D9: 6 | E9: 10 | F9: 0 | G9: 0 | H9: 2 | I9: 10 | J9: 2 | K9: 10 | L9: 0 | M9: 0 | O9: 6 | P9: 1 | Q9: 0 | R9: 1 | S9: 0 | T9: 0 | U9: 0 | V9: 0 | W9: 1 | X9: 0 | Y9: 1 | Z9: 0 | AA9: 0
A10: 7 | B10: 6 | C10: 11 | D10: 6 | E10: 11 | F10: 1 | G10: 3 | H10: 2 | I10: 11 | J10: 2 | K10: 11 | L10: 1 | M10: 2 | O10: 7 | P10: 0 | Q10: 1 | R10: 0 | S10: 1 | T10: 1 | U10: 3 | V10: 0 | W10: 1 | X10: 0 | Y10: 1 | Z10: 1 | AA10: 2
A11: 8 | B11: 6 | C11: 12 | D11: 6 | E11: 12 | F11: 2 | G11: 3 | H11: 3 | I11: 11 | J11: 3 | K11: 11 | L11: 1 | M11: 4 | O11: 8 | P11: 0 | Q11: 1 | R11: 0 | S11: 1 | T11: 1 | U11: 0 | V11: 1 | W11: 0 | X11: 1 | Y11: 0 | Z11: 0 | AA11: 2
A12: 9 | B12: 6 | C12: 12 | D12: 6 | E12: 12 | F12: 2 | G12: 6 | H12: 4 | I12: 11 | J12: 4 | K12: 11 | L12: 1 | M12: 6 | O12: 9 | P12: 0 | Q12: 0 | R12: 0 | S12: 0 | T12: 0 | U12: 3 | V12: 1 | W12: 0 | X12: 1 | Y12: 0 | Z12: 0 | AA12: 2
A13: 10 | B13: 7 | C13: 12 | D13: 7 | E13: 12 | F13: 3 | G13: 6 | H13: 4 | I13: 11 | J13: 4 | K13: 11 | L13: 1 | M13: 6 | O13: 10 | P13: 1 | Q13: 0 | R13: 1 | S13: 0 | T13: 1 | U13: 0 | V13: 0 | W13: 0 | X13: 0 | Y13: 0 | Z13: 0 | AA13: 0
A16: Bâtiments d'Amée (Disponibles et LVL Max) | M16: Bâtiments d'Amée (Changements)
A17: LVL HdV | B17: Caserne | C17: LVL Max | D17: Caserne Noire | E17: LVL Max2 | F17: Camp Militaire | G17: LVL Max3 | H17: Laboratoire | I17: LVL Max4 | J17: Usine de Sorts | K17: LVL Max5 | M17: LVL HdV | N17: Caserne | O17: LVL Max | P17: Caserne Noire | Q17: LVL Max2 | R17: Camp Militaire | S17: LVL Max3 | T17: Laboratoire | U17: LVL Max4 | V17: Usine de Sorts | W17: LVL Max5
A18: 0 | B18: 0 | C18: 0 | D18: 0 | E18: 0 | F18: 0 | G18: 0 | H18: 0 | I18: 0 | J18: 0 | K18: 0 | M18: 0 | N18: =B18 -> 0 | O18: 0 | P18: 0 | Q18: 0 | R18: 0 | S18: 0 | T18: 0 | U18: 0 | V18: 0 | W18: 0
A19: 1 | B19: 1 | C19: 3 | D19: 0 | E19: 0 | F19: 1 | G19: 1 | H19: 0 | I19: 0 | J19: 0 | K19: 0 | M19: 1 | N19: =B19-B18 -> 1 | O19: =C19-C18 -> 3 | P19: =D19-D18 -> 0 | Q19: =E19-E18 -> 0 | R19: =F19-F18 -> 1 | S19: =G19-G18 -> 1 | T19: =H19-H18 -> 0 | U19: =I19-I18 -> 0 | V19: =J19-J18 -> 0 | W19: =K19-K18 -> 0
A20: 2 | B20: 2 | C20: 4 | D20: 0 | E20: 0 | F20: 1 | G20: 2 | H20: 0 | I20: 0 | J20: 0 | K20: 0 | M20: 2 | N20: 1 | O20: 1 | P20: 0 | Q20: 0 | R20: 0 | S20: 1 | T20: 0 | U20: 0 | V20: 0 | W20: 0
A21: 3 | B21: 2 | C21: 5 | D21: 0 | E21: 0 | F21: 2 | G21: 3 | H21: 1 | I21: 1 | J21: 0 | K21: 0 | M21: 3 | N21: 0 | O21: 1 | P21: 0 | Q21: 0 | R21: 1 | S21: 1 | T21: 1 | U21: 1 | V21: 0 | W21: 0
A22: 4 | B22: 3 | C22: 6 | D22: 0 | E22: 0 | F22: 2 | G22: 4 | H22: 1 | I22: 2 | J22: 0 | K22: 0 | M22: 4 | N22: 1 | O22: 1 | P22: 0 | Q22: 0 | R22: 0 | S22: 1 | T22: 0 | U22: 1 | V22: 0 | W22: 0
A23: 5 | B23: 3 | C23: 7 | D23: 0 | E23: 0 | F23: 3 | G23: 5 | H23: 1 | I23: 3 | J23: 1 | K23: 1 | M23: 5 | N23: 0 | O23: 1 | P23: 0 | Q23: 0 | R23: 1 | S23: 1 | T23: 0 | U23: 1 | V23: 1 | W23: 1
A24: 6 | B24: 3 | C24: 8 | D24: 0 | E24: 0 | F24: 3 | G24: 6 | H24: 1 | I24: 4 | J24: 1 | K24: 2 | M24: 6 | N24: 0 | O24: 1 | P24: 0 | Q24: 0 | R24: 0 | S24: 1 | T24: 0 | U24: 1 | V24: 0 | W24: 1
A25: 7 | B25: 4 | C25: 9 | D25: 1 | E25: 2 | F25: 4 | G25: 6 | H25: 1 | I25: 5 | J25: 1 | K25: 3 | M25: 7 | N25: 1 | O25: 1 | P25: 1 | Q25: 2 | R25: 1 | S25: 0 | T25: 0 | U25: 1 | V25: 0 | W25: 1
A26: 8 | B26: 4 | C26: 10 | D26: 2 | E26: 4 | F26: 4 | G26: 6 | H26: 1 | I26: 6 | J26: 1 | K26: 3 | M26: 8 | N26: 0 | O26: 1 | P26: 1 | Q26: 2 | R26: 0 | S26: 0 | T26: 0 | U26: 1 | V26: 0 | W26: 0
A27: 9 | B27: 4 | C27: 10 | D27: 2 | E27: 6 | F27: 4 | G27: 7 | H27: 1 | I27: 7 | J27: 1 | K27: 4 | M27: 9 | N27: 0 | O27: 0 | P27: 0 | Q27: 2 | R27: 0 | S27: 1 | T27: 0 | U27: 1 | V27: 0 | W27: 1
A28: 10 | B28: 4 | C28: 10 | D28: 2 | E28: 6 | F28: 4 | G28: 8 | H28: 1 | I28: 8 | J28: 1 | K28: 5 | M28: 10 | N28: 0 | O28: 0 | P28: 0 | Q28: 0 | R28: 0 | S28: 1 | T28: 0 | U28: 1 | V28: 0 | W28: 1
A31: Bâtiments de Défense (Disponibles et LVL Max) | AA31: Bâtiments de Défense (Changements)
A32: LVL HdV | B32: Rempart | C32: LVL Max | D32: Canon | E32: LVL Max2 | F32: Tour d'Archers | G32: LVL Max3 | H32: Mortier | I32: LVL Max4 | J32: Défense Antiaérienne | K32: LVL Max5 | L32: Tour de Sorciers | M32: LVL Max6 | N32: Tesla Camouflée | O32: LVL Max7 | P32: Arc-X | Q32: LVL Max8 | R32: Tour de l'Enfer | S32: LVL Max9 | T32: Propulseur d'air | U32: LVL Max10 | AA32: LVL HdV | AB32: Rempart | AC32: LVL Max | AD32: Canon | AE32: LVL Max2 | AF32: Tour d'Archers | AG32: LVL Max3 | AH32: Mortier | AI32: LVL Max4 | AJ32: Défense Antiaérienne | AK32: LVL Max5 | AL32: Tour de Sorciers | AM32: LVL Max6 | AN32: Tesla Camouflée | AO32: LVL Max7 | AP32: Arc-X | AQ32: LVL Max8 | AR32: Tour de l'Enfer | AS32: LVL Max9 | AT32: Propulseur d'air | AU32: LVL Max10
A33: 0 | B33: 0 | C33: 0 | D33: 0 | E33: 0 | F33: 0 | G33: 0 | H33: 0 | I33: 0 | J33: 0 | K33: 0 | L33: 0 | M33: 0 | N33: 0 | O33: 0 | P33: 0 | Q33: 0 | R33: 0 | S33: 0 | T33: 0 | U33: 0 | AA33: 0 | AB33: =B33 -> 0 | AC33: 0 | AD33: 0 | AE33: 0 | AF33: 0 | AG33: 0 | AH33: 0 | AI33: 0 | AJ33: 0 | AK33: 0 | AL33: 0 | AM33: 0 | AN33: 0 | AO33: 0 | AP33: 0 | AQ33: 0 | AR33: 0 | AS33: 0 | AT33: =T33 -> 0 | AU33: =U33 -> 0
A34: 1 | B34: 0 | C34: 0 | D34: 2 | E34: 2 | F34: 0 | G34: 0 | H34: 0 | I34: 0 | J34: 0 | K34: 0 | L34: 0 | M34: 0 | N34: 0 | O34: 0 | P34: 0 | Q34: 0 | R34: 0 | S34: 0 | T34: 0 | U34: 0 | AA34: 1 | AB34: =B34-B33 -> 0 | AC34: =C34-C33 -> 0 | AD34: =D34-D33 -> 2 | AE34: =E34-E33 -> 2 | AF34: =F34-F33 -> 0 | AG34: =G34-G33 -> 0 | AH34: =H34-H33 -> 0 | AI34: =I34-I33 -> 0 | AJ34: =J34-J33 -> 0 | AK34: =K34-K33 -> 0 | AL34: =L34-L33 -> 0 | AM34: =M34-M33 -> 0 | AN34: =N34-N33 -> 0 | AO34: =O34-O33 -> 0 | AP34: =P34-P33 -> 0 | AQ34: =Q34-Q33 -> 0 | AR34: =R34-R33 -> 0 | AS34: =S34-S33 -> 0 | AT34: =T34-T33 -> 0 | AU34: =U34-U33 -> 0
A35: 2 | B35: 25 | C35: 2 | D35: 2 | E35: 3 | F35: 1 | G35: 2 | H35: 0 | I35: 0 | J35: 0 | K35: 0 | L35: 0 | M35: 0 | N35: 0 | O35: 0 | P35: 0 | Q35: 0 | R35: 0 | S35: 0 | T35: 0 | U35: 0 | AA35: 2 | AB35: 25 | AC35: 2 | AD35: 0 | AE35: 1 | AF35: 1 | AG35: 2 | AH35: 0 | AI35: 0 | AJ35: 0 | AK35: 0 | AL35: 0 | AM35: 0 | AN35: 0 | AO35: 0 | AP35: 0 | AQ35: 0 | AR35: 0 | AS35: 0 | AT35: 0 | AU35: 0
A36: 3 | B36: 50 | C36: 3 | D36: 2 | E36: 4 | F36: 1 | G36: 3 | H36: 1 | I36: 1 | J36: 0 | K36: 0 | L36: 0 | M36: 0 | N36: 0 | O36: 0 | P36: 0 | Q36: 0 | R36: 0 | S36: 0 | T36: 0 | U36: 0 | AA36: 3 | AB36: 25 | AC36: 1 | AD36: 0 | AE36: 1 | AF36: 0 | AG36: 1 | AH36: 1 | AI36: 1 | AJ36: 0 | AK36: 0 | AL36: 0 | AM36: 0 | AN36: 0 | AO36: 0 | AP36: 0 | AQ36: 0 | AR36: 0 | AS36: 0 | AT36: 0 | AU36: 0
A37: 4 | B37: 75 | C37: 4 | D37: 2 | E37: 5 | F37: 2 | G37: 4 | H37: 1 | I37: 2 | J37: 1 | K37: 2 | L37: 0 | M37: 0 | N37: 0 | O37: 0 | P37: 0 | Q37: 0 | R37: 0 | S37: 0 | T37: 0 | U37: 0 | AA37: 4 | AB37: 25 | AC37: 1 | AD37: 0 | AE37: 1 | AF37: 1 | AG37: 1 | AH37: 0 | AI37: 1 | AJ37: 1 | AK37: 2 | AL37: 0 | AM37: 0 | AN37: 0 | AO37: 0 | AP37: 0 | AQ37: 0 | AR37: 0 | AS37: 0 | AT37: 0 | AU37: 0
